{"text_format":"1","workbook":"xlsx","n_sheets":2,"sheets":["Лист5","Металлопроцессинг"],"not_rendered":{"charts":0,"images":0,"macros":1,"external_links":0,"defined_names":0,"comments":0,"pivot_tables":1},"unopened":[],"bounds":{"document_bytes":16777216,"sheet_cells":100000,"rows_first":2000,"rows_last":500,"rows_between":2000,"halvings":0,"cell_chars":16384,"cell_head_chars":4096},"cells_cut":0,"cells_raw":0,"read":"whole","date_system":"1900"}

{"sheet":"Лист5","index":0,"n_rows":63,"n_cols":3,"rows_kept":63,"cut":false,"hidden":false,"merged":[]}
["Месяц отгрузки",1]
[]
[null,"Значения"]
["Названия строк","Сумма по полю Сумма выручки для начисления з/п для куратора, с НДС","Сумма по полю Сумма выручки для начисления з/п для менеджера, с НДС"]
["САНКТ-ПЕТЕРБУРГ"]
["Дауэнгауэр Н.Э."]
["Дауэнгауэр Н.Э.",509106.30000000005,0]
["Ипатов Д.В.",28500,28500]
["Молчанова Е.М.",14810,14810]
["Петров А.Б. (уволен)",900,900]
["Погорелов И.В.",250,250]
["Хабибуллов М.Р.",51093.75,51093.75]
["Зиновьев С.Ю."]
["Зиновьев С.Ю.",58735,0]
["Ипатов Д.В."]
["Ипатов Д.В.",820,0]
["Молчанова Е.М.",12000,12000]
["Ипатова Е.Н."]
["Дауэнгауэр Н.Э.",3662.5,3662.5]
["Ипатов Д.В.",820,820]
["Ипатова Е.Н.",282019.83,0]
["Матросова Л.Ш.",1000,1000]
["Молчанова Е.М.",7500,7500]
["Сафонеев С.А.",8640.0249999999996,8640.0249999999996]
["Степура С.Н.",720,720]
["Матросова Л.Ш."]
["Матросова Л.Ш.",20586,0]
["Степура С.Н.",450,450]
["Молчанова Е.М."]
["Молчанова Е.М.",178040.7,0]
["Степура С.Н.",3120,3120]
["Петров А.Б. (уволен)"]
["Петров А.Б. (уволен)",32684.47,0]
["Погорелов И.В."]
["Дауэнгауэр Н.Э.",2824.05,2824.05]
["Погорелов И.В.",56661,0]
["Степура С.Н.",1000,1000]
["Райская Н.А."]
["Дауэнгауэр Н.Э.",2849.4,2849.4]
["Зиновьев С.Ю.",3150,3150]
["Ипатова Е.Н.",15573.105,15573.105]
["Матросова Л.Ш.",2255,2255]
["Молчанова Е.М.",7445,7445]
["Райская Н.А.",18009.5,0]
["Степура С.Н.",160,160]
["Сафонеев С.А."]
["Дауэнгауэр Н.Э.",3496.5,3496.5]
["Зиновьев С.Ю.",375,375]
["Ипатов Д.В.",28500,28500]
["Райская Н.А.",495,495]
["Сафонеев С.А.",329024.55000000005,0]
["Степура С.Н.",725,725]
["Хабибуллов М.Р.",15002.25,15002.25]
["Степура С.Н."]
["Степура С.Н.",44080,0]
["Хабибуллов М.Р."]
["Дауэнгауэр Н.Э.",22215,22215]
["Ипатова Е.Н.",14997,14997]
["Молчанова Е.М.",669.6,669.6]
["Погорелов И.В.",7491.75,7491.75]
["Степура С.Н.",15002.25,15002.25]
["Хабибуллов М.Р.",352362.5,0]
["Общий итог",2159822.0300000003,277692.18]

{"sheet":"Металлопроцессинг","index":1,"n_rows":177,"n_cols":33,"rows_kept":177,"cut":false,"hidden":false,"merged":[]}
["Месяц отгрузки","Филиал отгрузки","Дивизион отгрузки","Менеджер","Менеджер приказа","Куратор договора","Инициатор+исполнитель","Оборот за месяц по контрагенту","Распределение выручки для Куратора договора","Распределение выручки для Менеджера договора","Сумма выручки для начисления з/п для куратора, с НДС","Сумма выручки для начисления з/п для менеджера, с НДС","Тип производства","Филиал производства","Контрагент","Полное наименование контрагента","Регион контрагента","Регион грузополучателя","Отрасль контрагента","Номенклатура","Клиентское наименование","Количество ед изм","Ед изм","Сумма по позиции","Техническая операция","Станок","Сумма наценки","Количество операций","Количество изделий","Длительность операций","Филиал-заказчик","Дивизион заказчика","Количество металла"]
[1,"САНКТ-ПЕТЕРБУРГ","Центр","Дауэнгауэр Н.Э.","Дауэнгауэр Н.Э.","Дауэнгауэр Н.Э.",{"$f":"IF(Таблица_Металлопроцессинг_детализированный[[#This Row],[Куратор договора]]=Таблица_Металлопроцессинг_детализированный[[#This Row],[Менеджер]],TRUE,FALSE)","v":true},{"$f":"SUMIFS(AA2:AA177,O2:O177,Таблица_Металлопроцессинг_детализированный[[#This Row],[Контрагент]],A2:A177,Таблица_Металлопроцессинг_детализированный[[#This Row],[Месяц отгрузки]])","v":16118.699999999999},{"$f":"IF(Таблица_Металлопроцессинг_детализированный[[#This Row],[Инициатор+исполнитель]],1,IF(Таблица_Металлопроцессинг_детализированный[[#This Row],[Оборот за месяц по контрагенту]]<1000000,0.5,0.7))","v":1},{"$f":"IF(Таблица_Металлопроцессинг_детализированный[[#This Row],[Инициатор+исполнитель]]=TRUE,0,IF(Таблица_Металлопроцессинг_детализированный[[#This Row],[Оборот за месяц по контрагенту]]<1000000,0.5,0.3))","v":0},{"$f":"Таблица_Металлопроцессинг_детализированный[[#This Row],[Сумма наценки]]*Таблица_Металлопроцессинг_детализированный[[#This Row],[Распределение выручки для Куратора договора]]","v":1840.8},{"$f":"IF(Таблица_Металлопроцессинг_детализированный[[#This Row],[Распределение выручки для Менеджера договора]]=1,\"\",Таблица_Металлопроцессинг_детализированный[[#This Row],[Сумма наценки]]*Таблица_Металлопроцессинг_детализированный[[#This Row],[Распределение выручки для Менеджера договора]])","v":0},"Процессинг","САНКТ-ПЕТЕРБУРГ","НГ-ЭНЕРГО","ЗАО \"НГ-Энерго\"",null,null,"Машиностроение","Сталь листовая Х/к., 1.5, 1250x2500, Ст.кп/пс (ТУ 14-106-321-2010)",null,1.18,"т",32237.599999999999,"Порезка листового проката (ножницы)",null,1840.8,1,1.2,null,"САНКТ-ПЕТЕРБУРГ","Центр",1.18]
[1,"САНКТ-ПЕТЕРБУРГ","Центр","Дауэнгауэр Н.Э.","Дауэнгауэр Н.Э.","Дауэнгауэр Н.Э.",{"$f":"IF(Таблица_Металлопроцессинг_детализированный[[#This Row],[Куратор договора]]=Таблица_Металлопроцессинг_детализированный[[#This Row],[Менеджер]],TRUE,FALSE)","v":true},{"$f":"SUMIFS(AA3:AA177,O3:O177,Таблица_Металлопроцессинг_детализированный[[#This Row],[Контрагент]],A3:A177,Таблица_Металлопроцессинг_детализированный[[#This Row],[Месяц отгрузки]])","v":14277.9},{"$f":"IF(Таблица_Металлопроцессинг_детализированный[[#This Row],[Инициатор+исполнитель]],1,IF(Таблица_Металлопроцессинг_детализированный[[#This Row],[Оборот за месяц по контрагенту]]<1000000,0.5,0.7))","v":1},{"$f":"IF(Таблица_Металлопроцессинг_детализированный[[#This Row],[Инициатор+исполнитель]]=TRUE,0,IF(Таблица_Металлопроцессинг_детализированный[[#This Row],[Оборот за месяц по контрагенту]]<1000000,0.5,0.3))","v":0},{"$f":"Таблица_Металлопроцессинг_детализированный[[#This Row],[Сумма наценки]]*Таблица_Металлопроцессинг_детализированный[[#This Row],[Распределение выручки для Куратора договора]]","v":9536.7999999999993},{"$f":"IF(Таблица_Металлопроцессинг_детализированный[[#This Row],[Распределение выручки для Менеджера договора]]=1,\"\",Таблица_Металлопроцессинг_детализированный[[#This Row],[Сумма наценки]]*Таблица_Металлопроцессинг_детализированный[[#This Row],[Распределение выручки для Менеджера договора]])","v":0},"Процессинг","САНКТ-ПЕТЕРБУРГ","НГ-ЭНЕРГО","ЗАО \"НГ-Энерго\"",null,null,"Машиностроение","Сталь листовая Х/к., 2, 1250x2500, Ст.кп/пс (ТУ 14-106-321-2010)",null,7.28,"т",198889.60000000001,"Порезка листового проката (ножницы)",null,9536.7999999999993,1,6.2,null,"САНКТ-ПЕТЕРБУРГ","Центр",7.28]
[1,"САНКТ-ПЕТЕРБУРГ","Центр","Дауэнгауэр Н.Э.","Дауэнгауэр Н.Э.","Дауэнгауэр Н.Э.",{"$f":"IF(Таблица_Металлопроцессинг_детализированный[[#This Row],[Куратор договора]]=Таблица_Металлопроцессинг_детализированный[[#This Row],[Менеджер]],TRUE,FALSE)","v":true},{"$f":"SUMIFS(AA4:AA177,O4:O177,Таблица_Металлопроцессинг_детализированный[[#This Row],[Контрагент]],A4:A177,Таблица_Металлопроцессинг_детализированный[[#This Row],[Месяц отгрузки]])","v":4741.1000000000004},{"$f":"IF(Таблица_Металлопроцессинг_детализированный[[#This Row],[Инициатор+исполнитель]],1,IF(Таблица_Металлопроцессинг_детализированный[[#This Row],[Оборот за месяц по контрагенту]]<1000000,0.5,0.7))","v":1},{"$f":"IF(Таблица_Металлопроцессинг_детализированный[[#This Row],[Инициатор+исполнитель]]=TRUE,0,IF(Таблица_Металлопроцессинг_детализированный[[#This Row],[Оборот за месяц по контрагенту]]<1000000,0.5,0.3))","v":0},{"$f":"Таблица_Металлопроцессинг_детализированный[[#This Row],[Сумма наценки]]*Таблица_Металлопроцессинг_детализированный[[#This Row],[Распределение выручки для Куратора договора]]","v":4741.1000000000004},{"$f":"IF(Таблица_Металлопроцессинг_детализированный[[#This Row],[Распределение выручки для Менеджера договора]]=1,\"\",Таблица_Металлопроцессинг_детализированный[[#This Row],[Сумма наценки]]*Таблица_Металлопроцессинг_детализированный[[#This Row],[Распределение выручки для Менеджера договора]])","v":0},"Процессинг","САНКТ-ПЕТЕРБУРГ","НГ-ЭНЕРГО","ЗАО \"НГ-Энерго\"",null,null,"Машиностроение","Уголок стальной г/к равнополочный, 50x5, Ст.сп/пс (ГОСТ 8509-93)",null,5.21,"т",141191,"Порезка (станок ленточнопильный)",null,4741.1000000000004,1,7,null,"САНКТ-ПЕТЕРБУРГ","Центр",5.21]
[1,"САНКТ-ПЕТЕРБУРГ","Центр","Петров А.Б. (уволен)","Петров(С.-П.) А.Б.","Дауэнгауэр Н.Э.",{"$f":"IF(Таблица_Металлопроцессинг_детализированный[[#This Row],[Куратор договора]]=Таблица_Металлопроцессинг_детализированный[[#This Row],[Менеджер]],TRUE,FALSE)","v":false},{"$f":"SUMIFS(AA5:AA177,O5:O177,Таблица_Металлопроцессинг_детализированный[[#This Row],[Контрагент]],A5:A177,Таблица_Металлопроцессинг_детализированный[[#This Row],[Месяц отгрузки]])","v":34484.47},{"$f":"IF(Таблица_Металлопроцессинг_детализированный[[#This Row],[Инициатор+исполнитель]],1,IF(Таблица_Металлопроцессинг_детализированный[[#This Row],[Оборот за месяц по контрагенту]]<1000000,0.5,0.7))","v":0.5},{"$f":"IF(Таблица_Металлопроцессинг_детализированный[[#This Row],[Инициатор+исполнитель]]=TRUE,0,IF(Таблица_Металлопроцессинг_детализированный[[#This Row],[Оборот за месяц по контрагенту]]<1000000,0.5,0.3))","v":0.5},{"$f":"Таблица_Металлопроцессинг_детализированный[[#This Row],[Сумма наценки]]*Таблица_Металлопроцессинг_детализированный[[#This Row],[Распределение выручки для Куратора договора]]","v":900},{"$f":"IF(Таблица_Металлопроцессинг_детализированный[[#This Row],[Распределение выручки для Менеджера договора]]=1,\"\",Таблица_Металлопроцессинг_детализированный[[#This Row],[Сумма наценки]]*Таблица_Металлопроцессинг_детализированный[[#This Row],[Распределение выручки для Менеджера договора]])","v":900},"Из давальческого сырья","САНКТ-ПЕТЕРБУРГ","АСТ СПБ","ЗАО \"АСТ\"",null,null,"Стройиндустрия","Изделие","Каркас поддерживающий  Вариант 3",15,"шт",5618.85,"Ручная сборка и доварка каркаса","IDEA",1800,15,15,1,"САНКТ-ПЕТЕРБУРГ","Центр",0.14799999999999999]
[1,"САНКТ-ПЕТЕРБУРГ","Центр","Петров А.Б. (уволен)","Петров(С.-П.) А.Б.","Петров А.Б. (уволен)",{"$f":"IF(Таблица_Металлопроцессинг_детализированный[[#This Row],[Куратор договора]]=Таблица_Металлопроцессинг_детализированный[[#This Row],[Менеджер]],TRUE,FALSE)","v":true},{"$f":"SUMIFS(AA6:AA177,O6:O177,Таблица_Металлопроцессинг_детализированный[[#This Row],[Контрагент]],A6:A177,Таблица_Металлопроцессинг_детализированный[[#This Row],[Месяц отгрузки]])","v":32684.47},{"$f":"IF(Таблица_Металлопроцессинг_детализированный[[#This Row],[Инициатор+исполнитель]],1,IF(Таблица_Металлопроцессинг_детализированный[[#This Row],[Оборот за месяц по контрагенту]]<1000000,0.5,0.7))","v":1},{"$f":"IF(Таблица_Металлопроцессинг_детализированный[[#This Row],[Инициатор+исполнитель]]=TRUE,0,IF(Таблица_Металлопроцессинг_детализированный[[#This Row],[Оборот за месяц по контрагенту]]<1000000,0.5,0.3))","v":0},{"$f":"Таблица_Металлопроцессинг_детализированный[[#This Row],[Сумма наценки]]*Таблица_Металлопроцессинг_детализированный[[#This Row],[Распределение выручки для Куратора договора]]","v":14791.67},{"$f":"IF(Таблица_Металлопроцессинг_детализированный[[#This Row],[Распределение выручки для Менеджера договора]]=1,\"\",Таблица_Металлопроцессинг_детализированный[[#This Row],[Сумма наценки]]*Таблица_Металлопроцессинг_детализированный[[#This Row],[Распределение выручки для Менеджера договора]])","v":0},"Из давальческого сырья","САНКТ-ПЕТЕРБУРГ","АСТ СПБ","ЗАО \"АСТ\"",null,null,"Стройиндустрия","Изделие","Каркас поддерживающий  Вариант 1",199,"шт",50997.73,"Ручная сборка и доварка каркаса","IDEA",14791.67,199,199,1,"САНКТ-ПЕТЕРБУРГ","Центр",1.444]
[1,"САНКТ-ПЕТЕРБУРГ","Центр","Дауэнгауэр Н.Э.","Дауэнгауэр Н.Э.","Дауэнгауэр Н.Э.",{"$f":"IF(Таблица_Металлопроцессинг_детализированный[[#This Row],[Куратор договора]]=Таблица_Металлопроцессинг_детализированный[[#This Row],[Менеджер]],TRUE,FALSE)","v":true},{"$f":"SUMIFS(AA7:AA177,O7:O177,Таблица_Металлопроцессинг_детализированный[[#This Row],[Контрагент]],A7:A177,Таблица_Металлопроцессинг_детализированный[[#This Row],[Месяц отгрузки]])","v":21321.5},{"$f":"IF(Таблица_Металлопроцессинг_детализированный[[#This Row],[Инициатор+исполнитель]],1,IF(Таблица_Металлопроцессинг_детализированный[[#This Row],[Оборот за месяц по контрагенту]]<1000000,0.5,0.7))","v":1},{"$f":"IF(Таблица_Металлопроцессинг_детализированный[[#This Row],[Инициатор+исполнитель]]=TRUE,0,IF(Таблица_Металлопроцессинг_детализированный[[#This Row],[Оборот за месяц по контрагенту]]<1000000,0.5,0.3))","v":0},{"$f":"Таблица_Металлопроцессинг_детализированный[[#This Row],[Сумма наценки]]*Таблица_Металлопроцессинг_детализированный[[#This Row],[Распределение выручки для Куратора договора]]","v":1650},{"$f":"IF(Таблица_Металлопроцессинг_детализированный[[#This Row],[Распределение выручки для Менеджера договора]]=1,\"\",Таблица_Металлопроцессинг_детализированный[[#This Row],[Сумма наценки]]*Таблица_Металлопроцессинг_детализированный[[#This Row],[Распределение выручки для Менеджера договора]])","v":0},"Процессинг","САНКТ-ПЕТЕРБУРГ","БЗ-СУДОСТРОЕНИЕ","ООО \"Балтийский завод-Судостроение\"",null,null,"Машиностроение","Уголок стальной г/к равнополочный, 25x4, Ст.сп/пс (ГОСТ 8509-93)",null,1.5,"т",41310,"Порезка (станок ленточнопильный)",null,1650,1,1.5,null,"САНКТ-ПЕТЕРБУРГ","Центр",1.5]
[1,"САНКТ-ПЕТЕРБУРГ","Центр","Дауэнгауэр Н.Э.","Дауэнгауэр Н.Э.","Дауэнгауэр Н.Э.",{"$f":"IF(Таблица_Металлопроцессинг_детализированный[[#This Row],[Куратор договора]]=Таблица_Металлопроцессинг_детализированный[[#This Row],[Менеджер]],TRUE,FALSE)","v":true},{"$f":"SUMIFS(AA8:AA177,O8:O177,Таблица_Металлопроцессинг_детализированный[[#This Row],[Контрагент]],A8:A177,Таблица_Металлопроцессинг_детализированный[[#This Row],[Месяц отгрузки]])","v":19671.5},{"$f":"IF(Таблица_Металлопроцессинг_детализированный[[#This Row],[Инициатор+исполнитель]],1,IF(Таблица_Металлопроцессинг_детализированный[[#This Row],[Оборот за месяц по контрагенту]]<1000000,0.5,0.7))","v":1},{"$f":"IF(Таблица_Металлопроцессинг_детализированный[[#This Row],[Инициатор+исполнитель]]=TRUE,0,IF(Таблица_Металлопроцессинг_детализированный[[#This Row],[Оборот за месяц по контрагенту]]<1000000,0.5,0.3))","v":0},{"$f":"Таблица_Металлопроцессинг_детализированный[[#This Row],[Сумма наценки]]*Таблица_Металлопроцессинг_детализированный[[#This Row],[Распределение выручки для Куратора договора]]","v":2475},{"$f":"IF(Таблица_Металлопроцессинг_детализированный[[#This Row],[Распределение выручки для Менеджера договора]]=1,\"\",Таблица_Металлопроцессинг_детализированный[[#This Row],[Сумма наценки]]*Таблица_Металлопроцессинг_детализированный[[#This Row],[Распределение выручки для Менеджера договора]])","v":0},"Процессинг","САНКТ-ПЕТЕРБУРГ","БЗ-СУДОСТРОЕНИЕ","ООО \"Балтийский завод-Судостроение\"",null,null,"Машиностроение","Швеллер стальной г/к, 10П, Ст.сп/пс, н/дл (ГОСТ 535-88/ ГОСТ 535-05)",null,0.99,"т",24294.6,"Порезка (станок ленточнопильный)",null,2475,1,1,null,"САНКТ-ПЕТЕРБУРГ","Центр",0.99]
[1,"САНКТ-ПЕТЕРБУРГ","Центр","Дауэнгауэр Н.Э.","Дауэнгауэр Н.Э.","Дауэнгауэр Н.Э.",{"$f":"IF(Таблица_Металлопроцессинг_детализированный[[#This Row],[Куратор договора]]=Таблица_Металлопроцессинг_детализированный[[#This Row],[Менеджер]],TRUE,FALSE)","v":true},{"$f":"SUMIFS(AA9:AA177,O9:O177,Таблица_Металлопроцессинг_детализированный[[#This Row],[Контрагент]],A9:A177,Таблица_Металлопроцессинг_детализированный[[#This Row],[Месяц отгрузки]])","v":17196.5},{"$f":"IF(Таблица_Металлопроцессинг_детализированный[[#This Row],[Инициатор+исполнитель]],1,IF(Таблица_Металлопроцессинг_детализированный[[#This Row],[Оборот за месяц по контрагенту]]<1000000,0.5,0.7))","v":1},{"$f":"IF(Таблица_Металлопроцессинг_детализированный[[#This Row],[Инициатор+исполнитель]]=TRUE,0,IF(Таблица_Металлопроцессинг_детализированный[[#This Row],[Оборот за месяц по контрагенту]]<1000000,0.5,0.3))","v":0},{"$f":"Таблица_Металлопроцессинг_детализированный[[#This Row],[Сумма наценки]]*Таблица_Металлопроцессинг_детализированный[[#This Row],[Распределение выручки для Куратора договора]]","v":1000},{"$f":"IF(Таблица_Металлопроцессинг_детализированный[[#This Row],[Распределение выручки для Менеджера договора]]=1,\"\",Таблица_Металлопроцессинг_детализированный[[#This Row],[Сумма наценки]]*Таблица_Металлопроцессинг_детализированный[[#This Row],[Распределение выручки для Менеджера договора]])","v":0},"Процессинг","САНКТ-ПЕТЕРБУРГ","БЗ-СУДОСТРОЕНИЕ","ООО \"Балтийский завод-Судостроение\"",null,null,"Машиностроение","Швеллер стальной Г/к., 12П, Ст.сп/пс (ГОСТ 8240-97)",null,2,"т",56420,"Порезка (станок ленточнопильный)",null,1000,1,2,null,"САНКТ-ПЕТЕРБУРГ","Центр",2]
[1,"САНКТ-ПЕТЕРБУРГ","Центр","Дауэнгауэр Н.Э.","Дауэнгауэр Н.Э.","Дауэнгауэр Н.Э.",{"$f":"IF(Таблица_Металлопроцессинг_детализированный[[#This Row],[Куратор договора]]=Таблица_Металлопроцессинг_детализированный[[#This Row],[Менеджер]],TRUE,FALSE)","v":true},{"$f":"SUMIFS(AA10:AA177,O10:O177,Таблица_Металлопроцессинг_детализированный[[#This Row],[Контрагент]],A10:A177,Таблица_Металлопроцессинг_детализированный[[#This Row],[Месяц отгрузки]])","v":16196.5},{"$f":"IF(Таблица_Металлопроцессинг_детализированный[[#This Row],[Инициатор+исполнитель]],1,IF(Таблица_Металлопроцессинг_детализированный[[#This Row],[Оборот за месяц по контрагенту]]<1000000,0.5,0.7))","v":1},{"$f":"IF(Таблица_Металлопроцессинг_детализированный[[#This Row],[Инициатор+исполнитель]]=TRUE,0,IF(Таблица_Металлопроцессинг_детализированный[[#This Row],[Оборот за месяц по контрагенту]]<1000000,0.5,0.3))","v":0},{"$f":"Таблица_Металлопроцессинг_детализированный[[#This Row],[Сумма наценки]]*Таблица_Металлопроцессинг_детализированный[[#This Row],[Распределение выручки для Куратора договора]]","v":2757.5},{"$f":"IF(Таблица_Металлопроцессинг_детализированный[[#This Row],[Распределение выручки для Менеджера договора]]=1,\"\",Таблица_Металлопроцессинг_детализированный[[#This Row],[Сумма наценки]]*Таблица_Металлопроцессинг_детализированный[[#This Row],[Распределение выручки для Менеджера договора]])","v":0},"Процессинг","САНКТ-ПЕТЕРБУРГ","БЗ-СУДОСТРОЕНИЕ","ООО \"Балтийский завод-Судостроение\"",null,null,"Машиностроение","Швеллер стальной Г/к., 14П, Ст.сп/пс (ГОСТ 8240-97)",null,5.5149999999999997,"т",155578.15,"Порезка (станок ленточнопильный)",null,2757.5,1,5.5,null,"САНКТ-ПЕТЕРБУРГ","Центр",5.5149999999999997]
[1,"САНКТ-ПЕТЕРБУРГ","Центр","Дауэнгауэр Н.Э.","Дауэнгауэр Н.Э.","Дауэнгауэр Н.Э.",{"$f":"IF(Таблица_Металлопроцессинг_детализированный[[#This Row],[Куратор договора]]=Таблица_Металлопроцессинг_детализированный[[#This Row],[Менеджер]],TRUE,FALSE)","v":true},{"$f":"SUMIFS(AA11:AA177,O11:O177,Таблица_Металлопроцессинг_детализированный[[#This Row],[Контрагент]],A11:A177,Таблица_Металлопроцессинг_детализированный[[#This Row],[Месяц отгрузки]])","v":13439},{"$f":"IF(Таблица_Металлопроцессинг_детализированный[[#This Row],[Инициатор+исполнитель]],1,IF(Таблица_Металлопроцессинг_детализированный[[#This Row],[Оборот за месяц по контрагенту]]<1000000,0.5,0.7))","v":1},{"$f":"IF(Таблица_Металлопроцессинг_детализированный[[#This Row],[Инициатор+исполнитель]]=TRUE,0,IF(Таблица_Металлопроцессинг_детализированный[[#This Row],[Оборот за месяц по контрагенту]]<1000000,0.5,0.3))","v":0},{"$f":"Таблица_Металлопроцессинг_детализированный[[#This Row],[Сумма наценки]]*Таблица_Металлопроцессинг_детализированный[[#This Row],[Распределение выручки для Куратора договора]]","v":2232},{"$f":"IF(Таблица_Металлопроцессинг_детализированный[[#This Row],[Распределение выручки для Менеджера договора]]=1,\"\",Таблица_Металлопроцессинг_детализированный[[#This Row],[Сумма наценки]]*Таблица_Металлопроцессинг_детализированный[[#This Row],[Распределение выручки для Менеджера договора]])","v":0},"Процессинг","САНКТ-ПЕТЕРБУРГ","БЗ-СУДОСТРОЕНИЕ","ООО \"Балтийский завод-Судостроение\"",null,null,"Машиностроение","Уголок стальной г/к равнополочный, 100x10, Ст.сп/пс (ГОСТ 8509-93)",null,7.44,"т",209882.4,"Порезка (станок ленточнопильный)",null,2232,1,9.4139999999999997,null,"САНКТ-ПЕТЕРБУРГ","Центр",7.44]
[1,"САНКТ-ПЕТЕРБУРГ","Центр","Дауэнгауэр Н.Э.","Дауэнгауэр Н.Э.","Дауэнгауэр Н.Э.",{"$f":"IF(Таблица_Металлопроцессинг_детализированный[[#This Row],[Куратор договора]]=Таблица_Металлопроцессинг_детализированный[[#This Row],[Менеджер]],TRUE,FALSE)","v":true},{"$f":"SUMIFS(AA12:AA177,O12:O177,Таблица_Металлопроцессинг_детализированный[[#This Row],[Контрагент]],A12:A177,Таблица_Металлопроцессинг_детализированный[[#This Row],[Месяц отгрузки]])","v":65514},{"$f":"IF(Таблица_Металлопроцессинг_детализированный[[#This Row],[Инициатор+исполнитель]],1,IF(Таблица_Металлопроцессинг_детализированный[[#This Row],[Оборот за месяц по контрагенту]]<1000000,0.5,0.7))","v":1},{"$f":"IF(Таблица_Металлопроцессинг_детализированный[[#This Row],[Инициатор+исполнитель]]=TRUE,0,IF(Таблица_Металлопроцессинг_детализированный[[#This Row],[Оборот за месяц по контрагенту]]<1000000,0.5,0.3))","v":0},{"$f":"Таблица_Металлопроцессинг_детализированный[[#This Row],[Сумма наценки]]*Таблица_Металлопроцессинг_детализированный[[#This Row],[Распределение выручки для Куратора договора]]","v":6090},{"$f":"IF(Таблица_Металлопроцессинг_детализированный[[#This Row],[Распределение выручки для Менеджера договора]]=1,\"\",Таблица_Металлопроцессинг_детализированный[[#This Row],[Сумма наценки]]*Таблица_Металлопроцессинг_детализированный[[#This Row],[Распределение выручки для Менеджера договора]])","v":0},"Процессинг","САНКТ-ПЕТЕРБУРГ","СКМ Фирма","ООО \"Фирма СКМ\"","Ленинградская обл.","Ленинградская обл.","Машиностроение","Сталь листовая Х/к., 1.5, 1250x2500, Ст.кп/пс (ТУ 14-106-321-2010)",null,2.0299999999999998,"т",55459.6,"Порезка листового проката (ножницы)",null,6090,1,2,null,"САНКТ-ПЕТЕРБУРГ","Центр",2.0299999999999998]
[1,"САНКТ-ПЕТЕРБУРГ","Центр","Дауэнгауэр Н.Э.","Дауэнгауэр Н.Э.","Дауэнгауэр Н.Э.",{"$f":"IF(Таблица_Металлопроцессинг_детализированный[[#This Row],[Куратор договора]]=Таблица_Металлопроцессинг_детализированный[[#This Row],[Менеджер]],TRUE,FALSE)","v":true},{"$f":"SUMIFS(AA13:AA177,O13:O177,Таблица_Металлопроцессинг_детализированный[[#This Row],[Контрагент]],A13:A177,Таблица_Металлопроцессинг_детализированный[[#This Row],[Месяц отгрузки]])","v":11207},{"$f":"IF(Таблица_Металлопроцессинг_детализированный[[#This Row],[Инициатор+исполнитель]],1,IF(Таблица_Металлопроцессинг_детализированный[[#This Row],[Оборот за месяц по контрагенту]]<1000000,0.5,0.7))","v":1},{"$f":"IF(Таблица_Металлопроцессинг_детализированный[[#This Row],[Инициатор+исполнитель]]=TRUE,0,IF(Таблица_Металлопроцессинг_детализированный[[#This Row],[Оборот за месяц по контрагенту]]<1000000,0.5,0.3))","v":0},{"$f":"Таблица_Металлопроцессинг_детализированный[[#This Row],[Сумма наценки]]*Таблица_Металлопроцессинг_детализированный[[#This Row],[Распределение выручки для Куратора договора]]","v":3600},{"$f":"IF(Таблица_Металлопроцессинг_детализированный[[#This Row],[Распределение выручки для Менеджера договора]]=1,\"\",Таблица_Металлопроцессинг_детализированный[[#This Row],[Сумма наценки]]*Таблица_Металлопроцессинг_детализированный[[#This Row],[Распределение выручки для Менеджера договора]])","v":0},"Процессинг","САНКТ-ПЕТЕРБУРГ","БЗ-СУДОСТРОЕНИЕ","ООО \"Балтийский завод-Судостроение\"",null,null,"Машиностроение","Уголок стальной г/к равнополочный, 63x5, Ст.сп/пс, н/дл (ГОСТ 8509-93)",null,3,"т",75300,"Порезка (станок ленточнопильный)",null,3600,1,3,null,"САНКТ-ПЕТЕРБУРГ","Центр",3]
[1,"САНКТ-ПЕТЕРБУРГ","Центр","Дауэнгауэр Н.Э.","Дауэнгауэр Н.Э.","Дауэнгауэр Н.Э.",{"$f":"IF(Таблица_Металлопроцессинг_детализированный[[#This Row],[Куратор договора]]=Таблица_Металлопроцессинг_детализированный[[#This Row],[Менеджер]],TRUE,FALSE)","v":true},{"$f":"SUMIFS(AA14:AA177,O14:O177,Таблица_Металлопроцессинг_детализированный[[#This Row],[Контрагент]],A14:A177,Таблица_Металлопроцессинг_детализированный[[#This Row],[Месяц отгрузки]])","v":59424},{"$f":"IF(Таблица_Металлопроцессинг_детализированный[[#This Row],[Инициатор+исполнитель]],1,IF(Таблица_Металлопроцессинг_детализированный[[#This Row],[Оборот за месяц по контрагенту]]<1000000,0.5,0.7))","v":1},{"$f":"IF(Таблица_Металлопроцессинг_детализированный[[#This Row],[Инициатор+исполнитель]]=TRUE,0,IF(Таблица_Металлопроцессинг_детализированный[[#This Row],[Оборот за месяц по контрагенту]]<1000000,0.5,0.3))","v":0},{"$f":"Таблица_Металлопроцессинг_детализированный[[#This Row],[Сумма наценки]]*Таблица_Металлопроцессинг_детализированный[[#This Row],[Распределение выручки для Куратора договора]]","v":18225},{"$f":"IF(Таблица_Металлопроцессинг_детализированный[[#This Row],[Распределение выручки для Менеджера договора]]=1,\"\",Таблица_Металлопроцессинг_детализированный[[#This Row],[Сумма наценки]]*Таблица_Металлопроцессинг_детализированный[[#This Row],[Распределение выручки для Менеджера договора]])","v":0},"Процессинг","САНКТ-ПЕТЕРБУРГ","СКМ Фирма","ООО \"Фирма СКМ\"","Ленинградская обл.","Ленинградская обл.","Машиностроение","Сталь рулонная х/к, 1.5, 1250, Ст.сп/пс (ТУ 14-106-321-2010)",null,4.05,"т",113359.5,"Порезка листового проката поперечная","CAMU RDC 1500/6",18225,1,5,1,"САНКТ-ПЕТЕРБУРГ","Центр",4.05]
[1,"САНКТ-ПЕТЕРБУРГ","Центр","Ипатова Е.Н.","Ипатова Е.Н.","Ипатова Е.Н.",{"$f":"IF(Таблица_Металлопроцессинг_детализированный[[#This Row],[Куратор договора]]=Таблица_Металлопроцессинг_детализированный[[#This Row],[Менеджер]],TRUE,FALSE)","v":true},{"$f":"SUMIFS(AA15:AA177,O15:O177,Таблица_Металлопроцессинг_детализированный[[#This Row],[Контрагент]],A15:A177,Таблица_Металлопроцессинг_детализированный[[#This Row],[Месяц отгрузки]])","v":61200},{"$f":"IF(Таблица_Металлопроцессинг_детализированный[[#This Row],[Инициатор+исполнитель]],1,IF(Таблица_Металлопроцессинг_детализированный[[#This Row],[Оборот за месяц по контрагенту]]<1000000,0.5,0.7))","v":1},{"$f":"IF(Таблица_Металлопроцессинг_детализированный[[#This Row],[Инициатор+исполнитель]]=TRUE,0,IF(Таблица_Металлопроцессинг_детализированный[[#This Row],[Оборот за месяц по контрагенту]]<1000000,0.5,0.3))","v":0},{"$f":"Таблица_Металлопроцессинг_детализированный[[#This Row],[Сумма наценки]]*Таблица_Металлопроцессинг_детализированный[[#This Row],[Распределение выручки для Куратора договора]]","v":27000},{"$f":"IF(Таблица_Металлопроцессинг_детализированный[[#This Row],[Распределение выручки для Менеджера договора]]=1,\"\",Таблица_Металлопроцессинг_детализированный[[#This Row],[Сумма наценки]]*Таблица_Металлопроцессинг_детализированный[[#This Row],[Распределение выручки для Менеджера договора]])","v":0},"Процессинг","САНКТ-ПЕТЕРБУРГ","НИКОЛЬСКИЙ ЗМК","ООО \"Никольский завод металлоконструкций\"","Ленинградская обл.","Ленинградская обл.","Металлоконструкции","Сталь листовая Г/к., 12, 1500x6000, Ст.сп/пс (ГОСТ 14637)",null,25.5,"т",580635,"Очистка проката (дробь 1,0мм, 0,8мм)","ROSLER",27000,270,8.5,1,"САНКТ-ПЕТЕРБУРГ","Центр",25.5]
[1,"САНКТ-ПЕТЕРБУРГ","Центр","Зиновьев С.Ю.","Зиновьев С.Ю.","Зиновьев С.Ю.",{"$f":"IF(Таблица_Металлопроцессинг_детализированный[[#This Row],[Куратор договора]]=Таблица_Металлопроцессинг_детализированный[[#This Row],[Менеджер]],TRUE,FALSE)","v":true},{"$f":"SUMIFS(AA16:AA862,O16:O862,Таблица_Металлопроцессинг_детализированный[[#This Row],[Контрагент]],A16:A862,Таблица_Металлопроцессинг_детализированный[[#This Row],[Месяц отгрузки]])","v":340},{"$f":"IF(Таблица_Металлопроцессинг_детализированный[[#This Row],[Инициатор+исполнитель]],1,IF(Таблица_Металлопроцессинг_детализированный[[#This Row],[Оборот за месяц по контрагенту]]<1000000,0.5,0.7))","v":1},{"$f":"IF(Таблица_Металлопроцессинг_детализированный[[#This Row],[Инициатор+исполнитель]]=TRUE,0,IF(Таблица_Металлопроцессинг_детализированный[[#This Row],[Оборот за месяц по контрагенту]]<1000000,0.5,0.3))","v":0},{"$f":"Таблица_Металлопроцессинг_детализированный[[#This Row],[Сумма наценки]]*Таблица_Металлопроцессинг_детализированный[[#This Row],[Распределение выручки для Куратора договора]]","v":340},{"$f":"IF(Таблица_Металлопроцессинг_детализированный[[#This Row],[Распределение выручки для Менеджера договора]]=1,\"\",Таблица_Металлопроцессинг_детализированный[[#This Row],[Сумма наценки]]*Таблица_Металлопроцессинг_детализированный[[#This Row],[Распределение выручки для Менеджера договора]])","v":0},"Процессинг","САНКТ-ПЕТЕРБУРГ","Северо-Запад ПГ","ООО \"Промышленная группа \"СЕВЕРО-ЗАПАД\"",null,null,"Металлоторговля","Швеллер стальной Г/к., 8У, Ст.сп/пс (ГОСТ 8240-97)",null,0.16,"т",4336,"Станок ленточнопильный","PEGASUS",340,2,0.16500000000000001,1,"САНКТ-ПЕТЕРБУРГ","Центр",0.16]
[1,"САНКТ-ПЕТЕРБУРГ","Центр","Ипатова Е.Н.","Ипатова Е.Н.","Ипатова Е.Н.",{"$f":"IF(Таблица_Металлопроцессинг_детализированный[[#This Row],[Куратор договора]]=Таблица_Металлопроцессинг_детализированный[[#This Row],[Менеджер]],TRUE,FALSE)","v":true},{"$f":"SUMIFS(AA17:AA872,O17:O872,Таблица_Металлопроцессинг_детализированный[[#This Row],[Контрагент]],A17:A872,Таблица_Металлопроцессинг_детализированный[[#This Row],[Месяц отгрузки]])","v":14476},{"$f":"IF(Таблица_Металлопроцессинг_детализированный[[#This Row],[Инициатор+исполнитель]],1,IF(Таблица_Металлопроцессинг_детализированный[[#This Row],[Оборот за месяц по контрагенту]]<1000000,0.5,0.7))","v":1},{"$f":"IF(Таблица_Металлопроцессинг_детализированный[[#This Row],[Инициатор+исполнитель]]=TRUE,0,IF(Таблица_Металлопроцессинг_детализированный[[#This Row],[Оборот за месяц по контрагенту]]<1000000,0.5,0.3))","v":0},{"$f":"Таблица_Металлопроцессинг_детализированный[[#This Row],[Сумма наценки]]*Таблица_Металлопроцессинг_детализированный[[#This Row],[Распределение выручки для Куратора договора]]","v":500},{"$f":"IF(Таблица_Металлопроцессинг_детализированный[[#This Row],[Распределение выручки для Менеджера договора]]=1,\"\",Таблица_Металлопроцессинг_детализированный[[#This Row],[Сумма наценки]]*Таблица_Металлопроцессинг_детализированный[[#This Row],[Распределение выручки для Менеджера договора]])","v":0},"Процессинг","САНКТ-ПЕТЕРБУРГ","ОЛЛТРЕЙД-НЕВА","ООО\"ОЛЛТРЕЙД-НЕВА\"",null,null,"Металлоторговля","Арматура класс АI, 12, Ст.сп/пс, в бунтах (ГОСТ 5781-82)",null,0.1,"т",2899,"Размотка/резка арматурного проката","MELC 16x4",500,1,0.1,1,"САНКТ-ПЕТЕРБУРГ","Центр",0.1]
[1,"САНКТ-ПЕТЕРБУРГ","Центр","Дауэнгауэр Н.Э.","Дауэнгауэр Н.Э.","Ипатова Е.Н.",{"$f":"IF(Таблица_Металлопроцессинг_детализированный[[#This Row],[Куратор договора]]=Таблица_Металлопроцессинг_детализированный[[#This Row],[Менеджер]],TRUE,FALSE)","v":false},{"$f":"SUMIFS(AA18:AA878,O18:O878,Таблица_Металлопроцессинг_детализированный[[#This Row],[Контрагент]],A18:A878,Таблица_Металлопроцессинг_детализированный[[#This Row],[Месяц отгрузки]])","v":55198.2},{"$f":"IF(Таблица_Металлопроцессинг_детализированный[[#This Row],[Инициатор+исполнитель]],1,IF(Таблица_Металлопроцессинг_детализированный[[#This Row],[Оборот за месяц по контрагенту]]<1000000,0.5,0.7))","v":0.5},{"$f":"IF(Таблица_Металлопроцессинг_детализированный[[#This Row],[Инициатор+исполнитель]]=TRUE,0,IF(Таблица_Металлопроцессинг_детализированный[[#This Row],[Оборот за месяц по контрагенту]]<1000000,0.5,0.3))","v":0.5},{"$f":"Таблица_Металлопроцессинг_детализированный[[#This Row],[Сумма наценки]]*Таблица_Металлопроцессинг_детализированный[[#This Row],[Распределение выручки для Куратора договора]]","v":3662.5},{"$f":"IF(Таблица_Металлопроцессинг_детализированный[[#This Row],[Распределение выручки для Менеджера договора]]=1,\"\",Таблица_Металлопроцессинг_детализированный[[#This Row],[Сумма наценки]]*Таблица_Металлопроцессинг_детализированный[[#This Row],[Распределение выручки для Менеджера договора]])","v":3662.5},"Процессинг","САНКТ-ПЕТЕРБУРГ","НОВАЯ ЭРА","ОАО \"Новая ЭРА\"","г. Санкт-Петербург ","г. Санкт-Петербург ","Машиностроение","Сталь листовая Х/к., 2, 1250x2500, Ст.кп/пс (ТУ 14-106-321-2010)",null,2.93,"т",80047.600000000006,"Порезка листового проката (ножницы)",null,7325,1,3,null,"САНКТ-ПЕТЕРБУРГ","Центр",2.93]
[1,"САНКТ-ПЕТЕРБУРГ","Центр","Дауэнгауэр Н.Э.","Дауэнгауэр Н.Э.","Дауэнгауэр Н.Э.",{"$f":"IF(Таблица_Металлопроцессинг_детализированный[[#This Row],[Куратор договора]]=Таблица_Металлопроцессинг_детализированный[[#This Row],[Менеджер]],TRUE,FALSE)","v":true},{"$f":"SUMIFS(AA19:AA879,O19:O879,Таблица_Металлопроцессинг_детализированный[[#This Row],[Контрагент]],A19:A879,Таблица_Металлопроцессинг_детализированный[[#This Row],[Месяц отгрузки]])","v":47873.2},{"$f":"IF(Таблица_Металлопроцессинг_детализированный[[#This Row],[Инициатор+исполнитель]],1,IF(Таблица_Металлопроцессинг_детализированный[[#This Row],[Оборот за месяц по контрагенту]]<1000000,0.5,0.7))","v":1},{"$f":"IF(Таблица_Металлопроцессинг_детализированный[[#This Row],[Инициатор+исполнитель]]=TRUE,0,IF(Таблица_Металлопроцессинг_детализированный[[#This Row],[Оборот за месяц по контрагенту]]<1000000,0.5,0.3))","v":0},{"$f":"Таблица_Металлопроцессинг_детализированный[[#This Row],[Сумма наценки]]*Таблица_Металлопроцессинг_детализированный[[#This Row],[Распределение выручки для Куратора договора]]","v":5020},{"$f":"IF(Таблица_Металлопроцессинг_детализированный[[#This Row],[Распределение выручки для Менеджера договора]]=1,\"\",Таблица_Металлопроцессинг_детализированный[[#This Row],[Сумма наценки]]*Таблица_Металлопроцессинг_детализированный[[#This Row],[Распределение выручки для Менеджера договора]])","v":0},"Процессинг","САНКТ-ПЕТЕРБУРГ","НОВАЯ ЭРА","ОАО \"Новая ЭРА\"","г. Санкт-Петербург ","г. Санкт-Петербург ","Машиностроение","Сталь листовая Х/к., 1.5, 1250x2500, Ст.кп/пс (ТУ 14-106-321-2010)",null,2,"т",54640,"Порезка листового проката (ножницы)",null,5020,1,2,null,"САНКТ-ПЕТЕРБУРГ","Центр",2]
[1,"САНКТ-ПЕТЕРБУРГ","Центр","Молчанова Е.М.","Молчанова Е.М.","Молчанова Е.М.",{"$f":"IF(Таблица_Металлопроцессинг_детализированный[[#This Row],[Куратор договора]]=Таблица_Металлопроцессинг_детализированный[[#This Row],[Менеджер]],TRUE,FALSE)","v":true},{"$f":"SUMIFS(AA20:AA881,O20:O881,Таблица_Металлопроцессинг_детализированный[[#This Row],[Контрагент]],A20:A881,Таблица_Металлопроцессинг_детализированный[[#This Row],[Месяц отгрузки]])","v":1000},{"$f":"IF(Таблица_Металлопроцессинг_детализированный[[#This Row],[Инициатор+исполнитель]],1,IF(Таблица_Металлопроцессинг_детализированный[[#This Row],[Оборот за месяц по контрагенту]]<1000000,0.5,0.7))","v":1},{"$f":"IF(Таблица_Металлопроцессинг_детализированный[[#This Row],[Инициатор+исполнитель]]=TRUE,0,IF(Таблица_Металлопроцессинг_детализированный[[#This Row],[Оборот за месяц по контрагенту]]<1000000,0.5,0.3))","v":0},{"$f":"Таблица_Металлопроцессинг_детализированный[[#This Row],[Сумма наценки]]*Таблица_Металлопроцессинг_детализированный[[#This Row],[Распределение выручки для Куратора договора]]","v":100},{"$f":"IF(Таблица_Металлопроцессинг_детализированный[[#This Row],[Распределение выручки для Менеджера договора]]=1,\"\",Таблица_Металлопроцессинг_детализированный[[#This Row],[Сумма наценки]]*Таблица_Металлопроцессинг_детализированный[[#This Row],[Распределение выручки для Менеджера договора]])","v":0},"Процессинг","САНКТ-ПЕТЕРБУРГ","НеваБалтСтрой","ООО \"НеваБалтСтрой\"",null,null,"Металлоторговля","Арматура класс АI, 12, Ст.сп/пс, в бунтах (ГОСТ 5781-82)",null,0.1,"т",2899,"Размотка/резка арматурного проката","MELC 16x4",100,1,0.1,1,"САНКТ-ПЕТЕРБУРГ","Центр",0.1]
[1,"САНКТ-ПЕТЕРБУРГ","Центр","Молчанова Е.М.","Молчанова Е.М.","Молчанова Е.М.",{"$f":"IF(Таблица_Металлопроцессинг_детализированный[[#This Row],[Куратор договора]]=Таблица_Металлопроцессинг_детализированный[[#This Row],[Менеджер]],TRUE,FALSE)","v":true},{"$f":"SUMIFS(AA21:AA882,O21:O882,Таблица_Металлопроцессинг_детализированный[[#This Row],[Контрагент]],A21:A882,Таблица_Металлопроцессинг_детализированный[[#This Row],[Месяц отгрузки]])","v":900},{"$f":"IF(Таблица_Металлопроцессинг_детализированный[[#This Row],[Инициатор+исполнитель]],1,IF(Таблица_Металлопроцессинг_детализированный[[#This Row],[Оборот за месяц по контрагенту]]<1000000,0.5,0.7))","v":1},{"$f":"IF(Таблица_Металлопроцессинг_детализированный[[#This Row],[Инициатор+исполнитель]]=TRUE,0,IF(Таблица_Металлопроцессинг_детализированный[[#This Row],[Оборот за месяц по контрагенту]]<1000000,0.5,0.3))","v":0},{"$f":"Таблица_Металлопроцессинг_детализированный[[#This Row],[Сумма наценки]]*Таблица_Металлопроцессинг_детализированный[[#This Row],[Распределение выручки для Куратора договора]]","v":900},{"$f":"IF(Таблица_Металлопроцессинг_детализированный[[#This Row],[Распределение выручки для Менеджера договора]]=1,\"\",Таблица_Металлопроцессинг_детализированный[[#This Row],[Сумма наценки]]*Таблица_Металлопроцессинг_детализированный[[#This Row],[Распределение выручки для Менеджера договора]])","v":0},"Процессинг","САНКТ-ПЕТЕРБУРГ","НеваБалтСтрой","ООО \"НеваБалтСтрой\"",null,null,"Металлоторговля","Арматура класс АI, 8, Ст.сп/пс, в бунтах (ГОСТ5781-82)",null,0.6,"т",16392,"Размотка/резка арматурного проката","MELC 16x4",900,1,0.6,1,"САНКТ-ПЕТЕРБУРГ","Центр",0.6]
[1,"САНКТ-ПЕТЕРБУРГ","Центр","Райская Н.А.","Райская Н.А.","Райская Н.А.",{"$f":"IF(Таблица_Металлопроцессинг_детализированный[[#This Row],[Куратор договора]]=Таблица_Металлопроцессинг_детализированный[[#This Row],[Менеджер]],TRUE,FALSE)","v":true},{"$f":"SUMIFS(AA22:AA887,O22:O887,Таблица_Металлопроцессинг_детализированный[[#This Row],[Контрагент]],A22:A887,Таблица_Металлопроцессинг_детализированный[[#This Row],[Месяц отгрузки]])","v":4672},{"$f":"IF(Таблица_Металлопроцессинг_детализированный[[#This Row],[Инициатор+исполнитель]],1,IF(Таблица_Металлопроцессинг_детализированный[[#This Row],[Оборот за месяц по контрагенту]]<1000000,0.5,0.7))","v":1},{"$f":"IF(Таблица_Металлопроцессинг_детализированный[[#This Row],[Инициатор+исполнитель]]=TRUE,0,IF(Таблица_Металлопроцессинг_детализированный[[#This Row],[Оборот за месяц по контрагенту]]<1000000,0.5,0.3))","v":0},{"$f":"Таблица_Металлопроцессинг_детализированный[[#This Row],[Сумма наценки]]*Таблица_Металлопроцессинг_детализированный[[#This Row],[Распределение выручки для Куратора договора]]","v":3612},{"$f":"IF(Таблица_Металлопроцессинг_детализированный[[#This Row],[Распределение выручки для Менеджера договора]]=1,\"\",Таблица_Металлопроцессинг_детализированный[[#This Row],[Сумма наценки]]*Таблица_Металлопроцессинг_детализированный[[#This Row],[Распределение выручки для Менеджера договора]])","v":0},"Процессинг","САНКТ-ПЕТЕРБУРГ","КонкордМеталл","ООО\"КонкордМеталл\"","г. Санкт-Петербург ","г. Санкт-Петербург ","Металлоторговля","Сталь рулонная Г/к., 3, 1500, Ст.сп/пс (19903)",null,3.01,"т",66521,"Порезка листового проката поперечная","CAMU RDC 1500/6",3612,1,2.98,1,"САНКТ-ПЕТЕРБУРГ","Центр",3.01]
[1,"САНКТ-ПЕТЕРБУРГ","Центр","Погорелов И.В.","Погорелов И.В.","Дауэнгауэр Н.Э.",{"$f":"IF(Таблица_Металлопроцессинг_детализированный[[#This Row],[Куратор договора]]=Таблица_Металлопроцессинг_детализированный[[#This Row],[Менеджер]],TRUE,FALSE)","v":false},{"$f":"SUMIFS(AA23:AA888,O23:O888,Таблица_Металлопроцессинг_детализированный[[#This Row],[Контрагент]],A23:A888,Таблица_Металлопроцессинг_детализированный[[#This Row],[Месяц отгрузки]])","v":500},{"$f":"IF(Таблица_Металлопроцессинг_детализированный[[#This Row],[Инициатор+исполнитель]],1,IF(Таблица_Металлопроцессинг_детализированный[[#This Row],[Оборот за месяц по контрагенту]]<1000000,0.5,0.7))","v":0.5},{"$f":"IF(Таблица_Металлопроцессинг_детализированный[[#This Row],[Инициатор+исполнитель]]=TRUE,0,IF(Таблица_Металлопроцессинг_детализированный[[#This Row],[Оборот за месяц по контрагенту]]<1000000,0.5,0.3))","v":0.5},{"$f":"Таблица_Металлопроцессинг_детализированный[[#This Row],[Сумма наценки]]*Таблица_Металлопроцессинг_детализированный[[#This Row],[Распределение выручки для Куратора договора]]","v":250},{"$f":"IF(Таблица_Металлопроцессинг_детализированный[[#This Row],[Распределение выручки для Менеджера договора]]=1,\"\",Таблица_Металлопроцессинг_детализированный[[#This Row],[Сумма наценки]]*Таблица_Металлопроцессинг_детализированный[[#This Row],[Распределение выручки для Менеджера договора]])","v":250},"Процессинг","САНКТ-ПЕТЕРБУРГ","МКС СПБ","ООО \"Металл Комплект Сервис\"",null,null,"Металлоторговля","Сталь листовая Г/к., 5, 1500x6000, Ст.сп/пс (ГОСТ 14637)",null,0.35,"т",7969.5,"Порезка листового проката (ножницы)","COLGAR CI-34-TR",500,1,0.35,1,"САНКТ-ПЕТЕРБУРГ","Центр",0.35]
[1,"САНКТ-ПЕТЕРБУРГ","Центр","Матросова Л.Ш.","Матросова Л.Ш.","Матросова Л.Ш.",{"$f":"IF(Таблица_Металлопроцессинг_детализированный[[#This Row],[Куратор договора]]=Таблица_Металлопроцессинг_детализированный[[#This Row],[Менеджер]],TRUE,FALSE)","v":true},{"$f":"SUMIFS(AA24:AA902,O24:O902,Таблица_Металлопроцессинг_детализированный[[#This Row],[Контрагент]],A24:A902,Таблица_Металлопроцессинг_детализированный[[#This Row],[Месяц отгрузки]])","v":8656},{"$f":"IF(Таблица_Металлопроцессинг_детализированный[[#This Row],[Инициатор+исполнитель]],1,IF(Таблица_Металлопроцессинг_детализированный[[#This Row],[Оборот за месяц по контрагенту]]<1000000,0.5,0.7))","v":1},{"$f":"IF(Таблица_Металлопроцессинг_детализированный[[#This Row],[Инициатор+исполнитель]]=TRUE,0,IF(Таблица_Металлопроцессинг_детализированный[[#This Row],[Оборот за месяц по контрагенту]]<1000000,0.5,0.3))","v":0},{"$f":"Таблица_Металлопроцессинг_детализированный[[#This Row],[Сумма наценки]]*Таблица_Металлопроцессинг_детализированный[[#This Row],[Распределение выручки для Куратора договора]]","v":6656},{"$f":"IF(Таблица_Металлопроцессинг_детализированный[[#This Row],[Распределение выручки для Менеджера договора]]=1,\"\",Таблица_Металлопроцессинг_детализированный[[#This Row],[Сумма наценки]]*Таблица_Металлопроцессинг_детализированный[[#This Row],[Распределение выручки для Менеджера договора]])","v":0},"Процессинг","САНКТ-ПЕТЕРБУРГ","ТэтаКом","ООО \"ТэтаКом\"","г. Санкт-Петербург ","г. Санкт-Петербург ","Металлоторговля","Сталь листовая Г/к., 16, 1500x6000, Ст.сп/пс (ГОСТ 14637)",null,0.13,"т",3017.3,"Порезка листового проката плазменная PLAZMA","LINEACORD PCL40",6656,52,0.13,1,"САНКТ-ПЕТЕРБУРГ","Центр",0.13]
[1,"САНКТ-ПЕТЕРБУРГ","Центр","Ипатова Е.Н.","Ипатова Е.Н.","Ипатова Е.Н.",{"$f":"IF(Таблица_Металлопроцессинг_детализированный[[#This Row],[Куратор договора]]=Таблица_Металлопроцессинг_детализированный[[#This Row],[Менеджер]],TRUE,FALSE)","v":true},{"$f":"SUMIFS(AA25:AA914,O25:O914,Таблица_Металлопроцессинг_детализированный[[#This Row],[Контрагент]],A25:A914,Таблица_Металлопроцессинг_детализированный[[#This Row],[Месяц отгрузки]])","v":1870},{"$f":"IF(Таблица_Металлопроцессинг_детализированный[[#This Row],[Инициатор+исполнитель]],1,IF(Таблица_Металлопроцессинг_детализированный[[#This Row],[Оборот за месяц по контрагенту]]<1000000,0.5,0.7))","v":1},{"$f":"IF(Таблица_Металлопроцессинг_детализированный[[#This Row],[Инициатор+исполнитель]]=TRUE,0,IF(Таблица_Металлопроцессинг_детализированный[[#This Row],[Оборот за месяц по контрагенту]]<1000000,0.5,0.3))","v":0},{"$f":"Таблица_Металлопроцессинг_детализированный[[#This Row],[Сумма наценки]]*Таблица_Металлопроцессинг_детализированный[[#This Row],[Распределение выручки для Куратора договора]]","v":800},{"$f":"IF(Таблица_Металлопроцессинг_детализированный[[#This Row],[Распределение выручки для Менеджера договора]]=1,\"\",Таблица_Металлопроцессинг_детализированный[[#This Row],[Сумма наценки]]*Таблица_Металлопроцессинг_детализированный[[#This Row],[Распределение выручки для Менеджера договора]])","v":0},"Процессинг","САНКТ-ПЕТЕРБУРГ","ЕВРАЗ Металл Инпром_РОЗНИЦА","ЕВРАЗ Металл Инпром_РОЗНИЦА","Ростовская обл.","Ростовская обл.","Розница","Сталь листовая Г/к. рифленая, 4, 1500x6000, Ст.сп/пс (ГОСТ 8568-77)",null,0.28000000000000003,"т",7495.6,"Порезка листового проката (ножницы)","COLGAR CI-34-TR",800,2,0.28999999999999998,1,"САНКТ-ПЕТЕРБУРГ","Центр",0.28000000000000003]
[1,"САНКТ-ПЕТЕРБУРГ","Центр","Райская Н.А.","Райская Н.А.","Райская Н.А.",{"$f":"IF(Таблица_Металлопроцессинг_детализированный[[#This Row],[Куратор договора]]=Таблица_Металлопроцессинг_детализированный[[#This Row],[Менеджер]],TRUE,FALSE)","v":true},{"$f":"SUMIFS(AA26:AA924,O26:O924,Таблица_Металлопроцессинг_детализированный[[#This Row],[Контрагент]],A26:A924,Таблица_Металлопроцессинг_детализированный[[#This Row],[Месяц отгрузки]])","v":5208},{"$f":"IF(Таблица_Металлопроцессинг_детализированный[[#This Row],[Инициатор+исполнитель]],1,IF(Таблица_Металлопроцессинг_детализированный[[#This Row],[Оборот за месяц по контрагенту]]<1000000,0.5,0.7))","v":1},{"$f":"IF(Таблица_Металлопроцессинг_детализированный[[#This Row],[Инициатор+исполнитель]]=TRUE,0,IF(Таблица_Металлопроцессинг_детализированный[[#This Row],[Оборот за месяц по контрагенту]]<1000000,0.5,0.3))","v":0},{"$f":"Таблица_Металлопроцессинг_детализированный[[#This Row],[Сумма наценки]]*Таблица_Металлопроцессинг_детализированный[[#This Row],[Распределение выручки для Куратора договора]]","v":5208},{"$f":"IF(Таблица_Металлопроцессинг_детализированный[[#This Row],[Распределение выручки для Менеджера договора]]=1,\"\",Таблица_Металлопроцессинг_детализированный[[#This Row],[Сумма наценки]]*Таблица_Металлопроцессинг_детализированный[[#This Row],[Распределение выручки для Менеджера договора]])","v":0},"Процессинг","САНКТ-ПЕТЕРБУРГ","Блок-СПб","ООО \"Блок-СПб\"",null,null,"Металлоторговля","Арматура B500C, 8, Ст.сп/пс , в бунтах(ГОСТ 52544-2006)",null,4.34,"т",113751.4,"Размотка/резка арматурного проката","MELC 16x4",5208,1,4.25,1,"САНКТ-ПЕТЕРБУРГ","Центр",4.34]
[1,"САНКТ-ПЕТЕРБУРГ","Центр","Дауэнгауэр Н.Э.","Дауэнгауэр Н.Э.","Дауэнгауэр Н.Э.",{"$f":"IF(Таблица_Металлопроцессинг_детализированный[[#This Row],[Куратор договора]]=Таблица_Металлопроцессинг_детализированный[[#This Row],[Менеджер]],TRUE,FALSE)","v":true},{"$f":"SUMIFS(AA27:AA928,O27:O928,Таблица_Металлопроцессинг_детализированный[[#This Row],[Контрагент]],A27:A928,Таблица_Металлопроцессинг_детализированный[[#This Row],[Месяц отгрузки]])","v":23135},{"$f":"IF(Таблица_Металлопроцессинг_детализированный[[#This Row],[Инициатор+исполнитель]],1,IF(Таблица_Металлопроцессинг_детализированный[[#This Row],[Оборот за месяц по контрагенту]]<1000000,0.5,0.7))","v":1},{"$f":"IF(Таблица_Металлопроцессинг_детализированный[[#This Row],[Инициатор+исполнитель]]=TRUE,0,IF(Таблица_Металлопроцессинг_детализированный[[#This Row],[Оборот за месяц по контрагенту]]<1000000,0.5,0.3))","v":0},{"$f":"Таблица_Металлопроцессинг_детализированный[[#This Row],[Сумма наценки]]*Таблица_Металлопроцессинг_детализированный[[#This Row],[Распределение выручки для Куратора договора]]","v":23135},{"$f":"IF(Таблица_Металлопроцессинг_детализированный[[#This Row],[Распределение выручки для Менеджера договора]]=1,\"\",Таблица_Металлопроцессинг_детализированный[[#This Row],[Сумма наценки]]*Таблица_Металлопроцессинг_детализированный[[#This Row],[Распределение выручки для Менеджера договора]])","v":0},"Процессинг","САНКТ-ПЕТЕРБУРГ","ЛССМУ-КОМФОРТ","ООО \"ЛенСпецСМУ-Комфорт\"",null,null,"Машиностроение","Сталь листовая Г/к., 5, 1500x6000, Ст.сп/пс (ГОСТ 14637)",null,3.5,"т",79695,"Порезка листового проката (ножницы)",null,23135,1,5.6,null,"САНКТ-ПЕТЕРБУРГ","Центр",3.5]
[1,"САНКТ-ПЕТЕРБУРГ","Центр","Хабибуллов М.Р.","Хабибуллов М.Р.","Хабибуллов М.Р.",{"$f":"IF(Таблица_Металлопроцессинг_детализированный[[#This Row],[Куратор договора]]=Таблица_Металлопроцессинг_детализированный[[#This Row],[Менеджер]],TRUE,FALSE)","v":true},{"$f":"SUMIFS(AA28:AA953,O28:O953,Таблица_Металлопроцессинг_детализированный[[#This Row],[Контрагент]],A28:A953,Таблица_Металлопроцессинг_детализированный[[#This Row],[Месяц отгрузки]])","v":464674.5},{"$f":"IF(Таблица_Металлопроцессинг_детализированный[[#This Row],[Инициатор+исполнитель]],1,IF(Таблица_Металлопроцессинг_детализированный[[#This Row],[Оборот за месяц по контрагенту]]<1000000,0.5,0.7))","v":1},{"$f":"IF(Таблица_Металлопроцессинг_детализированный[[#This Row],[Инициатор+исполнитель]]=TRUE,0,IF(Таблица_Металлопроцессинг_детализированный[[#This Row],[Оборот за месяц по контрагенту]]<1000000,0.5,0.3))","v":0},{"$f":"Таблица_Металлопроцессинг_детализированный[[#This Row],[Сумма наценки]]*Таблица_Металлопроцессинг_детализированный[[#This Row],[Распределение выручки для Куратора договора]]","v":29985},{"$f":"IF(Таблица_Металлопроцессинг_детализированный[[#This Row],[Распределение выручки для Менеджера договора]]=1,\"\",Таблица_Металлопроцессинг_детализированный[[#This Row],[Сумма наценки]]*Таблица_Металлопроцессинг_детализированный[[#This Row],[Распределение выручки для Менеджера договора]])","v":0},"Процессинг","САНКТ-ПЕТЕРБУРГ","АртЛэнд","ООО \"Строительная компания \"АртЛэнд\"",null,null,"Стройиндустрия","Шпунт Ларсена Л5-УМ, С255 (ТУ 14-102-8-2003)",null,19.989999999999998,"т",789605,"Очистка и покраска проката (грунт ЭМЛАК 263)","ROSLER",29985,19.989999999999998,19.989999999999998,1,"САНКТ-ПЕТЕРБУРГ","Центр",19.989999999999998]
[1,"САНКТ-ПЕТЕРБУРГ","Центр","Степура С.Н.","Степура С.Н.","Ипатова Е.Н.",{"$f":"IF(Таблица_Металлопроцессинг_детализированный[[#This Row],[Куратор договора]]=Таблица_Металлопроцессинг_детализированный[[#This Row],[Менеджер]],TRUE,FALSE)","v":false},{"$f":"SUMIFS(AA29:AA959,O29:O959,Таблица_Металлопроцессинг_детализированный[[#This Row],[Контрагент]],A29:A959,Таблица_Металлопроцессинг_детализированный[[#This Row],[Месяц отгрузки]])","v":7680},{"$f":"IF(Таблица_Металлопроцессинг_детализированный[[#This Row],[Инициатор+исполнитель]],1,IF(Таблица_Металлопроцессинг_детализированный[[#This Row],[Оборот за месяц по контрагенту]]<1000000,0.5,0.7))","v":0.5},{"$f":"IF(Таблица_Металлопроцессинг_детализированный[[#This Row],[Инициатор+исполнитель]]=TRUE,0,IF(Таблица_Металлопроцессинг_детализированный[[#This Row],[Оборот за месяц по контрагенту]]<1000000,0.5,0.3))","v":0.5},{"$f":"Таблица_Металлопроцессинг_детализированный[[#This Row],[Сумма наценки]]*Таблица_Металлопроцессинг_детализированный[[#This Row],[Распределение выручки для Куратора договора]]","v":720},{"$f":"IF(Таблица_Металлопроцессинг_детализированный[[#This Row],[Распределение выручки для Менеджера договора]]=1,\"\",Таблица_Металлопроцессинг_детализированный[[#This Row],[Сумма наценки]]*Таблица_Металлопроцессинг_детализированный[[#This Row],[Распределение выручки для Менеджера договора]])","v":720},"Из давальческого сырья","САНКТ-ПЕТЕРБУРГ","САТУРН СПБ","ЗАО \"САТУРН\"",null,null,"Металлоторговля","Изделие","Труба 80х80х5 L=460мм",24,"шт",0,"Станок ленточнопильный","PEGASUS",1440,24,24,1,"САНКТ-ПЕТЕРБУРГ","Центр",0.14499999999999999]
[1,"САНКТ-ПЕТЕРБУРГ","Центр","Молчанова Е.М.","Матросова Л.Ш.","Молчанова Е.М.",{"$f":"IF(Таблица_Металлопроцессинг_детализированный[[#This Row],[Куратор договора]]=Таблица_Металлопроцессинг_детализированный[[#This Row],[Менеджер]],TRUE,FALSE)","v":true},{"$f":"SUMIFS(AA30:AA962,O30:O962,Таблица_Металлопроцессинг_детализированный[[#This Row],[Контрагент]],A30:A962,Таблица_Металлопроцессинг_детализированный[[#This Row],[Месяц отгрузки]])","v":1620},{"$f":"IF(Таблица_Металлопроцессинг_детализированный[[#This Row],[Инициатор+исполнитель]],1,IF(Таблица_Металлопроцессинг_детализированный[[#This Row],[Оборот за месяц по контрагенту]]<1000000,0.5,0.7))","v":1},{"$f":"IF(Таблица_Металлопроцессинг_детализированный[[#This Row],[Инициатор+исполнитель]]=TRUE,0,IF(Таблица_Металлопроцессинг_детализированный[[#This Row],[Оборот за месяц по контрагенту]]<1000000,0.5,0.3))","v":0},{"$f":"Таблица_Металлопроцессинг_детализированный[[#This Row],[Сумма наценки]]*Таблица_Металлопроцессинг_детализированный[[#This Row],[Распределение выручки для Куратора договора]]","v":720},{"$f":"IF(Таблица_Металлопроцессинг_детализированный[[#This Row],[Распределение выручки для Менеджера договора]]=1,\"\",Таблица_Металлопроцессинг_детализированный[[#This Row],[Сумма наценки]]*Таблица_Металлопроцессинг_детализированный[[#This Row],[Распределение выручки для Менеджера договора]])","v":0},"Процессинг","САНКТ-ПЕТЕРБУРГ","Билдинг (Молчанова)","ООО \"Билдинг\"",null,null,"Металлоторговля","Арматура B500C, 10, Ст.сп/пс , в бунтах(ГОСТ 52544-2006)",null,0.9,"т",23589,"Размотка/резка арматурного проката","MELC 16x4",720,1,0.9,1,"САНКТ-ПЕТЕРБУРГ","Центр",0.9]
[1,"САНКТ-ПЕТЕРБУРГ","Центр","Молчанова Е.М.","Матросова Л.Ш.","Молчанова Е.М.",{"$f":"IF(Таблица_Металлопроцессинг_детализированный[[#This Row],[Куратор договора]]=Таблица_Металлопроцессинг_детализированный[[#This Row],[Менеджер]],TRUE,FALSE)","v":true},{"$f":"SUMIFS(AA31:AA963,O31:O963,Таблица_Металлопроцессинг_детализированный[[#This Row],[Контрагент]],A31:A963,Таблица_Металлопроцессинг_детализированный[[#This Row],[Месяц отгрузки]])","v":900},{"$f":"IF(Таблица_Металлопроцессинг_детализированный[[#This Row],[Инициатор+исполнитель]],1,IF(Таблица_Металлопроцессинг_детализированный[[#This Row],[Оборот за месяц по контрагенту]]<1000000,0.5,0.7))","v":1},{"$f":"IF(Таблица_Металлопроцессинг_детализированный[[#This Row],[Инициатор+исполнитель]]=TRUE,0,IF(Таблица_Металлопроцессинг_детализированный[[#This Row],[Оборот за месяц по контрагенту]]<1000000,0.5,0.3))","v":0},{"$f":"Таблица_Металлопроцессинг_детализированный[[#This Row],[Сумма наценки]]*Таблица_Металлопроцессинг_детализированный[[#This Row],[Распределение выручки для Куратора договора]]","v":900},{"$f":"IF(Таблица_Металлопроцессинг_детализированный[[#This Row],[Распределение выручки для Менеджера договора]]=1,\"\",Таблица_Металлопроцессинг_детализированный[[#This Row],[Сумма наценки]]*Таблица_Металлопроцессинг_детализированный[[#This Row],[Распределение выручки для Менеджера договора]])","v":0},"Процессинг","САНКТ-ПЕТЕРБУРГ","Билдинг (Молчанова)","ООО \"Билдинг\"",null,null,"Металлоторговля","Арматура класс АIII (А400), 8, Ст.35ГС, в бунтах (ГОСТ5781-82)",null,1,"т",26770,"Размотка/резка арматурного проката","MELC 16x4",900,1,1,1,"САНКТ-ПЕТЕРБУРГ","Центр",1]
[1,"САНКТ-ПЕТЕРБУРГ","Центр","Степура С.Н.","Степура С.Н.","Погорелов И.В.",{"$f":"IF(Таблица_Металлопроцессинг_детализированный[[#This Row],[Куратор договора]]=Таблица_Металлопроцессинг_детализированный[[#This Row],[Менеджер]],TRUE,FALSE)","v":false},{"$f":"SUMIFS(AA32:AA965,O32:O965,Таблица_Металлопроцессинг_детализированный[[#This Row],[Контрагент]],A32:A965,Таблица_Металлопроцессинг_детализированный[[#This Row],[Месяц отгрузки]])","v":2000},{"$f":"IF(Таблица_Металлопроцессинг_детализированный[[#This Row],[Инициатор+исполнитель]],1,IF(Таблица_Металлопроцессинг_детализированный[[#This Row],[Оборот за месяц по контрагенту]]<1000000,0.5,0.7))","v":0.5},{"$f":"IF(Таблица_Металлопроцессинг_детализированный[[#This Row],[Инициатор+исполнитель]]=TRUE,0,IF(Таблица_Металлопроцессинг_детализированный[[#This Row],[Оборот за месяц по контрагенту]]<1000000,0.5,0.3))","v":0.5},{"$f":"Таблица_Металлопроцессинг_детализированный[[#This Row],[Сумма наценки]]*Таблица_Металлопроцессинг_детализированный[[#This Row],[Распределение выручки для Куратора договора]]","v":1000},{"$f":"IF(Таблица_Металлопроцессинг_детализированный[[#This Row],[Распределение выручки для Менеджера договора]]=1,\"\",Таблица_Металлопроцессинг_детализированный[[#This Row],[Сумма наценки]]*Таблица_Металлопроцессинг_детализированный[[#This Row],[Распределение выручки для Менеджера договора]])","v":1000},"Процессинг","САНКТ-ПЕТЕРБУРГ","БМК-Петербург","ООО \"БМК-Петербург\"",null,null,"Металлоконструкции","Арматура класс АI, 8, Ст.сп/пс, в бунтах (ГОСТ5781-82)",null,1.76,"т",48083.199999999997,"Размотка/резка арматурного проката","MELC 16x4",2000,2,2,1,"САНКТ-ПЕТЕРБУРГ","Центр",1.76]
[1,"САНКТ-ПЕТЕРБУРГ","Центр","Дауэнгауэр Н.Э.","Дауэнгауэр Н.Э.","Дауэнгауэр Н.Э.",{"$f":"IF(Таблица_Металлопроцессинг_детализированный[[#This Row],[Куратор договора]]=Таблица_Металлопроцессинг_детализированный[[#This Row],[Менеджер]],TRUE,FALSE)","v":true},{"$f":"SUMIFS(AA33:AA973,O33:O973,Таблица_Металлопроцессинг_детализированный[[#This Row],[Контрагент]],A33:A973,Таблица_Металлопроцессинг_детализированный[[#This Row],[Месяц отгрузки]])","v":7607},{"$f":"IF(Таблица_Металлопроцессинг_детализированный[[#This Row],[Инициатор+исполнитель]],1,IF(Таблица_Металлопроцессинг_детализированный[[#This Row],[Оборот за месяц по контрагенту]]<1000000,0.5,0.7))","v":1},{"$f":"IF(Таблица_Металлопроцессинг_детализированный[[#This Row],[Инициатор+исполнитель]]=TRUE,0,IF(Таблица_Металлопроцессинг_детализированный[[#This Row],[Оборот за месяц по контрагенту]]<1000000,0.5,0.3))","v":0},{"$f":"Таблица_Металлопроцессинг_детализированный[[#This Row],[Сумма наценки]]*Таблица_Металлопроцессинг_детализированный[[#This Row],[Распределение выручки для Куратора договора]]","v":2835},{"$f":"IF(Таблица_Металлопроцессинг_детализированный[[#This Row],[Распределение выручки для Менеджера договора]]=1,\"\",Таблица_Металлопроцессинг_детализированный[[#This Row],[Сумма наценки]]*Таблица_Металлопроцессинг_детализированный[[#This Row],[Распределение выручки для Менеджера договора]])","v":0},"Процессинг","САНКТ-ПЕТЕРБУРГ","БЗ-СУДОСТРОЕНИЕ","ООО \"Балтийский завод-Судостроение\"",null,null,"Машиностроение","Уголок стальной г/к равнополочный, 100x10, Ст.сп/пс (ГОСТ 8509-93)",null,9.4499999999999993,"т",266584.5,"Порезка (станок ленточнопильный)",null,2835,1,9.4139999999999997,null,"САНКТ-ПЕТЕРБУРГ","Центр",9.4499999999999993]
[1,"САНКТ-ПЕТЕРБУРГ","Центр","Дауэнгауэр Н.Э.","Дауэнгауэр Н.Э.","Дауэнгауэр Н.Э.",{"$f":"IF(Таблица_Металлопроцессинг_детализированный[[#This Row],[Куратор договора]]=Таблица_Металлопроцессинг_детализированный[[#This Row],[Менеджер]],TRUE,FALSE)","v":true},{"$f":"SUMIFS(AA34:AA981,O34:O981,Таблица_Металлопроцессинг_детализированный[[#This Row],[Контрагент]],A34:A981,Таблица_Металлопроцессинг_детализированный[[#This Row],[Месяц отгрузки]])","v":4772},{"$f":"IF(Таблица_Металлопроцессинг_детализированный[[#This Row],[Инициатор+исполнитель]],1,IF(Таблица_Металлопроцессинг_детализированный[[#This Row],[Оборот за месяц по контрагенту]]<1000000,0.5,0.7))","v":1},{"$f":"IF(Таблица_Металлопроцессинг_детализированный[[#This Row],[Инициатор+исполнитель]]=TRUE,0,IF(Таблица_Металлопроцессинг_детализированный[[#This Row],[Оборот за месяц по контрагенту]]<1000000,0.5,0.3))","v":0},{"$f":"Таблица_Металлопроцессинг_детализированный[[#This Row],[Сумма наценки]]*Таблица_Металлопроцессинг_детализированный[[#This Row],[Распределение выручки для Куратора договора]]","v":4772},{"$f":"IF(Таблица_Металлопроцессинг_детализированный[[#This Row],[Распределение выручки для Менеджера договора]]=1,\"\",Таблица_Металлопроцессинг_детализированный[[#This Row],[Сумма наценки]]*Таблица_Металлопроцессинг_детализированный[[#This Row],[Распределение выручки для Менеджера договора]])","v":0},"Процессинг","САНКТ-ПЕТЕРБУРГ","БЗ-СУДОСТРОЕНИЕ","ООО \"Балтийский завод-Судостроение\"",null,null,"Машиностроение","Уголок стальной г/к равнополочный, 50x5, Ст.сп/пс (ГОСТ 8509-93)",null,11.93,"т",323303,"Порезка (станок ленточнопильный)",null,4772,1,12,null,"САНКТ-ПЕТЕРБУРГ","Центр",11.93]
[1,"САНКТ-ПЕТЕРБУРГ","Центр","Ипатова Е.Н.","Ипатова Е.Н.","Ипатова Е.Н.",{"$f":"IF(Таблица_Металлопроцессинг_детализированный[[#This Row],[Куратор договора]]=Таблица_Металлопроцессинг_детализированный[[#This Row],[Менеджер]],TRUE,FALSE)","v":true},{"$f":"SUMIFS(AA35:AA982,O35:O982,Таблица_Металлопроцессинг_детализированный[[#This Row],[Контрагент]],A35:A982,Таблица_Металлопроцессинг_детализированный[[#This Row],[Месяц отгрузки]])","v":13976},{"$f":"IF(Таблица_Металлопроцессинг_детализированный[[#This Row],[Инициатор+исполнитель]],1,IF(Таблица_Металлопроцессинг_детализированный[[#This Row],[Оборот за месяц по контрагенту]]<1000000,0.5,0.7))","v":1},{"$f":"IF(Таблица_Металлопроцессинг_детализированный[[#This Row],[Инициатор+исполнитель]]=TRUE,0,IF(Таблица_Металлопроцессинг_детализированный[[#This Row],[Оборот за месяц по контрагенту]]<1000000,0.5,0.3))","v":0},{"$f":"Таблица_Металлопроцессинг_детализированный[[#This Row],[Сумма наценки]]*Таблица_Металлопроцессинг_детализированный[[#This Row],[Распределение выручки для Куратора договора]]","v":9800},{"$f":"IF(Таблица_Металлопроцессинг_детализированный[[#This Row],[Распределение выручки для Менеджера договора]]=1,\"\",Таблица_Металлопроцессинг_детализированный[[#This Row],[Сумма наценки]]*Таблица_Металлопроцессинг_детализированный[[#This Row],[Распределение выручки для Менеджера договора]])","v":0},"Процессинг","САНКТ-ПЕТЕРБУРГ","ОЛЛТРЕЙД-НЕВА","ООО\"ОЛЛТРЕЙД-НЕВА\"",null,null,"Металлоторговля","Сталь рулонная Х/к., 1.5, 1250, Ст.кп/пс (19904)",null,9.8000000000000007,"т",274302,"Порезка листового проката поперечная","CAMU RDC 1500/6",9800,1,10,1,"САНКТ-ПЕТЕРБУРГ","Центр",9.8000000000000007]
[1,"САНКТ-ПЕТЕРБУРГ","Центр","Степура С.Н.","Степура С.Н.","Молчанова Е.М.",{"$f":"IF(Таблица_Металлопроцессинг_детализированный[[#This Row],[Куратор договора]]=Таблица_Металлопроцессинг_детализированный[[#This Row],[Менеджер]],TRUE,FALSE)","v":false},{"$f":"SUMIFS(AA36:AA986,O36:O986,Таблица_Металлопроцессинг_детализированный[[#This Row],[Контрагент]],A36:A986,Таблица_Металлопроцессинг_детализированный[[#This Row],[Месяц отгрузки]])","v":6240},{"$f":"IF(Таблица_Металлопроцессинг_детализированный[[#This Row],[Инициатор+исполнитель]],1,IF(Таблица_Металлопроцессинг_детализированный[[#This Row],[Оборот за месяц по контрагенту]]<1000000,0.5,0.7))","v":0.5},{"$f":"IF(Таблица_Металлопроцессинг_детализированный[[#This Row],[Инициатор+исполнитель]]=TRUE,0,IF(Таблица_Металлопроцессинг_детализированный[[#This Row],[Оборот за месяц по контрагенту]]<1000000,0.5,0.3))","v":0.5},{"$f":"Таблица_Металлопроцессинг_детализированный[[#This Row],[Сумма наценки]]*Таблица_Металлопроцессинг_детализированный[[#This Row],[Распределение выручки для Куратора договора]]","v":3120},{"$f":"IF(Таблица_Металлопроцессинг_детализированный[[#This Row],[Распределение выручки для Менеджера договора]]=1,\"\",Таблица_Металлопроцессинг_детализированный[[#This Row],[Сумма наценки]]*Таблица_Металлопроцессинг_детализированный[[#This Row],[Распределение выручки для Менеджера договора]])","v":3120},"Процессинг","САНКТ-ПЕТЕРБУРГ","САТУРН СПБ","ЗАО \"САТУРН\"",null,null,"Металлоторговля","Сталь листовая Г/к., 8, 1500x6000, Ст.09Г2С (ГОСТ 19281)",null,0.56000000000000005,"т",14369.6,"Порезка листового проката (ножницы)","COLGAR CI-34-TR",6240,48,0.56000000000000005,1,"САНКТ-ПЕТЕРБУРГ","Центр",0.56000000000000005]
[1,"САНКТ-ПЕТЕРБУРГ","Центр","Дауэнгауэр Н.Э.","Дауэнгауэр Н.Э.","Райская Н.А.",{"$f":"IF(Таблица_Металлопроцессинг_детализированный[[#This Row],[Куратор договора]]=Таблица_Металлопроцессинг_детализированный[[#This Row],[Менеджер]],TRUE,FALSE)","v":false},{"$f":"SUMIFS(AA37:AA987,O37:O987,Таблица_Металлопроцессинг_детализированный[[#This Row],[Контрагент]],A37:A987,Таблица_Металлопроцессинг_детализированный[[#This Row],[Месяц отгрузки]])","v":326303.8},{"$f":"IF(Таблица_Металлопроцессинг_детализированный[[#This Row],[Инициатор+исполнитель]],1,IF(Таблица_Металлопроцессинг_детализированный[[#This Row],[Оборот за месяц по контрагенту]]<1000000,0.5,0.7))","v":0.5},{"$f":"IF(Таблица_Металлопроцессинг_детализированный[[#This Row],[Инициатор+исполнитель]]=TRUE,0,IF(Таблица_Металлопроцессинг_детализированный[[#This Row],[Оборот за месяц по контрагенту]]<1000000,0.5,0.3))","v":0.5},{"$f":"Таблица_Металлопроцессинг_детализированный[[#This Row],[Сумма наценки]]*Таблица_Металлопроцессинг_детализированный[[#This Row],[Распределение выручки для Куратора договора]]","v":1485},{"$f":"IF(Таблица_Металлопроцессинг_детализированный[[#This Row],[Распределение выручки для Менеджера договора]]=1,\"\",Таблица_Металлопроцессинг_детализированный[[#This Row],[Сумма наценки]]*Таблица_Металлопроцессинг_детализированный[[#This Row],[Распределение выручки для Менеджера договора]])","v":1485},"Процессинг","САНКТ-ПЕТЕРБУРГ","АМИРА СК","ООО \"Амира-СтальКонструкция\"","Санкт-Петербург ","Санкт-Петербург ","Металлоконструкции","Сталь листовая Г/к., 14, 1500x6000, Ст.09Г2С (ГОСТ 19281)",null,1.98,"т",50806.8,"Порезка листового проката (ножницы)",null,2970,1,4.97,null,"САНКТ-ПЕТЕРБУРГ","Центр",1.98]
[1,"САНКТ-ПЕТЕРБУРГ","Центр","Дауэнгауэр Н.Э.","Дауэнгауэр Н.Э.","Дауэнгауэр Н.Э.",{"$f":"IF(Таблица_Металлопроцессинг_детализированный[[#This Row],[Куратор договора]]=Таблица_Металлопроцессинг_детализированный[[#This Row],[Менеджер]],TRUE,FALSE)","v":true},{"$f":"SUMIFS(AA38:AA997,O38:O997,Таблица_Металлопроцессинг_детализированный[[#This Row],[Контрагент]],A38:A997,Таблица_Металлопроцессинг_детализированный[[#This Row],[Месяц отгрузки]])","v":40822},{"$f":"IF(Таблица_Металлопроцессинг_детализированный[[#This Row],[Инициатор+исполнитель]],1,IF(Таблица_Металлопроцессинг_детализированный[[#This Row],[Оборот за месяц по контрагенту]]<1000000,0.5,0.7))","v":1},{"$f":"IF(Таблица_Металлопроцессинг_детализированный[[#This Row],[Инициатор+исполнитель]]=TRUE,0,IF(Таблица_Металлопроцессинг_детализированный[[#This Row],[Оборот за месяц по контрагенту]]<1000000,0.5,0.3))","v":0},{"$f":"Таблица_Металлопроцессинг_детализированный[[#This Row],[Сумма наценки]]*Таблица_Металлопроцессинг_детализированный[[#This Row],[Распределение выручки для Куратора договора]]","v":17010},{"$f":"IF(Таблица_Металлопроцессинг_детализированный[[#This Row],[Распределение выручки для Менеджера договора]]=1,\"\",Таблица_Металлопроцессинг_детализированный[[#This Row],[Сумма наценки]]*Таблица_Металлопроцессинг_детализированный[[#This Row],[Распределение выручки для Менеджера договора]])","v":0},"Процессинг","САНКТ-ПЕТЕРБУРГ","ОСТ НПП","ЗАО \"НПП ОСТ\"","г. Санкт-Петербург ","г. Санкт-Петербург ","Машиностроение","Сталь листовая Х/к., 0.8, 1250x2500, Ст.08пс (ГОСТ 16523)",null,4.8600000000000003,"т",135496.79999999999,"Порезка листового проката (ножницы)",null,17010,1,4.5,null,"САНКТ-ПЕТЕРБУРГ","Центр",4.8600000000000003]
[1,"САНКТ-ПЕТЕРБУРГ","Центр","Дауэнгауэр Н.Э.","Дауэнгауэр Н.Э.","Дауэнгауэр Н.Э.",{"$f":"IF(Таблица_Металлопроцессинг_детализированный[[#This Row],[Куратор договора]]=Таблица_Металлопроцессинг_детализированный[[#This Row],[Менеджер]],TRUE,FALSE)","v":true},{"$f":"SUMIFS(AA39:AA998,O39:O998,Таблица_Металлопроцессинг_детализированный[[#This Row],[Контрагент]],A39:A998,Таблица_Металлопроцессинг_детализированный[[#This Row],[Месяц отгрузки]])","v":23812},{"$f":"IF(Таблица_Металлопроцессинг_детализированный[[#This Row],[Инициатор+исполнитель]],1,IF(Таблица_Металлопроцессинг_детализированный[[#This Row],[Оборот за месяц по контрагенту]]<1000000,0.5,0.7))","v":1},{"$f":"IF(Таблица_Металлопроцессинг_детализированный[[#This Row],[Инициатор+исполнитель]]=TRUE,0,IF(Таблица_Металлопроцессинг_детализированный[[#This Row],[Оборот за месяц по контрагенту]]<1000000,0.5,0.3))","v":0},{"$f":"Таблица_Металлопроцессинг_детализированный[[#This Row],[Сумма наценки]]*Таблица_Металлопроцессинг_детализированный[[#This Row],[Распределение выручки для Куратора договора]]","v":1860},{"$f":"IF(Таблица_Металлопроцессинг_детализированный[[#This Row],[Распределение выручки для Менеджера договора]]=1,\"\",Таблица_Металлопроцессинг_детализированный[[#This Row],[Сумма наценки]]*Таблица_Металлопроцессинг_детализированный[[#This Row],[Распределение выручки для Менеджера договора]])","v":0},"Процессинг","САНКТ-ПЕТЕРБУРГ","ОСТ НПП","ЗАО \"НПП ОСТ\"","г. Санкт-Петербург ","г. Санкт-Петербург ","Машиностроение","Сталь листовая Х/к., 2.5, 1250x2500, Ст.кп/пс (ТУ 14-106-321-2010)",null,0.62,"т",17285.599999999999,"Порезка листового проката (ножницы)",null,1860,1,0.625,null,"САНКТ-ПЕТЕРБУРГ","Центр",0.62]
[1,"САНКТ-ПЕТЕРБУРГ","Центр","Матросова Л.Ш.","Матросова Л.Ш.","Матросова Л.Ш.",{"$f":"IF(Таблица_Металлопроцессинг_детализированный[[#This Row],[Куратор договора]]=Таблица_Металлопроцессинг_детализированный[[#This Row],[Менеджер]],TRUE,FALSE)","v":true},{"$f":"SUMIFS(AA40:AA1001,O40:O1001,Таблица_Металлопроцессинг_детализированный[[#This Row],[Контрагент]],A40:A1001,Таблица_Металлопроцессинг_детализированный[[#This Row],[Месяц отгрузки]])","v":7000},{"$f":"IF(Таблица_Металлопроцессинг_детализированный[[#This Row],[Инициатор+исполнитель]],1,IF(Таблица_Металлопроцессинг_детализированный[[#This Row],[Оборот за месяц по контрагенту]]<1000000,0.5,0.7))","v":1},{"$f":"IF(Таблица_Металлопроцессинг_детализированный[[#This Row],[Инициатор+исполнитель]]=TRUE,0,IF(Таблица_Металлопроцессинг_детализированный[[#This Row],[Оборот за месяц по контрагенту]]<1000000,0.5,0.3))","v":0},{"$f":"Таблица_Металлопроцессинг_детализированный[[#This Row],[Сумма наценки]]*Таблица_Металлопроцессинг_детализированный[[#This Row],[Распределение выручки для Куратора договора]]","v":3500},{"$f":"IF(Таблица_Металлопроцессинг_детализированный[[#This Row],[Распределение выручки для Менеджера договора]]=1,\"\",Таблица_Металлопроцессинг_детализированный[[#This Row],[Сумма наценки]]*Таблица_Металлопроцессинг_детализированный[[#This Row],[Распределение выручки для Менеджера договора]])","v":0},"Процессинг","САНКТ-ПЕТЕРБУРГ","СИРИУС-МК","ООО \"Сириус-МК\"","г. Санкт-Петербург ","г. Санкт-Петербург ","Металлоторговля","Арматура B500C, 10, Ст.сп/пс , в бунтах(ГОСТ 52544-2006)",null,3.5,"т",91735,"Размотка/резка арматурного проката","MELC 16x4",3500,1,3.5,1,"САНКТ-ПЕТЕРБУРГ","Центр",3.5]
[1,"САНКТ-ПЕТЕРБУРГ","Центр","Матросова Л.Ш.","Матросова Л.Ш.","Матросова Л.Ш.",{"$f":"IF(Таблица_Металлопроцессинг_детализированный[[#This Row],[Куратор договора]]=Таблица_Металлопроцессинг_детализированный[[#This Row],[Менеджер]],TRUE,FALSE)","v":true},{"$f":"SUMIFS(AA41:AA1002,O41:O1002,Таблица_Металлопроцессинг_детализированный[[#This Row],[Контрагент]],A41:A1002,Таблица_Металлопроцессинг_детализированный[[#This Row],[Месяц отгрузки]])","v":3500},{"$f":"IF(Таблица_Металлопроцессинг_детализированный[[#This Row],[Инициатор+исполнитель]],1,IF(Таблица_Металлопроцессинг_детализированный[[#This Row],[Оборот за месяц по контрагенту]]<1000000,0.5,0.7))","v":1},{"$f":"IF(Таблица_Металлопроцессинг_детализированный[[#This Row],[Инициатор+исполнитель]]=TRUE,0,IF(Таблица_Металлопроцессинг_детализированный[[#This Row],[Оборот за месяц по контрагенту]]<1000000,0.5,0.3))","v":0},{"$f":"Таблица_Металлопроцессинг_детализированный[[#This Row],[Сумма наценки]]*Таблица_Металлопроцессинг_детализированный[[#This Row],[Распределение выручки для Куратора договора]]","v":1500},{"$f":"IF(Таблица_Металлопроцессинг_детализированный[[#This Row],[Распределение выручки для Менеджера договора]]=1,\"\",Таблица_Металлопроцессинг_детализированный[[#This Row],[Сумма наценки]]*Таблица_Металлопроцессинг_детализированный[[#This Row],[Распределение выручки для Менеджера договора]])","v":0},"Процессинг","САНКТ-ПЕТЕРБУРГ","СИРИУС-МК","ООО \"Сириус-МК\"","г. Санкт-Петербург ","г. Санкт-Петербург ","Металлоторговля","Арматура B500C, 8, Ст.сп/пс , в бунтах(ГОСТ 52544-2006)",null,1.5,"т",39315,"Размотка/резка арматурного проката","MELC 16x4",1500,1,1.341,1,"САНКТ-ПЕТЕРБУРГ","Центр",1.5]
[1,"САНКТ-ПЕТЕРБУРГ","Центр","Матросова Л.Ш.","Матросова Л.Ш.","Матросова Л.Ш.",{"$f":"IF(Таблица_Металлопроцессинг_детализированный[[#This Row],[Куратор договора]]=Таблица_Металлопроцессинг_детализированный[[#This Row],[Менеджер]],TRUE,FALSE)","v":true},{"$f":"SUMIFS(AA42:AA1003,O42:O1003,Таблица_Металлопроцессинг_детализированный[[#This Row],[Контрагент]],A42:A1003,Таблица_Металлопроцессинг_детализированный[[#This Row],[Месяц отгрузки]])","v":2000},{"$f":"IF(Таблица_Металлопроцессинг_детализированный[[#This Row],[Инициатор+исполнитель]],1,IF(Таблица_Металлопроцессинг_детализированный[[#This Row],[Оборот за месяц по контрагенту]]<1000000,0.5,0.7))","v":1},{"$f":"IF(Таблица_Металлопроцессинг_детализированный[[#This Row],[Инициатор+исполнитель]]=TRUE,0,IF(Таблица_Металлопроцессинг_детализированный[[#This Row],[Оборот за месяц по контрагенту]]<1000000,0.5,0.3))","v":0},{"$f":"Таблица_Металлопроцессинг_детализированный[[#This Row],[Сумма наценки]]*Таблица_Металлопроцессинг_детализированный[[#This Row],[Распределение выручки для Куратора договора]]","v":2000},{"$f":"IF(Таблица_Металлопроцессинг_детализированный[[#This Row],[Распределение выручки для Менеджера договора]]=1,\"\",Таблица_Металлопроцессинг_детализированный[[#This Row],[Сумма наценки]]*Таблица_Металлопроцессинг_детализированный[[#This Row],[Распределение выручки для Менеджера договора]])","v":0},"Процессинг","САНКТ-ПЕТЕРБУРГ","СИРИУС-МК","ООО \"Сириус-МК\"","г. Санкт-Петербург ","г. Санкт-Петербург ","Металлоторговля","Арматура класс АI, 8, Ст.сп/пс, в бунтах (ГОСТ5781-82)",null,2,"т",54640,"Размотка/резка арматурного проката","MELC 16x4",2000,1,0.33,1,"САНКТ-ПЕТЕРБУРГ","Центр",2]
[1,"САНКТ-ПЕТЕРБУРГ","Центр","Ипатова Е.Н.","Ипатова Е.Н.","Ипатова Е.Н.",{"$f":"IF(Таблица_Металлопроцессинг_детализированный[[#This Row],[Куратор договора]]=Таблица_Металлопроцессинг_детализированный[[#This Row],[Менеджер]],TRUE,FALSE)","v":true},{"$f":"SUMIFS(AA43:AA1008,O43:O1008,Таблица_Металлопроцессинг_детализированный[[#This Row],[Контрагент]],A43:A1008,Таблица_Металлопроцессинг_детализированный[[#This Row],[Месяц отгрузки]])","v":3224},{"$f":"IF(Таблица_Металлопроцессинг_детализированный[[#This Row],[Инициатор+исполнитель]],1,IF(Таблица_Металлопроцессинг_детализированный[[#This Row],[Оборот за месяц по контрагенту]]<1000000,0.5,0.7))","v":1},{"$f":"IF(Таблица_Металлопроцессинг_детализированный[[#This Row],[Инициатор+исполнитель]]=TRUE,0,IF(Таблица_Металлопроцессинг_детализированный[[#This Row],[Оборот за месяц по контрагенту]]<1000000,0.5,0.3))","v":0},{"$f":"Таблица_Металлопроцессинг_детализированный[[#This Row],[Сумма наценки]]*Таблица_Металлопроцессинг_детализированный[[#This Row],[Распределение выручки для Куратора договора]]","v":3224},{"$f":"IF(Таблица_Металлопроцессинг_детализированный[[#This Row],[Распределение выручки для Менеджера договора]]=1,\"\",Таблица_Металлопроцессинг_детализированный[[#This Row],[Сумма наценки]]*Таблица_Металлопроцессинг_детализированный[[#This Row],[Распределение выручки для Менеджера договора]])","v":0},"Процессинг","САНКТ-ПЕТЕРБУРГ","ПетроКомплект","ООО\"ПетроКомплект\"","г. Санкт-Петербург ","г. Санкт-Петербург ","Металлоторговля","Арматура B500C, 10, Ст.сп/пс , в бунтах(ГОСТ 52544-2006)",null,2.48,"т",65000.800000000003,"Размотка/резка арматурного проката","MELC 16x4",3224,1,3.0659999999999998,1,"САНКТ-ПЕТЕРБУРГ","Центр",2.48]
[1,"САНКТ-ПЕТЕРБУРГ","Центр","Хабибуллов М.Р.","Хабибуллов М.Р.","Хабибуллов М.Р.",{"$f":"IF(Таблица_Металлопроцессинг_детализированный[[#This Row],[Куратор договора]]=Таблица_Металлопроцессинг_детализированный[[#This Row],[Менеджер]],TRUE,FALSE)","v":true},{"$f":"SUMIFS(AA44:AA1010,O44:O1010,Таблица_Металлопроцессинг_детализированный[[#This Row],[Контрагент]],A44:A1010,Таблица_Металлопроцессинг_детализированный[[#This Row],[Месяц отгрузки]])","v":434689.5},{"$f":"IF(Таблица_Металлопроцессинг_детализированный[[#This Row],[Инициатор+исполнитель]],1,IF(Таблица_Металлопроцессинг_детализированный[[#This Row],[Оборот за месяц по контрагенту]]<1000000,0.5,0.7))","v":1},{"$f":"IF(Таблица_Металлопроцессинг_детализированный[[#This Row],[Инициатор+исполнитель]]=TRUE,0,IF(Таблица_Металлопроцессинг_детализированный[[#This Row],[Оборот за месяц по контрагенту]]<1000000,0.5,0.3))","v":0},{"$f":"Таблица_Металлопроцессинг_детализированный[[#This Row],[Сумма наценки]]*Таблица_Металлопроцессинг_детализированный[[#This Row],[Распределение выручки для Куратора договора]]","v":29938.5},{"$f":"IF(Таблица_Металлопроцессинг_детализированный[[#This Row],[Распределение выручки для Менеджера договора]]=1,\"\",Таблица_Металлопроцессинг_детализированный[[#This Row],[Сумма наценки]]*Таблица_Металлопроцессинг_детализированный[[#This Row],[Распределение выручки для Менеджера договора]])","v":0},"Процессинг","САНКТ-ПЕТЕРБУРГ","АртЛэнд","ООО \"Строительная компания \"АртЛэнд\"",null,null,"Стройиндустрия","Шпунт Ларсена Л5-УМ, С255 (ТУ 14-102-8-2003)",null,19.959,"т",788380.5,"Очистка и покраска проката (грунт ЭМЛАК 263)","ROSLER",29938.5,19.959,19.959,1,"САНКТ-ПЕТЕРБУРГ","Центр",19.959]
[1,"САНКТ-ПЕТЕРБУРГ","Центр","Степура С.Н.","Степура С.Н.","Степура С.Н.",{"$f":"IF(Таблица_Металлопроцессинг_детализированный[[#This Row],[Куратор договора]]=Таблица_Металлопроцессинг_детализированный[[#This Row],[Менеджер]],TRUE,FALSE)","v":true},{"$f":"SUMIFS(AA45:AA1014,O45:O1014,Таблица_Металлопроцессинг_детализированный[[#This Row],[Контрагент]],A45:A1014,Таблица_Металлопроцессинг_детализированный[[#This Row],[Месяц отгрузки]])","v":1300},{"$f":"IF(Таблица_Металлопроцессинг_детализированный[[#This Row],[Инициатор+исполнитель]],1,IF(Таблица_Металлопроцессинг_детализированный[[#This Row],[Оборот за месяц по контрагенту]]<1000000,0.5,0.7))","v":1},{"$f":"IF(Таблица_Металлопроцессинг_детализированный[[#This Row],[Инициатор+исполнитель]]=TRUE,0,IF(Таблица_Металлопроцессинг_детализированный[[#This Row],[Оборот за месяц по контрагенту]]<1000000,0.5,0.3))","v":0},{"$f":"Таблица_Металлопроцессинг_детализированный[[#This Row],[Сумма наценки]]*Таблица_Металлопроцессинг_детализированный[[#This Row],[Распределение выручки для Куратора договора]]","v":1300},{"$f":"IF(Таблица_Металлопроцессинг_детализированный[[#This Row],[Распределение выручки для Менеджера договора]]=1,\"\",Таблица_Металлопроцессинг_детализированный[[#This Row],[Сумма наценки]]*Таблица_Металлопроцессинг_детализированный[[#This Row],[Распределение выручки для Менеджера договора]])","v":0},"Процессинг","САНКТ-ПЕТЕРБУРГ","ЭРА СПБ","ОАО \"ЭлектроРадиоАвтоматика\"",null,null,"Машиностроение","Сталь листовая Г/к., 10, 1500x6000, Ст.09Г2С (ГОСТ 19281)",null,0.05,"т",1283,"Порезка листового проката плазменная PLAZMA","LINEACORD PCL40",1300,1,0.04,1,"САНКТ-ПЕТЕРБУРГ","Центр",0.05]
[1,"САНКТ-ПЕТЕРБУРГ","Центр","Дауэнгауэр Н.Э.","Дауэнгауэр Н.Э.","Дауэнгауэр Н.Э.",{"$f":"IF(Таблица_Металлопроцессинг_детализированный[[#This Row],[Куратор договора]]=Таблица_Металлопроцессинг_детализированный[[#This Row],[Менеджер]],TRUE,FALSE)","v":true},{"$f":"SUMIFS(AA46:AA1028,O46:O1028,Таблица_Металлопроцессинг_детализированный[[#This Row],[Контрагент]],A46:A1028,Таблица_Металлопроцессинг_детализированный[[#This Row],[Месяц отгрузки]])","v":323333.8},{"$f":"IF(Таблица_Металлопроцессинг_детализированный[[#This Row],[Инициатор+исполнитель]],1,IF(Таблица_Металлопроцессинг_детализированный[[#This Row],[Оборот за месяц по контрагенту]]<1000000,0.5,0.7))","v":1},{"$f":"IF(Таблица_Металлопроцессинг_детализированный[[#This Row],[Инициатор+исполнитель]]=TRUE,0,IF(Таблица_Металлопроцессинг_детализированный[[#This Row],[Оборот за месяц по контрагенту]]<1000000,0.5,0.3))","v":0},{"$f":"Таблица_Металлопроцессинг_детализированный[[#This Row],[Сумма наценки]]*Таблица_Металлопроцессинг_детализированный[[#This Row],[Распределение выручки для Куратора договора]]","v":87635},{"$f":"IF(Таблица_Металлопроцессинг_детализированный[[#This Row],[Распределение выручки для Менеджера договора]]=1,\"\",Таблица_Металлопроцессинг_детализированный[[#This Row],[Сумма наценки]]*Таблица_Металлопроцессинг_детализированный[[#This Row],[Распределение выручки для Менеджера договора]])","v":0},"Процессинг","САНКТ-ПЕТЕРБУРГ","АМИРА СК","ООО \"Амира-СтальКонструкция\"","Санкт-Петербург ","Санкт-Петербург ","Металлоконструкции","Сталь рулонная Г/к., 4, 1500, Ст.сп/пс (19903)",null,10.31,"т",231253.3,"Порезка листового проката поперечная","CAMU RDC 1500/6",87635,1,1.4,1,"САНКТ-ПЕТЕРБУРГ","Центр",10.31]
[1,"САНКТ-ПЕТЕРБУРГ","Центр","Дауэнгауэр Н.Э.","Дауэнгауэр Н.Э.","Дауэнгауэр Н.Э.",{"$f":"IF(Таблица_Металлопроцессинг_детализированный[[#This Row],[Куратор договора]]=Таблица_Металлопроцессинг_детализированный[[#This Row],[Менеджер]],TRUE,FALSE)","v":true},{"$f":"SUMIFS(AA47:AA1029,O47:O1029,Таблица_Металлопроцессинг_детализированный[[#This Row],[Контрагент]],A47:A1029,Таблица_Металлопроцессинг_детализированный[[#This Row],[Месяц отгрузки]])","v":235698.8},{"$f":"IF(Таблица_Металлопроцессинг_детализированный[[#This Row],[Инициатор+исполнитель]],1,IF(Таблица_Металлопроцессинг_детализированный[[#This Row],[Оборот за месяц по контрагенту]]<1000000,0.5,0.7))","v":1},{"$f":"IF(Таблица_Металлопроцессинг_детализированный[[#This Row],[Инициатор+исполнитель]]=TRUE,0,IF(Таблица_Металлопроцессинг_детализированный[[#This Row],[Оборот за месяц по контрагенту]]<1000000,0.5,0.3))","v":0},{"$f":"Таблица_Металлопроцессинг_детализированный[[#This Row],[Сумма наценки]]*Таблица_Металлопроцессинг_детализированный[[#This Row],[Распределение выручки для Куратора договора]]","v":23120},{"$f":"IF(Таблица_Металлопроцессинг_детализированный[[#This Row],[Распределение выручки для Менеджера договора]]=1,\"\",Таблица_Металлопроцессинг_детализированный[[#This Row],[Сумма наценки]]*Таблица_Металлопроцессинг_детализированный[[#This Row],[Распределение выручки для Менеджера договора]])","v":0},"Процессинг","САНКТ-ПЕТЕРБУРГ","АМИРА СК","ООО \"Амира-СтальКонструкция\"","Санкт-Петербург ","Санкт-Петербург ","Металлоконструкции","Сталь рулонная Г/к., 4, 1500, Ст.сп/пс (19903)",null,2.72,"т",61009.599999999999,"Порезка листового проката поперечная","CAMU RDC 1500/6",23120,1,1.4,1,"САНКТ-ПЕТЕРБУРГ","Центр",2.72]
[1,"САНКТ-ПЕТЕРБУРГ","Центр","Ипатова Е.Н.","Ипатова Е.Н.","Ипатова Е.Н.",{"$f":"IF(Таблица_Металлопроцессинг_детализированный[[#This Row],[Куратор договора]]=Таблица_Металлопроцессинг_детализированный[[#This Row],[Менеджер]],TRUE,FALSE)","v":true},{"$f":"SUMIFS(AA48:AA1032,O48:O1032,Таблица_Металлопроцессинг_детализированный[[#This Row],[Контрагент]],A48:A1032,Таблица_Металлопроцессинг_детализированный[[#This Row],[Месяц отгрузки]])","v":34200},{"$f":"IF(Таблица_Металлопроцессинг_детализированный[[#This Row],[Инициатор+исполнитель]],1,IF(Таблица_Металлопроцессинг_детализированный[[#This Row],[Оборот за месяц по контрагенту]]<1000000,0.5,0.7))","v":1},{"$f":"IF(Таблица_Металлопроцессинг_детализированный[[#This Row],[Инициатор+исполнитель]]=TRUE,0,IF(Таблица_Металлопроцессинг_детализированный[[#This Row],[Оборот за месяц по контрагенту]]<1000000,0.5,0.3))","v":0},{"$f":"Таблица_Металлопроцессинг_детализированный[[#This Row],[Сумма наценки]]*Таблица_Металлопроцессинг_детализированный[[#This Row],[Распределение выручки для Куратора договора]]","v":25200},{"$f":"IF(Таблица_Металлопроцессинг_детализированный[[#This Row],[Распределение выручки для Менеджера договора]]=1,\"\",Таблица_Металлопроцессинг_детализированный[[#This Row],[Сумма наценки]]*Таблица_Металлопроцессинг_детализированный[[#This Row],[Распределение выручки для Менеджера договора]])","v":0},"Процессинг","САНКТ-ПЕТЕРБУРГ","НИКОЛЬСКИЙ ЗМК","ООО \"Никольский завод металлоконструкций\"","Ленинградская обл.","Ленинградская обл.","Металлоконструкции","Сталь листовая Г/к., 12, 1500x6000, Ст.сп/пс (ГОСТ 14637)",null,23.57,"т",536688.9,"Очистка проката (дробь 1,0мм, 0,8мм)","ROSLER",25200,252,8.5,1,"САНКТ-ПЕТЕРБУРГ","Центр",23.57]
[1,"САНКТ-ПЕТЕРБУРГ","Центр","Ипатов Д.В.","Ипатов Д.В.","Ипатов Д.В.",{"$f":"IF(Таблица_Металлопроцессинг_детализированный[[#This Row],[Куратор договора]]=Таблица_Металлопроцессинг_детализированный[[#This Row],[Менеджер]],TRUE,FALSE)","v":true},{"$f":"SUMIFS(AA49:AA1033,O49:O1033,Таблица_Металлопроцессинг_детализированный[[#This Row],[Контрагент]],A49:A1033,Таблица_Металлопроцессинг_детализированный[[#This Row],[Месяц отгрузки]])","v":1220},{"$f":"IF(Таблица_Металлопроцессинг_детализированный[[#This Row],[Инициатор+исполнитель]],1,IF(Таблица_Металлопроцессинг_детализированный[[#This Row],[Оборот за месяц по контрагенту]]<1000000,0.5,0.7))","v":1},{"$f":"IF(Таблица_Металлопроцессинг_детализированный[[#This Row],[Инициатор+исполнитель]]=TRUE,0,IF(Таблица_Металлопроцессинг_детализированный[[#This Row],[Оборот за месяц по контрагенту]]<1000000,0.5,0.3))","v":0},{"$f":"Таблица_Металлопроцессинг_детализированный[[#This Row],[Сумма наценки]]*Таблица_Металлопроцессинг_детализированный[[#This Row],[Распределение выручки для Куратора договора]]","v":420},{"$f":"IF(Таблица_Металлопроцессинг_детализированный[[#This Row],[Распределение выручки для Менеджера договора]]=1,\"\",Таблица_Металлопроцессинг_детализированный[[#This Row],[Сумма наценки]]*Таблица_Металлопроцессинг_детализированный[[#This Row],[Распределение выручки для Менеджера договора]])","v":0},"Процессинг","САНКТ-ПЕТЕРБУРГ","Трансбетон СПб","ООО \"Трансбетон\"",null,null,"Стройиндустрия","Арматура B500C, 10, Ст.сп/пс , в бунтах(ГОСТ 52544-2006)",null,0.21,"т",5504.1,"Размотка/резка арматурного проката","MELC 16x4",420,1,0.1,1,"САНКТ-ПЕТЕРБУРГ","Центр",0.21]
[1,"САНКТ-ПЕТЕРБУРГ","Центр","Ипатов Д.В.","Ипатов Д.В.","Ипатов Д.В.",{"$f":"IF(Таблица_Металлопроцессинг_детализированный[[#This Row],[Куратор договора]]=Таблица_Металлопроцессинг_детализированный[[#This Row],[Менеджер]],TRUE,FALSE)","v":true},{"$f":"SUMIFS(AA50:AA1034,O50:O1034,Таблица_Металлопроцессинг_детализированный[[#This Row],[Контрагент]],A50:A1034,Таблица_Металлопроцессинг_детализированный[[#This Row],[Месяц отгрузки]])","v":800},{"$f":"IF(Таблица_Металлопроцессинг_детализированный[[#This Row],[Инициатор+исполнитель]],1,IF(Таблица_Металлопроцессинг_детализированный[[#This Row],[Оборот за месяц по контрагенту]]<1000000,0.5,0.7))","v":1},{"$f":"IF(Таблица_Металлопроцессинг_детализированный[[#This Row],[Инициатор+исполнитель]]=TRUE,0,IF(Таблица_Металлопроцессинг_детализированный[[#This Row],[Оборот за месяц по контрагенту]]<1000000,0.5,0.3))","v":0},{"$f":"Таблица_Металлопроцессинг_детализированный[[#This Row],[Сумма наценки]]*Таблица_Металлопроцессинг_детализированный[[#This Row],[Распределение выручки для Куратора договора]]","v":400},{"$f":"IF(Таблица_Металлопроцессинг_детализированный[[#This Row],[Распределение выручки для Менеджера договора]]=1,\"\",Таблица_Металлопроцессинг_детализированный[[#This Row],[Сумма наценки]]*Таблица_Металлопроцессинг_детализированный[[#This Row],[Распределение выручки для Менеджера договора]])","v":0},"Процессинг","САНКТ-ПЕТЕРБУРГ","Трансбетон СПб","ООО \"Трансбетон\"",null,null,"Стройиндустрия","Арматура А400С/А500С, 16, Ст.сп/пс, н/дл (СТО АСЧМ 7-93 / ТУ 14-1-5254-94)",null,0.2,"т",4908,"Размотка/резка арматурного проката","MELC 16x4",400,1,0.2,1,"САНКТ-ПЕТЕРБУРГ","Центр",0.2]
[1,"САНКТ-ПЕТЕРБУРГ","Центр","Ипатов Д.В.","Ипатов Д.В.","Ипатова Е.Н.",{"$f":"IF(Таблица_Металлопроцессинг_детализированный[[#This Row],[Куратор договора]]=Таблица_Металлопроцессинг_детализированный[[#This Row],[Менеджер]],TRUE,FALSE)","v":false},{"$f":"SUMIFS(AA51:AA1035,O51:O1035,Таблица_Металлопроцессинг_детализированный[[#This Row],[Контрагент]],A51:A1035,Таблица_Металлопроцессинг_детализированный[[#This Row],[Месяц отгрузки]])","v":400},{"$f":"IF(Таблица_Металлопроцессинг_детализированный[[#This Row],[Инициатор+исполнитель]],1,IF(Таблица_Металлопроцессинг_детализированный[[#This Row],[Оборот за месяц по контрагенту]]<1000000,0.5,0.7))","v":0.5},{"$f":"IF(Таблица_Металлопроцессинг_детализированный[[#This Row],[Инициатор+исполнитель]]=TRUE,0,IF(Таблица_Металлопроцессинг_детализированный[[#This Row],[Оборот за месяц по контрагенту]]<1000000,0.5,0.3))","v":0.5},{"$f":"Таблица_Металлопроцессинг_детализированный[[#This Row],[Сумма наценки]]*Таблица_Металлопроцессинг_детализированный[[#This Row],[Распределение выручки для Куратора договора]]","v":200},{"$f":"IF(Таблица_Металлопроцессинг_детализированный[[#This Row],[Распределение выручки для Менеджера договора]]=1,\"\",Таблица_Металлопроцессинг_детализированный[[#This Row],[Сумма наценки]]*Таблица_Металлопроцессинг_детализированный[[#This Row],[Распределение выручки для Менеджера договора]])","v":200},"Процессинг","САНКТ-ПЕТЕРБУРГ","Трансбетон СПб","ООО \"Трансбетон\"",null,null,"Стройиндустрия","Арматура А400С/А500С, 25, Ст.сп/пс (СТО АСЧМ 7-93 / ТУ 14-1-5254-94)",null,0.2,"т",5220,"Размотка/резка арматурного проката","MELC 16x4",400,1,0.3,1,"САНКТ-ПЕТЕРБУРГ","Центр",0.2]
[1,"САНКТ-ПЕТЕРБУРГ","Центр","Ипатова Е.Н.","Ипатова Е.Н.","Ипатова Е.Н.",{"$f":"IF(Таблица_Металлопроцессинг_детализированный[[#This Row],[Куратор договора]]=Таблица_Металлопроцессинг_детализированный[[#This Row],[Менеджер]],TRUE,FALSE)","v":true},{"$f":"SUMIFS(AA52:AA1039,O52:O1039,Таблица_Металлопроцессинг_детализированный[[#This Row],[Контрагент]],A52:A1039,Таблица_Металлопроцессинг_детализированный[[#This Row],[Месяц отгрузки]])","v":4176},{"$f":"IF(Таблица_Металлопроцессинг_детализированный[[#This Row],[Инициатор+исполнитель]],1,IF(Таблица_Металлопроцессинг_детализированный[[#This Row],[Оборот за месяц по контрагенту]]<1000000,0.5,0.7))","v":1},{"$f":"IF(Таблица_Металлопроцессинг_детализированный[[#This Row],[Инициатор+исполнитель]]=TRUE,0,IF(Таблица_Металлопроцессинг_детализированный[[#This Row],[Оборот за месяц по контрагенту]]<1000000,0.5,0.3))","v":0},{"$f":"Таблица_Металлопроцессинг_детализированный[[#This Row],[Сумма наценки]]*Таблица_Металлопроцессинг_детализированный[[#This Row],[Распределение выручки для Куратора договора]]","v":4176},{"$f":"IF(Таблица_Металлопроцессинг_детализированный[[#This Row],[Распределение выручки для Менеджера договора]]=1,\"\",Таблица_Металлопроцессинг_детализированный[[#This Row],[Сумма наценки]]*Таблица_Металлопроцессинг_детализированный[[#This Row],[Распределение выручки для Менеджера договора]])","v":0},"Процессинг","САНКТ-ПЕТЕРБУРГ","ОЛЛТРЕЙД-НЕВА","ООО\"ОЛЛТРЕЙД-НЕВА\"",null,null,"Металлоторговля","Сталь рулонная Г/к., 1.5, 1250, Ст.сп/пс (19903)",null,4.6399999999999997,"т",118505.60000000001,"Порезка листового проката поперечная","CAMU RDC 1500/6",4176,1,4.45,1,"САНКТ-ПЕТЕРБУРГ","Центр",4.6399999999999997]
[1,"САНКТ-ПЕТЕРБУРГ","Центр","Ипатов Д.В.","Ипатов Д.В.","Ипатова Е.Н.",{"$f":"IF(Таблица_Металлопроцессинг_детализированный[[#This Row],[Куратор договора]]=Таблица_Металлопроцессинг_детализированный[[#This Row],[Менеджер]],TRUE,FALSE)","v":false},{"$f":"SUMIFS(AA53:AA1606,O53:O1606,Таблица_Металлопроцессинг_детализированный[[#This Row],[Контрагент]],A53:A1606,Таблица_Металлопроцессинг_детализированный[[#This Row],[Месяц отгрузки]])","v":1240},{"$f":"IF(Таблица_Металлопроцессинг_детализированный[[#This Row],[Инициатор+исполнитель]],1,IF(Таблица_Металлопроцессинг_детализированный[[#This Row],[Оборот за месяц по контрагенту]]<1000000,0.5,0.7))","v":0.5},{"$f":"IF(Таблица_Металлопроцессинг_детализированный[[#This Row],[Инициатор+исполнитель]]=TRUE,0,IF(Таблица_Металлопроцессинг_детализированный[[#This Row],[Оборот за месяц по контрагенту]]<1000000,0.5,0.3))","v":0.5},{"$f":"Таблица_Металлопроцессинг_детализированный[[#This Row],[Сумма наценки]]*Таблица_Металлопроцессинг_детализированный[[#This Row],[Распределение выручки для Куратора договора]]","v":620},{"$f":"IF(Таблица_Металлопроцессинг_детализированный[[#This Row],[Распределение выручки для Менеджера договора]]=1,\"\",Таблица_Металлопроцессинг_детализированный[[#This Row],[Сумма наценки]]*Таблица_Металлопроцессинг_детализированный[[#This Row],[Распределение выручки для Менеджера договора]])","v":620},"Процессинг","САНКТ-ПЕТЕРБУРГ","Панорама Оконный завод СПб","ООО \"Панорама. Оконный завод\"",null,null,"Другое","Уголок стальной г/к равнополочный, 75x6, Ст.сп/пс (ГОСТ 8509-93)",null,0.15,"т",4131,"Станок ленточнопильный","PEGASUS",1240,8,0.17,1,"САНКТ-ПЕТЕРБУРГ","Центр",0.15]
[1,"САНКТ-ПЕТЕРБУРГ","Центр","Хабибуллов М.Р.","Хабибуллов М.Р.","Хабибуллов М.Р.",{"$f":"IF(Таблица_Металлопроцессинг_детализированный[[#This Row],[Куратор договора]]=Таблица_Металлопроцессинг_детализированный[[#This Row],[Менеджер]],TRUE,FALSE)","v":true},{"$f":"SUMIFS(AA54:AA1608,O54:O1608,Таблица_Металлопроцессинг_детализированный[[#This Row],[Контрагент]],A54:A1608,Таблица_Металлопроцессинг_детализированный[[#This Row],[Месяц отгрузки]])","v":404751},{"$f":"IF(Таблица_Металлопроцессинг_детализированный[[#This Row],[Инициатор+исполнитель]],1,IF(Таблица_Металлопроцессинг_детализированный[[#This Row],[Оборот за месяц по контрагенту]]<1000000,0.5,0.7))","v":1},{"$f":"IF(Таблица_Металлопроцессинг_детализированный[[#This Row],[Инициатор+исполнитель]]=TRUE,0,IF(Таблица_Металлопроцессинг_детализированный[[#This Row],[Оборот за месяц по контрагенту]]<1000000,0.5,0.3))","v":0},{"$f":"Таблица_Металлопроцессинг_детализированный[[#This Row],[Сумма наценки]]*Таблица_Металлопроцессинг_детализированный[[#This Row],[Распределение выручки для Куратора договора]]","v":29883},{"$f":"IF(Таблица_Металлопроцессинг_детализированный[[#This Row],[Распределение выручки для Менеджера договора]]=1,\"\",Таблица_Металлопроцессинг_детализированный[[#This Row],[Сумма наценки]]*Таблица_Металлопроцессинг_детализированный[[#This Row],[Распределение выручки для Менеджера договора]])","v":0},"Процессинг","САНКТ-ПЕТЕРБУРГ","АртЛэнд","ООО \"Строительная компания \"АртЛэнд\"",null,null,"Стройиндустрия","Шпунт Ларсена Л5-УМ, С255 (ТУ 14-102-8-2003)",null,19.922000000000001,"т",786919,"Очистка и покраска проката (грунт ЭМЛАК 263)","ROSLER",29883,19.922000000000001,19.922000000000001,1,"САНКТ-ПЕТЕРБУРГ","Центр",19.922000000000001]
[1,"САНКТ-ПЕТЕРБУРГ","Центр","Сафонеев С.А.","Сафонеев С.А.","Ипатова Е.Н.",{"$f":"IF(Таблица_Металлопроцессинг_детализированный[[#This Row],[Куратор договора]]=Таблица_Металлопроцессинг_детализированный[[#This Row],[Менеджер]],TRUE,FALSE)","v":false},{"$f":"SUMIFS(AA55:AA1625,O55:O1625,Таблица_Металлопроцессинг_детализированный[[#This Row],[Контрагент]],A55:A1625,Таблица_Металлопроцессинг_детализированный[[#This Row],[Месяц отгрузки]])","v":343784.60000000003},{"$f":"IF(Таблица_Металлопроцессинг_детализированный[[#This Row],[Инициатор+исполнитель]],1,IF(Таблица_Металлопроцессинг_детализированный[[#This Row],[Оборот за месяц по контрагенту]]<1000000,0.5,0.7))","v":0.5},{"$f":"IF(Таблица_Металлопроцессинг_детализированный[[#This Row],[Инициатор+исполнитель]]=TRUE,0,IF(Таблица_Металлопроцессинг_детализированный[[#This Row],[Оборот за месяц по контрагенту]]<1000000,0.5,0.3))","v":0.5},{"$f":"Таблица_Металлопроцессинг_детализированный[[#This Row],[Сумма наценки]]*Таблица_Металлопроцессинг_детализированный[[#This Row],[Распределение выручки для Куратора договора]]","v":8640.0249999999996},{"$f":"IF(Таблица_Металлопроцессинг_детализированный[[#This Row],[Распределение выручки для Менеджера договора]]=1,\"\",Таблица_Металлопроцессинг_детализированный[[#This Row],[Сумма наценки]]*Таблица_Металлопроцессинг_детализированный[[#This Row],[Распределение выручки для Менеджера договора]])","v":8640.0249999999996},"Из давальческого сырья","САНКТ-ПЕТЕРБУРГ","НЕВА-МЕТАЛЛТРЭЙД ООО","ООО \"Нева-МеталлТрэйд\"","г. Санкт-Петербург ","г. Санкт-Петербург ","Машиностроение","Изделие","Сталь листовая РСД32, 18*2000*8000",13.56,"т",0,"Очистка и покраска проката (грунт HEMPEL)","ROSLER",17280.05,13.56,13.56,1,"САНКТ-ПЕТЕРБУРГ","Центр",13.56]
[1,"САНКТ-ПЕТЕРБУРГ","Центр","Сафонеев С.А.","Сафонеев С.А.","Сафонеев С.А.",{"$f":"IF(Таблица_Металлопроцессинг_детализированный[[#This Row],[Куратор договора]]=Таблица_Металлопроцессинг_детализированный[[#This Row],[Менеджер]],TRUE,FALSE)","v":true},{"$f":"SUMIFS(AA56:AA1633,O56:O1633,Таблица_Металлопроцессинг_детализированный[[#This Row],[Контрагент]],A56:A1633,Таблица_Металлопроцессинг_детализированный[[#This Row],[Месяц отгрузки]])","v":1920},{"$f":"IF(Таблица_Металлопроцессинг_детализированный[[#This Row],[Инициатор+исполнитель]],1,IF(Таблица_Металлопроцессинг_детализированный[[#This Row],[Оборот за месяц по контрагенту]]<1000000,0.5,0.7))","v":1},{"$f":"IF(Таблица_Металлопроцессинг_детализированный[[#This Row],[Инициатор+исполнитель]]=TRUE,0,IF(Таблица_Металлопроцессинг_детализированный[[#This Row],[Оборот за месяц по контрагенту]]<1000000,0.5,0.3))","v":0},{"$f":"Таблица_Металлопроцессинг_детализированный[[#This Row],[Сумма наценки]]*Таблица_Металлопроцессинг_детализированный[[#This Row],[Распределение выручки для Куратора договора]]","v":1920},{"$f":"IF(Таблица_Металлопроцессинг_детализированный[[#This Row],[Распределение выручки для Менеджера договора]]=1,\"\",Таблица_Металлопроцессинг_детализированный[[#This Row],[Сумма наценки]]*Таблица_Металлопроцессинг_детализированный[[#This Row],[Распределение выручки для Менеджера договора]])","v":0},"Из давальческого сырья","САНКТ-ПЕТЕРБУРГ","ФЕНИКС НПО","Научно-производственное объединение \"Феникс\"","Санкт-Петербург ","Санкт-Петербург ","Машиностроение","Изделие","Плазмення резка",16,"п/м",0,"Порезка листового проката плазменная PLAZMA","LINEACORD PCL40",1920,16,16,1,"САНКТ-ПЕТЕРБУРГ","Центр",0.183]
[1,"САНКТ-ПЕТЕРБУРГ","Центр","Дауэнгауэр Н.Э.","Дауэнгауэр Н.Э.","Дауэнгауэр Н.Э.",{"$f":"IF(Таблица_Металлопроцессинг_детализированный[[#This Row],[Куратор договора]]=Таблица_Металлопроцессинг_детализированный[[#This Row],[Менеджер]],TRUE,FALSE)","v":true},{"$f":"SUMIFS(AA57:AA1638,O57:O1638,Таблица_Металлопроцессинг_детализированный[[#This Row],[Контрагент]],A57:A1638,Таблица_Металлопроцессинг_детализированный[[#This Row],[Месяц отгрузки]])","v":41199},{"$f":"IF(Таблица_Металлопроцессинг_детализированный[[#This Row],[Инициатор+исполнитель]],1,IF(Таблица_Металлопроцессинг_детализированный[[#This Row],[Оборот за месяц по контрагенту]]<1000000,0.5,0.7))","v":1},{"$f":"IF(Таблица_Металлопроцессинг_детализированный[[#This Row],[Инициатор+исполнитель]]=TRUE,0,IF(Таблица_Металлопроцессинг_детализированный[[#This Row],[Оборот за месяц по контрагенту]]<1000000,0.5,0.3))","v":0},{"$f":"Таблица_Металлопроцессинг_детализированный[[#This Row],[Сумма наценки]]*Таблица_Металлопроцессинг_детализированный[[#This Row],[Распределение выручки для Куратора договора]]","v":17775},{"$f":"IF(Таблица_Металлопроцессинг_детализированный[[#This Row],[Распределение выручки для Менеджера договора]]=1,\"\",Таблица_Металлопроцессинг_детализированный[[#This Row],[Сумма наценки]]*Таблица_Металлопроцессинг_детализированный[[#This Row],[Распределение выручки для Менеджера договора]])","v":0},"Процессинг","САНКТ-ПЕТЕРБУРГ","СКМ Фирма","ООО \"Фирма СКМ\"","Ленинградская обл.","Ленинградская обл.","Машиностроение","Сталь рулонная Х/к., 1.5, 1250, Ст.кп/пс (19904)",null,3.95,"т",110560.5,"Порезка листового проката поперечная","CAMU RDC 1500/6",17775,1,4,1,"САНКТ-ПЕТЕРБУРГ","Центр",3.95]
[1,"САНКТ-ПЕТЕРБУРГ","Центр","Райская Н.А.","Хабибуллов М.Р.","Райская Н.А.",{"$f":"IF(Таблица_Металлопроцессинг_детализированный[[#This Row],[Куратор договора]]=Таблица_Металлопроцессинг_детализированный[[#This Row],[Менеджер]],TRUE,FALSE)","v":true},{"$f":"SUMIFS(AA58:AA1646,O58:O1646,Таблица_Металлопроцессинг_детализированный[[#This Row],[Контрагент]],A58:A1646,Таблица_Металлопроцессинг_детализированный[[#This Row],[Месяц отгрузки]])","v":6139.5},{"$f":"IF(Таблица_Металлопроцессинг_детализированный[[#This Row],[Инициатор+исполнитель]],1,IF(Таблица_Металлопроцессинг_детализированный[[#This Row],[Оборот за месяц по контрагенту]]<1000000,0.5,0.7))","v":1},{"$f":"IF(Таблица_Металлопроцессинг_детализированный[[#This Row],[Инициатор+исполнитель]]=TRUE,0,IF(Таблица_Металлопроцессинг_детализированный[[#This Row],[Оборот за месяц по контрагенту]]<1000000,0.5,0.3))","v":0},{"$f":"Таблица_Металлопроцессинг_детализированный[[#This Row],[Сумма наценки]]*Таблица_Металлопроцессинг_детализированный[[#This Row],[Распределение выручки для Куратора договора]]","v":6139.5},{"$f":"IF(Таблица_Металлопроцессинг_детализированный[[#This Row],[Распределение выручки для Менеджера договора]]=1,\"\",Таблица_Металлопроцессинг_детализированный[[#This Row],[Сумма наценки]]*Таблица_Металлопроцессинг_детализированный[[#This Row],[Распределение выручки для Менеджера договора]])","v":0},"Из давальческого сырья","САНКТ-ПЕТЕРБУРГ","СтройТехИмпорт","ООО \"СтройТехИмпорт\"",null,null,"Стройиндустрия","Шпунт Ларсена Л5-УМ, С255 (ТУ 14-102-8-2010)",null,4.093,"т",0,"Очистка и покраска проката (грунт ЭМЛАК 263)","ROSLER",6139.5,4.093,4.093,1,"САНКТ-ПЕТЕРБУРГ","Центр",4.093]
[1,"САНКТ-ПЕТЕРБУРГ","Центр","Матросова Л.Ш.","Матросова Л.Ш.","Ипатова Е.Н.",{"$f":"IF(Таблица_Металлопроцессинг_детализированный[[#This Row],[Куратор договора]]=Таблица_Металлопроцессинг_детализированный[[#This Row],[Менеджер]],TRUE,FALSE)","v":false},{"$f":"SUMIFS(AA59:AA1648,O59:O1648,Таблица_Металлопроцессинг_детализированный[[#This Row],[Контрагент]],A59:A1648,Таблица_Металлопроцессинг_детализированный[[#This Row],[Месяц отгрузки]])","v":2000},{"$f":"IF(Таблица_Металлопроцессинг_детализированный[[#This Row],[Инициатор+исполнитель]],1,IF(Таблица_Металлопроцессинг_детализированный[[#This Row],[Оборот за месяц по контрагенту]]<1000000,0.5,0.7))","v":0.5},{"$f":"IF(Таблица_Металлопроцессинг_детализированный[[#This Row],[Инициатор+исполнитель]]=TRUE,0,IF(Таблица_Металлопроцессинг_детализированный[[#This Row],[Оборот за месяц по контрагенту]]<1000000,0.5,0.3))","v":0.5},{"$f":"Таблица_Металлопроцессинг_детализированный[[#This Row],[Сумма наценки]]*Таблица_Металлопроцессинг_детализированный[[#This Row],[Распределение выручки для Куратора договора]]","v":1000},{"$f":"IF(Таблица_Металлопроцессинг_детализированный[[#This Row],[Распределение выручки для Менеджера договора]]=1,\"\",Таблица_Металлопроцессинг_детализированный[[#This Row],[Сумма наценки]]*Таблица_Металлопроцессинг_детализированный[[#This Row],[Распределение выручки для Менеджера договора]])","v":1000},"Процессинг","САНКТ-ПЕТЕРБУРГ","ТэтаКом","ООО \"ТэтаКом\"","г. Санкт-Петербург ","г. Санкт-Петербург ","Металлоторговля","Сталь рулонная Г/к., 3, 1500, Ст.сп/пс (19903)",null,1.69,"т",37349,"Порезка листового проката поперечная","CAMU RDC 1500/6",2000,1,1.71,1,"САНКТ-ПЕТЕРБУРГ","Центр",1.69]
[1,"САНКТ-ПЕТЕРБУРГ","Центр","Молчанова Е.М.","Молчанова Е.М.","Дауэнгауэр Н.Э.",{"$f":"IF(Таблица_Металлопроцессинг_детализированный[[#This Row],[Куратор договора]]=Таблица_Металлопроцессинг_детализированный[[#This Row],[Менеджер]],TRUE,FALSE)","v":false},{"$f":"SUMIFS(AA60:AA1653,O60:O1653,Таблица_Металлопроцессинг_детализированный[[#This Row],[Контрагент]],A60:A1653,Таблица_Металлопроцессинг_детализированный[[#This Row],[Месяц отгрузки]])","v":164940},{"$f":"IF(Таблица_Металлопроцессинг_детализированный[[#This Row],[Инициатор+исполнитель]],1,IF(Таблица_Металлопроцессинг_детализированный[[#This Row],[Оборот за месяц по контрагенту]]<1000000,0.5,0.7))","v":0.5},{"$f":"IF(Таблица_Металлопроцессинг_детализированный[[#This Row],[Инициатор+исполнитель]]=TRUE,0,IF(Таблица_Металлопроцессинг_детализированный[[#This Row],[Оборот за месяц по контрагенту]]<1000000,0.5,0.3))","v":0.5},{"$f":"Таблица_Металлопроцессинг_детализированный[[#This Row],[Сумма наценки]]*Таблица_Металлопроцессинг_детализированный[[#This Row],[Распределение выручки для Куратора договора]]","v":7590},{"$f":"IF(Таблица_Металлопроцессинг_детализированный[[#This Row],[Распределение выручки для Менеджера договора]]=1,\"\",Таблица_Металлопроцессинг_детализированный[[#This Row],[Сумма наценки]]*Таблица_Металлопроцессинг_детализированный[[#This Row],[Распределение выручки для Менеджера договора]])","v":7590},"Из давальческого сырья","САНКТ-ПЕТЕРБУРГ","НЕВСКИЙ МЕТАЛЛ (СПб)","ООО \"НЕВСКИЙ МЕТАЛЛ\"",null,null,"Металлоторговля","Изделие","ПВЛ 406 дробь+эмлак обе стороны листа",1.28,"т",0,"Очистка и покраска проката (грунт ЭМЛАК 263)","ROSLER",15180,138,138,1,"САНКТ-ПЕТЕРБУРГ","Центр",1.28]
[1,"САНКТ-ПЕТЕРБУРГ","Центр","Молчанова Е.М.","Молчанова Е.М.","Райская Н.А.",{"$f":"IF(Таблица_Металлопроцессинг_детализированный[[#This Row],[Куратор договора]]=Таблица_Металлопроцессинг_детализированный[[#This Row],[Менеджер]],TRUE,FALSE)","v":false},{"$f":"SUMIFS(AA61:AA1654,O61:O1654,Таблица_Металлопроцессинг_детализированный[[#This Row],[Контрагент]],A61:A1654,Таблица_Металлопроцессинг_детализированный[[#This Row],[Месяц отгрузки]])","v":149760},{"$f":"IF(Таблица_Металлопроцессинг_детализированный[[#This Row],[Инициатор+исполнитель]],1,IF(Таблица_Металлопроцессинг_детализированный[[#This Row],[Оборот за месяц по контрагенту]]<1000000,0.5,0.7))","v":0.5},{"$f":"IF(Таблица_Металлопроцессинг_детализированный[[#This Row],[Инициатор+исполнитель]]=TRUE,0,IF(Таблица_Металлопроцессинг_детализированный[[#This Row],[Оборот за месяц по контрагенту]]<1000000,0.5,0.3))","v":0.5},{"$f":"Таблица_Металлопроцессинг_детализированный[[#This Row],[Сумма наценки]]*Таблица_Металлопроцессинг_детализированный[[#This Row],[Распределение выручки для Куратора договора]]","v":5060},{"$f":"IF(Таблица_Металлопроцессинг_детализированный[[#This Row],[Распределение выручки для Менеджера договора]]=1,\"\",Таблица_Металлопроцессинг_детализированный[[#This Row],[Сумма наценки]]*Таблица_Металлопроцессинг_детализированный[[#This Row],[Распределение выручки для Менеджера договора]])","v":5060},"Из давальческого сырья","САНКТ-ПЕТЕРБУРГ","НЕВСКИЙ МЕТАЛЛ (СПб)","ООО \"НЕВСКИЙ МЕТАЛЛ\"",null,null,"Металлоторговля","Изделие","полоса 4*70*3000 дробь+эмлак с обеих сторон",1.33,"т",0,"Очистка и покраска проката (грунт ЭМЛАК 263)","ROSLER",10120,92,92,1,"САНКТ-ПЕТЕРБУРГ","Центр",1.33]
[1,"САНКТ-ПЕТЕРБУРГ","Центр","Молчанова Е.М.","Матросова Л.Ш.","Молчанова Е.М.",{"$f":"IF(Таблица_Металлопроцессинг_детализированный[[#This Row],[Куратор договора]]=Таблица_Металлопроцессинг_детализированный[[#This Row],[Менеджер]],TRUE,FALSE)","v":true},{"$f":"SUMIFS(AA62:AA1657,O62:O1657,Таблица_Металлопроцессинг_детализированный[[#This Row],[Контрагент]],A62:A1657,Таблица_Металлопроцессинг_детализированный[[#This Row],[Месяц отгрузки]])","v":139640},{"$f":"IF(Таблица_Металлопроцессинг_детализированный[[#This Row],[Инициатор+исполнитель]],1,IF(Таблица_Металлопроцессинг_детализированный[[#This Row],[Оборот за месяц по контрагенту]]<1000000,0.5,0.7))","v":1},{"$f":"IF(Таблица_Металлопроцессинг_детализированный[[#This Row],[Инициатор+исполнитель]]=TRUE,0,IF(Таблица_Металлопроцессинг_детализированный[[#This Row],[Оборот за месяц по контрагенту]]<1000000,0.5,0.3))","v":0},{"$f":"Таблица_Металлопроцессинг_детализированный[[#This Row],[Сумма наценки]]*Таблица_Металлопроцессинг_детализированный[[#This Row],[Распределение выручки для Куратора договора]]","v":300},{"$f":"IF(Таблица_Металлопроцессинг_детализированный[[#This Row],[Распределение выручки для Менеджера договора]]=1,\"\",Таблица_Металлопроцессинг_детализированный[[#This Row],[Сумма наценки]]*Таблица_Металлопроцессинг_детализированный[[#This Row],[Распределение выручки для Менеджера договора]])","v":0},"Процессинг","САНКТ-ПЕТЕРБУРГ","НЕВСКИЙ МЕТАЛЛ (СПб)","ООО \"НЕВСКИЙ МЕТАЛЛ\"",null,null,"Металлоторговля","Арматура класс АI, 12, Ст.сп/пс, в бунтах (ГОСТ 5781-82)",null,0.3,"т",8697,"Размотка/резка арматурного проката","MELC 16x4",300,1,0.3,1,"САНКТ-ПЕТЕРБУРГ","Центр",0.3]
[1,"САНКТ-ПЕТЕРБУРГ","Центр","Молчанова Е.М.","Матросова Л.Ш.","Ипатова Е.Н.",{"$f":"IF(Таблица_Металлопроцессинг_детализированный[[#This Row],[Куратор договора]]=Таблица_Металлопроцессинг_детализированный[[#This Row],[Менеджер]],TRUE,FALSE)","v":false},{"$f":"SUMIFS(AA63:AA1664,O63:O1664,Таблица_Металлопроцессинг_детализированный[[#This Row],[Контрагент]],A63:A1664,Таблица_Металлопроцессинг_детализированный[[#This Row],[Месяц отгрузки]])","v":139340},{"$f":"IF(Таблица_Металлопроцессинг_детализированный[[#This Row],[Инициатор+исполнитель]],1,IF(Таблица_Металлопроцессинг_детализированный[[#This Row],[Оборот за месяц по контрагенту]]<1000000,0.5,0.7))","v":0.5},{"$f":"IF(Таблица_Металлопроцессинг_детализированный[[#This Row],[Инициатор+исполнитель]]=TRUE,0,IF(Таблица_Металлопроцессинг_детализированный[[#This Row],[Оборот за месяц по контрагенту]]<1000000,0.5,0.3))","v":0.5},{"$f":"Таблица_Металлопроцессинг_детализированный[[#This Row],[Сумма наценки]]*Таблица_Металлопроцессинг_детализированный[[#This Row],[Распределение выручки для Куратора договора]]","v":7500},{"$f":"IF(Таблица_Металлопроцессинг_детализированный[[#This Row],[Распределение выручки для Менеджера договора]]=1,\"\",Таблица_Металлопроцессинг_детализированный[[#This Row],[Сумма наценки]]*Таблица_Металлопроцессинг_детализированный[[#This Row],[Распределение выручки для Менеджера договора]])","v":7500},"Из давальческого сырья","САНКТ-ПЕТЕРБУРГ","НЕВСКИЙ МЕТАЛЛ (СПб)","ООО \"НЕВСКИЙ МЕТАЛЛ\"",null,null,"Металлоторговля","Изделие","тр. 168*10 HEMPEL",9.5500000000000007,"т",0,"Очистка и покраска проката (грунт HEMPEL)","ROSLER",15000,125,105,1,"САНКТ-ПЕТЕРБУРГ","Центр",9.5500000000000007]
[1,"САНКТ-ПЕТЕРБУРГ","Центр","Молчанова Е.М.","Матросова Л.Ш.","Ипатов Д.В.",{"$f":"IF(Таблица_Металлопроцессинг_детализированный[[#This Row],[Куратор договора]]=Таблица_Металлопроцессинг_детализированный[[#This Row],[Менеджер]],TRUE,FALSE)","v":false},{"$f":"SUMIFS(AA64:AA1665,O64:O1665,Таблица_Металлопроцессинг_детализированный[[#This Row],[Контрагент]],A64:A1665,Таблица_Металлопроцессинг_детализированный[[#This Row],[Месяц отгрузки]])","v":124340},{"$f":"IF(Таблица_Металлопроцессинг_детализированный[[#This Row],[Инициатор+исполнитель]],1,IF(Таблица_Металлопроцессинг_детализированный[[#This Row],[Оборот за месяц по контрагенту]]<1000000,0.5,0.7))","v":0.5},{"$f":"IF(Таблица_Металлопроцессинг_детализированный[[#This Row],[Инициатор+исполнитель]]=TRUE,0,IF(Таблица_Металлопроцессинг_детализированный[[#This Row],[Оборот за месяц по контрагенту]]<1000000,0.5,0.3))","v":0.5},{"$f":"Таблица_Металлопроцессинг_детализированный[[#This Row],[Сумма наценки]]*Таблица_Металлопроцессинг_детализированный[[#This Row],[Распределение выручки для Куратора договора]]","v":12000},{"$f":"IF(Таблица_Металлопроцессинг_детализированный[[#This Row],[Распределение выручки для Менеджера договора]]=1,\"\",Таблица_Металлопроцессинг_детализированный[[#This Row],[Сумма наценки]]*Таблица_Металлопроцессинг_детализированный[[#This Row],[Распределение выручки для Менеджера договора]])","v":12000},"Из давальческого сырья","САНКТ-ПЕТЕРБУРГ","НЕВСКИЙ МЕТАЛЛ (СПб)","ООО \"НЕВСКИЙ МЕТАЛЛ\"",null,null,"Металлоторговля","Изделие","тр. 76*4 HEMPEL",6.2,"т",0,"Очистка и покраска проката (грунт HEMPEL)","ROSLER",24000,200,186,1,"САНКТ-ПЕТЕРБУРГ","Центр",6.2]
[1,"САНКТ-ПЕТЕРБУРГ","Центр","Сафонеев С.А.","Сафонеев С.А.","Сафонеев С.А.",{"$f":"IF(Таблица_Металлопроцессинг_детализированный[[#This Row],[Куратор договора]]=Таблица_Металлопроцессинг_детализированный[[#This Row],[Менеджер]],TRUE,FALSE)","v":true},{"$f":"SUMIFS(AA65:AA1667,O65:O1667,Таблица_Металлопроцессинг_детализированный[[#This Row],[Контрагент]],A65:A1667,Таблица_Металлопроцессинг_детализированный[[#This Row],[Месяц отгрузки]])","v":600},{"$f":"IF(Таблица_Металлопроцессинг_детализированный[[#This Row],[Инициатор+исполнитель]],1,IF(Таблица_Металлопроцессинг_детализированный[[#This Row],[Оборот за месяц по контрагенту]]<1000000,0.5,0.7))","v":1},{"$f":"IF(Таблица_Металлопроцессинг_детализированный[[#This Row],[Инициатор+исполнитель]]=TRUE,0,IF(Таблица_Металлопроцессинг_детализированный[[#This Row],[Оборот за месяц по контрагенту]]<1000000,0.5,0.3))","v":0},{"$f":"Таблица_Металлопроцессинг_детализированный[[#This Row],[Сумма наценки]]*Таблица_Металлопроцессинг_детализированный[[#This Row],[Распределение выручки для Куратора договора]]","v":600},{"$f":"IF(Таблица_Металлопроцессинг_детализированный[[#This Row],[Распределение выручки для Менеджера договора]]=1,\"\",Таблица_Металлопроцессинг_детализированный[[#This Row],[Сумма наценки]]*Таблица_Металлопроцессинг_детализированный[[#This Row],[Распределение выручки для Менеджера договора]])","v":0},"Процессинг","САНКТ-ПЕТЕРБУРГ","ГЕСЕР ЗАО СПБ","ЗАО \"Гесер\"","Ленинградская обл.","Ленинградская обл.","Машиностроение","Швеллер стальной г/к, 16У, Ст.С255 (ГОСТ 27772-88)",null,0.35199999999999998,"т",9929.92,"Станок ленточнопильный","PEGASUS",600,2,0.35199999999999998,1,"САНКТ-ПЕТЕРБУРГ","Центр",0.35199999999999998]
[1,"САНКТ-ПЕТЕРБУРГ","Центр","Хабибуллов М.Р.","Хабибуллов М.Р.","Дауэнгауэр Н.Э.",{"$f":"IF(Таблица_Металлопроцессинг_детализированный[[#This Row],[Куратор договора]]=Таблица_Металлопроцессинг_детализированный[[#This Row],[Менеджер]],TRUE,FALSE)","v":false},{"$f":"SUMIFS(AA66:AA1669,O66:O1669,Таблица_Металлопроцессинг_детализированный[[#This Row],[Контрагент]],A66:A1669,Таблица_Металлопроцессинг_детализированный[[#This Row],[Месяц отгрузки]])","v":374868},{"$f":"IF(Таблица_Металлопроцессинг_детализированный[[#This Row],[Инициатор+исполнитель]],1,IF(Таблица_Металлопроцессинг_детализированный[[#This Row],[Оборот за месяц по контрагенту]]<1000000,0.5,0.7))","v":0.5},{"$f":"IF(Таблица_Металлопроцессинг_детализированный[[#This Row],[Инициатор+исполнитель]]=TRUE,0,IF(Таблица_Металлопроцессинг_детализированный[[#This Row],[Оборот за месяц по контрагенту]]<1000000,0.5,0.3))","v":0.5},{"$f":"Таблица_Металлопроцессинг_детализированный[[#This Row],[Сумма наценки]]*Таблица_Металлопроцессинг_детализированный[[#This Row],[Распределение выручки для Куратора договора]]","v":14991},{"$f":"IF(Таблица_Металлопроцессинг_детализированный[[#This Row],[Распределение выручки для Менеджера договора]]=1,\"\",Таблица_Металлопроцессинг_детализированный[[#This Row],[Сумма наценки]]*Таблица_Металлопроцессинг_детализированный[[#This Row],[Распределение выручки для Менеджера договора]])","v":14991},"Процессинг","САНКТ-ПЕТЕРБУРГ","АртЛэнд","ООО \"Строительная компания \"АртЛэнд\"",null,null,"Стройиндустрия","Шпунт Ларсена Л5-УМ, С255 (ТУ 14-102-8-2003)",null,19.988,"т",789526,"Очистка и покраска проката (грунт ЭМЛАК 263)","ROSLER",29982,19.988,61.65,1,"САНКТ-ПЕТЕРБУРГ","Центр",19.988]
[1,"САНКТ-ПЕТЕРБУРГ","Центр","Молчанова Е.М.","Молчанова Е.М.","Молчанова Е.М.",{"$f":"IF(Таблица_Металлопроцессинг_детализированный[[#This Row],[Куратор договора]]=Таблица_Металлопроцессинг_детализированный[[#This Row],[Менеджер]],TRUE,FALSE)","v":true},{"$f":"SUMIFS(AA67:AA1684,O67:O1684,Таблица_Металлопроцессинг_детализированный[[#This Row],[Контрагент]],A67:A1684,Таблица_Металлопроцессинг_детализированный[[#This Row],[Месяц отгрузки]])","v":100340},{"$f":"IF(Таблица_Металлопроцессинг_детализированный[[#This Row],[Инициатор+исполнитель]],1,IF(Таблица_Металлопроцессинг_детализированный[[#This Row],[Оборот за месяц по контрагенту]]<1000000,0.5,0.7))","v":1},{"$f":"IF(Таблица_Металлопроцессинг_детализированный[[#This Row],[Инициатор+исполнитель]]=TRUE,0,IF(Таблица_Металлопроцессинг_детализированный[[#This Row],[Оборот за месяц по контрагенту]]<1000000,0.5,0.3))","v":0},{"$f":"Таблица_Металлопроцессинг_детализированный[[#This Row],[Сумма наценки]]*Таблица_Металлопроцессинг_детализированный[[#This Row],[Распределение выручки для Куратора договора]]","v":1980},{"$f":"IF(Таблица_Металлопроцессинг_детализированный[[#This Row],[Распределение выручки для Менеджера договора]]=1,\"\",Таблица_Металлопроцессинг_детализированный[[#This Row],[Сумма наценки]]*Таблица_Металлопроцессинг_детализированный[[#This Row],[Распределение выручки для Менеджера договора]])","v":0},"Из давальческого сырья","САНКТ-ПЕТЕРБУРГ","НЕВСКИЙ МЕТАЛЛ (СПб)","ООО \"НЕВСКИЙ МЕТАЛЛ\"",null,null,"Металлоторговля","Изделие","тр. 89*4 HEMPEL",0.503,"т",0,"Очистка и покраска проката (грунт HEMPEL)","ROSLER",1980,16.5,16.5,1,"САНКТ-ПЕТЕРБУРГ","Центр",0.503]
[1,"САНКТ-ПЕТЕРБУРГ","Центр","Погорелов И.В.","Погорелов И.В.","Погорелов И.В.",{"$f":"IF(Таблица_Металлопроцессинг_детализированный[[#This Row],[Куратор договора]]=Таблица_Металлопроцессинг_детализированный[[#This Row],[Менеджер]],TRUE,FALSE)","v":true},{"$f":"SUMIFS(AA68:AA1686,O68:O1686,Таблица_Металлопроцессинг_детализированный[[#This Row],[Контрагент]],A68:A1686,Таблица_Металлопроцессинг_детализированный[[#This Row],[Месяц отгрузки]])","v":19085},{"$f":"IF(Таблица_Металлопроцессинг_детализированный[[#This Row],[Инициатор+исполнитель]],1,IF(Таблица_Металлопроцессинг_детализированный[[#This Row],[Оборот за месяц по контрагенту]]<1000000,0.5,0.7))","v":1},{"$f":"IF(Таблица_Металлопроцессинг_детализированный[[#This Row],[Инициатор+исполнитель]]=TRUE,0,IF(Таблица_Металлопроцессинг_детализированный[[#This Row],[Оборот за месяц по контрагенту]]<1000000,0.5,0.3))","v":0},{"$f":"Таблица_Металлопроцессинг_детализированный[[#This Row],[Сумма наценки]]*Таблица_Металлопроцессинг_детализированный[[#This Row],[Распределение выручки для Куратора договора]]","v":11408},{"$f":"IF(Таблица_Металлопроцессинг_детализированный[[#This Row],[Распределение выручки для Менеджера договора]]=1,\"\",Таблица_Металлопроцессинг_детализированный[[#This Row],[Сумма наценки]]*Таблица_Металлопроцессинг_детализированный[[#This Row],[Распределение выручки для Менеджера договора]])","v":0},"Процессинг","САНКТ-ПЕТЕРБУРГ","АЛЬЯНС ПРОФИТ","ООО \"Альянс ПРОФИТ\"",null,null,"Металлоконструкции","Сталь листовая Х/к., 0.8, 1250x2500, Ст.08пс (ГОСТ 16523)",null,14.26,"т",397568.8,"Порезка листового проката (ножницы)",null,11408,1,14.2,null,"САНКТ-ПЕТЕРБУРГ","Центр",14.26]
[1,"САНКТ-ПЕТЕРБУРГ","Центр","Погорелов И.В.","Погорелов И.В.","Погорелов И.В.",{"$f":"IF(Таблица_Металлопроцессинг_детализированный[[#This Row],[Куратор договора]]=Таблица_Металлопроцессинг_детализированный[[#This Row],[Менеджер]],TRUE,FALSE)","v":true},{"$f":"SUMIFS(AA69:AA1687,O69:O1687,Таблица_Металлопроцессинг_детализированный[[#This Row],[Контрагент]],A69:A1687,Таблица_Металлопроцессинг_детализированный[[#This Row],[Месяц отгрузки]])","v":7677},{"$f":"IF(Таблица_Металлопроцессинг_детализированный[[#This Row],[Инициатор+исполнитель]],1,IF(Таблица_Металлопроцессинг_детализированный[[#This Row],[Оборот за месяц по контрагенту]]<1000000,0.5,0.7))","v":1},{"$f":"IF(Таблица_Металлопроцессинг_детализированный[[#This Row],[Инициатор+исполнитель]]=TRUE,0,IF(Таблица_Металлопроцессинг_детализированный[[#This Row],[Оборот за месяц по контрагенту]]<1000000,0.5,0.3))","v":0},{"$f":"Таблица_Металлопроцессинг_детализированный[[#This Row],[Сумма наценки]]*Таблица_Металлопроцессинг_детализированный[[#This Row],[Распределение выручки для Куратора договора]]","v":1416},{"$f":"IF(Таблица_Металлопроцессинг_детализированный[[#This Row],[Распределение выручки для Менеджера договора]]=1,\"\",Таблица_Металлопроцессинг_детализированный[[#This Row],[Сумма наценки]]*Таблица_Металлопроцессинг_детализированный[[#This Row],[Распределение выручки для Менеджера договора]])","v":0},"Процессинг","САНКТ-ПЕТЕРБУРГ","АЛЬЯНС ПРОФИТ","ООО \"Альянс ПРОФИТ\"",null,null,"Металлоконструкции","Сталь листовая Х/к., 1, 1250x2500, Ст.кп/пс (ГОСТ 16523)",null,1.18,"т",32768.6,"Порезка листового проката (ножницы)",null,1416,1,1.2,null,"САНКТ-ПЕТЕРБУРГ","Центр",1.18]
[1,"САНКТ-ПЕТЕРБУРГ","Центр","Погорелов И.В.","Погорелов И.В.","Погорелов И.В.",{"$f":"IF(Таблица_Металлопроцессинг_детализированный[[#This Row],[Куратор договора]]=Таблица_Металлопроцессинг_детализированный[[#This Row],[Менеджер]],TRUE,FALSE)","v":true},{"$f":"SUMIFS(AA70:AA1688,O70:O1688,Таблица_Металлопроцессинг_детализированный[[#This Row],[Контрагент]],A70:A1688,Таблица_Металлопроцессинг_детализированный[[#This Row],[Месяц отгрузки]])","v":6261},{"$f":"IF(Таблица_Металлопроцессинг_детализированный[[#This Row],[Инициатор+исполнитель]],1,IF(Таблица_Металлопроцессинг_детализированный[[#This Row],[Оборот за месяц по контрагенту]]<1000000,0.5,0.7))","v":1},{"$f":"IF(Таблица_Металлопроцессинг_детализированный[[#This Row],[Инициатор+исполнитель]]=TRUE,0,IF(Таблица_Металлопроцессинг_детализированный[[#This Row],[Оборот за месяц по контрагенту]]<1000000,0.5,0.3))","v":0},{"$f":"Таблица_Металлопроцессинг_детализированный[[#This Row],[Сумма наценки]]*Таблица_Металлопроцессинг_детализированный[[#This Row],[Распределение выручки для Куратора договора]]","v":1500},{"$f":"IF(Таблица_Металлопроцессинг_детализированный[[#This Row],[Распределение выручки для Менеджера договора]]=1,\"\",Таблица_Металлопроцессинг_детализированный[[#This Row],[Сумма наценки]]*Таблица_Металлопроцессинг_детализированный[[#This Row],[Распределение выручки для Менеджера договора]])","v":0},"Процессинг","САНКТ-ПЕТЕРБУРГ","АЛЬЯНС ПРОФИТ","ООО \"Альянс ПРОФИТ\"",null,null,"Металлоконструкции","Сталь листовая Х/к., 1.5, 1250x2500, Ст.кп/пс (ТУ 14-106-321-2010)",null,1,"т",26990,"Порезка листового проката (ножницы)",null,1500,1,1,null,"САНКТ-ПЕТЕРБУРГ","Центр",1]
[1,"САНКТ-ПЕТЕРБУРГ","Центр","Погорелов И.В.","Погорелов И.В.","Погорелов И.В.",{"$f":"IF(Таблица_Металлопроцессинг_детализированный[[#This Row],[Куратор договора]]=Таблица_Металлопроцессинг_детализированный[[#This Row],[Менеджер]],TRUE,FALSE)","v":true},{"$f":"SUMIFS(AA71:AA1689,O71:O1689,Таблица_Металлопроцессинг_детализированный[[#This Row],[Контрагент]],A71:A1689,Таблица_Металлопроцессинг_детализированный[[#This Row],[Месяц отгрузки]])","v":4761},{"$f":"IF(Таблица_Металлопроцессинг_детализированный[[#This Row],[Инициатор+исполнитель]],1,IF(Таблица_Металлопроцессинг_детализированный[[#This Row],[Оборот за месяц по контрагенту]]<1000000,0.5,0.7))","v":1},{"$f":"IF(Таблица_Металлопроцессинг_детализированный[[#This Row],[Инициатор+исполнитель]]=TRUE,0,IF(Таблица_Металлопроцессинг_детализированный[[#This Row],[Оборот за месяц по контрагенту]]<1000000,0.5,0.3))","v":0},{"$f":"Таблица_Металлопроцессинг_детализированный[[#This Row],[Сумма наценки]]*Таблица_Металлопроцессинг_детализированный[[#This Row],[Распределение выручки для Куратора договора]]","v":1185},{"$f":"IF(Таблица_Металлопроцессинг_детализированный[[#This Row],[Распределение выручки для Менеджера договора]]=1,\"\",Таблица_Металлопроцессинг_детализированный[[#This Row],[Сумма наценки]]*Таблица_Металлопроцессинг_детализированный[[#This Row],[Распределение выручки для Менеджера договора]])","v":0},"Процессинг","САНКТ-ПЕТЕРБУРГ","АЛЬЯНС ПРОФИТ","ООО \"Альянс ПРОФИТ\"",null,null,"Металлоконструкции","Сталь листовая Х/к., 2, 1250x2500, Ст.кп/пс (ТУ 14-106-321-2010)",null,0.79,"т",21148.3,"Порезка листового проката (ножницы)",null,1185,1,0.8,null,"САНКТ-ПЕТЕРБУРГ","Центр",0.79]
[1,"САНКТ-ПЕТЕРБУРГ","Центр","Погорелов И.В.","Погорелов И.В.","Погорелов И.В.",{"$f":"IF(Таблица_Металлопроцессинг_детализированный[[#This Row],[Куратор договора]]=Таблица_Металлопроцессинг_детализированный[[#This Row],[Менеджер]],TRUE,FALSE)","v":true},{"$f":"SUMIFS(AA72:AA1690,O72:O1690,Таблица_Металлопроцессинг_детализированный[[#This Row],[Контрагент]],A72:A1690,Таблица_Металлопроцессинг_детализированный[[#This Row],[Месяц отгрузки]])","v":3576},{"$f":"IF(Таблица_Металлопроцессинг_детализированный[[#This Row],[Инициатор+исполнитель]],1,IF(Таблица_Металлопроцессинг_детализированный[[#This Row],[Оборот за месяц по контрагенту]]<1000000,0.5,0.7))","v":1},{"$f":"IF(Таблица_Металлопроцессинг_детализированный[[#This Row],[Инициатор+исполнитель]]=TRUE,0,IF(Таблица_Металлопроцессинг_детализированный[[#This Row],[Оборот за месяц по контрагенту]]<1000000,0.5,0.3))","v":0},{"$f":"Таблица_Металлопроцессинг_детализированный[[#This Row],[Сумма наценки]]*Таблица_Металлопроцессинг_детализированный[[#This Row],[Распределение выручки для Куратора договора]]","v":3576},{"$f":"IF(Таблица_Металлопроцессинг_детализированный[[#This Row],[Распределение выручки для Менеджера договора]]=1,\"\",Таблица_Металлопроцессинг_детализированный[[#This Row],[Сумма наценки]]*Таблица_Металлопроцессинг_детализированный[[#This Row],[Распределение выручки для Менеджера договора]])","v":0},"Процессинг","САНКТ-ПЕТЕРБУРГ","АЛЬЯНС ПРОФИТ","ООО \"Альянс ПРОФИТ\"",null,null,"Металлоконструкции","Сталь листовая Х/к., 3, 1250x2500, Ст.кп/пс (ТУ 14-106-321-2010)",null,2.98,"т",79774.600000000006,"Порезка листового проката (ножницы)",null,3576,1,3,null,"САНКТ-ПЕТЕРБУРГ","Центр",2.98]
[1,"САНКТ-ПЕТЕРБУРГ","Центр","Погорелов И.В.","Погорелов И.В.","Погорелов И.В.",{"$f":"IF(Таблица_Металлопроцессинг_детализированный[[#This Row],[Куратор договора]]=Таблица_Металлопроцессинг_детализированный[[#This Row],[Менеджер]],TRUE,FALSE)","v":true},{"$f":"SUMIFS(AA73:AA1693,O73:O1693,Таблица_Металлопроцессинг_детализированный[[#This Row],[Контрагент]],A73:A1693,Таблица_Металлопроцессинг_детализированный[[#This Row],[Месяц отгрузки]])","v":14570},{"$f":"IF(Таблица_Металлопроцессинг_детализированный[[#This Row],[Инициатор+исполнитель]],1,IF(Таблица_Металлопроцессинг_детализированный[[#This Row],[Оборот за месяц по контрагенту]]<1000000,0.5,0.7))","v":1},{"$f":"IF(Таблица_Металлопроцессинг_детализированный[[#This Row],[Инициатор+исполнитель]]=TRUE,0,IF(Таблица_Металлопроцессинг_детализированный[[#This Row],[Оборот за месяц по контрагенту]]<1000000,0.5,0.3))","v":0},{"$f":"Таблица_Металлопроцессинг_детализированный[[#This Row],[Сумма наценки]]*Таблица_Металлопроцессинг_детализированный[[#This Row],[Распределение выручки для Куратора договора]]","v":4082},{"$f":"IF(Таблица_Металлопроцессинг_детализированный[[#This Row],[Распределение выручки для Менеджера договора]]=1,\"\",Таблица_Металлопроцессинг_детализированный[[#This Row],[Сумма наценки]]*Таблица_Металлопроцессинг_детализированный[[#This Row],[Распределение выручки для Менеджера договора]])","v":0},"Процессинг","САНКТ-ПЕТЕРБУРГ","СОТЭКС","ООО \"СОТЭКС\"",null,null,"Стройиндустрия","Арматура А500С, 12, Ст.сп/пс (ГОСТ 52544-2006)",null,15.7,"т",404589,"Порезка (станок ленточнопильный)",null,4082,1,16,null,"САНКТ-ПЕТЕРБУРГ","Центр",15.7]
[1,"САНКТ-ПЕТЕРБУРГ","Центр","Хабибуллов М.Р.","Хабибуллов М.Р.","Хабибуллов М.Р.",{"$f":"IF(Таблица_Металлопроцессинг_детализированный[[#This Row],[Куратор договора]]=Таблица_Металлопроцессинг_детализированный[[#This Row],[Менеджер]],TRUE,FALSE)","v":true},{"$f":"SUMIFS(AA74:AA1695,O74:O1695,Таблица_Металлопроцессинг_детализированный[[#This Row],[Контрагент]],A74:A1695,Таблица_Металлопроцессинг_детализированный[[#This Row],[Месяц отгрузки]])","v":344886},{"$f":"IF(Таблица_Металлопроцессинг_детализированный[[#This Row],[Инициатор+исполнитель]],1,IF(Таблица_Металлопроцессинг_детализированный[[#This Row],[Оборот за месяц по контрагенту]]<1000000,0.5,0.7))","v":1},{"$f":"IF(Таблица_Металлопроцессинг_детализированный[[#This Row],[Инициатор+исполнитель]]=TRUE,0,IF(Таблица_Металлопроцессинг_детализированный[[#This Row],[Оборот за месяц по контрагенту]]<1000000,0.5,0.3))","v":0},{"$f":"Таблица_Металлопроцессинг_детализированный[[#This Row],[Сумма наценки]]*Таблица_Металлопроцессинг_детализированный[[#This Row],[Распределение выручки для Куратора договора]]","v":30036},{"$f":"IF(Таблица_Металлопроцессинг_детализированный[[#This Row],[Распределение выручки для Менеджера договора]]=1,\"\",Таблица_Металлопроцессинг_детализированный[[#This Row],[Сумма наценки]]*Таблица_Металлопроцессинг_детализированный[[#This Row],[Распределение выручки для Менеджера договора]])","v":0},"Процессинг","САНКТ-ПЕТЕРБУРГ","АртЛэнд","ООО \"Строительная компания \"АртЛэнд\"",null,null,"Стройиндустрия","Шпунт Ларсена Л5-УМ, С255 (ТУ 14-102-8-2003)",null,20.024000000000001,"т",790948,"Очистка и покраска проката (грунт ЭМЛАК 263)","ROSLER",30036,20.024000000000001,61.65,1,"САНКТ-ПЕТЕРБУРГ","Центр",20.024000000000001]
[1,"САНКТ-ПЕТЕРБУРГ","Центр","Дауэнгауэр Н.Э.","Дауэнгауэр Н.Э.","Дауэнгауэр Н.Э.",{"$f":"IF(Таблица_Металлопроцессинг_детализированный[[#This Row],[Куратор договора]]=Таблица_Металлопроцессинг_детализированный[[#This Row],[Менеджер]],TRUE,FALSE)","v":true},{"$f":"SUMIFS(AA75:AA1703,O75:O1703,Таблица_Металлопроцессинг_детализированный[[#This Row],[Контрагент]],A75:A1703,Таблица_Металлопроцессинг_детализированный[[#This Row],[Месяц отгрузки]])","v":42853.2},{"$f":"IF(Таблица_Металлопроцессинг_детализированный[[#This Row],[Инициатор+исполнитель]],1,IF(Таблица_Металлопроцессинг_детализированный[[#This Row],[Оборот за месяц по контрагенту]]<1000000,0.5,0.7))","v":1},{"$f":"IF(Таблица_Металлопроцессинг_детализированный[[#This Row],[Инициатор+исполнитель]]=TRUE,0,IF(Таблица_Металлопроцессинг_детализированный[[#This Row],[Оборот за месяц по контрагенту]]<1000000,0.5,0.3))","v":0},{"$f":"Таблица_Металлопроцессинг_детализированный[[#This Row],[Сумма наценки]]*Таблица_Металлопроцессинг_детализированный[[#This Row],[Распределение выручки для Куратора договора]]","v":2838.1},{"$f":"IF(Таблица_Металлопроцессинг_детализированный[[#This Row],[Распределение выручки для Менеджера договора]]=1,\"\",Таблица_Металлопроцессинг_детализированный[[#This Row],[Сумма наценки]]*Таблица_Металлопроцессинг_детализированный[[#This Row],[Распределение выручки для Менеджера договора]])","v":0},"Процессинг","САНКТ-ПЕТЕРБУРГ","НОВАЯ ЭРА","ОАО \"Новая ЭРА\"","г. Санкт-Петербург ","г. Санкт-Петербург ","Машиностроение","Сталь листовая Х/к., 1.5, 1250x2500, Ст.кп/пс (ТУ 14-106-321-2010)",null,1.01,"т",27259.9,"Порезка листового проката (ножницы)",null,2838.1,1,1,null,"САНКТ-ПЕТЕРБУРГ","Центр",1.01]
[1,"САНКТ-ПЕТЕРБУРГ","Центр","Дауэнгауэр Н.Э.","Дауэнгауэр Н.Э.","Погорелов И.В.",{"$f":"IF(Таблица_Металлопроцессинг_детализированный[[#This Row],[Куратор договора]]=Таблица_Металлопроцессинг_детализированный[[#This Row],[Менеджер]],TRUE,FALSE)","v":false},{"$f":"SUMIFS(AA76:AA1704,O76:O1704,Таблица_Металлопроцессинг_детализированный[[#This Row],[Контрагент]],A76:A1704,Таблица_Металлопроцессинг_детализированный[[#This Row],[Месяц отгрузки]])","v":40015.1},{"$f":"IF(Таблица_Металлопроцессинг_детализированный[[#This Row],[Инициатор+исполнитель]],1,IF(Таблица_Металлопроцессинг_детализированный[[#This Row],[Оборот за месяц по контрагенту]]<1000000,0.5,0.7))","v":0.5},{"$f":"IF(Таблица_Металлопроцессинг_детализированный[[#This Row],[Инициатор+исполнитель]]=TRUE,0,IF(Таблица_Металлопроцессинг_детализированный[[#This Row],[Оборот за месяц по контрагенту]]<1000000,0.5,0.3))","v":0.5},{"$f":"Таблица_Металлопроцессинг_детализированный[[#This Row],[Сумма наценки]]*Таблица_Металлопроцессинг_детализированный[[#This Row],[Распределение выручки для Куратора договора]]","v":2824.05},{"$f":"IF(Таблица_Металлопроцессинг_детализированный[[#This Row],[Распределение выручки для Менеджера договора]]=1,\"\",Таблица_Металлопроцессинг_детализированный[[#This Row],[Сумма наценки]]*Таблица_Металлопроцессинг_детализированный[[#This Row],[Распределение выручки для Менеджера договора]])","v":2824.05},"Процессинг","САНКТ-ПЕТЕРБУРГ","НОВАЯ ЭРА","ОАО \"Новая ЭРА\"","г. Санкт-Петербург ","г. Санкт-Петербург ","Машиностроение","Сталь листовая Х/к., 1.5, 1250x2500, Ст.кп/пс (ТУ 14-106-321-2010)",null,2.0099999999999998,"т",54249.9,"Порезка листового проката (ножницы)",null,5648.1,1,2,null,"САНКТ-ПЕТЕРБУРГ","Центр",2.0099999999999998]
[1,"САНКТ-ПЕТЕРБУРГ","Центр","Дауэнгауэр Н.Э.","Дауэнгауэр Н.Э.","Хабибуллов М.Р.",{"$f":"IF(Таблица_Металлопроцессинг_детализированный[[#This Row],[Куратор договора]]=Таблица_Металлопроцессинг_детализированный[[#This Row],[Менеджер]],TRUE,FALSE)","v":false},{"$f":"SUMIFS(AA77:AA1705,O77:O1705,Таблица_Металлопроцессинг_детализированный[[#This Row],[Контрагент]],A77:A1705,Таблица_Металлопроцессинг_детализированный[[#This Row],[Месяц отгрузки]])","v":34367},{"$f":"IF(Таблица_Металлопроцессинг_детализированный[[#This Row],[Инициатор+исполнитель]],1,IF(Таблица_Металлопроцессинг_детализированный[[#This Row],[Оборот за месяц по контрагенту]]<1000000,0.5,0.7))","v":0.5},{"$f":"IF(Таблица_Металлопроцессинг_детализированный[[#This Row],[Инициатор+исполнитель]]=TRUE,0,IF(Таблица_Металлопроцессинг_детализированный[[#This Row],[Оборот за месяц по контрагенту]]<1000000,0.5,0.3))","v":0.5},{"$f":"Таблица_Металлопроцессинг_детализированный[[#This Row],[Сумма наценки]]*Таблица_Металлопроцессинг_детализированный[[#This Row],[Распределение выручки для Куратора договора]]","v":4365},{"$f":"IF(Таблица_Металлопроцессинг_детализированный[[#This Row],[Распределение выручки для Менеджера договора]]=1,\"\",Таблица_Металлопроцессинг_детализированный[[#This Row],[Сумма наценки]]*Таблица_Металлопроцессинг_детализированный[[#This Row],[Распределение выручки для Менеджера договора]])","v":4365},"Процессинг","САНКТ-ПЕТЕРБУРГ","НОВАЯ ЭРА","ОАО \"Новая ЭРА\"","г. Санкт-Петербург ","г. Санкт-Петербург ","Машиностроение","Сталь листовая Х/к., 2, 1250x2500, Ст.кп/пс (ТУ 14-106-321-2010)",null,2.91,"т",77900.7,"Порезка листового проката (ножницы)",null,8730,1,3,null,"САНКТ-ПЕТЕРБУРГ","Центр",2.91]
[1,"САНКТ-ПЕТЕРБУРГ","Центр","Ипатов Д.В.","Ипатов Д.В.","Дауэнгауэр Н.Э.",{"$f":"IF(Таблица_Металлопроцессинг_детализированный[[#This Row],[Куратор договора]]=Таблица_Металлопроцессинг_детализированный[[#This Row],[Менеджер]],TRUE,FALSE)","v":false},{"$f":"SUMIFS(AA78:AA1706,O78:O1706,Таблица_Металлопроцессинг_детализированный[[#This Row],[Контрагент]],A78:A1706,Таблица_Металлопроцессинг_детализированный[[#This Row],[Месяц отгрузки]])","v":114000},{"$f":"IF(Таблица_Металлопроцессинг_детализированный[[#This Row],[Инициатор+исполнитель]],1,IF(Таблица_Металлопроцессинг_детализированный[[#This Row],[Оборот за месяц по контрагенту]]<1000000,0.5,0.7))","v":0.5},{"$f":"IF(Таблица_Металлопроцессинг_детализированный[[#This Row],[Инициатор+исполнитель]]=TRUE,0,IF(Таблица_Металлопроцессинг_детализированный[[#This Row],[Оборот за месяц по контрагенту]]<1000000,0.5,0.3))","v":0.5},{"$f":"Таблица_Металлопроцессинг_детализированный[[#This Row],[Сумма наценки]]*Таблица_Металлопроцессинг_детализированный[[#This Row],[Распределение выручки для Куратора договора]]","v":28500},{"$f":"IF(Таблица_Металлопроцессинг_детализированный[[#This Row],[Распределение выручки для Менеджера договора]]=1,\"\",Таблица_Металлопроцессинг_детализированный[[#This Row],[Сумма наценки]]*Таблица_Металлопроцессинг_детализированный[[#This Row],[Распределение выручки для Менеджера договора]])","v":28500},"Из давальческого сырья","САНКТ-ПЕТЕРБУРГ","СК БалтМонтажСтрой","ООО \"СК БалтМонтажСтрой\"","Ленинградская обл.","Ленинградская обл.","Стройиндустрия","Труба стальная профильная, 160x160x4, Ст.сп/пс (ГОСТ 30245-03)",null,20,"т",0,"Очистка и покраска проката (грунт ЭМЛАК 263)","ROSLER",57000,475,475,1,"САНКТ-ПЕТЕРБУРГ","Центр",20]
[1,"САНКТ-ПЕТЕРБУРГ","Центр","Дауэнгауэр Н.Э.","Дауэнгауэр Н.Э.","Дауэнгауэр Н.Э.",{"$f":"IF(Таблица_Металлопроцессинг_детализированный[[#This Row],[Куратор договора]]=Таблица_Металлопроцессинг_детализированный[[#This Row],[Менеджер]],TRUE,FALSE)","v":true},{"$f":"SUMIFS(AA79:AA1707,O79:O1707,Таблица_Металлопроцессинг_детализированный[[#This Row],[Контрагент]],A79:A1707,Таблица_Металлопроцессинг_детализированный[[#This Row],[Месяц отгрузки]])","v":800},{"$f":"IF(Таблица_Металлопроцессинг_детализированный[[#This Row],[Инициатор+исполнитель]],1,IF(Таблица_Металлопроцессинг_детализированный[[#This Row],[Оборот за месяц по контрагенту]]<1000000,0.5,0.7))","v":1},{"$f":"IF(Таблица_Металлопроцессинг_детализированный[[#This Row],[Инициатор+исполнитель]]=TRUE,0,IF(Таблица_Металлопроцессинг_детализированный[[#This Row],[Оборот за месяц по контрагенту]]<1000000,0.5,0.3))","v":0},{"$f":"Таблица_Металлопроцессинг_детализированный[[#This Row],[Сумма наценки]]*Таблица_Металлопроцессинг_детализированный[[#This Row],[Распределение выручки для Куратора договора]]","v":800},{"$f":"IF(Таблица_Металлопроцессинг_детализированный[[#This Row],[Распределение выручки для Менеджера договора]]=1,\"\",Таблица_Металлопроцессинг_детализированный[[#This Row],[Сумма наценки]]*Таблица_Металлопроцессинг_детализированный[[#This Row],[Распределение выручки для Менеджера договора]])","v":0},"Процессинг","САНКТ-ПЕТЕРБУРГ","ПРОВЕНТУС (Н.Э.)","ООО \"ПРОВЕНТУС\"",null,null,"Машиностроение","Сталь листовая Г/к., 4, 1500x6000, Ст.сп/пс (ГОСТ 14637)",null,0.11,"т",2492.6,"Порезка листового проката (ножницы)",null,800,4,0.16300000000000001,null,"САНКТ-ПЕТЕРБУРГ","Центр",0.11]
[1,"САНКТ-ПЕТЕРБУРГ","Центр","Молчанова Е.М.","Матросова Л.Ш.","Дауэнгауэр Н.Э.",{"$f":"IF(Таблица_Металлопроцессинг_детализированный[[#This Row],[Куратор договора]]=Таблица_Металлопроцессинг_детализированный[[#This Row],[Менеджер]],TRUE,FALSE)","v":false},{"$f":"SUMIFS(AA80:AA1708,O80:O1708,Таблица_Металлопроцессинг_детализированный[[#This Row],[Контрагент]],A80:A1708,Таблица_Металлопроцессинг_детализированный[[#This Row],[Месяц отгрузки]])","v":2740},{"$f":"IF(Таблица_Металлопроцессинг_детализированный[[#This Row],[Инициатор+исполнитель]],1,IF(Таблица_Металлопроцессинг_детализированный[[#This Row],[Оборот за месяц по контрагенту]]<1000000,0.5,0.7))","v":0.5},{"$f":"IF(Таблица_Металлопроцессинг_детализированный[[#This Row],[Инициатор+исполнитель]]=TRUE,0,IF(Таблица_Металлопроцессинг_детализированный[[#This Row],[Оборот за месяц по контрагенту]]<1000000,0.5,0.3))","v":0.5},{"$f":"Таблица_Металлопроцессинг_детализированный[[#This Row],[Сумма наценки]]*Таблица_Металлопроцессинг_детализированный[[#This Row],[Распределение выручки для Куратора договора]]","v":1370},{"$f":"IF(Таблица_Металлопроцессинг_детализированный[[#This Row],[Распределение выручки для Менеджера договора]]=1,\"\",Таблица_Металлопроцессинг_детализированный[[#This Row],[Сумма наценки]]*Таблица_Металлопроцессинг_детализированный[[#This Row],[Распределение выручки для Менеджера договора]])","v":1370},"Процессинг","САНКТ-ПЕТЕРБУРГ","Меркурий СПб","ООО \"Меркурий\"",null,null,"Металлоторговля","Арматура B500C, 10, Ст.сп/пс , в бунтах(ГОСТ 52544-2006)",null,2.74,"т",70308.399999999994,"Размотка/резка арматурного проката","MELC 16x4",2740,1,3,1,"САНКТ-ПЕТЕРБУРГ","Центр",2.74]
[1,"САНКТ-ПЕТЕРБУРГ","Центр","Хабибуллов М.Р.","Хабибуллов М.Р.","Хабибуллов М.Р.",{"$f":"IF(Таблица_Металлопроцессинг_детализированный[[#This Row],[Куратор договора]]=Таблица_Металлопроцессинг_детализированный[[#This Row],[Менеджер]],TRUE,FALSE)","v":true},{"$f":"SUMIFS(AA81:AA1713,O81:O1713,Таблица_Металлопроцессинг_детализированный[[#This Row],[Контрагент]],A81:A1713,Таблица_Металлопроцессинг_детализированный[[#This Row],[Месяц отгрузки]])","v":314850},{"$f":"IF(Таблица_Металлопроцессинг_детализированный[[#This Row],[Инициатор+исполнитель]],1,IF(Таблица_Металлопроцессинг_детализированный[[#This Row],[Оборот за месяц по контрагенту]]<1000000,0.5,0.7))","v":1},{"$f":"IF(Таблица_Металлопроцессинг_детализированный[[#This Row],[Инициатор+исполнитель]]=TRUE,0,IF(Таблица_Металлопроцессинг_детализированный[[#This Row],[Оборот за месяц по контрагенту]]<1000000,0.5,0.3))","v":0},{"$f":"Таблица_Металлопроцессинг_детализированный[[#This Row],[Сумма наценки]]*Таблица_Металлопроцессинг_детализированный[[#This Row],[Распределение выручки для Куратора договора]]","v":30031.5},{"$f":"IF(Таблица_Металлопроцессинг_детализированный[[#This Row],[Распределение выручки для Менеджера договора]]=1,\"\",Таблица_Металлопроцессинг_детализированный[[#This Row],[Сумма наценки]]*Таблица_Металлопроцессинг_детализированный[[#This Row],[Распределение выручки для Менеджера договора]])","v":0},"Процессинг","САНКТ-ПЕТЕРБУРГ","АртЛэнд","ООО \"Строительная компания \"АртЛэнд\"",null,null,"Стройиндустрия","Шпунт Ларсена Л5-УМ, С255 (ТУ 14-102-8-2003)",null,20.021000000000001,"т",790829.5,"Очистка и покраска проката (грунт ЭМЛАК 263)","ROSLER",30031.5,20.021000000000001,20.021000000000001,1,"САНКТ-ПЕТЕРБУРГ","Центр",20.021000000000001]
[1,"САНКТ-ПЕТЕРБУРГ","Центр","Погорелов И.В.","Погорелов И.В.","Погорелов И.В.",{"$f":"IF(Таблица_Металлопроцессинг_детализированный[[#This Row],[Куратор договора]]=Таблица_Металлопроцессинг_детализированный[[#This Row],[Менеджер]],TRUE,FALSE)","v":true},{"$f":"SUMIFS(AA82:AA1715,O82:O1715,Таблица_Металлопроцессинг_детализированный[[#This Row],[Контрагент]],A82:A1715,Таблица_Металлопроцессинг_детализированный[[#This Row],[Месяц отгрузки]])","v":10488},{"$f":"IF(Таблица_Металлопроцессинг_детализированный[[#This Row],[Инициатор+исполнитель]],1,IF(Таблица_Металлопроцессинг_детализированный[[#This Row],[Оборот за месяц по контрагенту]]<1000000,0.5,0.7))","v":1},{"$f":"IF(Таблица_Металлопроцессинг_детализированный[[#This Row],[Инициатор+исполнитель]]=TRUE,0,IF(Таблица_Металлопроцессинг_детализированный[[#This Row],[Оборот за месяц по контрагенту]]<1000000,0.5,0.3))","v":0},{"$f":"Таблица_Металлопроцессинг_детализированный[[#This Row],[Сумма наценки]]*Таблица_Металлопроцессинг_детализированный[[#This Row],[Распределение выручки для Куратора договора]]","v":10488},{"$f":"IF(Таблица_Металлопроцессинг_детализированный[[#This Row],[Распределение выручки для Менеджера договора]]=1,\"\",Таблица_Металлопроцессинг_детализированный[[#This Row],[Сумма наценки]]*Таблица_Металлопроцессинг_детализированный[[#This Row],[Распределение выручки для Менеджера договора]])","v":0},"Процессинг","САНКТ-ПЕТЕРБУРГ","СОТЭКС","ООО \"СОТЭКС\"",null,null,"Стройиндустрия","Арматура класс АI, 6, Ст.сп/пс, в бунтах (ГОСТ5781-82)",null,5.52,"т",138000,"Размотка/резка арматурного проката","MELC 16x4",10488,1,68,1,"САНКТ-ПЕТЕРБУРГ","Центр",5.52]
[1,"САНКТ-ПЕТЕРБУРГ","Центр","Сафонеев С.А.","Сафонеев С.А.","Сафонеев С.А.",{"$f":"IF(Таблица_Металлопроцессинг_детализированный[[#This Row],[Куратор договора]]=Таблица_Металлопроцессинг_детализированный[[#This Row],[Менеджер]],TRUE,FALSE)","v":true},{"$f":"SUMIFS(AA83:AA1716,O83:O1716,Таблица_Металлопроцессинг_детализированный[[#This Row],[Контрагент]],A83:A1716,Таблица_Металлопроцессинг_детализированный[[#This Row],[Месяц отгрузки]])","v":326504.55000000005},{"$f":"IF(Таблица_Металлопроцессинг_детализированный[[#This Row],[Инициатор+исполнитель]],1,IF(Таблица_Металлопроцессинг_детализированный[[#This Row],[Оборот за месяц по контрагенту]]<1000000,0.5,0.7))","v":1},{"$f":"IF(Таблица_Металлопроцессинг_детализированный[[#This Row],[Инициатор+исполнитель]]=TRUE,0,IF(Таблица_Металлопроцессинг_детализированный[[#This Row],[Оборот за месяц по контрагенту]]<1000000,0.5,0.3))","v":0},{"$f":"Таблица_Металлопроцессинг_детализированный[[#This Row],[Сумма наценки]]*Таблица_Металлопроцессинг_детализированный[[#This Row],[Распределение выручки для Куратора договора]]","v":25920.080000000002},{"$f":"IF(Таблица_Металлопроцессинг_детализированный[[#This Row],[Распределение выручки для Менеджера договора]]=1,\"\",Таблица_Металлопроцессинг_детализированный[[#This Row],[Сумма наценки]]*Таблица_Металлопроцессинг_детализированный[[#This Row],[Распределение выручки для Менеджера договора]])","v":0},"Из давальческого сырья","САНКТ-ПЕТЕРБУРГ","НЕВА-МЕТАЛЛТРЭЙД ООО","ООО \"Нева-МеталлТрэйд\"","г. Санкт-Петербург ","г. Санкт-Петербург ","Машиностроение","Изделие","Судосталь, РСД32, 14х2000х8000",15.821999999999999,"т",0,"Очистка и покраска проката (грунт HEMPEL)","ROSLER",25920.080000000002,15.821999999999999,15.821999999999999,1,"САНКТ-ПЕТЕРБУРГ","Центр",15.821999999999999]
[1,"САНКТ-ПЕТЕРБУРГ","Центр","Сафонеев С.А.","Сафонеев С.А.","Сафонеев С.А.",{"$f":"IF(Таблица_Металлопроцессинг_детализированный[[#This Row],[Куратор договора]]=Таблица_Металлопроцессинг_детализированный[[#This Row],[Менеджер]],TRUE,FALSE)","v":true},{"$f":"SUMIFS(AA84:AA1717,O84:O1717,Таблица_Металлопроцессинг_детализированный[[#This Row],[Контрагент]],A84:A1717,Таблица_Металлопроцессинг_детализированный[[#This Row],[Месяц отгрузки]])","v":300584.47000000003},{"$f":"IF(Таблица_Металлопроцессинг_детализированный[[#This Row],[Инициатор+исполнитель]],1,IF(Таблица_Металлопроцессинг_детализированный[[#This Row],[Оборот за месяц по контрагенту]]<1000000,0.5,0.7))","v":1},{"$f":"IF(Таблица_Металлопроцессинг_детализированный[[#This Row],[Инициатор+исполнитель]]=TRUE,0,IF(Таблица_Металлопроцессинг_детализированный[[#This Row],[Оборот за месяц по контрагенту]]<1000000,0.5,0.3))","v":0},{"$f":"Таблица_Металлопроцессинг_детализированный[[#This Row],[Сумма наценки]]*Таблица_Металлопроцессинг_детализированный[[#This Row],[Распределение выручки для Куратора договора]]","v":5760.02},{"$f":"IF(Таблица_Металлопроцессинг_детализированный[[#This Row],[Распределение выручки для Менеджера договора]]=1,\"\",Таблица_Металлопроцессинг_детализированный[[#This Row],[Сумма наценки]]*Таблица_Металлопроцессинг_детализированный[[#This Row],[Распределение выручки для Менеджера договора]])","v":0},"Из давальческого сырья","САНКТ-ПЕТЕРБУРГ","НЕВА-МЕТАЛЛТРЭЙД ООО","ООО \"Нева-МеталлТрэйд\"","г. Санкт-Петербург ","г. Санкт-Петербург ","Машиностроение","Изделие","Судосталь, РСД32, 20*2000*8000",5.024,"т",0,"Очистка и покраска проката (грунт HEMPEL)","ROSLER",5760.02,5.024,5.024,1,"САНКТ-ПЕТЕРБУРГ","Центр",5.024]
[1,"САНКТ-ПЕТЕРБУРГ","Центр","Матросова Л.Ш.","Матросова Л.Ш.","Матросова Л.Ш.",{"$f":"IF(Таблица_Металлопроцессинг_детализированный[[#This Row],[Куратор договора]]=Таблица_Металлопроцессинг_детализированный[[#This Row],[Менеджер]],TRUE,FALSE)","v":true},{"$f":"SUMIFS(AA85:AA1720,O85:O1720,Таблица_Металлопроцессинг_детализированный[[#This Row],[Контрагент]],A85:A1720,Таблица_Металлопроцессинг_детализированный[[#This Row],[Месяц отгрузки]])","v":1070},{"$f":"IF(Таблица_Металлопроцессинг_детализированный[[#This Row],[Инициатор+исполнитель]],1,IF(Таблица_Металлопроцессинг_детализированный[[#This Row],[Оборот за месяц по контрагенту]]<1000000,0.5,0.7))","v":1},{"$f":"IF(Таблица_Металлопроцессинг_детализированный[[#This Row],[Инициатор+исполнитель]]=TRUE,0,IF(Таблица_Металлопроцессинг_детализированный[[#This Row],[Оборот за месяц по контрагенту]]<1000000,0.5,0.3))","v":0},{"$f":"Таблица_Металлопроцессинг_детализированный[[#This Row],[Сумма наценки]]*Таблица_Металлопроцессинг_детализированный[[#This Row],[Распределение выручки для Куратора договора]]","v":1070},{"$f":"IF(Таблица_Металлопроцессинг_детализированный[[#This Row],[Распределение выручки для Менеджера договора]]=1,\"\",Таблица_Металлопроцессинг_детализированный[[#This Row],[Сумма наценки]]*Таблица_Металлопроцессинг_детализированный[[#This Row],[Распределение выручки для Менеджера договора]])","v":0},"Процессинг","САНКТ-ПЕТЕРБУРГ","ЕВРАЗ Металл Инпром_РОЗНИЦА","ЕВРАЗ Металл Инпром_РОЗНИЦА","Ростовская обл.","Ростовская обл.","Розница","Сталь листовая Г/к., 20, 1500x6000, Ст.сп/пс (ГОСТ 14637)",null,0.05,"т",1205,"Порезка листового проката плазменная PLAZMA","LINEACORD PCL40",1070,4.28,0.05,1,"САНКТ-ПЕТЕРБУРГ","Центр",0.05]
[1,"САНКТ-ПЕТЕРБУРГ","Центр","Сафонеев С.А.","Сафонеев С.А.","Сафонеев С.А.",{"$f":"IF(Таблица_Металлопроцессинг_детализированный[[#This Row],[Куратор договора]]=Таблица_Металлопроцессинг_детализированный[[#This Row],[Менеджер]],TRUE,FALSE)","v":true},{"$f":"SUMIFS(AA86:AA1725,O86:O1725,Таблица_Металлопроцессинг_детализированный[[#This Row],[Контрагент]],A86:A1725,Таблица_Металлопроцессинг_детализированный[[#This Row],[Месяц отгрузки]])","v":294824.45},{"$f":"IF(Таблица_Металлопроцессинг_детализированный[[#This Row],[Инициатор+исполнитель]],1,IF(Таблица_Металлопроцессинг_детализированный[[#This Row],[Оборот за месяц по контрагенту]]<1000000,0.5,0.7))","v":1},{"$f":"IF(Таблица_Металлопроцессинг_детализированный[[#This Row],[Инициатор+исполнитель]]=TRUE,0,IF(Таблица_Металлопроцессинг_детализированный[[#This Row],[Оборот за месяц по контрагенту]]<1000000,0.5,0.3))","v":0},{"$f":"Таблица_Металлопроцессинг_детализированный[[#This Row],[Сумма наценки]]*Таблица_Металлопроцессинг_детализированный[[#This Row],[Распределение выручки для Куратора договора]]","v":6235.2},{"$f":"IF(Таблица_Металлопроцессинг_детализированный[[#This Row],[Распределение выручки для Менеджера договора]]=1,\"\",Таблица_Металлопроцессинг_детализированный[[#This Row],[Сумма наценки]]*Таблица_Металлопроцессинг_детализированный[[#This Row],[Распределение выручки для Менеджера договора]])","v":0},"Из давальческого сырья","САНКТ-ПЕТЕРБУРГ","НЕВА-МЕТАЛЛТРЭЙД ООО","ООО \"Нева-МеталлТрэйд\"","г. Санкт-Петербург ","г. Санкт-Петербург ","Машиностроение","Изделие","Полособульб, РСВ, №12, 6000",1.732,"т",0,"Очистка и покраска проката (грунт HEMPEL)","ROSLER",6235.2,1.732,1.732,1,"САНКТ-ПЕТЕРБУРГ","Центр",1.732]
[1,"САНКТ-ПЕТЕРБУРГ","Центр","Сафонеев С.А.","Сафонеев С.А.","Сафонеев С.А.",{"$f":"IF(Таблица_Металлопроцессинг_детализированный[[#This Row],[Куратор договора]]=Таблица_Металлопроцессинг_детализированный[[#This Row],[Менеджер]],TRUE,FALSE)","v":true},{"$f":"SUMIFS(AA87:AA1726,O87:O1726,Таблица_Металлопроцессинг_детализированный[[#This Row],[Контрагент]],A87:A1726,Таблица_Металлопроцессинг_детализированный[[#This Row],[Месяц отгрузки]])","v":288589.25000000006},{"$f":"IF(Таблица_Металлопроцессинг_детализированный[[#This Row],[Инициатор+исполнитель]],1,IF(Таблица_Металлопроцессинг_детализированный[[#This Row],[Оборот за месяц по контрагенту]]<1000000,0.5,0.7))","v":1},{"$f":"IF(Таблица_Металлопроцессинг_детализированный[[#This Row],[Инициатор+исполнитель]]=TRUE,0,IF(Таблица_Металлопроцессинг_детализированный[[#This Row],[Оборот за месяц по контрагенту]]<1000000,0.5,0.3))","v":0},{"$f":"Таблица_Металлопроцессинг_детализированный[[#This Row],[Сумма наценки]]*Таблица_Металлопроцессинг_детализированный[[#This Row],[Распределение выручки для Куратора договора]]","v":50232.35},{"$f":"IF(Таблица_Металлопроцессинг_детализированный[[#This Row],[Распределение выручки для Менеджера договора]]=1,\"\",Таблица_Металлопроцессинг_детализированный[[#This Row],[Сумма наценки]]*Таблица_Металлопроцессинг_детализированный[[#This Row],[Распределение выручки для Менеджера договора]])","v":0},"Из давальческого сырья","САНКТ-ПЕТЕРБУРГ","НЕВА-МЕТАЛЛТРЭЙД ООО","ООО \"Нева-МеталлТрэйд\"","г. Санкт-Петербург ","г. Санкт-Петербург ","Машиностроение","Изделие","Полособульб, РСВ, №14а, 6000",15.647,"т",0,"Очистка и покраска проката (грунт HEMPEL)","ROSLER",50232.35,15.647,15.647,1,"САНКТ-ПЕТЕРБУРГ","Центр",15.647]
[1,"САНКТ-ПЕТЕРБУРГ","Центр","Сафонеев С.А.","Сафонеев С.А.","Сафонеев С.А.",{"$f":"IF(Таблица_Металлопроцессинг_детализированный[[#This Row],[Куратор договора]]=Таблица_Металлопроцессинг_детализированный[[#This Row],[Менеджер]],TRUE,FALSE)","v":true},{"$f":"SUMIFS(AA88:AA1727,O88:O1727,Таблица_Металлопроцессинг_детализированный[[#This Row],[Контрагент]],A88:A1727,Таблица_Металлопроцессинг_детализированный[[#This Row],[Месяц отгрузки]])","v":238356.89999999997},{"$f":"IF(Таблица_Металлопроцессинг_детализированный[[#This Row],[Инициатор+исполнитель]],1,IF(Таблица_Металлопроцессинг_детализированный[[#This Row],[Оборот за месяц по контрагенту]]<1000000,0.5,0.7))","v":1},{"$f":"IF(Таблица_Металлопроцессинг_детализированный[[#This Row],[Инициатор+исполнитель]]=TRUE,0,IF(Таблица_Металлопроцессинг_детализированный[[#This Row],[Оборот за месяц по контрагенту]]<1000000,0.5,0.3))","v":0},{"$f":"Таблица_Металлопроцессинг_детализированный[[#This Row],[Сумма наценки]]*Таблица_Металлопроцессинг_детализированный[[#This Row],[Распределение выручки для Куратора договора]]","v":10988.46},{"$f":"IF(Таблица_Металлопроцессинг_детализированный[[#This Row],[Распределение выручки для Менеджера договора]]=1,\"\",Таблица_Металлопроцессинг_детализированный[[#This Row],[Сумма наценки]]*Таблица_Металлопроцессинг_детализированный[[#This Row],[Распределение выручки для Менеджера договора]])","v":0},"Из давальческого сырья","САНКТ-ПЕТЕРБУРГ","НЕВА-МЕТАЛЛТРЭЙД ООО","ООО \"Нева-МеталлТрэйд\"","г. Санкт-Петербург ","г. Санкт-Петербург ","Машиностроение","Изделие","Полособульб, РСД32 №18б, 6000",4.1310000000000002,"т",0,"Очистка и покраска проката (грунт HEMPEL)","ROSLER",10988.46,4.1310000000000002,4.1310000000000002,1,"САНКТ-ПЕТЕРБУРГ","Центр",4.1310000000000002]
[1,"САНКТ-ПЕТЕРБУРГ","Центр","Дауэнгауэр Н.Э.","Дауэнгауэр Н.Э.","Сафонеев С.А.",{"$f":"IF(Таблица_Металлопроцессинг_детализированный[[#This Row],[Куратор договора]]=Таблица_Металлопроцессинг_детализированный[[#This Row],[Менеджер]],TRUE,FALSE)","v":false},{"$f":"SUMIFS(AA89:AA1739,O89:O1739,Таблица_Металлопроцессинг_детализированный[[#This Row],[Контрагент]],A89:A1739,Таблица_Металлопроцессинг_детализированный[[#This Row],[Месяц отгрузки]])","v":25637},{"$f":"IF(Таблица_Металлопроцессинг_детализированный[[#This Row],[Инициатор+исполнитель]],1,IF(Таблица_Металлопроцессинг_детализированный[[#This Row],[Оборот за месяц по контрагенту]]<1000000,0.5,0.7))","v":0.5},{"$f":"IF(Таблица_Металлопроцессинг_детализированный[[#This Row],[Инициатор+исполнитель]]=TRUE,0,IF(Таблица_Металлопроцессинг_детализированный[[#This Row],[Оборот за месяц по контрагенту]]<1000000,0.5,0.3))","v":0.5},{"$f":"Таблица_Металлопроцессинг_детализированный[[#This Row],[Сумма наценки]]*Таблица_Металлопроцессинг_детализированный[[#This Row],[Распределение выручки для Куратора договора]]","v":3076.5},{"$f":"IF(Таблица_Металлопроцессинг_детализированный[[#This Row],[Распределение выручки для Менеджера договора]]=1,\"\",Таблица_Металлопроцессинг_детализированный[[#This Row],[Сумма наценки]]*Таблица_Металлопроцессинг_детализированный[[#This Row],[Распределение выручки для Менеджера договора]])","v":3076.5},"Процессинг","САНКТ-ПЕТЕРБУРГ","НОВАЯ ЭРА","ОАО \"Новая ЭРА\"","г. Санкт-Петербург ","г. Санкт-Петербург ","Машиностроение","Сталь рулонная х/к, 3, 1250, Ст.сп/пс (ТУ 14-106-321-2010)",null,2.93,"т",85907.6,"Порезка листового проката поперечная","CAMU RDC 1500/6",6153,1,3,1,"САНКТ-ПЕТЕРБУРГ","Центр",2.93]
[1,"САНКТ-ПЕТЕРБУРГ","Центр","Степура С.Н.","Степура С.Н.","Матросова Л.Ш.",{"$f":"IF(Таблица_Металлопроцессинг_детализированный[[#This Row],[Куратор договора]]=Таблица_Металлопроцессинг_детализированный[[#This Row],[Менеджер]],TRUE,FALSE)","v":false},{"$f":"SUMIFS(AA90:AA1740,O90:O1740,Таблица_Металлопроцессинг_детализированный[[#This Row],[Контрагент]],A90:A1740,Таблица_Металлопроцессинг_детализированный[[#This Row],[Месяц отгрузки]])","v":1700},{"$f":"IF(Таблица_Металлопроцессинг_детализированный[[#This Row],[Инициатор+исполнитель]],1,IF(Таблица_Металлопроцессинг_детализированный[[#This Row],[Оборот за месяц по контрагенту]]<1000000,0.5,0.7))","v":0.5},{"$f":"IF(Таблица_Металлопроцессинг_детализированный[[#This Row],[Инициатор+исполнитель]]=TRUE,0,IF(Таблица_Металлопроцессинг_детализированный[[#This Row],[Оборот за месяц по контрагенту]]<1000000,0.5,0.3))","v":0.5},{"$f":"Таблица_Металлопроцессинг_детализированный[[#This Row],[Сумма наценки]]*Таблица_Металлопроцессинг_детализированный[[#This Row],[Распределение выручки для Куратора договора]]","v":450},{"$f":"IF(Таблица_Металлопроцессинг_детализированный[[#This Row],[Распределение выручки для Менеджера договора]]=1,\"\",Таблица_Металлопроцессинг_детализированный[[#This Row],[Сумма наценки]]*Таблица_Металлопроцессинг_детализированный[[#This Row],[Распределение выручки для Менеджера договора]])","v":450},"Процессинг","САНКТ-ПЕТЕРБУРГ","Металлосфера","ООО \"Металлосфера\"",null,null,"Металлоторговля","Сталь листовая Г/к., 10, 1500x6000, Ст.сп/пс (ГОСТ 14637)",null,0.38,"т",8523.4,"Порезка листового проката (ножницы)","COLGAR CI-34-TR",900,1,0.39,1,"САНКТ-ПЕТЕРБУРГ","Центр",0.38]
[1,"САНКТ-ПЕТЕРБУРГ","Центр","Степура С.Н.","Степура С.Н.","Сафонеев С.А.",{"$f":"IF(Таблица_Металлопроцессинг_детализированный[[#This Row],[Куратор договора]]=Таблица_Металлопроцессинг_детализированный[[#This Row],[Менеджер]],TRUE,FALSE)","v":false},{"$f":"SUMIFS(AA91:AA1741,O91:O1741,Таблица_Металлопроцессинг_детализированный[[#This Row],[Контрагент]],A91:A1741,Таблица_Металлопроцессинг_детализированный[[#This Row],[Месяц отгрузки]])","v":800},{"$f":"IF(Таблица_Металлопроцессинг_детализированный[[#This Row],[Инициатор+исполнитель]],1,IF(Таблица_Металлопроцессинг_детализированный[[#This Row],[Оборот за месяц по контрагенту]]<1000000,0.5,0.7))","v":0.5},{"$f":"IF(Таблица_Металлопроцессинг_детализированный[[#This Row],[Инициатор+исполнитель]]=TRUE,0,IF(Таблица_Металлопроцессинг_детализированный[[#This Row],[Оборот за месяц по контрагенту]]<1000000,0.5,0.3))","v":0.5},{"$f":"Таблица_Металлопроцессинг_детализированный[[#This Row],[Сумма наценки]]*Таблица_Металлопроцессинг_детализированный[[#This Row],[Распределение выручки для Куратора договора]]","v":400},{"$f":"IF(Таблица_Металлопроцессинг_детализированный[[#This Row],[Распределение выручки для Менеджера договора]]=1,\"\",Таблица_Металлопроцессинг_детализированный[[#This Row],[Сумма наценки]]*Таблица_Металлопроцессинг_детализированный[[#This Row],[Распределение выручки для Менеджера договора]])","v":400},"Процессинг","САНКТ-ПЕТЕРБУРГ","Металлосфера","ООО \"Металлосфера\"",null,null,"Металлоторговля","Сталь листовая Г/к., 8, 1500x6000, Ст.сп/пс (ГОСТ 14637)",null,0.2,"т",4486,"Порезка листового проката (ножницы)","COLGAR CI-34-TR",800,1,0.21,1,"САНКТ-ПЕТЕРБУРГ","Центр",0.2]
[1,"САНКТ-ПЕТЕРБУРГ","Центр","Хабибуллов М.Р.","Хабибуллов М.Р.","Сафонеев С.А.",{"$f":"IF(Таблица_Металлопроцессинг_детализированный[[#This Row],[Куратор договора]]=Таблица_Металлопроцессинг_детализированный[[#This Row],[Менеджер]],TRUE,FALSE)","v":false},{"$f":"SUMIFS(AA92:AA1743,O92:O1743,Таблица_Металлопроцессинг_детализированный[[#This Row],[Контрагент]],A92:A1743,Таблица_Металлопроцессинг_детализированный[[#This Row],[Месяц отгрузки]])","v":284818.5},{"$f":"IF(Таблица_Металлопроцессинг_детализированный[[#This Row],[Инициатор+исполнитель]],1,IF(Таблица_Металлопроцессинг_детализированный[[#This Row],[Оборот за месяц по контрагенту]]<1000000,0.5,0.7))","v":0.5},{"$f":"IF(Таблица_Металлопроцессинг_детализированный[[#This Row],[Инициатор+исполнитель]]=TRUE,0,IF(Таблица_Металлопроцессинг_детализированный[[#This Row],[Оборот за месяц по контрагенту]]<1000000,0.5,0.3))","v":0.5},{"$f":"Таблица_Металлопроцессинг_детализированный[[#This Row],[Сумма наценки]]*Таблица_Металлопроцессинг_детализированный[[#This Row],[Распределение выручки для Куратора договора]]","v":15002.25},{"$f":"IF(Таблица_Металлопроцессинг_детализированный[[#This Row],[Распределение выручки для Менеджера договора]]=1,\"\",Таблица_Металлопроцессинг_детализированный[[#This Row],[Сумма наценки]]*Таблица_Металлопроцессинг_детализированный[[#This Row],[Распределение выручки для Менеджера договора]])","v":15002.25},"Процессинг","САНКТ-ПЕТЕРБУРГ","АртЛэнд","ООО \"Строительная компания \"АртЛэнд\"",null,null,"Стройиндустрия","Шпунт Ларсена Л5-УМ, С255 (ТУ 14-102-8-2003)",null,20.003,"т",790118.5,"Очистка и покраска проката (грунт ЭМЛАК 263)","ROSLER",30004.5,20.003,20.003,1,"САНКТ-ПЕТЕРБУРГ","Центр",20.003]
[1,"САНКТ-ПЕТЕРБУРГ","Центр","Матросова Л.Ш.","Сафонеев С.А.","Матросова Л.Ш.",{"$f":"IF(Таблица_Металлопроцессинг_детализированный[[#This Row],[Куратор договора]]=Таблица_Металлопроцессинг_детализированный[[#This Row],[Менеджер]],TRUE,FALSE)","v":true},{"$f":"SUMIFS(AA93:AA1745,O93:O1745,Таблица_Металлопроцессинг_детализированный[[#This Row],[Контрагент]],A93:A1745,Таблица_Металлопроцессинг_детализированный[[#This Row],[Месяц отгрузки]])","v":1300},{"$f":"IF(Таблица_Металлопроцессинг_детализированный[[#This Row],[Инициатор+исполнитель]],1,IF(Таблица_Металлопроцессинг_детализированный[[#This Row],[Оборот за месяц по контрагенту]]<1000000,0.5,0.7))","v":1},{"$f":"IF(Таблица_Металлопроцессинг_детализированный[[#This Row],[Инициатор+исполнитель]]=TRUE,0,IF(Таблица_Металлопроцессинг_детализированный[[#This Row],[Оборот за месяц по контрагенту]]<1000000,0.5,0.3))","v":0},{"$f":"Таблица_Металлопроцессинг_детализированный[[#This Row],[Сумма наценки]]*Таблица_Металлопроцессинг_детализированный[[#This Row],[Распределение выручки для Куратора договора]]","v":1300},{"$f":"IF(Таблица_Металлопроцессинг_детализированный[[#This Row],[Распределение выручки для Менеджера договора]]=1,\"\",Таблица_Металлопроцессинг_детализированный[[#This Row],[Сумма наценки]]*Таблица_Металлопроцессинг_детализированный[[#This Row],[Распределение выручки для Менеджера договора]])","v":0},"Процессинг","САНКТ-ПЕТЕРБУРГ","НИКОС","ООО \"НИКОС\"",null,null,"Металлоконструкции","Швеллер стальной Г/к., 10П, Ст.сп/пс, н/дл (ГОСТ 8240-97)",null,0.54,"т",13251.6,"Станок ленточнопильный","PEGASUS",1300,13,0.54,1,"САНКТ-ПЕТЕРБУРГ","Центр",0.54]
[1,"САНКТ-ПЕТЕРБУРГ","Центр","Ипатова Е.Н.","Ипатова Е.Н.","Ипатова Е.Н.",{"$f":"IF(Таблица_Металлопроцессинг_детализированный[[#This Row],[Куратор договора]]=Таблица_Металлопроцессинг_детализированный[[#This Row],[Менеджер]],TRUE,FALSE)","v":true},{"$f":"SUMIFS(AA94:AA1751,O94:O1751,Таблица_Металлопроцессинг_детализированный[[#This Row],[Контрагент]],A94:A1751,Таблица_Металлопроцессинг_детализированный[[#This Row],[Месяц отгрузки]])","v":9000},{"$f":"IF(Таблица_Металлопроцессинг_детализированный[[#This Row],[Инициатор+исполнитель]],1,IF(Таблица_Металлопроцессинг_детализированный[[#This Row],[Оборот за месяц по контрагенту]]<1000000,0.5,0.7))","v":1},{"$f":"IF(Таблица_Металлопроцессинг_детализированный[[#This Row],[Инициатор+исполнитель]]=TRUE,0,IF(Таблица_Металлопроцессинг_детализированный[[#This Row],[Оборот за месяц по контрагенту]]<1000000,0.5,0.3))","v":0},{"$f":"Таблица_Металлопроцессинг_детализированный[[#This Row],[Сумма наценки]]*Таблица_Металлопроцессинг_детализированный[[#This Row],[Распределение выручки для Куратора договора]]","v":9000},{"$f":"IF(Таблица_Металлопроцессинг_детализированный[[#This Row],[Распределение выручки для Менеджера договора]]=1,\"\",Таблица_Металлопроцессинг_детализированный[[#This Row],[Сумма наценки]]*Таблица_Металлопроцессинг_детализированный[[#This Row],[Распределение выручки для Менеджера договора]])","v":0},"Процессинг","САНКТ-ПЕТЕРБУРГ","НИКОЛЬСКИЙ ЗМК","ООО \"Никольский завод металлоконструкций\"","Ленинградская обл.","Ленинградская обл.","Металлоконструкции","Сталь листовая Г/к., 12, 1500x6000, Ст.сп/пс (ГОСТ 14637)",null,8.4700000000000006,"т",189982.1,"Очистка проката (дробь 1,0мм, 0,8мм)","ROSLER",9000,90,8.5,1,"САНКТ-ПЕТЕРБУРГ","Центр",8.4700000000000006]
[1,"САНКТ-ПЕТЕРБУРГ","Центр","Дауэнгауэр Н.Э.","Дауэнгауэр Н.Э.","Дауэнгауэр Н.Э.",{"$f":"IF(Таблица_Металлопроцессинг_детализированный[[#This Row],[Куратор договора]]=Таблица_Металлопроцессинг_детализированный[[#This Row],[Менеджер]],TRUE,FALSE)","v":true},{"$f":"SUMIFS(AA95:AA1756,O95:O1756,Таблица_Металлопроцессинг_детализированный[[#This Row],[Контрагент]],A95:A1756,Таблица_Металлопроцессинг_детализированный[[#This Row],[Месяц отгрузки]])","v":21952},{"$f":"IF(Таблица_Металлопроцессинг_детализированный[[#This Row],[Инициатор+исполнитель]],1,IF(Таблица_Металлопроцессинг_детализированный[[#This Row],[Оборот за месяц по контрагенту]]<1000000,0.5,0.7))","v":1},{"$f":"IF(Таблица_Металлопроцессинг_детализированный[[#This Row],[Инициатор+исполнитель]]=TRUE,0,IF(Таблица_Металлопроцессинг_детализированный[[#This Row],[Оборот за месяц по контрагенту]]<1000000,0.5,0.3))","v":0},{"$f":"Таблица_Металлопроцессинг_детализированный[[#This Row],[Сумма наценки]]*Таблица_Металлопроцессинг_детализированный[[#This Row],[Распределение выручки для Куратора договора]]","v":15232},{"$f":"IF(Таблица_Металлопроцессинг_детализированный[[#This Row],[Распределение выручки для Менеджера договора]]=1,\"\",Таблица_Металлопроцессинг_детализированный[[#This Row],[Сумма наценки]]*Таблица_Металлопроцессинг_детализированный[[#This Row],[Распределение выручки для Менеджера договора]])","v":0},"Процессинг","САНКТ-ПЕТЕРБУРГ","ОСТ НПП","ЗАО \"НПП ОСТ\"","г. Санкт-Петербург ","г. Санкт-Петербург ","Машиностроение","Сталь листовая Х/к., 0.8, 1250x2500, Ст.08пс (ГОСТ 16523)",null,4.4800000000000004,"т",124902.39999999999,"Порезка листового проката (ножницы)",null,15232,1,4.4800000000000004,null,"САНКТ-ПЕТЕРБУРГ","Центр",4.4800000000000004]
[1,"САНКТ-ПЕТЕРБУРГ","Центр","Дауэнгауэр Н.Э.","Дауэнгауэр Н.Э.","Дауэнгауэр Н.Э.",{"$f":"IF(Таблица_Металлопроцессинг_детализированный[[#This Row],[Куратор договора]]=Таблица_Металлопроцессинг_детализированный[[#This Row],[Менеджер]],TRUE,FALSE)","v":true},{"$f":"SUMIFS(AA96:AA1757,O96:O1757,Таблица_Металлопроцессинг_детализированный[[#This Row],[Контрагент]],A96:A1757,Таблица_Металлопроцессинг_детализированный[[#This Row],[Месяц отгрузки]])","v":6720},{"$f":"IF(Таблица_Металлопроцессинг_детализированный[[#This Row],[Инициатор+исполнитель]],1,IF(Таблица_Металлопроцессинг_детализированный[[#This Row],[Оборот за месяц по контрагенту]]<1000000,0.5,0.7))","v":1},{"$f":"IF(Таблица_Металлопроцессинг_детализированный[[#This Row],[Инициатор+исполнитель]]=TRUE,0,IF(Таблица_Металлопроцессинг_детализированный[[#This Row],[Оборот за месяц по контрагенту]]<1000000,0.5,0.3))","v":0},{"$f":"Таблица_Металлопроцессинг_детализированный[[#This Row],[Сумма наценки]]*Таблица_Металлопроцессинг_детализированный[[#This Row],[Распределение выручки для Куратора договора]]","v":6720},{"$f":"IF(Таблица_Металлопроцессинг_детализированный[[#This Row],[Распределение выручки для Менеджера договора]]=1,\"\",Таблица_Металлопроцессинг_детализированный[[#This Row],[Сумма наценки]]*Таблица_Металлопроцессинг_детализированный[[#This Row],[Распределение выручки для Менеджера договора]])","v":0},"Процессинг","САНКТ-ПЕТЕРБУРГ","ОСТ НПП","ЗАО \"НПП ОСТ\"","г. Санкт-Петербург ","г. Санкт-Петербург ","Машиностроение","Сталь листовая Х/к., 2, 1250x2500, Ст.кп/пс (ТУ 14-106-321-2010)",null,1.92,"т",51398.400000000001,"Порезка листового проката (ножницы)",null,6720,1,2,null,"САНКТ-ПЕТЕРБУРГ","Центр",1.92]
[1,"САНКТ-ПЕТЕРБУРГ","Центр","Сафонеев С.А.","Сафонеев С.А.","Сафонеев С.А.",{"$f":"IF(Таблица_Металлопроцессинг_детализированный[[#This Row],[Куратор договора]]=Таблица_Металлопроцессинг_детализированный[[#This Row],[Менеджер]],TRUE,FALSE)","v":true},{"$f":"SUMIFS(AA97:AA1760,O97:O1760,Таблица_Металлопроцессинг_детализированный[[#This Row],[Контрагент]],A97:A1760,Таблица_Металлопроцессинг_детализированный[[#This Row],[Месяц отгрузки]])","v":227368.44},{"$f":"IF(Таблица_Металлопроцессинг_детализированный[[#This Row],[Инициатор+исполнитель]],1,IF(Таблица_Металлопроцессинг_детализированный[[#This Row],[Оборот за месяц по контрагенту]]<1000000,0.5,0.7))","v":1},{"$f":"IF(Таблица_Металлопроцессинг_детализированный[[#This Row],[Инициатор+исполнитель]]=TRUE,0,IF(Таблица_Металлопроцессинг_детализированный[[#This Row],[Оборот за месяц по контрагенту]]<1000000,0.5,0.3))","v":0},{"$f":"Таблица_Металлопроцессинг_детализированный[[#This Row],[Сумма наценки]]*Таблица_Металлопроцессинг_детализированный[[#This Row],[Распределение выручки для Куратора договора]]","v":21021.81},{"$f":"IF(Таблица_Металлопроцессинг_детализированный[[#This Row],[Распределение выручки для Менеджера договора]]=1,\"\",Таблица_Металлопроцессинг_детализированный[[#This Row],[Сумма наценки]]*Таблица_Металлопроцессинг_детализированный[[#This Row],[Распределение выручки для Менеджера договора]])","v":0},"Из давальческого сырья","САНКТ-ПЕТЕРБУРГ","НЕВА-МЕТАЛЛТРЭЙД ООО","ООО \"Нева-МеталлТрэйд\"","г. Санкт-Петербург ","г. Санкт-Петербург ","Машиностроение","Изделие","Полособульб, РСВ, №14б, 6000",6.351,"т",0,"Очистка и покраска проката (грунт HEMPEL)","ROSLER",21021.81,6.351,6.351,1,"САНКТ-ПЕТЕРБУРГ","Центр",6.351]
[1,"САНКТ-ПЕТЕРБУРГ","Центр","Сафонеев С.А.","Сафонеев С.А.","Сафонеев С.А.",{"$f":"IF(Таблица_Металлопроцессинг_детализированный[[#This Row],[Куратор договора]]=Таблица_Металлопроцессинг_детализированный[[#This Row],[Менеджер]],TRUE,FALSE)","v":true},{"$f":"SUMIFS(AA98:AA1761,O98:O1761,Таблица_Металлопроцессинг_детализированный[[#This Row],[Контрагент]],A98:A1761,Таблица_Металлопроцессинг_детализированный[[#This Row],[Месяц отгрузки]])","v":206346.63},{"$f":"IF(Таблица_Металлопроцессинг_детализированный[[#This Row],[Инициатор+исполнитель]],1,IF(Таблица_Металлопроцессинг_детализированный[[#This Row],[Оборот за месяц по контрагенту]]<1000000,0.5,0.7))","v":1},{"$f":"IF(Таблица_Металлопроцессинг_детализированный[[#This Row],[Инициатор+исполнитель]]=TRUE,0,IF(Таблица_Металлопроцессинг_детализированный[[#This Row],[Оборот за месяц по контрагенту]]<1000000,0.5,0.3))","v":0},{"$f":"Таблица_Металлопроцессинг_детализированный[[#This Row],[Сумма наценки]]*Таблица_Металлопроцессинг_детализированный[[#This Row],[Распределение выручки для Куратора договора]]","v":16115},{"$f":"IF(Таблица_Металлопроцессинг_детализированный[[#This Row],[Распределение выручки для Менеджера договора]]=1,\"\",Таблица_Металлопроцессинг_детализированный[[#This Row],[Сумма наценки]]*Таблица_Металлопроцессинг_детализированный[[#This Row],[Распределение выручки для Менеджера договора]])","v":0},"Из давальческого сырья","САНКТ-ПЕТЕРБУРГ","НЕВА-МЕТАЛЛТРЭЙД ООО","ООО \"Нева-МеталлТрэйд\"","г. Санкт-Петербург ","г. Санкт-Петербург ","Машиностроение","Изделие","Полособульб, РСВ, №16а, 6000",5.5,"т",0,"Очистка и покраска проката (грунт HEMPEL)","ROSLER",16115,5.5,5.5,1,"САНКТ-ПЕТЕРБУРГ","Центр",5.5]
[1,"САНКТ-ПЕТЕРБУРГ","Центр","Сафонеев С.А.","Сафонеев С.А.","Сафонеев С.А.",{"$f":"IF(Таблица_Металлопроцессинг_детализированный[[#This Row],[Куратор договора]]=Таблица_Металлопроцессинг_детализированный[[#This Row],[Менеджер]],TRUE,FALSE)","v":true},{"$f":"SUMIFS(AA99:AA1762,O99:O1762,Таблица_Металлопроцессинг_детализированный[[#This Row],[Контрагент]],A99:A1762,Таблица_Металлопроцессинг_детализированный[[#This Row],[Месяц отгрузки]])","v":190231.63},{"$f":"IF(Таблица_Металлопроцессинг_детализированный[[#This Row],[Инициатор+исполнитель]],1,IF(Таблица_Металлопроцессинг_детализированный[[#This Row],[Оборот за месяц по контрагенту]]<1000000,0.5,0.7))","v":1},{"$f":"IF(Таблица_Металлопроцессинг_детализированный[[#This Row],[Инициатор+исполнитель]]=TRUE,0,IF(Таблица_Металлопроцессинг_детализированный[[#This Row],[Оборот за месяц по контрагенту]]<1000000,0.5,0.3))","v":0},{"$f":"Таблица_Металлопроцессинг_детализированный[[#This Row],[Сумма наценки]]*Таблица_Металлопроцессинг_детализированный[[#This Row],[Распределение выручки для Куратора договора]]","v":17875.2},{"$f":"IF(Таблица_Металлопроцессинг_детализированный[[#This Row],[Распределение выручки для Менеджера договора]]=1,\"\",Таблица_Металлопроцессинг_детализированный[[#This Row],[Сумма наценки]]*Таблица_Металлопроцессинг_детализированный[[#This Row],[Распределение выручки для Менеджера договора]])","v":0},"Из давальческого сырья","САНКТ-ПЕТЕРБУРГ","НЕВА-МЕТАЛЛТРЭЙД ООО","ООО \"Нева-МеталлТрэйд\"","г. Санкт-Петербург ","г. Санкт-Петербург ","Машиностроение","Изделие","Полособульб, РСД32, №18а, 6000",6.72,"т",0,"Очистка и покраска проката (грунт HEMPEL)","ROSLER",17875.2,6.72,6.72,1,"САНКТ-ПЕТЕРБУРГ","Центр",6.72]
[1,"САНКТ-ПЕТЕРБУРГ","Центр","Степура С.Н.","Степура С.Н.","Сафонеев С.А.",{"$f":"IF(Таблица_Металлопроцессинг_детализированный[[#This Row],[Куратор договора]]=Таблица_Металлопроцессинг_детализированный[[#This Row],[Менеджер]],TRUE,FALSE)","v":false},{"$f":"SUMIFS(AA100:AA1780,O100:O1780,Таблица_Металлопроцессинг_детализированный[[#This Row],[Контрагент]],A100:A1780,Таблица_Металлопроцессинг_детализированный[[#This Row],[Месяц отгрузки]])","v":650},{"$f":"IF(Таблица_Металлопроцессинг_детализированный[[#This Row],[Инициатор+исполнитель]],1,IF(Таблица_Металлопроцессинг_детализированный[[#This Row],[Оборот за месяц по контрагенту]]<1000000,0.5,0.7))","v":0.5},{"$f":"IF(Таблица_Металлопроцессинг_детализированный[[#This Row],[Инициатор+исполнитель]]=TRUE,0,IF(Таблица_Металлопроцессинг_детализированный[[#This Row],[Оборот за месяц по контрагенту]]<1000000,0.5,0.3))","v":0.5},{"$f":"Таблица_Металлопроцессинг_детализированный[[#This Row],[Сумма наценки]]*Таблица_Металлопроцессинг_детализированный[[#This Row],[Распределение выручки для Куратора договора]]","v":325},{"$f":"IF(Таблица_Металлопроцессинг_детализированный[[#This Row],[Распределение выручки для Менеджера договора]]=1,\"\",Таблица_Металлопроцессинг_детализированный[[#This Row],[Сумма наценки]]*Таблица_Металлопроцессинг_детализированный[[#This Row],[Распределение выручки для Менеджера договора]])","v":325},"Процессинг","САНКТ-ПЕТЕРБУРГ","СТАЛЬТЕХ","ООО\"СТАЛЬТЕХ\"","г. Санкт-Петербург ","г. Санкт-Петербург ","Машиностроение","Сталь рулонная Г/к., 4, 1500, Ст.сп/пс (19903)",null,0.06,"т",1345.8,"Порезка листового проката (ножницы)","COLGAR CI-34-TR",650,1,0.06,1,"САНКТ-ПЕТЕРБУРГ","Центр",0.06]
[1,"САНКТ-ПЕТЕРБУРГ","Центр","Ипатов Д.В.","Ипатов Д.В.","Сафонеев С.А.",{"$f":"IF(Таблица_Металлопроцессинг_детализированный[[#This Row],[Куратор договора]]=Таблица_Металлопроцессинг_детализированный[[#This Row],[Менеджер]],TRUE,FALSE)","v":false},{"$f":"SUMIFS(AA101:AA1783,O101:O1783,Таблица_Металлопроцессинг_детализированный[[#This Row],[Контрагент]],A101:A1783,Таблица_Металлопроцессинг_детализированный[[#This Row],[Месяц отгрузки]])","v":57000},{"$f":"IF(Таблица_Металлопроцессинг_детализированный[[#This Row],[Инициатор+исполнитель]],1,IF(Таблица_Металлопроцессинг_детализированный[[#This Row],[Оборот за месяц по контрагенту]]<1000000,0.5,0.7))","v":0.5},{"$f":"IF(Таблица_Металлопроцессинг_детализированный[[#This Row],[Инициатор+исполнитель]]=TRUE,0,IF(Таблица_Металлопроцессинг_детализированный[[#This Row],[Оборот за месяц по контрагенту]]<1000000,0.5,0.3))","v":0.5},{"$f":"Таблица_Металлопроцессинг_детализированный[[#This Row],[Сумма наценки]]*Таблица_Металлопроцессинг_детализированный[[#This Row],[Распределение выручки для Куратора договора]]","v":28500},{"$f":"IF(Таблица_Металлопроцессинг_детализированный[[#This Row],[Распределение выручки для Менеджера договора]]=1,\"\",Таблица_Металлопроцессинг_детализированный[[#This Row],[Сумма наценки]]*Таблица_Металлопроцессинг_детализированный[[#This Row],[Распределение выручки для Менеджера договора]])","v":28500},"Из давальческого сырья","САНКТ-ПЕТЕРБУРГ","СК БалтМонтажСтрой","ООО \"СК БалтМонтажСтрой\"","Ленинградская обл.","Ленинградская обл.","Стройиндустрия","Труба стальная профильная, 160x160x4, Ст.сп/пс (ГОСТ 30245-03)",null,20,"т",0,"Очистка и покраска проката (грунт ЭМЛАК 263)","ROSLER",57000,475,475,1,"САНКТ-ПЕТЕРБУРГ","Центр",20]
[1,"САНКТ-ПЕТЕРБУРГ","Центр","Погорелов И.В.","Погорелов И.В.","Погорелов И.В.",{"$f":"IF(Таблица_Металлопроцессинг_детализированный[[#This Row],[Куратор договора]]=Таблица_Металлопроцессинг_детализированный[[#This Row],[Менеджер]],TRUE,FALSE)","v":true},{"$f":"SUMIFS(AA102:AA1792,O102:O1792,Таблица_Металлопроцессинг_детализированный[[#This Row],[Контрагент]],A102:A1792,Таблица_Металлопроцессинг_детализированный[[#This Row],[Месяц отгрузки]])","v":1950},{"$f":"IF(Таблица_Металлопроцессинг_детализированный[[#This Row],[Инициатор+исполнитель]],1,IF(Таблица_Металлопроцессинг_детализированный[[#This Row],[Оборот за месяц по контрагенту]]<1000000,0.5,0.7))","v":1},{"$f":"IF(Таблица_Металлопроцессинг_детализированный[[#This Row],[Инициатор+исполнитель]]=TRUE,0,IF(Таблица_Металлопроцессинг_детализированный[[#This Row],[Оборот за месяц по контрагенту]]<1000000,0.5,0.3))","v":0},{"$f":"Таблица_Металлопроцессинг_детализированный[[#This Row],[Сумма наценки]]*Таблица_Металлопроцессинг_детализированный[[#This Row],[Распределение выручки для Куратора договора]]","v":1950},{"$f":"IF(Таблица_Металлопроцессинг_детализированный[[#This Row],[Распределение выручки для Менеджера договора]]=1,\"\",Таблица_Металлопроцессинг_детализированный[[#This Row],[Сумма наценки]]*Таблица_Металлопроцессинг_детализированный[[#This Row],[Распределение выручки для Менеджера договора]])","v":0},"Процессинг","САНКТ-ПЕТЕРБУРГ","РОС-СЕРВИС","ООО \"РОС-сервис\"",null,null,"Металлоторговля","Сталь рулонная Г/к., 3, 1500, Ст.09Г2С (19903)",null,1.3,"т",35958,"Порезка листового проката поперечная","CAMU RDC 1500/6",1950,1,1.3,1,"САНКТ-ПЕТЕРБУРГ","Центр",1.3]
[1,"САНКТ-ПЕТЕРБУРГ","Центр","Сафонеев С.А.","Сафонеев С.А.","Сафонеев С.А.",{"$f":"IF(Таблица_Металлопроцессинг_детализированный[[#This Row],[Куратор договора]]=Таблица_Металлопроцессинг_детализированный[[#This Row],[Менеджер]],TRUE,FALSE)","v":true},{"$f":"SUMIFS(AA103:AA1796,O103:O1796,Таблица_Металлопроцессинг_детализированный[[#This Row],[Контрагент]],A103:A1796,Таблица_Металлопроцессинг_детализированный[[#This Row],[Месяц отгрузки]])","v":172356.43},{"$f":"IF(Таблица_Металлопроцессинг_детализированный[[#This Row],[Инициатор+исполнитель]],1,IF(Таблица_Металлопроцессинг_детализированный[[#This Row],[Оборот за месяц по контрагенту]]<1000000,0.5,0.7))","v":1},{"$f":"IF(Таблица_Металлопроцессинг_детализированный[[#This Row],[Инициатор+исполнитель]]=TRUE,0,IF(Таблица_Металлопроцессинг_детализированный[[#This Row],[Оборот за месяц по контрагенту]]<1000000,0.5,0.3))","v":0},{"$f":"Таблица_Металлопроцессинг_детализированный[[#This Row],[Сумма наценки]]*Таблица_Металлопроцессинг_детализированный[[#This Row],[Распределение выручки для Куратора договора]]","v":54257.62},{"$f":"IF(Таблица_Металлопроцессинг_детализированный[[#This Row],[Распределение выручки для Менеджера договора]]=1,\"\",Таблица_Металлопроцессинг_детализированный[[#This Row],[Сумма наценки]]*Таблица_Металлопроцессинг_детализированный[[#This Row],[Распределение выручки для Менеджера договора]])","v":0},"Из давальческого сырья","САНКТ-ПЕТЕРБУРГ","НЕВА-МЕТАЛЛТРЭЙД ООО","ООО \"Нева-МеталлТрэйд\"","г. Санкт-Петербург ","г. Санкт-Петербург ","Машиностроение","Изделие","Полособульб, РСД32, №20а",22.664000000000001,"т",0,"Очистка и покраска проката (грунт HEMPEL)","ROSLER",54257.62,22.664000000000001,22.664000000000001,1,"САНКТ-ПЕТЕРБУРГ","Центр",22.664000000000001]
[1,"САНКТ-ПЕТЕРБУРГ","Центр","Райская Н.А.","Райская Н.А.","Райская Н.А.",{"$f":"IF(Таблица_Металлопроцессинг_детализированный[[#This Row],[Куратор договора]]=Таблица_Металлопроцессинг_детализированный[[#This Row],[Менеджер]],TRUE,FALSE)","v":true},{"$f":"SUMIFS(AA104:AA1810,O104:O1810,Таблица_Металлопроцессинг_детализированный[[#This Row],[Контрагент]],A104:A1810,Таблица_Металлопроцессинг_детализированный[[#This Row],[Месяц отгрузки]])","v":1990},{"$f":"IF(Таблица_Металлопроцессинг_детализированный[[#This Row],[Инициатор+исполнитель]],1,IF(Таблица_Металлопроцессинг_детализированный[[#This Row],[Оборот за месяц по контрагенту]]<1000000,0.5,0.7))","v":1},{"$f":"IF(Таблица_Металлопроцессинг_детализированный[[#This Row],[Инициатор+исполнитель]]=TRUE,0,IF(Таблица_Металлопроцессинг_детализированный[[#This Row],[Оборот за месяц по контрагенту]]<1000000,0.5,0.3))","v":0},{"$f":"Таблица_Металлопроцессинг_детализированный[[#This Row],[Сумма наценки]]*Таблица_Металлопроцессинг_детализированный[[#This Row],[Распределение выручки для Куратора договора]]","v":1990},{"$f":"IF(Таблица_Металлопроцессинг_детализированный[[#This Row],[Распределение выручки для Менеджера договора]]=1,\"\",Таблица_Металлопроцессинг_детализированный[[#This Row],[Сумма наценки]]*Таблица_Металлопроцессинг_детализированный[[#This Row],[Распределение выручки для Менеджера договора]])","v":0},"Процессинг","САНКТ-ПЕТЕРБУРГ","СЗЭСС","СПб ф-л ОАО СЗЭСС УПТК и РС",null,null,"Стройиндустрия","Арматура класс АI, 10, Ст.сп/пс, в бунтах (ГОСТ5781-82)",null,1.99,"т",54366.8,"Размотка/резка арматурного проката","MELC 16x4",1990,1,2,1,"САНКТ-ПЕТЕРБУРГ","Центр",1.99]
[1,"САНКТ-ПЕТЕРБУРГ","Центр","Райская Н.А.","Райская Н.А.","Райская Н.А.",{"$f":"IF(Таблица_Металлопроцессинг_детализированный[[#This Row],[Куратор договора]]=Таблица_Металлопроцессинг_детализированный[[#This Row],[Менеджер]],TRUE,FALSE)","v":true},{"$f":"SUMIFS(AA105:AA1817,O105:O1817,Таблица_Металлопроцессинг_детализированный[[#This Row],[Контрагент]],A105:A1817,Таблица_Металлопроцессинг_детализированный[[#This Row],[Месяц отгрузки]])","v":1060},{"$f":"IF(Таблица_Металлопроцессинг_детализированный[[#This Row],[Инициатор+исполнитель]],1,IF(Таблица_Металлопроцессинг_детализированный[[#This Row],[Оборот за месяц по контрагенту]]<1000000,0.5,0.7))","v":1},{"$f":"IF(Таблица_Металлопроцессинг_детализированный[[#This Row],[Инициатор+исполнитель]]=TRUE,0,IF(Таблица_Металлопроцессинг_детализированный[[#This Row],[Оборот за месяц по контрагенту]]<1000000,0.5,0.3))","v":0},{"$f":"Таблица_Металлопроцессинг_детализированный[[#This Row],[Сумма наценки]]*Таблица_Металлопроцессинг_детализированный[[#This Row],[Распределение выручки для Куратора договора]]","v":620},{"$f":"IF(Таблица_Металлопроцессинг_детализированный[[#This Row],[Распределение выручки для Менеджера договора]]=1,\"\",Таблица_Металлопроцессинг_детализированный[[#This Row],[Сумма наценки]]*Таблица_Металлопроцессинг_детализированный[[#This Row],[Распределение выручки для Менеджера договора]])","v":0},"Процессинг","САНКТ-ПЕТЕРБУРГ","КонкордМеталл","ООО\"КонкордМеталл\"","г. Санкт-Петербург ","г. Санкт-Петербург ","Металлоторговля","Балка двутавровая, 30Ш1, С245/С255 (СТО АСЧМ 20-93)",null,1.3879999999999999,"т",58740.160000000003,"Станок ленточнопильный","PEGASUS",620,2,1.387,1,"САНКТ-ПЕТЕРБУРГ","Центр",1.3879999999999999]
[1,"САНКТ-ПЕТЕРБУРГ","Центр","Райская Н.А.","Райская Н.А.","Райская Н.А.",{"$f":"IF(Таблица_Металлопроцессинг_детализированный[[#This Row],[Куратор договора]]=Таблица_Металлопроцессинг_детализированный[[#This Row],[Менеджер]],TRUE,FALSE)","v":true},{"$f":"SUMIFS(AA106:AA1818,O106:O1818,Таблица_Металлопроцессинг_детализированный[[#This Row],[Контрагент]],A106:A1818,Таблица_Металлопроцессинг_детализированный[[#This Row],[Месяц отгрузки]])","v":440},{"$f":"IF(Таблица_Металлопроцессинг_детализированный[[#This Row],[Инициатор+исполнитель]],1,IF(Таблица_Металлопроцессинг_детализированный[[#This Row],[Оборот за месяц по контрагенту]]<1000000,0.5,0.7))","v":1},{"$f":"IF(Таблица_Металлопроцессинг_детализированный[[#This Row],[Инициатор+исполнитель]]=TRUE,0,IF(Таблица_Металлопроцессинг_детализированный[[#This Row],[Оборот за месяц по контрагенту]]<1000000,0.5,0.3))","v":0},{"$f":"Таблица_Металлопроцессинг_детализированный[[#This Row],[Сумма наценки]]*Таблица_Металлопроцессинг_детализированный[[#This Row],[Распределение выручки для Куратора договора]]","v":440},{"$f":"IF(Таблица_Металлопроцессинг_детализированный[[#This Row],[Распределение выручки для Менеджера договора]]=1,\"\",Таблица_Металлопроцессинг_детализированный[[#This Row],[Сумма наценки]]*Таблица_Металлопроцессинг_детализированный[[#This Row],[Распределение выручки для Менеджера договора]])","v":0},"Процессинг","САНКТ-ПЕТЕРБУРГ","КонкордМеталл","ООО\"КонкордМеталл\"","г. Санкт-Петербург ","г. Санкт-Петербург ","Металлоторговля","Швеллер стальной г/к, 20У, С255 (ГОСТ 27772-88)",null,0.17,"т",5117,"Станок ленточнопильный","PEGASUS",440,4,0.16900000000000001,1,"САНКТ-ПЕТЕРБУРГ","Центр",0.17]
[1,"САНКТ-ПЕТЕРБУРГ","Центр","Хабибуллов М.Р.","Хабибуллов М.Р.","Хабибуллов М.Р.",{"$f":"IF(Таблица_Металлопроцессинг_детализированный[[#This Row],[Куратор договора]]=Таблица_Металлопроцессинг_детализированный[[#This Row],[Менеджер]],TRUE,FALSE)","v":true},{"$f":"SUMIFS(AA107:AA1819,O107:O1819,Таблица_Металлопроцессинг_детализированный[[#This Row],[Контрагент]],A107:A1819,Таблица_Металлопроцессинг_детализированный[[#This Row],[Месяц отгрузки]])","v":254814},{"$f":"IF(Таблица_Металлопроцессинг_детализированный[[#This Row],[Инициатор+исполнитель]],1,IF(Таблица_Металлопроцессинг_детализированный[[#This Row],[Оборот за месяц по контрагенту]]<1000000,0.5,0.7))","v":1},{"$f":"IF(Таблица_Металлопроцессинг_детализированный[[#This Row],[Инициатор+исполнитель]]=TRUE,0,IF(Таблица_Металлопроцессинг_детализированный[[#This Row],[Оборот за месяц по контрагенту]]<1000000,0.5,0.3))","v":0},{"$f":"Таблица_Металлопроцессинг_детализированный[[#This Row],[Сумма наценки]]*Таблица_Металлопроцессинг_детализированный[[#This Row],[Распределение выручки для Куратора договора]]","v":29863.5},{"$f":"IF(Таблица_Металлопроцессинг_детализированный[[#This Row],[Распределение выручки для Менеджера договора]]=1,\"\",Таблица_Металлопроцессинг_детализированный[[#This Row],[Сумма наценки]]*Таблица_Металлопроцессинг_детализированный[[#This Row],[Распределение выручки для Менеджера договора]])","v":0},"Процессинг","САНКТ-ПЕТЕРБУРГ","АртЛэнд","ООО \"Строительная компания \"АртЛэнд\"",null,null,"Стройиндустрия","Шпунт Ларсена Л5-УМ, С255 (ТУ 14-102-8-2003)",null,19.908999999999999,"т",786405.5,"Очистка и покраска проката (грунт ЭМЛАК 263)","ROSLER",29863.5,19.908999999999999,36.526000000000003,1,"САНКТ-ПЕТЕРБУРГ","Центр",19.908999999999999]
[1,"САНКТ-ПЕТЕРБУРГ","Центр","Дауэнгауэр Н.Э.","Дауэнгауэр Н.Э.","Дауэнгауэр Н.Э.",{"$f":"IF(Таблица_Металлопроцессинг_детализированный[[#This Row],[Куратор договора]]=Таблица_Металлопроцессинг_детализированный[[#This Row],[Менеджер]],TRUE,FALSE)","v":true},{"$f":"SUMIFS(AA108:AA1820,O108:O1820,Таблица_Металлопроцессинг_детализированный[[#This Row],[Контрагент]],A108:A1820,Таблица_Металлопроцессинг_детализированный[[#This Row],[Месяц отгрузки]])","v":212578.8},{"$f":"IF(Таблица_Металлопроцессинг_детализированный[[#This Row],[Инициатор+исполнитель]],1,IF(Таблица_Металлопроцессинг_детализированный[[#This Row],[Оборот за месяц по контрагенту]]<1000000,0.5,0.7))","v":1},{"$f":"IF(Таблица_Металлопроцессинг_детализированный[[#This Row],[Инициатор+исполнитель]]=TRUE,0,IF(Таблица_Металлопроцессинг_детализированный[[#This Row],[Оборот за месяц по контрагенту]]<1000000,0.5,0.3))","v":0},{"$f":"Таблица_Металлопроцессинг_детализированный[[#This Row],[Сумма наценки]]*Таблица_Металлопроцессинг_детализированный[[#This Row],[Распределение выручки для Куратора договора]]","v":1695},{"$f":"IF(Таблица_Металлопроцессинг_детализированный[[#This Row],[Распределение выручки для Менеджера договора]]=1,\"\",Таблица_Металлопроцессинг_детализированный[[#This Row],[Сумма наценки]]*Таблица_Металлопроцессинг_детализированный[[#This Row],[Распределение выручки для Менеджера договора]])","v":0},"Процессинг","САНКТ-ПЕТЕРБУРГ","АМИРА СК","ООО \"Амира-СтальКонструкция\"","Санкт-Петербург ","Санкт-Петербург ","Металлоконструкции","Сталь листовая Г/к., 16, 1500x6000, Ст.09Г2С (ГОСТ 19281)",null,1.1299999999999999,"т",28995.8,"Порезка листового проката (ножницы)",null,1695,1,1.1299999999999999,null,"САНКТ-ПЕТЕРБУРГ","Центр",1.1299999999999999]
[1,"САНКТ-ПЕТЕРБУРГ","Центр","Дауэнгауэр Н.Э.","Дауэнгауэр Н.Э.","Сафонеев С.А.",{"$f":"IF(Таблица_Металлопроцессинг_детализированный[[#This Row],[Куратор договора]]=Таблица_Металлопроцессинг_детализированный[[#This Row],[Менеджер]],TRUE,FALSE)","v":false},{"$f":"SUMIFS(AA109:AA1821,O109:O1821,Таблица_Металлопроцессинг_детализированный[[#This Row],[Контрагент]],A109:A1821,Таблица_Металлопроцессинг_детализированный[[#This Row],[Месяц отгрузки]])","v":210883.8},{"$f":"IF(Таблица_Металлопроцессинг_детализированный[[#This Row],[Инициатор+исполнитель]],1,IF(Таблица_Металлопроцессинг_детализированный[[#This Row],[Оборот за месяц по контрагенту]]<1000000,0.5,0.7))","v":0.5},{"$f":"IF(Таблица_Металлопроцессинг_детализированный[[#This Row],[Инициатор+исполнитель]]=TRUE,0,IF(Таблица_Металлопроцессинг_детализированный[[#This Row],[Оборот за месяц по контрагенту]]<1000000,0.5,0.3))","v":0.5},{"$f":"Таблица_Металлопроцессинг_детализированный[[#This Row],[Сумма наценки]]*Таблица_Металлопроцессинг_детализированный[[#This Row],[Распределение выручки для Куратора договора]]","v":420},{"$f":"IF(Таблица_Металлопроцессинг_детализированный[[#This Row],[Распределение выручки для Менеджера договора]]=1,\"\",Таблица_Металлопроцессинг_детализированный[[#This Row],[Сумма наценки]]*Таблица_Металлопроцессинг_детализированный[[#This Row],[Распределение выручки для Менеджера договора]])","v":420},"Процессинг","САНКТ-ПЕТЕРБУРГ","АМИРА СК","ООО \"Амира-СтальКонструкция\"","Санкт-Петербург ","Санкт-Петербург ","Металлоконструкции","Сталь листовая Г/к., 4, 1500x6000, Ст.сп/пс (ГОСТ 14637)",null,1.4,"т",31724,"Порезка листового проката (ножницы)",null,840,1,1.4,null,"САНКТ-ПЕТЕРБУРГ","Центр",1.4]
[1,"САНКТ-ПЕТЕРБУРГ","Центр","Райская Н.А.","Райская Н.А.","Сафонеев С.А.",{"$f":"IF(Таблица_Металлопроцессинг_детализированный[[#This Row],[Куратор договора]]=Таблица_Металлопроцессинг_детализированный[[#This Row],[Менеджер]],TRUE,FALSE)","v":false},{"$f":"SUMIFS(AA110:AA1823,O110:O1823,Таблица_Металлопроцессинг_детализированный[[#This Row],[Контрагент]],A110:A1823,Таблица_Металлопроцессинг_детализированный[[#This Row],[Месяц отгрузки]])","v":990},{"$f":"IF(Таблица_Металлопроцессинг_детализированный[[#This Row],[Инициатор+исполнитель]],1,IF(Таблица_Металлопроцессинг_детализированный[[#This Row],[Оборот за месяц по контрагенту]]<1000000,0.5,0.7))","v":0.5},{"$f":"IF(Таблица_Металлопроцессинг_детализированный[[#This Row],[Инициатор+исполнитель]]=TRUE,0,IF(Таблица_Металлопроцессинг_детализированный[[#This Row],[Оборот за месяц по контрагенту]]<1000000,0.5,0.3))","v":0.5},{"$f":"Таблица_Металлопроцессинг_детализированный[[#This Row],[Сумма наценки]]*Таблица_Металлопроцессинг_детализированный[[#This Row],[Распределение выручки для Куратора договора]]","v":495},{"$f":"IF(Таблица_Металлопроцессинг_детализированный[[#This Row],[Распределение выручки для Менеджера договора]]=1,\"\",Таблица_Металлопроцессинг_детализированный[[#This Row],[Сумма наценки]]*Таблица_Металлопроцессинг_детализированный[[#This Row],[Распределение выручки для Менеджера договора]])","v":495},"Процессинг","САНКТ-ПЕТЕРБУРГ","ГАРАНТ-СЕРВИС СПб","ООО \"ГАРАНТ-СЕРВИС\"",null,null,"Металлоторговля","Арматура класс АI, 8, Ст.сп/пс, в бунтах (ГОСТ5781-82)",null,0.55000000000000004,"т",14113,"Размотка/резка арматурного проката","MELC 16x4",990,1,0.55000000000000004,1,"САНКТ-ПЕТЕРБУРГ","Центр",0.55000000000000004]
[1,"САНКТ-ПЕТЕРБУРГ","Центр","Сафонеев С.А.","Сафонеев С.А.","Сафонеев С.А.",{"$f":"IF(Таблица_Металлопроцессинг_детализированный[[#This Row],[Куратор договора]]=Таблица_Металлопроцессинг_детализированный[[#This Row],[Менеджер]],TRUE,FALSE)","v":true},{"$f":"SUMIFS(AA111:AA2585,O111:O2585,Таблица_Металлопроцессинг_детализированный[[#This Row],[Контрагент]],A111:A2585,Таблица_Металлопроцессинг_детализированный[[#This Row],[Месяц отгрузки]])","v":118098.80999999998},{"$f":"IF(Таблица_Металлопроцессинг_детализированный[[#This Row],[Инициатор+исполнитель]],1,IF(Таблица_Металлопроцессинг_детализированный[[#This Row],[Оборот за месяц по контрагенту]]<1000000,0.5,0.7))","v":1},{"$f":"IF(Таблица_Металлопроцессинг_детализированный[[#This Row],[Инициатор+исполнитель]]=TRUE,0,IF(Таблица_Металлопроцессинг_детализированный[[#This Row],[Оборот за месяц по контрагенту]]<1000000,0.5,0.3))","v":0},{"$f":"Таблица_Металлопроцессинг_детализированный[[#This Row],[Сумма наценки]]*Таблица_Металлопроцессинг_детализированный[[#This Row],[Распределение выручки для Куратора договора]]","v":50850.95},{"$f":"IF(Таблица_Металлопроцессинг_детализированный[[#This Row],[Распределение выручки для Менеджера договора]]=1,\"\",Таблица_Металлопроцессинг_детализированный[[#This Row],[Сумма наценки]]*Таблица_Металлопроцессинг_детализированный[[#This Row],[Распределение выручки для Менеджера договора]])","v":0},"Из давальческого сырья","САНКТ-ПЕТЕРБУРГ","НЕВА-МЕТАЛЛТРЭЙД ООО","ООО \"Нева-МеталлТрэйд\"","г. Санкт-Петербург ","г. Санкт-Петербург ","Машиностроение","Изделие","Полособульб, РСД32, №20а",21.241,"т",0,"Очистка и покраска проката (грунт HEMPEL)","ROSLER",50850.95,21.241,21.241,1,"САНКТ-ПЕТЕРБУРГ","Центр",21.241]
[1,"САНКТ-ПЕТЕРБУРГ","Центр","Зиновьев С.Ю.","Зиновьев С.Ю.","Зиновьев С.Ю.",{"$f":"IF(Таблица_Металлопроцессинг_детализированный[[#This Row],[Куратор договора]]=Таблица_Металлопроцессинг_детализированный[[#This Row],[Менеджер]],TRUE,FALSE)","v":true},{"$f":"SUMIFS(AA112:AA2588,O112:O2588,Таблица_Металлопроцессинг_детализированный[[#This Row],[Контрагент]],A112:A2588,Таблица_Металлопроцессинг_детализированный[[#This Row],[Месяц отгрузки]])","v":54720},{"$f":"IF(Таблица_Металлопроцессинг_детализированный[[#This Row],[Инициатор+исполнитель]],1,IF(Таблица_Металлопроцессинг_детализированный[[#This Row],[Оборот за месяц по контрагенту]]<1000000,0.5,0.7))","v":1},{"$f":"IF(Таблица_Металлопроцессинг_детализированный[[#This Row],[Инициатор+исполнитель]]=TRUE,0,IF(Таблица_Металлопроцессинг_детализированный[[#This Row],[Оборот за месяц по контрагенту]]<1000000,0.5,0.3))","v":0},{"$f":"Таблица_Металлопроцессинг_детализированный[[#This Row],[Сумма наценки]]*Таблица_Металлопроцессинг_детализированный[[#This Row],[Распределение выручки для Куратора договора]]","v":20320},{"$f":"IF(Таблица_Металлопроцессинг_детализированный[[#This Row],[Распределение выручки для Менеджера договора]]=1,\"\",Таблица_Металлопроцессинг_детализированный[[#This Row],[Сумма наценки]]*Таблица_Металлопроцессинг_детализированный[[#This Row],[Распределение выручки для Менеджера договора]])","v":0},"Из давальческого сырья","САНКТ-ПЕТЕРБУРГ","Птицефабрика Роскар","ЗАО \"Птицефабрика Роскар\"","Ленинградская обл.","Ленинградская обл.","Другое","Изделие","Профильная труба 100х60х4",3.6960000000000002,"т",0,"Очистка и покраска проката (грунт ЭМЛАК 263)","ROSLER",20320,127,3.6960000000000002,1,"САНКТ-ПЕТЕРБУРГ","Центр",3.6959999999999997]
[1,"САНКТ-ПЕТЕРБУРГ","Центр","Зиновьев С.Ю.","Зиновьев С.Ю.","Зиновьев С.Ю.",{"$f":"IF(Таблица_Металлопроцессинг_детализированный[[#This Row],[Куратор договора]]=Таблица_Металлопроцессинг_детализированный[[#This Row],[Менеджер]],TRUE,FALSE)","v":true},{"$f":"SUMIFS(AA113:AA2589,O113:O2589,Таблица_Металлопроцессинг_детализированный[[#This Row],[Контрагент]],A113:A2589,Таблица_Металлопроцессинг_детализированный[[#This Row],[Месяц отгрузки]])","v":34400},{"$f":"IF(Таблица_Металлопроцессинг_детализированный[[#This Row],[Инициатор+исполнитель]],1,IF(Таблица_Металлопроцессинг_детализированный[[#This Row],[Оборот за месяц по контрагенту]]<1000000,0.5,0.7))","v":1},{"$f":"IF(Таблица_Металлопроцессинг_детализированный[[#This Row],[Инициатор+исполнитель]]=TRUE,0,IF(Таблица_Металлопроцессинг_детализированный[[#This Row],[Оборот за месяц по контрагенту]]<1000000,0.5,0.3))","v":0},{"$f":"Таблица_Металлопроцессинг_детализированный[[#This Row],[Сумма наценки]]*Таблица_Металлопроцессинг_детализированный[[#This Row],[Распределение выручки для Куратора договора]]","v":30400},{"$f":"IF(Таблица_Металлопроцессинг_детализированный[[#This Row],[Распределение выручки для Менеджера договора]]=1,\"\",Таблица_Металлопроцессинг_детализированный[[#This Row],[Сумма наценки]]*Таблица_Металлопроцессинг_детализированный[[#This Row],[Распределение выручки для Менеджера договора]])","v":0},"Из давальческого сырья","САНКТ-ПЕТЕРБУРГ","Птицефабрика Роскар","ЗАО \"Птицефабрика Роскар\"","Ленинградская обл.","Ленинградская обл.","Другое","Изделие","Профильная труба 50х50х3",4.0449999999999999,"т",0,"Очистка и покраска проката (грунт ЭМЛАК 263)","ROSLER",30400,190,4.0449999999999999,1,"САНКТ-ПЕТЕРБУРГ","Центр",4.0449999999999999]
[1,"САНКТ-ПЕТЕРБУРГ","Центр","Зиновьев С.Ю.","Зиновьев С.Ю.","Зиновьев С.Ю.",{"$f":"IF(Таблица_Металлопроцессинг_детализированный[[#This Row],[Куратор договора]]=Таблица_Металлопроцессинг_детализированный[[#This Row],[Менеджер]],TRUE,FALSE)","v":true},{"$f":"SUMIFS(AA114:AA2590,O114:O2590,Таблица_Металлопроцессинг_детализированный[[#This Row],[Контрагент]],A114:A2590,Таблица_Металлопроцессинг_детализированный[[#This Row],[Месяц отгрузки]])","v":4000},{"$f":"IF(Таблица_Металлопроцессинг_детализированный[[#This Row],[Инициатор+исполнитель]],1,IF(Таблица_Металлопроцессинг_детализированный[[#This Row],[Оборот за месяц по контрагенту]]<1000000,0.5,0.7))","v":1},{"$f":"IF(Таблица_Металлопроцессинг_детализированный[[#This Row],[Инициатор+исполнитель]]=TRUE,0,IF(Таблица_Металлопроцессинг_детализированный[[#This Row],[Оборот за месяц по контрагенту]]<1000000,0.5,0.3))","v":0},{"$f":"Таблица_Металлопроцессинг_детализированный[[#This Row],[Сумма наценки]]*Таблица_Металлопроцессинг_детализированный[[#This Row],[Распределение выручки для Куратора договора]]","v":4000},{"$f":"IF(Таблица_Металлопроцессинг_детализированный[[#This Row],[Распределение выручки для Менеджера договора]]=1,\"\",Таблица_Металлопроцессинг_детализированный[[#This Row],[Сумма наценки]]*Таблица_Металлопроцессинг_детализированный[[#This Row],[Распределение выручки для Менеджера договора]])","v":0},"Из давальческого сырья","САНКТ-ПЕТЕРБУРГ","Птицефабрика Роскар","ЗАО \"Птицефабрика Роскар\"","Ленинградская обл.","Ленинградская обл.","Другое","Изделие","Профильная труба 60х60х3",0.68,"т",0,"Очистка и покраска проката (грунт ЭМЛАК 263)","ROSLER",4000,25,0.68,1,"САНКТ-ПЕТЕРБУРГ","Центр",0.68]
[1,"САНКТ-ПЕТЕРБУРГ","Центр","Дауэнгауэр Н.Э.","Дауэнгауэр Н.Э.","Дауэнгауэр Н.Э.",{"$f":"IF(Таблица_Металлопроцессинг_детализированный[[#This Row],[Куратор договора]]=Таблица_Металлопроцессинг_детализированный[[#This Row],[Менеджер]],TRUE,FALSE)","v":true},{"$f":"SUMIFS(AA115:AA2599,O115:O2599,Таблица_Металлопроцессинг_детализированный[[#This Row],[Контрагент]],A115:A2599,Таблица_Металлопроцессинг_детализированный[[#This Row],[Месяц отгрузки]])","v":19484},{"$f":"IF(Таблица_Металлопроцессинг_детализированный[[#This Row],[Инициатор+исполнитель]],1,IF(Таблица_Металлопроцессинг_детализированный[[#This Row],[Оборот за месяц по контрагенту]]<1000000,0.5,0.7))","v":1},{"$f":"IF(Таблица_Металлопроцессинг_детализированный[[#This Row],[Инициатор+исполнитель]]=TRUE,0,IF(Таблица_Металлопроцессинг_детализированный[[#This Row],[Оборот за месяц по контрагенту]]<1000000,0.5,0.3))","v":0},{"$f":"Таблица_Металлопроцессинг_детализированный[[#This Row],[Сумма наценки]]*Таблица_Металлопроцессинг_детализированный[[#This Row],[Распределение выручки для Куратора договора]]","v":11400},{"$f":"IF(Таблица_Металлопроцессинг_детализированный[[#This Row],[Распределение выручки для Менеджера договора]]=1,\"\",Таблица_Металлопроцессинг_детализированный[[#This Row],[Сумма наценки]]*Таблица_Металлопроцессинг_детализированный[[#This Row],[Распределение выручки для Менеджера договора]])","v":0},"Процессинг","САНКТ-ПЕТЕРБУРГ","НОВАЯ ЭРА","ОАО \"Новая ЭРА\"","г. Санкт-Петербург ","г. Санкт-Петербург ","Машиностроение","Сталь листовая Х/к., 3, 1250x2500, Ст.кп/пс (ТУ 14-106-321-2010)",null,3,"т",80310,"Порезка листового проката (ножницы)",null,11400,1,3,null,"САНКТ-ПЕТЕРБУРГ","Центр",3]
[1,"САНКТ-ПЕТЕРБУРГ","Центр","Дауэнгауэр Н.Э.","Дауэнгауэр Н.Э.","Дауэнгауэр Н.Э.",{"$f":"IF(Таблица_Металлопроцессинг_детализированный[[#This Row],[Куратор договора]]=Таблица_Металлопроцессинг_детализированный[[#This Row],[Менеджер]],TRUE,FALSE)","v":true},{"$f":"SUMIFS(AA116:AA2600,O116:O2600,Таблица_Металлопроцессинг_детализированный[[#This Row],[Контрагент]],A116:A2600,Таблица_Металлопроцессинг_детализированный[[#This Row],[Месяц отгрузки]])","v":8084},{"$f":"IF(Таблица_Металлопроцессинг_детализированный[[#This Row],[Инициатор+исполнитель]],1,IF(Таблица_Металлопроцессинг_детализированный[[#This Row],[Оборот за месяц по контрагенту]]<1000000,0.5,0.7))","v":1},{"$f":"IF(Таблица_Металлопроцессинг_детализированный[[#This Row],[Инициатор+исполнитель]]=TRUE,0,IF(Таблица_Металлопроцессинг_детализированный[[#This Row],[Оборот за месяц по контрагенту]]<1000000,0.5,0.3))","v":0},{"$f":"Таблица_Металлопроцессинг_детализированный[[#This Row],[Сумма наценки]]*Таблица_Металлопроцессинг_детализированный[[#This Row],[Распределение выручки для Куратора договора]]","v":8084},{"$f":"IF(Таблица_Металлопроцессинг_детализированный[[#This Row],[Распределение выручки для Менеджера договора]]=1,\"\",Таблица_Металлопроцессинг_детализированный[[#This Row],[Сумма наценки]]*Таблица_Металлопроцессинг_детализированный[[#This Row],[Распределение выручки для Менеджера договора]])","v":0},"Процессинг","САНКТ-ПЕТЕРБУРГ","НОВАЯ ЭРА","ОАО \"Новая ЭРА\"","г. Санкт-Петербург ","г. Санкт-Петербург ","Машиностроение","Сталь листовая Х/к., 3, 1250x2500, Ст.кп/пс (ТУ 14-106-321-2010)",null,1.88,"т",50327.6,"Порезка листового проката (ножницы)",null,8084,1,1.88,null,"САНКТ-ПЕТЕРБУРГ","Центр",1.88]
[1,"САНКТ-ПЕТЕРБУРГ","Центр","Дауэнгауэр Н.Э.","Дауэнгауэр Н.Э.","Дауэнгауэр Н.Э.",{"$f":"IF(Таблица_Металлопроцессинг_детализированный[[#This Row],[Куратор договора]]=Таблица_Металлопроцессинг_детализированный[[#This Row],[Менеджер]],TRUE,FALSE)","v":true},{"$f":"SUMIFS(AA117:AA2605,O117:O2605,Таблица_Металлопроцессинг_детализированный[[#This Row],[Контрагент]],A117:A2605,Таблица_Металлопроцессинг_детализированный[[#This Row],[Месяц отгрузки]])","v":210043.8},{"$f":"IF(Таблица_Металлопроцессинг_детализированный[[#This Row],[Инициатор+исполнитель]],1,IF(Таблица_Металлопроцессинг_детализированный[[#This Row],[Оборот за месяц по контрагенту]]<1000000,0.5,0.7))","v":1},{"$f":"IF(Таблица_Металлопроцессинг_детализированный[[#This Row],[Инициатор+исполнитель]]=TRUE,0,IF(Таблица_Металлопроцессинг_детализированный[[#This Row],[Оборот за месяц по контрагенту]]<1000000,0.5,0.3))","v":0},{"$f":"Таблица_Металлопроцессинг_детализированный[[#This Row],[Сумма наценки]]*Таблица_Металлопроцессинг_детализированный[[#This Row],[Распределение выручки для Куратора договора]]","v":82195},{"$f":"IF(Таблица_Металлопроцессинг_детализированный[[#This Row],[Распределение выручки для Менеджера договора]]=1,\"\",Таблица_Металлопроцессинг_детализированный[[#This Row],[Сумма наценки]]*Таблица_Металлопроцессинг_детализированный[[#This Row],[Распределение выручки для Менеджера договора]])","v":0},"Процессинг","САНКТ-ПЕТЕРБУРГ","АМИРА СК","ООО \"Амира-СтальКонструкция\"","Санкт-Петербург ","Санкт-Петербург ","Металлоконструкции","Сталь рулонная Г/к., 3, 1250, Ст.сп/пс (19903)",null,9.67,"т",213707,"Порезка листового проката поперечная","CAMU RDC 1500/6",82195,1,9.1199999999999992,1,"САНКТ-ПЕТЕРБУРГ","Центр",9.67]
[1,"САНКТ-ПЕТЕРБУРГ","Центр","Хабибуллов М.Р.","Хабибуллов М.Р.","Хабибуллов М.Р.",{"$f":"IF(Таблица_Металлопроцессинг_детализированный[[#This Row],[Куратор договора]]=Таблица_Металлопроцессинг_детализированный[[#This Row],[Менеджер]],TRUE,FALSE)","v":true},{"$f":"SUMIFS(AA118:AA2606,O118:O2606,Таблица_Металлопроцессинг_детализированный[[#This Row],[Контрагент]],A118:A2606,Таблица_Металлопроцессинг_детализированный[[#This Row],[Месяц отгрузки]])","v":224950.5},{"$f":"IF(Таблица_Металлопроцессинг_детализированный[[#This Row],[Инициатор+исполнитель]],1,IF(Таблица_Металлопроцессинг_детализированный[[#This Row],[Оборот за месяц по контрагенту]]<1000000,0.5,0.7))","v":1},{"$f":"IF(Таблица_Металлопроцессинг_детализированный[[#This Row],[Инициатор+исполнитель]]=TRUE,0,IF(Таблица_Металлопроцессинг_детализированный[[#This Row],[Оборот за месяц по контрагенту]]<1000000,0.5,0.3))","v":0},{"$f":"Таблица_Металлопроцессинг_детализированный[[#This Row],[Сумма наценки]]*Таблица_Металлопроцессинг_детализированный[[#This Row],[Распределение выручки для Куратора договора]]","v":30006},{"$f":"IF(Таблица_Металлопроцессинг_детализированный[[#This Row],[Распределение выручки для Менеджера договора]]=1,\"\",Таблица_Металлопроцессинг_детализированный[[#This Row],[Сумма наценки]]*Таблица_Металлопроцессинг_детализированный[[#This Row],[Распределение выручки для Менеджера договора]])","v":0},"Процессинг","САНКТ-ПЕТЕРБУРГ","АртЛэнд","ООО \"Строительная компания \"АртЛэнд\"",null,null,"Стройиндустрия","Шпунт Ларсена Л5-УМ, С255 (ТУ 14-102-8-2003)",null,20.004000000000001,"т",790158,"Очистка и покраска проката (грунт ЭМЛАК 263)","ROSLER",30006,20.004000000000001,20.004000000000001,1,"САНКТ-ПЕТЕРБУРГ","Центр",20.004000000000001]
[1,"САНКТ-ПЕТЕРБУРГ","Центр","Дауэнгауэр Н.Э.","Дауэнгауэр Н.Э.","Райская Н.А.",{"$f":"IF(Таблица_Металлопроцессинг_детализированный[[#This Row],[Куратор договора]]=Таблица_Металлопроцессинг_детализированный[[#This Row],[Менеджер]],TRUE,FALSE)","v":false},{"$f":"SUMIFS(AA119:AA2607,O119:O2607,Таблица_Металлопроцессинг_детализированный[[#This Row],[Контрагент]],A119:A2607,Таблица_Металлопроцессинг_детализированный[[#This Row],[Месяц отгрузки]])","v":127848.8},{"$f":"IF(Таблица_Металлопроцессинг_детализированный[[#This Row],[Инициатор+исполнитель]],1,IF(Таблица_Металлопроцессинг_детализированный[[#This Row],[Оборот за месяц по контрагенту]]<1000000,0.5,0.7))","v":0.5},{"$f":"IF(Таблица_Металлопроцессинг_детализированный[[#This Row],[Инициатор+исполнитель]]=TRUE,0,IF(Таблица_Металлопроцессинг_детализированный[[#This Row],[Оборот за месяц по контрагенту]]<1000000,0.5,0.3))","v":0.5},{"$f":"Таблица_Металлопроцессинг_детализированный[[#This Row],[Сумма наценки]]*Таблица_Металлопроцессинг_детализированный[[#This Row],[Распределение выручки для Куратора договора]]","v":1364.4},{"$f":"IF(Таблица_Металлопроцессинг_детализированный[[#This Row],[Распределение выручки для Менеджера договора]]=1,\"\",Таблица_Металлопроцессинг_детализированный[[#This Row],[Сумма наценки]]*Таблица_Металлопроцессинг_детализированный[[#This Row],[Распределение выручки для Менеджера договора]])","v":1364.4},"Процессинг","МОСКВА","АМИРА СК","ООО \"Амира-СтальКонструкция\"","Санкт-Петербург ","Санкт-Петербург ","Металлоконструкции","Сталь листовая Г/к., 16, 1500x6000, Ст.09Г2С (ГОСТ 19281)",null,2.274,"т",58350.84,"Порезка листового проката (ножницы)",null,2728.8,1,2.2599999999999998,null,"САНКТ-ПЕТЕРБУРГ","Центр",2.274]
[1,"САНКТ-ПЕТЕРБУРГ","Центр","Дауэнгауэр Н.Э.","Дауэнгауэр Н.Э.","Хабибуллов М.Р.",{"$f":"IF(Таблица_Металлопроцессинг_детализированный[[#This Row],[Куратор договора]]=Таблица_Металлопроцессинг_детализированный[[#This Row],[Менеджер]],TRUE,FALSE)","v":false},{"$f":"SUMIFS(AA120:AA2608,O120:O2608,Таблица_Металлопроцессинг_детализированный[[#This Row],[Контрагент]],A120:A2608,Таблица_Металлопроцессинг_детализированный[[#This Row],[Месяц отгрузки]])","v":125120},{"$f":"IF(Таблица_Металлопроцессинг_детализированный[[#This Row],[Инициатор+исполнитель]],1,IF(Таблица_Металлопроцессинг_детализированный[[#This Row],[Оборот за месяц по контрагенту]]<1000000,0.5,0.7))","v":0.5},{"$f":"IF(Таблица_Металлопроцессинг_детализированный[[#This Row],[Инициатор+исполнитель]]=TRUE,0,IF(Таблица_Металлопроцессинг_детализированный[[#This Row],[Оборот за месяц по контрагенту]]<1000000,0.5,0.3))","v":0.5},{"$f":"Таблица_Металлопроцессинг_детализированный[[#This Row],[Сумма наценки]]*Таблица_Металлопроцессинг_детализированный[[#This Row],[Распределение выручки для Куратора договора]]","v":2856},{"$f":"IF(Таблица_Металлопроцессинг_детализированный[[#This Row],[Распределение выручки для Менеджера договора]]=1,\"\",Таблица_Металлопроцессинг_детализированный[[#This Row],[Сумма наценки]]*Таблица_Металлопроцессинг_детализированный[[#This Row],[Распределение выручки для Менеджера договора]])","v":2856},"Процессинг","МОСКВА","АМИРА СК","ООО \"Амира-СтальКонструкция\"","Санкт-Петербург ","Санкт-Петербург ","Металлоконструкции","Сталь листовая Г/к., 20, 1500x6000, Ст.09Г2С (ГОСТ 19281)",null,2.8559999999999999,"т",73284.960000000006,"Порезка листового проката (ножницы)",null,5712,1,2.8559999999999999,null,"САНКТ-ПЕТЕРБУРГ","Центр",2.8559999999999999]
[1,"САНКТ-ПЕТЕРБУРГ","Центр","Матросова Л.Ш.","Матросова Л.Ш.","Матросова Л.Ш.",{"$f":"IF(Таблица_Металлопроцессинг_детализированный[[#This Row],[Куратор договора]]=Таблица_Металлопроцессинг_детализированный[[#This Row],[Менеджер]],TRUE,FALSE)","v":true},{"$f":"SUMIFS(AA121:AA2617,O121:O2617,Таблица_Металлопроцессинг_детализированный[[#This Row],[Контрагент]],A121:A2617,Таблица_Металлопроцессинг_детализированный[[#This Row],[Месяц отгрузки]])","v":8530},{"$f":"IF(Таблица_Металлопроцессинг_детализированный[[#This Row],[Инициатор+исполнитель]],1,IF(Таблица_Металлопроцессинг_детализированный[[#This Row],[Оборот за месяц по контрагенту]]<1000000,0.5,0.7))","v":1},{"$f":"IF(Таблица_Металлопроцессинг_детализированный[[#This Row],[Инициатор+исполнитель]]=TRUE,0,IF(Таблица_Металлопроцессинг_детализированный[[#This Row],[Оборот за месяц по контрагенту]]<1000000,0.5,0.3))","v":0},{"$f":"Таблица_Металлопроцессинг_детализированный[[#This Row],[Сумма наценки]]*Таблица_Металлопроцессинг_детализированный[[#This Row],[Распределение выручки для Куратора договора]]","v":4020},{"$f":"IF(Таблица_Металлопроцессинг_детализированный[[#This Row],[Распределение выручки для Менеджера договора]]=1,\"\",Таблица_Металлопроцессинг_детализированный[[#This Row],[Сумма наценки]]*Таблица_Металлопроцессинг_детализированный[[#This Row],[Распределение выручки для Менеджера договора]])","v":0},"Процессинг","САНКТ-ПЕТЕРБУРГ","Металлсоюз Спб","ООО \"Металлсоюз\"",null,null,"Металлоторговля","Арматура B500C, 8, Ст.сп/пс , в бунтах(ГОСТ 52544-2006)",null,4.0199999999999996,"т",103153.2,"Размотка/резка арматурного проката","MELC 16x4",4020,1,10,1,"САНКТ-ПЕТЕРБУРГ","Центр",4.0199999999999996]
[1,"САНКТ-ПЕТЕРБУРГ","Центр","Матросова Л.Ш.","Матросова Л.Ш.","Райская Н.А.",{"$f":"IF(Таблица_Металлопроцессинг_детализированный[[#This Row],[Куратор договора]]=Таблица_Металлопроцессинг_детализированный[[#This Row],[Менеджер]],TRUE,FALSE)","v":false},{"$f":"SUMIFS(AA122:AA2618,O122:O2618,Таблица_Металлопроцессинг_детализированный[[#This Row],[Контрагент]],A122:A2618,Таблица_Металлопроцессинг_детализированный[[#This Row],[Месяц отгрузки]])","v":4510},{"$f":"IF(Таблица_Металлопроцессинг_детализированный[[#This Row],[Инициатор+исполнитель]],1,IF(Таблица_Металлопроцессинг_детализированный[[#This Row],[Оборот за месяц по контрагенту]]<1000000,0.5,0.7))","v":0.5},{"$f":"IF(Таблица_Металлопроцессинг_детализированный[[#This Row],[Инициатор+исполнитель]]=TRUE,0,IF(Таблица_Металлопроцессинг_детализированный[[#This Row],[Оборот за месяц по контрагенту]]<1000000,0.5,0.3))","v":0.5},{"$f":"Таблица_Металлопроцессинг_детализированный[[#This Row],[Сумма наценки]]*Таблица_Металлопроцессинг_детализированный[[#This Row],[Распределение выручки для Куратора договора]]","v":2255},{"$f":"IF(Таблица_Металлопроцессинг_детализированный[[#This Row],[Распределение выручки для Менеджера договора]]=1,\"\",Таблица_Металлопроцессинг_детализированный[[#This Row],[Сумма наценки]]*Таблица_Металлопроцессинг_детализированный[[#This Row],[Распределение выручки для Менеджера договора]])","v":2255},"Процессинг","САНКТ-ПЕТЕРБУРГ","Металлсоюз Спб","ООО \"Металлсоюз\"",null,null,"Металлоторговля","Арматура B500C, 8, Ст.сп/пс , в бунтах(ГОСТ 52544-2006)",null,4.51,"т",115726.6,"Размотка/резка арматурного проката","MELC 16x4",4510,1,0,1,"САНКТ-ПЕТЕРБУРГ","Центр",4.51]
[1,"САНКТ-ПЕТЕРБУРГ","Центр","Матросова Л.Ш.","Матросова Л.Ш.","Матросова Л.Ш.",{"$f":"IF(Таблица_Металлопроцессинг_детализированный[[#This Row],[Куратор договора]]=Таблица_Металлопроцессинг_детализированный[[#This Row],[Менеджер]],TRUE,FALSE)","v":true},{"$f":"SUMIFS(AA123:AA2649,O123:O2649,Таблица_Металлопроцессинг_детализированный[[#This Row],[Контрагент]],A123:A2649,Таблица_Металлопроцессинг_детализированный[[#This Row],[Месяц отгрузки]])","v":540},{"$f":"IF(Таблица_Металлопроцессинг_детализированный[[#This Row],[Инициатор+исполнитель]],1,IF(Таблица_Металлопроцессинг_детализированный[[#This Row],[Оборот за месяц по контрагенту]]<1000000,0.5,0.7))","v":1},{"$f":"IF(Таблица_Металлопроцессинг_детализированный[[#This Row],[Инициатор+исполнитель]]=TRUE,0,IF(Таблица_Металлопроцессинг_детализированный[[#This Row],[Оборот за месяц по контрагенту]]<1000000,0.5,0.3))","v":0},{"$f":"Таблица_Металлопроцессинг_детализированный[[#This Row],[Сумма наценки]]*Таблица_Металлопроцессинг_детализированный[[#This Row],[Распределение выручки для Куратора договора]]","v":540},{"$f":"IF(Таблица_Металлопроцессинг_детализированный[[#This Row],[Распределение выручки для Менеджера договора]]=1,\"\",Таблица_Металлопроцессинг_детализированный[[#This Row],[Сумма наценки]]*Таблица_Металлопроцессинг_детализированный[[#This Row],[Распределение выручки для Менеджера договора]])","v":0},"Процессинг","САНКТ-ПЕТЕРБУРГ","ФЕРРОАРТ","ООО \"ФЕРРОАРТ\"",null,null,"Металлоконструкции","Швеллер стальной г/к, 27У, С255 (ГОСТ 27772-88)",null,0.66500000000000004,"т",22457.05,"Станок ленточнопильный","PEGASUS",540,2,0.67400000000000004,1,"САНКТ-ПЕТЕРБУРГ","Центр",0.66500000000000004]
[1,"САНКТ-ПЕТЕРБУРГ","Центр","Сафонеев С.А.","Сафонеев С.А.","Сафонеев С.А.",{"$f":"IF(Таблица_Металлопроцессинг_детализированный[[#This Row],[Куратор договора]]=Таблица_Металлопроцессинг_детализированный[[#This Row],[Менеджер]],TRUE,FALSE)","v":true},{"$f":"SUMIFS(AA124:AA2650,O124:O2650,Таблица_Металлопроцессинг_детализированный[[#This Row],[Контрагент]],A124:A2650,Таблица_Металлопроцессинг_детализированный[[#This Row],[Месяц отгрузки]])","v":67247.86},{"$f":"IF(Таблица_Металлопроцессинг_детализированный[[#This Row],[Инициатор+исполнитель]],1,IF(Таблица_Металлопроцессинг_детализированный[[#This Row],[Оборот за месяц по контрагенту]]<1000000,0.5,0.7))","v":1},{"$f":"IF(Таблица_Металлопроцессинг_детализированный[[#This Row],[Инициатор+исполнитель]]=TRUE,0,IF(Таблица_Металлопроцессинг_детализированный[[#This Row],[Оборот за месяц по контрагенту]]<1000000,0.5,0.3))","v":0},{"$f":"Таблица_Металлопроцессинг_детализированный[[#This Row],[Сумма наценки]]*Таблица_Металлопроцессинг_детализированный[[#This Row],[Распределение выручки для Куратора договора]]","v":41866.769999999997},{"$f":"IF(Таблица_Металлопроцессинг_детализированный[[#This Row],[Распределение выручки для Менеджера договора]]=1,\"\",Таблица_Металлопроцессинг_детализированный[[#This Row],[Сумма наценки]]*Таблица_Металлопроцессинг_детализированный[[#This Row],[Распределение выручки для Менеджера договора]])","v":0},"Из давальческого сырья","САНКТ-ПЕТЕРБУРГ","НЕВА-МЕТАЛЛТРЭЙД ООО","ООО \"Нева-МеталлТрэйд\"","г. Санкт-Петербург ","г. Санкт-Петербург ","Машиностроение","Изделие","Полособульб РСД32 №16а, 6000мм",14.289,"т",0,"Очистка и покраска проката (грунт HEMPEL)","ROSLER",41866.769999999997,14.289,14.289,1,"САНКТ-ПЕТЕРБУРГ","Центр",14.289]
[1,"САНКТ-ПЕТЕРБУРГ","Центр","Сафонеев С.А.","Сафонеев С.А.","Сафонеев С.А.",{"$f":"IF(Таблица_Металлопроцессинг_детализированный[[#This Row],[Куратор договора]]=Таблица_Металлопроцессинг_детализированный[[#This Row],[Менеджер]],TRUE,FALSE)","v":true},{"$f":"SUMIFS(AA125:AA2651,O125:O2651,Таблица_Металлопроцессинг_детализированный[[#This Row],[Контрагент]],A125:A2651,Таблица_Металлопроцессинг_детализированный[[#This Row],[Месяц отгрузки]])","v":25381.089999999997},{"$f":"IF(Таблица_Металлопроцессинг_детализированный[[#This Row],[Инициатор+исполнитель]],1,IF(Таблица_Металлопроцессинг_детализированный[[#This Row],[Оборот за месяц по контрагенту]]<1000000,0.5,0.7))","v":1},{"$f":"IF(Таблица_Металлопроцессинг_детализированный[[#This Row],[Инициатор+исполнитель]]=TRUE,0,IF(Таблица_Металлопроцессинг_детализированный[[#This Row],[Оборот за месяц по контрагенту]]<1000000,0.5,0.3))","v":0},{"$f":"Таблица_Металлопроцессинг_детализированный[[#This Row],[Сумма наценки]]*Таблица_Металлопроцессинг_детализированный[[#This Row],[Распределение выручки для Куратора договора]]","v":13564.4},{"$f":"IF(Таблица_Металлопроцессинг_детализированный[[#This Row],[Распределение выручки для Менеджера договора]]=1,\"\",Таблица_Металлопроцессинг_детализированный[[#This Row],[Сумма наценки]]*Таблица_Металлопроцессинг_детализированный[[#This Row],[Распределение выручки для Менеджера договора]])","v":0},"Из давальческого сырья","САНКТ-ПЕТЕРБУРГ","НЕВА-МЕТАЛЛТРЭЙД ООО","ООО \"Нева-МеталлТрэйд\"","г. Санкт-Петербург ","г. Санкт-Петербург ","Машиностроение","Изделие","Полособульб РСД32 №20а, 6000мм",5.6660000000000004,"т",0,"Очистка и покраска проката (грунт HEMPEL)","ROSLER",13564.4,5.6660000000000004,5.6660000000000004,1,"САНКТ-ПЕТЕРБУРГ","Центр",5.6660000000000004]
[1,"САНКТ-ПЕТЕРБУРГ","Центр","Сафонеев С.А.","Сафонеев С.А.","Сафонеев С.А.",{"$f":"IF(Таблица_Металлопроцессинг_детализированный[[#This Row],[Куратор договора]]=Таблица_Металлопроцессинг_детализированный[[#This Row],[Менеджер]],TRUE,FALSE)","v":true},{"$f":"SUMIFS(AA126:AA2652,O126:O2652,Таблица_Металлопроцессинг_детализированный[[#This Row],[Контрагент]],A126:A2652,Таблица_Металлопроцессинг_детализированный[[#This Row],[Месяц отгрузки]])","v":11816.689999999999},{"$f":"IF(Таблица_Металлопроцессинг_детализированный[[#This Row],[Инициатор+исполнитель]],1,IF(Таблица_Металлопроцессинг_детализированный[[#This Row],[Оборот за месяц по контрагенту]]<1000000,0.5,0.7))","v":1},{"$f":"IF(Таблица_Металлопроцессинг_детализированный[[#This Row],[Инициатор+исполнитель]]=TRUE,0,IF(Таблица_Металлопроцессинг_детализированный[[#This Row],[Оборот за месяц по контрагенту]]<1000000,0.5,0.3))","v":0},{"$f":"Таблица_Металлопроцессинг_детализированный[[#This Row],[Сумма наценки]]*Таблица_Металлопроцессинг_детализированный[[#This Row],[Распределение выручки для Куратора договора]]","v":7333.79},{"$f":"IF(Таблица_Металлопроцессинг_детализированный[[#This Row],[Распределение выручки для Менеджера договора]]=1,\"\",Таблица_Металлопроцессинг_детализированный[[#This Row],[Сумма наценки]]*Таблица_Металлопроцессинг_детализированный[[#This Row],[Распределение выручки для Менеджера договора]])","v":0},"Из давальческого сырья","САНКТ-ПЕТЕРБУРГ","НЕВА-МЕТАЛЛТРЭЙД ООО","ООО \"Нева-МеталлТрэйд\"","г. Санкт-Петербург ","г. Санкт-Петербург ","Машиностроение","Изделие","Полособьульб РСД32 №16б, 6000мм",2.5030000000000001,"т",0,"Очистка и покраска проката (грунт HEMPEL)","ROSLER",7333.79,2.5030000000000001,2.5030000000000001,1,"САНКТ-ПЕТЕРБУРГ","Центр",2.5030000000000001]
[1,"САНКТ-ПЕТЕРБУРГ","Центр","Сафонеев С.А.","Сафонеев С.А.","Сафонеев С.А.",{"$f":"IF(Таблица_Металлопроцессинг_детализированный[[#This Row],[Куратор договора]]=Таблица_Металлопроцессинг_детализированный[[#This Row],[Менеджер]],TRUE,FALSE)","v":true},{"$f":"SUMIFS(AA127:AA2653,O127:O2653,Таблица_Металлопроцессинг_детализированный[[#This Row],[Контрагент]],A127:A2653,Таблица_Металлопроцессинг_детализированный[[#This Row],[Месяц отгрузки]])","v":4482.8999999999996},{"$f":"IF(Таблица_Металлопроцессинг_детализированный[[#This Row],[Инициатор+исполнитель]],1,IF(Таблица_Металлопроцессинг_детализированный[[#This Row],[Оборот за месяц по контрагенту]]<1000000,0.5,0.7))","v":1},{"$f":"IF(Таблица_Металлопроцессинг_детализированный[[#This Row],[Инициатор+исполнитель]]=TRUE,0,IF(Таблица_Металлопроцессинг_детализированный[[#This Row],[Оборот за месяц по контрагенту]]<1000000,0.5,0.3))","v":0},{"$f":"Таблица_Металлопроцессинг_детализированный[[#This Row],[Сумма наценки]]*Таблица_Металлопроцессинг_детализированный[[#This Row],[Распределение выручки для Куратора договора]]","v":4482.8999999999996},{"$f":"IF(Таблица_Металлопроцессинг_детализированный[[#This Row],[Распределение выручки для Менеджера договора]]=1,\"\",Таблица_Металлопроцессинг_детализированный[[#This Row],[Сумма наценки]]*Таблица_Металлопроцессинг_детализированный[[#This Row],[Распределение выручки для Менеджера договора]])","v":0},"Из давальческого сырья","САНКТ-ПЕТЕРБУРГ","НЕВА-МЕТАЛЛТРЭЙД ООО","ООО \"Нева-МеталлТрэйд\"","г. Санкт-Петербург ","г. Санкт-Петербург ","Машиностроение","Изделие","Полособульб РСД32, №16а, L=6000",1.53,"т",0,"Очистка и покраска проката (грунт HEMPEL)","ROSLER",4482.8999999999996,1.53,1.53,1,"САНКТ-ПЕТЕРБУРГ","Центр",1.53]
[1,"САНКТ-ПЕТЕРБУРГ","Центр","Молчанова Е.М.","Молчанова Е.М.","Молчанова Е.М.",{"$f":"IF(Таблица_Металлопроцессинг_детализированный[[#This Row],[Куратор договора]]=Таблица_Металлопроцессинг_детализированный[[#This Row],[Менеджер]],TRUE,FALSE)","v":true},{"$f":"SUMIFS(AA128:AA2661,O128:O2661,Таблица_Металлопроцессинг_детализированный[[#This Row],[Контрагент]],A128:A2661,Таблица_Металлопроцессинг_детализированный[[#This Row],[Месяц отгрузки]])","v":98360},{"$f":"IF(Таблица_Металлопроцессинг_детализированный[[#This Row],[Инициатор+исполнитель]],1,IF(Таблица_Металлопроцессинг_детализированный[[#This Row],[Оборот за месяц по контрагенту]]<1000000,0.5,0.7))","v":1},{"$f":"IF(Таблица_Металлопроцессинг_детализированный[[#This Row],[Инициатор+исполнитель]]=TRUE,0,IF(Таблица_Металлопроцессинг_детализированный[[#This Row],[Оборот за месяц по контрагенту]]<1000000,0.5,0.3))","v":0},{"$f":"Таблица_Металлопроцессинг_детализированный[[#This Row],[Сумма наценки]]*Таблица_Металлопроцессинг_детализированный[[#This Row],[Распределение выручки для Куратора договора]]","v":33900},{"$f":"IF(Таблица_Металлопроцессинг_детализированный[[#This Row],[Распределение выручки для Менеджера договора]]=1,\"\",Таблица_Металлопроцессинг_детализированный[[#This Row],[Сумма наценки]]*Таблица_Металлопроцессинг_детализированный[[#This Row],[Распределение выручки для Менеджера договора]])","v":0},"Процессинг","САНКТ-ПЕТЕРБУРГ","НЕВСКИЙ МЕТАЛЛ (СПб)","ООО \"НЕВСКИЙ МЕТАЛЛ\"",null,null,"Металлоторговля","Сталь рулонная Г/к., 4, 1500, Ст.сп/пс (19903)",null,2.9,"т",65047,"Порезка листового проката (ножницы)","COLGAR CI-34-TR",33900,452,2.9,1,"САНКТ-ПЕТЕРБУРГ","Центр",2.9]
[1,"САНКТ-ПЕТЕРБУРГ","Центр","Хабибуллов М.Р.","Хабибуллов М.Р.","Хабибуллов М.Р.",{"$f":"IF(Таблица_Металлопроцессинг_детализированный[[#This Row],[Куратор договора]]=Таблица_Металлопроцессинг_детализированный[[#This Row],[Менеджер]],TRUE,FALSE)","v":true},{"$f":"SUMIFS(AA129:AA2662,O129:O2662,Таблица_Металлопроцессинг_детализированный[[#This Row],[Контрагент]],A129:A2662,Таблица_Металлопроцессинг_детализированный[[#This Row],[Месяц отгрузки]])","v":194944.5},{"$f":"IF(Таблица_Металлопроцессинг_детализированный[[#This Row],[Инициатор+исполнитель]],1,IF(Таблица_Металлопроцессинг_детализированный[[#This Row],[Оборот за месяц по контрагенту]]<1000000,0.5,0.7))","v":1},{"$f":"IF(Таблица_Металлопроцессинг_детализированный[[#This Row],[Инициатор+исполнитель]]=TRUE,0,IF(Таблица_Металлопроцессинг_детализированный[[#This Row],[Оборот за месяц по контрагенту]]<1000000,0.5,0.3))","v":0},{"$f":"Таблица_Металлопроцессинг_детализированный[[#This Row],[Сумма наценки]]*Таблица_Металлопроцессинг_детализированный[[#This Row],[Распределение выручки для Куратора договора]]","v":29982},{"$f":"IF(Таблица_Металлопроцессинг_детализированный[[#This Row],[Распределение выручки для Менеджера договора]]=1,\"\",Таблица_Металлопроцессинг_детализированный[[#This Row],[Сумма наценки]]*Таблица_Металлопроцессинг_детализированный[[#This Row],[Распределение выручки для Менеджера договора]])","v":0},"Процессинг","САНКТ-ПЕТЕРБУРГ","АртЛэнд","ООО \"Строительная компания \"АртЛэнд\"",null,null,"Стройиндустрия","Шпунт Ларсена Л5-УМ, С255 (ТУ 14-102-8-2003)",null,19.988,"т",789526,"Очистка и покраска проката (грунт ЭМЛАК 263)","ROSLER",29982,19.988,66.224000000000004,1,"САНКТ-ПЕТЕРБУРГ","Центр",19.988]
[1,"САНКТ-ПЕТЕРБУРГ","Центр","Молчанова Е.М.","Молчанова Е.М.","Молчанова Е.М.",{"$f":"IF(Таблица_Металлопроцессинг_детализированный[[#This Row],[Куратор договора]]=Таблица_Металлопроцессинг_детализированный[[#This Row],[Менеджер]],TRUE,FALSE)","v":true},{"$f":"SUMIFS(AA130:AA2676,O130:O2676,Таблица_Металлопроцессинг_детализированный[[#This Row],[Контрагент]],A130:A2676,Таблица_Металлопроцессинг_детализированный[[#This Row],[Месяц отгрузки]])","v":12124.2},{"$f":"IF(Таблица_Металлопроцессинг_детализированный[[#This Row],[Инициатор+исполнитель]],1,IF(Таблица_Металлопроцессинг_детализированный[[#This Row],[Оборот за месяц по контрагенту]]<1000000,0.5,0.7))","v":1},{"$f":"IF(Таблица_Металлопроцессинг_детализированный[[#This Row],[Инициатор+исполнитель]]=TRUE,0,IF(Таблица_Металлопроцессинг_детализированный[[#This Row],[Оборот за месяц по контрагенту]]<1000000,0.5,0.3))","v":0},{"$f":"Таблица_Металлопроцессинг_детализированный[[#This Row],[Сумма наценки]]*Таблица_Металлопроцессинг_детализированный[[#This Row],[Распределение выручки для Куратора договора]]","v":3090},{"$f":"IF(Таблица_Металлопроцессинг_детализированный[[#This Row],[Распределение выручки для Менеджера договора]]=1,\"\",Таблица_Металлопроцессинг_детализированный[[#This Row],[Сумма наценки]]*Таблица_Металлопроцессинг_детализированный[[#This Row],[Распределение выручки для Менеджера договора]])","v":0},"Процессинг","САНКТ-ПЕТЕРБУРГ","ПСМ-25","ООО \"ПромСтройМонтаж - 25\"",null,null,"Стройиндустрия","Арматура B500C, 10, Ст.сп/пс , в бунтах(ГОСТ 52544-2006)",null,2.06,"т",52859.6,"Размотка/резка арматурного проката","MELC 16x4",3090,1,2,1,"САНКТ-ПЕТЕРБУРГ","Центр",2.06]
[1,"САНКТ-ПЕТЕРБУРГ","Центр","Молчанова Е.М.","Молчанова Е.М.","Молчанова Е.М.",{"$f":"IF(Таблица_Металлопроцессинг_детализированный[[#This Row],[Куратор договора]]=Таблица_Металлопроцессинг_детализированный[[#This Row],[Менеджер]],TRUE,FALSE)","v":true},{"$f":"SUMIFS(AA131:AA2677,O131:O2677,Таблица_Металлопроцессинг_детализированный[[#This Row],[Контрагент]],A131:A2677,Таблица_Металлопроцессинг_детализированный[[#This Row],[Месяц отгрузки]])","v":9034.2000000000007},{"$f":"IF(Таблица_Металлопроцессинг_детализированный[[#This Row],[Инициатор+исполнитель]],1,IF(Таблица_Металлопроцессинг_детализированный[[#This Row],[Оборот за месяц по контрагенту]]<1000000,0.5,0.7))","v":1},{"$f":"IF(Таблица_Металлопроцессинг_детализированный[[#This Row],[Инициатор+исполнитель]]=TRUE,0,IF(Таблица_Металлопроцессинг_детализированный[[#This Row],[Оборот за месяц по контрагенту]]<1000000,0.5,0.3))","v":0},{"$f":"Таблица_Металлопроцессинг_детализированный[[#This Row],[Сумма наценки]]*Таблица_Металлопроцессинг_детализированный[[#This Row],[Распределение выручки для Куратора договора]]","v":2925},{"$f":"IF(Таблица_Металлопроцессинг_детализированный[[#This Row],[Распределение выручки для Менеджера договора]]=1,\"\",Таблица_Металлопроцессинг_детализированный[[#This Row],[Сумма наценки]]*Таблица_Металлопроцессинг_детализированный[[#This Row],[Распределение выручки для Менеджера договора]])","v":0},"Процессинг","САНКТ-ПЕТЕРБУРГ","ПСМ-25","ООО \"ПромСтройМонтаж - 25\"",null,null,"Стройиндустрия","Арматура класс АI, 8, Ст.сп/пс, в бунтах (ГОСТ5781-82)",null,1.95,"т",50037,"Размотка/резка арматурного проката","MELC 16x4",2925,1,2,1,"САНКТ-ПЕТЕРБУРГ","Центр",1.95]
[1,"САНКТ-ПЕТЕРБУРГ","Центр","Молчанова Е.М.","Молчанова Е.М.","Райская Н.А.",{"$f":"IF(Таблица_Металлопроцессинг_детализированный[[#This Row],[Куратор договора]]=Таблица_Металлопроцессинг_детализированный[[#This Row],[Менеджер]],TRUE,FALSE)","v":false},{"$f":"SUMIFS(AA132:AA2678,O132:O2678,Таблица_Металлопроцессинг_детализированный[[#This Row],[Контрагент]],A132:A2678,Таблица_Металлопроцессинг_детализированный[[#This Row],[Месяц отгрузки]])","v":6109.2},{"$f":"IF(Таблица_Металлопроцессинг_детализированный[[#This Row],[Инициатор+исполнитель]],1,IF(Таблица_Металлопроцессинг_детализированный[[#This Row],[Оборот за месяц по контрагенту]]<1000000,0.5,0.7))","v":0.5},{"$f":"IF(Таблица_Металлопроцессинг_детализированный[[#This Row],[Инициатор+исполнитель]]=TRUE,0,IF(Таблица_Металлопроцессинг_детализированный[[#This Row],[Оборот за месяц по контрагенту]]<1000000,0.5,0.3))","v":0.5},{"$f":"Таблица_Металлопроцессинг_детализированный[[#This Row],[Сумма наценки]]*Таблица_Металлопроцессинг_детализированный[[#This Row],[Распределение выручки для Куратора договора]]","v":2385},{"$f":"IF(Таблица_Металлопроцессинг_детализированный[[#This Row],[Распределение выручки для Менеджера договора]]=1,\"\",Таблица_Металлопроцессинг_детализированный[[#This Row],[Сумма наценки]]*Таблица_Металлопроцессинг_детализированный[[#This Row],[Распределение выручки для Менеджера договора]])","v":2385},"Процессинг","САНКТ-ПЕТЕРБУРГ","ПСМ-25","ООО \"ПромСтройМонтаж - 25\"",null,null,"Стройиндустрия","Арматура класс АIII (А400), 8, Ст.35ГС, в бунтах (ГОСТ5781-82)",null,3.18,"т",83347.8,"Размотка/резка арматурного проката","MELC 16x4",4770,1,3,1,"САНКТ-ПЕТЕРБУРГ","Центр",3.18]
[1,"САНКТ-ПЕТЕРБУРГ","Центр","Молчанова Е.М.","Молчанова Е.М.","Хабибуллов М.Р.",{"$f":"IF(Таблица_Металлопроцессинг_детализированный[[#This Row],[Куратор договора]]=Таблица_Металлопроцессинг_детализированный[[#This Row],[Менеджер]],TRUE,FALSE)","v":false},{"$f":"SUMIFS(AA133:AA2679,O133:O2679,Таблица_Металлопроцессинг_детализированный[[#This Row],[Контрагент]],A133:A2679,Таблица_Металлопроцессинг_детализированный[[#This Row],[Месяц отгрузки]])","v":1339.2},{"$f":"IF(Таблица_Металлопроцессинг_детализированный[[#This Row],[Инициатор+исполнитель]],1,IF(Таблица_Металлопроцессинг_детализированный[[#This Row],[Оборот за месяц по контрагенту]]<1000000,0.5,0.7))","v":0.5},{"$f":"IF(Таблица_Металлопроцессинг_детализированный[[#This Row],[Инициатор+исполнитель]]=TRUE,0,IF(Таблица_Металлопроцессинг_детализированный[[#This Row],[Оборот за месяц по контрагенту]]<1000000,0.5,0.3))","v":0.5},{"$f":"Таблица_Металлопроцессинг_детализированный[[#This Row],[Сумма наценки]]*Таблица_Металлопроцессинг_детализированный[[#This Row],[Распределение выручки для Куратора договора]]","v":669.6},{"$f":"IF(Таблица_Металлопроцессинг_детализированный[[#This Row],[Распределение выручки для Менеджера договора]]=1,\"\",Таблица_Металлопроцессинг_детализированный[[#This Row],[Сумма наценки]]*Таблица_Металлопроцессинг_детализированный[[#This Row],[Распределение выручки для Менеджера договора]])","v":669.6},"Процессинг","САНКТ-ПЕТЕРБУРГ","ПСМ-25","ООО \"ПромСтройМонтаж - 25\"",null,null,"Стройиндустрия","Катанка, 6.5, Ст.08Г2С (ТУ 14-1-4782-90)",null,0.48,"т",12796.8,"Размотка/резка арматурного проката","MELC 16x4",1339.2,1,0.55000000000000004,1,"САНКТ-ПЕТЕРБУРГ","Центр",0.48]
[1,"САНКТ-ПЕТЕРБУРГ","Центр","Хабибуллов М.Р.","Хабибуллов М.Р.","Дауэнгауэр Н.Э.",{"$f":"IF(Таблица_Металлопроцессинг_детализированный[[#This Row],[Куратор договора]]=Таблица_Металлопроцессинг_детализированный[[#This Row],[Менеджер]],TRUE,FALSE)","v":false},{"$f":"SUMIFS(AA134:AA2680,O134:O2680,Таблица_Металлопроцессинг_детализированный[[#This Row],[Контрагент]],A134:A2680,Таблица_Металлопроцессинг_детализированный[[#This Row],[Месяц отгрузки]])","v":124850},{"$f":"IF(Таблица_Металлопроцессинг_детализированный[[#This Row],[Инициатор+исполнитель]],1,IF(Таблица_Металлопроцессинг_детализированный[[#This Row],[Оборот за месяц по контрагенту]]<1000000,0.5,0.7))","v":0.5},{"$f":"IF(Таблица_Металлопроцессинг_детализированный[[#This Row],[Инициатор+исполнитель]]=TRUE,0,IF(Таблица_Металлопроцессинг_детализированный[[#This Row],[Оборот за месяц по контрагенту]]<1000000,0.5,0.3))","v":0.5},{"$f":"Таблица_Металлопроцессинг_детализированный[[#This Row],[Сумма наценки]]*Таблица_Металлопроцессинг_детализированный[[#This Row],[Распределение выручки для Куратора договора]]","v":21105},{"$f":"IF(Таблица_Металлопроцессинг_детализированный[[#This Row],[Распределение выручки для Менеджера договора]]=1,\"\",Таблица_Металлопроцессинг_детализированный[[#This Row],[Сумма наценки]]*Таблица_Металлопроцессинг_детализированный[[#This Row],[Распределение выручки для Менеджера договора]])","v":21105},"Процессинг","САНКТ-ПЕТЕРБУРГ","РОССИНКОМ","ООО \"Строительная инновационная компания \"РОССИНКОМ\"",null,null,"Стройиндустрия","Шпунт Ларсена Л5-УМ, С255 (ТУ 0925-008-00186269-2012)",null,21.105,"т",833436.45,"Очистка и покраска проката (грунт HEMPEL)","ROSLER",42210,21.105,60.28,1,"САНКТ-ПЕТЕРБУРГ","Центр",21.105]
[1,"САНКТ-ПЕТЕРБУРГ","Центр","Молчанова Е.М.","Молчанова Е.М.","Дауэнгауэр Н.Э.",{"$f":"IF(Таблица_Металлопроцессинг_детализированный[[#This Row],[Куратор договора]]=Таблица_Металлопроцессинг_детализированный[[#This Row],[Менеджер]],TRUE,FALSE)","v":false},{"$f":"SUMIFS(AA135:AA2681,O135:O2681,Таблица_Металлопроцессинг_детализированный[[#This Row],[Контрагент]],A135:A2681,Таблица_Металлопроцессинг_детализированный[[#This Row],[Месяц отгрузки]])","v":11700},{"$f":"IF(Таблица_Металлопроцессинг_детализированный[[#This Row],[Инициатор+исполнитель]],1,IF(Таблица_Металлопроцессинг_детализированный[[#This Row],[Оборот за месяц по контрагенту]]<1000000,0.5,0.7))","v":0.5},{"$f":"IF(Таблица_Металлопроцессинг_детализированный[[#This Row],[Инициатор+исполнитель]]=TRUE,0,IF(Таблица_Металлопроцессинг_детализированный[[#This Row],[Оборот за месяц по контрагенту]]<1000000,0.5,0.3))","v":0.5},{"$f":"Таблица_Металлопроцессинг_детализированный[[#This Row],[Сумма наценки]]*Таблица_Металлопроцессинг_детализированный[[#This Row],[Распределение выручки для Куратора договора]]","v":5850},{"$f":"IF(Таблица_Металлопроцессинг_детализированный[[#This Row],[Распределение выручки для Менеджера договора]]=1,\"\",Таблица_Металлопроцессинг_детализированный[[#This Row],[Сумма наценки]]*Таблица_Металлопроцессинг_детализированный[[#This Row],[Распределение выручки для Менеджера договора]])","v":5850},"Процессинг","САНКТ-ПЕТЕРБУРГ","Трест 68 ЗАО","ЗАО \"Трест 68\"","г. Санкт-Петербург ","г. Санкт-Петербург ","Стройиндустрия","Сталь листовая Г/к. рифленая, 4, 1500x6000, Ст.сп/пс (ГОСТ 8568-77)",null,1.54,"т",40871.599999999999,"Порезка листового проката (ножницы)","COLGAR CI-34-TR",11700,78,1.5,1,"САНКТ-ПЕТЕРБУРГ","Центр",1.54]
[1,"САНКТ-ПЕТЕРБУРГ","Центр","Хабибуллов М.Р.","Хабибуллов М.Р.","Хабибуллов М.Р.",{"$f":"IF(Таблица_Металлопроцессинг_детализированный[[#This Row],[Куратор договора]]=Таблица_Металлопроцессинг_детализированный[[#This Row],[Менеджер]],TRUE,FALSE)","v":true},{"$f":"SUMIFS(AA136:AA2685,O136:O2685,Таблица_Металлопроцессинг_детализированный[[#This Row],[Контрагент]],A136:A2685,Таблица_Металлопроцессинг_детализированный[[#This Row],[Месяц отгрузки]])","v":164962.5},{"$f":"IF(Таблица_Металлопроцессинг_детализированный[[#This Row],[Инициатор+исполнитель]],1,IF(Таблица_Металлопроцессинг_детализированный[[#This Row],[Оборот за месяц по контрагенту]]<1000000,0.5,0.7))","v":1},{"$f":"IF(Таблица_Металлопроцессинг_детализированный[[#This Row],[Инициатор+исполнитель]]=TRUE,0,IF(Таблица_Металлопроцессинг_детализированный[[#This Row],[Оборот за месяц по контрагенту]]<1000000,0.5,0.3))","v":0},{"$f":"Таблица_Металлопроцессинг_детализированный[[#This Row],[Сумма наценки]]*Таблица_Металлопроцессинг_детализированный[[#This Row],[Распределение выручки для Куратора договора]]","v":29997},{"$f":"IF(Таблица_Металлопроцессинг_детализированный[[#This Row],[Распределение выручки для Менеджера договора]]=1,\"\",Таблица_Металлопроцессинг_детализированный[[#This Row],[Сумма наценки]]*Таблица_Металлопроцессинг_детализированный[[#This Row],[Распределение выручки для Менеджера договора]])","v":0},"Процессинг","САНКТ-ПЕТЕРБУРГ","АртЛэнд","ООО \"Строительная компания \"АртЛэнд\"",null,null,"Стройиндустрия","Шпунт Ларсена Л5-УМ, С255 (ТУ 14-102-8-2003)",null,19.998000000000001,"т",789921,"Очистка и покраска проката (грунт ЭМЛАК 263)","ROSLER",29997,19.998000000000001,19.998000000000001,2,"САНКТ-ПЕТЕРБУРГ","Центр",19.998000000000001]
[1,"САНКТ-ПЕТЕРБУРГ","Центр","Степура С.Н.","Степура С.Н.","Степура С.Н.",{"$f":"IF(Таблица_Металлопроцессинг_детализированный[[#This Row],[Куратор договора]]=Таблица_Металлопроцессинг_детализированный[[#This Row],[Менеджер]],TRUE,FALSE)","v":true},{"$f":"SUMIFS(AA137:AA2686,O137:O2686,Таблица_Металлопроцессинг_детализированный[[#This Row],[Контрагент]],A137:A2686,Таблица_Металлопроцессинг_детализированный[[#This Row],[Месяц отгрузки]])","v":17950},{"$f":"IF(Таблица_Металлопроцессинг_детализированный[[#This Row],[Инициатор+исполнитель]],1,IF(Таблица_Металлопроцессинг_детализированный[[#This Row],[Оборот за месяц по контрагенту]]<1000000,0.5,0.7))","v":1},{"$f":"IF(Таблица_Металлопроцессинг_детализированный[[#This Row],[Инициатор+исполнитель]]=TRUE,0,IF(Таблица_Металлопроцессинг_детализированный[[#This Row],[Оборот за месяц по контрагенту]]<1000000,0.5,0.3))","v":0},{"$f":"Таблица_Металлопроцессинг_детализированный[[#This Row],[Сумма наценки]]*Таблица_Металлопроцессинг_детализированный[[#This Row],[Распределение выручки для Куратора договора]]","v":12480},{"$f":"IF(Таблица_Металлопроцессинг_детализированный[[#This Row],[Распределение выручки для Менеджера договора]]=1,\"\",Таблица_Металлопроцессинг_детализированный[[#This Row],[Сумма наценки]]*Таблица_Металлопроцессинг_детализированный[[#This Row],[Распределение выручки для Менеджера договора]])","v":0},"Процессинг","САНКТ-ПЕТЕРБУРГ","СФИНКС","ООО \"Сфинкс\"","Ленинградская обл.","Ленинградская обл.","Стройиндустрия","Сталь листовая Г/к., 16, 1500x6000, Ст.сп/пс (ГОСТ 14637)",null,1.1299999999999999,"т",26227.3,"Порезка листового проката (ножницы)","COLGAR CI-34-TR",12480,78,1.1299999999999999,1,"САНКТ-ПЕТЕРБУРГ","Центр",1.1299999999999999]
[1,"САНКТ-ПЕТЕРБУРГ","Центр","Степура С.Н.","Степура С.Н.","Степура С.Н.",{"$f":"IF(Таблица_Металлопроцессинг_детализированный[[#This Row],[Куратор договора]]=Таблица_Металлопроцессинг_детализированный[[#This Row],[Менеджер]],TRUE,FALSE)","v":true},{"$f":"SUMIFS(AA138:AA2687,O138:O2687,Таблица_Металлопроцессинг_детализированный[[#This Row],[Контрагент]],A138:A2687,Таблица_Металлопроцессинг_детализированный[[#This Row],[Месяц отгрузки]])","v":5470},{"$f":"IF(Таблица_Металлопроцессинг_детализированный[[#This Row],[Инициатор+исполнитель]],1,IF(Таблица_Металлопроцессинг_детализированный[[#This Row],[Оборот за месяц по контрагенту]]<1000000,0.5,0.7))","v":1},{"$f":"IF(Таблица_Металлопроцессинг_детализированный[[#This Row],[Инициатор+исполнитель]]=TRUE,0,IF(Таблица_Металлопроцессинг_детализированный[[#This Row],[Оборот за месяц по контрагенту]]<1000000,0.5,0.3))","v":0},{"$f":"Таблица_Металлопроцессинг_детализированный[[#This Row],[Сумма наценки]]*Таблица_Металлопроцессинг_детализированный[[#This Row],[Распределение выручки для Куратора договора]]","v":3500},{"$f":"IF(Таблица_Металлопроцессинг_детализированный[[#This Row],[Распределение выручки для Менеджера договора]]=1,\"\",Таблица_Металлопроцессинг_детализированный[[#This Row],[Сумма наценки]]*Таблица_Металлопроцессинг_детализированный[[#This Row],[Распределение выручки для Менеджера договора]])","v":0},"Процессинг","САНКТ-ПЕТЕРБУРГ","СФИНКС","ООО \"Сфинкс\"","Ленинградская обл.","Ленинградская обл.","Стройиндустрия","Уголок стальной г/к равнополочный, 160x10, С255 (ГОСТ 8509-93 / ГОСТ 27772-88)",null,0.22500000000000001,"т",7546.5,"Станок ленточнопильный","PEGASUS",3500,50,0.22,1,"САНКТ-ПЕТЕРБУРГ","Центр",0.22500000000000001]
[1,"САНКТ-ПЕТЕРБУРГ","Центр","Степура С.Н.","Степура С.Н.","Степура С.Н.",{"$f":"IF(Таблица_Металлопроцессинг_детализированный[[#This Row],[Куратор договора]]=Таблица_Металлопроцессинг_детализированный[[#This Row],[Менеджер]],TRUE,FALSE)","v":true},{"$f":"SUMIFS(AA139:AA2688,O139:O2688,Таблица_Металлопроцессинг_детализированный[[#This Row],[Контрагент]],A139:A2688,Таблица_Металлопроцессинг_детализированный[[#This Row],[Месяц отгрузки]])","v":1970},{"$f":"IF(Таблица_Металлопроцессинг_детализированный[[#This Row],[Инициатор+исполнитель]],1,IF(Таблица_Металлопроцессинг_детализированный[[#This Row],[Оборот за месяц по контрагенту]]<1000000,0.5,0.7))","v":1},{"$f":"IF(Таблица_Металлопроцессинг_детализированный[[#This Row],[Инициатор+исполнитель]]=TRUE,0,IF(Таблица_Металлопроцессинг_детализированный[[#This Row],[Оборот за месяц по контрагенту]]<1000000,0.5,0.3))","v":0},{"$f":"Таблица_Металлопроцессинг_детализированный[[#This Row],[Сумма наценки]]*Таблица_Металлопроцессинг_детализированный[[#This Row],[Распределение выручки для Куратора договора]]","v":1650},{"$f":"IF(Таблица_Металлопроцессинг_детализированный[[#This Row],[Распределение выручки для Менеджера договора]]=1,\"\",Таблица_Металлопроцессинг_детализированный[[#This Row],[Сумма наценки]]*Таблица_Металлопроцессинг_детализированный[[#This Row],[Распределение выручки для Менеджера договора]])","v":0},"Процессинг","САНКТ-ПЕТЕРБУРГ","СФИНКС","ООО \"Сфинкс\"","Ленинградская обл.","Ленинградская обл.","Стройиндустрия","Уголок стальной г/к равнополочный, 50x5, Ст.сп/пс (ГОСТ 8509-93)",null,0.49,"т",13279,"Станок ленточнопильный","PEGASUS",1650,11,0.5,1,"САНКТ-ПЕТЕРБУРГ","Центр",0.49]
[1,"САНКТ-ПЕТЕРБУРГ","Центр","Степура С.Н.","Степура С.Н.","Райская Н.А.",{"$f":"IF(Таблица_Металлопроцессинг_детализированный[[#This Row],[Куратор договора]]=Таблица_Металлопроцессинг_детализированный[[#This Row],[Менеджер]],TRUE,FALSE)","v":false},{"$f":"SUMIFS(AA140:AA2689,O140:O2689,Таблица_Металлопроцессинг_детализированный[[#This Row],[Контрагент]],A140:A2689,Таблица_Металлопроцессинг_детализированный[[#This Row],[Месяц отгрузки]])","v":320},{"$f":"IF(Таблица_Металлопроцессинг_детализированный[[#This Row],[Инициатор+исполнитель]],1,IF(Таблица_Металлопроцессинг_детализированный[[#This Row],[Оборот за месяц по контрагенту]]<1000000,0.5,0.7))","v":0.5},{"$f":"IF(Таблица_Металлопроцессинг_детализированный[[#This Row],[Инициатор+исполнитель]]=TRUE,0,IF(Таблица_Металлопроцессинг_детализированный[[#This Row],[Оборот за месяц по контрагенту]]<1000000,0.5,0.3))","v":0.5},{"$f":"Таблица_Металлопроцессинг_детализированный[[#This Row],[Сумма наценки]]*Таблица_Металлопроцессинг_детализированный[[#This Row],[Распределение выручки для Куратора договора]]","v":160},{"$f":"IF(Таблица_Металлопроцессинг_детализированный[[#This Row],[Распределение выручки для Менеджера договора]]=1,\"\",Таблица_Металлопроцессинг_детализированный[[#This Row],[Сумма наценки]]*Таблица_Металлопроцессинг_детализированный[[#This Row],[Распределение выручки для Менеджера договора]])","v":160},"Процессинг","САНКТ-ПЕТЕРБУРГ","СФИНКС","ООО \"Сфинкс\"","Ленинградская обл.","Ленинградская обл.","Стройиндустрия","Уголок стальной г/к равнополочный, 75x6, Ст.сп/пс (ГОСТ 8509-93)",null,0.16,"т",4406.3999999999996,"Станок ленточнопильный","PEGASUS",320,2,0.16,1,"САНКТ-ПЕТЕРБУРГ","Центр",0.16]
[1,"САНКТ-ПЕТЕРБУРГ","Центр","Хабибуллов М.Р.","Хабибуллов М.Р.","Дауэнгауэр Н.Э.",{"$f":"IF(Таблица_Металлопроцессинг_детализированный[[#This Row],[Куратор договора]]=Таблица_Металлопроцессинг_детализированный[[#This Row],[Менеджер]],TRUE,FALSE)","v":false},{"$f":"SUMIFS(AA141:AA2691,O141:O2691,Таблица_Металлопроцессинг_детализированный[[#This Row],[Контрагент]],A141:A2691,Таблица_Металлопроцессинг_детализированный[[#This Row],[Месяц отгрузки]])","v":134965.5},{"$f":"IF(Таблица_Металлопроцессинг_детализированный[[#This Row],[Инициатор+исполнитель]],1,IF(Таблица_Металлопроцессинг_детализированный[[#This Row],[Оборот за месяц по контрагенту]]<1000000,0.5,0.7))","v":0.5},{"$f":"IF(Таблица_Металлопроцессинг_детализированный[[#This Row],[Инициатор+исполнитель]]=TRUE,0,IF(Таблица_Металлопроцессинг_детализированный[[#This Row],[Оборот за месяц по контрагенту]]<1000000,0.5,0.3))","v":0.5},{"$f":"Таблица_Металлопроцессинг_детализированный[[#This Row],[Сумма наценки]]*Таблица_Металлопроцессинг_детализированный[[#This Row],[Распределение выручки для Куратора договора]]","v":14997.75},{"$f":"IF(Таблица_Металлопроцессинг_детализированный[[#This Row],[Распределение выручки для Менеджера договора]]=1,\"\",Таблица_Металлопроцессинг_детализированный[[#This Row],[Сумма наценки]]*Таблица_Металлопроцессинг_детализированный[[#This Row],[Распределение выручки для Менеджера договора]])","v":14997.75},"Процессинг","САНКТ-ПЕТЕРБУРГ","АртЛэнд","ООО \"Строительная компания \"АртЛэнд\"",null,null,"Стройиндустрия","Шпунт Ларсена Л5-УМ, С255 (ТУ 14-102-8-2003)",null,19.997,"т",789881.5,"Очистка и покраска проката (грунт ЭМЛАК 263)","ROSLER",29995.5,19.997,19.997,1,"САНКТ-ПЕТЕРБУРГ","Центр",19.997]
[1,"САНКТ-ПЕТЕРБУРГ","Центр","Зиновьев С.Ю.","Зиновьев С.Ю.","Райская Н.А.",{"$f":"IF(Таблица_Металлопроцессинг_детализированный[[#This Row],[Куратор договора]]=Таблица_Металлопроцессинг_детализированный[[#This Row],[Менеджер]],TRUE,FALSE)","v":false},{"$f":"SUMIFS(AA142:AA2693,O142:O2693,Таблица_Металлопроцессинг_детализированный[[#This Row],[Контрагент]],A142:A2693,Таблица_Металлопроцессинг_детализированный[[#This Row],[Месяц отгрузки]])","v":9300},{"$f":"IF(Таблица_Металлопроцессинг_детализированный[[#This Row],[Инициатор+исполнитель]],1,IF(Таблица_Металлопроцессинг_детализированный[[#This Row],[Оборот за месяц по контрагенту]]<1000000,0.5,0.7))","v":0.5},{"$f":"IF(Таблица_Металлопроцессинг_детализированный[[#This Row],[Инициатор+исполнитель]]=TRUE,0,IF(Таблица_Металлопроцессинг_детализированный[[#This Row],[Оборот за месяц по контрагенту]]<1000000,0.5,0.3))","v":0.5},{"$f":"Таблица_Металлопроцессинг_детализированный[[#This Row],[Сумма наценки]]*Таблица_Металлопроцессинг_детализированный[[#This Row],[Распределение выручки для Куратора договора]]","v":3150},{"$f":"IF(Таблица_Металлопроцессинг_детализированный[[#This Row],[Распределение выручки для Менеджера договора]]=1,\"\",Таблица_Металлопроцессинг_детализированный[[#This Row],[Сумма наценки]]*Таблица_Металлопроцессинг_детализированный[[#This Row],[Распределение выручки для Менеджера договора]])","v":3150},"Процессинг","САНКТ-ПЕТЕРБУРГ","Аспект Плюс СПб","ООО \"АСПЕКТ-ПЛЮС\"","г. Санкт-Петербург ","г. Санкт-Петербург ","Металлоторговля","Арматура класс АIII (А400), 8, Ст.35ГС, в бунтах (ГОСТ5781-82)",null,4.2,"т",107268,"Размотка/резка в типовой  размер арматурного проката","FORMAT-S",6300,1,4.5,1,"САНКТ-ПЕТЕРБУРГ","Центр",4.2]
[1,"САНКТ-ПЕТЕРБУРГ","Центр","Зиновьев С.Ю.","Зиновьев С.Ю.","Сафонеев С.А.",{"$f":"IF(Таблица_Металлопроцессинг_детализированный[[#This Row],[Куратор договора]]=Таблица_Металлопроцессинг_детализированный[[#This Row],[Менеджер]],TRUE,FALSE)","v":false},{"$f":"SUMIFS(AA143:AA2694,O143:O2694,Таблица_Металлопроцессинг_детализированный[[#This Row],[Контрагент]],A143:A2694,Таблица_Металлопроцессинг_детализированный[[#This Row],[Месяц отгрузки]])","v":3000},{"$f":"IF(Таблица_Металлопроцессинг_детализированный[[#This Row],[Инициатор+исполнитель]],1,IF(Таблица_Металлопроцессинг_детализированный[[#This Row],[Оборот за месяц по контрагенту]]<1000000,0.5,0.7))","v":0.5},{"$f":"IF(Таблица_Металлопроцессинг_детализированный[[#This Row],[Инициатор+исполнитель]]=TRUE,0,IF(Таблица_Металлопроцессинг_детализированный[[#This Row],[Оборот за месяц по контрагенту]]<1000000,0.5,0.3))","v":0.5},{"$f":"Таблица_Металлопроцессинг_детализированный[[#This Row],[Сумма наценки]]*Таблица_Металлопроцессинг_детализированный[[#This Row],[Распределение выручки для Куратора договора]]","v":375},{"$f":"IF(Таблица_Металлопроцессинг_детализированный[[#This Row],[Распределение выручки для Менеджера договора]]=1,\"\",Таблица_Металлопроцессинг_детализированный[[#This Row],[Сумма наценки]]*Таблица_Металлопроцессинг_детализированный[[#This Row],[Распределение выручки для Менеджера договора]])","v":375},"Процессинг","САНКТ-ПЕТЕРБУРГ","Аспект Плюс СПб","ООО \"АСПЕКТ-ПЛЮС\"","г. Санкт-Петербург ","г. Санкт-Петербург ","Металлоторговля","Арматура класс АIII (А400), 8, Ст.35ГС, в бунтах (ГОСТ5781-82)",null,0.5,"т",12770,"Размотка/резка в типовой  размер арматурного проката","FORMAT-S",750,1,4.5,1,"САНКТ-ПЕТЕРБУРГ","Центр",0.5]
[1,"САНКТ-ПЕТЕРБУРГ","Центр","Молчанова Е.М.","Молчанова Е.М.","Молчанова Е.М.",{"$f":"IF(Таблица_Металлопроцессинг_детализированный[[#This Row],[Куратор договора]]=Таблица_Металлопроцессинг_детализированный[[#This Row],[Менеджер]],TRUE,FALSE)","v":true},{"$f":"SUMIFS(AA144:AA2702,O144:O2702,Таблица_Металлопроцессинг_детализированный[[#This Row],[Контрагент]],A144:A2702,Таблица_Металлопроцессинг_детализированный[[#This Row],[Месяц отгрузки]])","v":5460},{"$f":"IF(Таблица_Металлопроцессинг_детализированный[[#This Row],[Инициатор+исполнитель]],1,IF(Таблица_Металлопроцессинг_детализированный[[#This Row],[Оборот за месяц по контрагенту]]<1000000,0.5,0.7))","v":1},{"$f":"IF(Таблица_Металлопроцессинг_детализированный[[#This Row],[Инициатор+исполнитель]]=TRUE,0,IF(Таблица_Металлопроцессинг_детализированный[[#This Row],[Оборот за месяц по контрагенту]]<1000000,0.5,0.3))","v":0},{"$f":"Таблица_Металлопроцессинг_детализированный[[#This Row],[Сумма наценки]]*Таблица_Металлопроцессинг_детализированный[[#This Row],[Распределение выручки для Куратора договора]]","v":5460},{"$f":"IF(Таблица_Металлопроцессинг_детализированный[[#This Row],[Распределение выручки для Менеджера договора]]=1,\"\",Таблица_Металлопроцессинг_детализированный[[#This Row],[Сумма наценки]]*Таблица_Металлопроцессинг_детализированный[[#This Row],[Распределение выручки для Менеджера договора]])","v":0},"Процессинг","САНКТ-ПЕТЕРБУРГ","МГСЗ","ООО \"МеталлГрупп Северо-Запад\"",null,null,"Металлоторговля","Сталь рулонная Г/к., 2, 1250, Ст.сп/пс (19903)",null,0.35,"т",8589,"Порезка листового проката (ножницы)","COLGAR CI-34-TR",5460,42,0.35,1,"САНКТ-ПЕТЕРБУРГ","Центр",0.35]
[1,"САНКТ-ПЕТЕРБУРГ","Центр","Молчанова Е.М.","Молчанова Е.М.","Молчанова Е.М.",{"$f":"IF(Таблица_Металлопроцессинг_детализированный[[#This Row],[Куратор договора]]=Таблица_Металлопроцессинг_детализированный[[#This Row],[Менеджер]],TRUE,FALSE)","v":true},{"$f":"SUMIFS(AA145:AA2706,O145:O2706,Таблица_Металлопроцессинг_детализированный[[#This Row],[Контрагент]],A145:A2706,Таблица_Металлопроцессинг_детализированный[[#This Row],[Месяц отгрузки]])","v":64460},{"$f":"IF(Таблица_Металлопроцессинг_детализированный[[#This Row],[Инициатор+исполнитель]],1,IF(Таблица_Металлопроцессинг_детализированный[[#This Row],[Оборот за месяц по контрагенту]]<1000000,0.5,0.7))","v":1},{"$f":"IF(Таблица_Металлопроцессинг_детализированный[[#This Row],[Инициатор+исполнитель]]=TRUE,0,IF(Таблица_Металлопроцессинг_детализированный[[#This Row],[Оборот за месяц по контрагенту]]<1000000,0.5,0.3))","v":0},{"$f":"Таблица_Металлопроцессинг_детализированный[[#This Row],[Сумма наценки]]*Таблица_Металлопроцессинг_детализированный[[#This Row],[Распределение выручки для Куратора договора]]","v":17820},{"$f":"IF(Таблица_Металлопроцессинг_детализированный[[#This Row],[Распределение выручки для Менеджера договора]]=1,\"\",Таблица_Металлопроцессинг_детализированный[[#This Row],[Сумма наценки]]*Таблица_Металлопроцессинг_детализированный[[#This Row],[Распределение выручки для Менеджера договора]])","v":0},"Из давальческого сырья","САНКТ-ПЕТЕРБУРГ","НЕВСКИЙ МЕТАЛЛ (СПб)","ООО \"НЕВСКИЙ МЕТАЛЛ\"",null,null,"Металлоторговля","Изделие","10г/к дробь, Эмлак",162,"м2",0,"Очистка и покраска проката (грунт ЭМЛАК 263)","ROSLER",17820,162,2.9,1,"САНКТ-ПЕТЕРБУРГ","Центр",6.3]
[1,"САНКТ-ПЕТЕРБУРГ","Центр","Молчанова Е.М.","Молчанова Е.М.","Молчанова Е.М.",{"$f":"IF(Таблица_Металлопроцессинг_детализированный[[#This Row],[Куратор договора]]=Таблица_Металлопроцессинг_детализированный[[#This Row],[Менеджер]],TRUE,FALSE)","v":true},{"$f":"SUMIFS(AA146:AA2707,O146:O2707,Таблица_Металлопроцессинг_детализированный[[#This Row],[Контрагент]],A146:A2707,Таблица_Металлопроцессинг_детализированный[[#This Row],[Месяц отгрузки]])","v":46640},{"$f":"IF(Таблица_Металлопроцессинг_детализированный[[#This Row],[Инициатор+исполнитель]],1,IF(Таблица_Металлопроцессинг_детализированный[[#This Row],[Оборот за месяц по контрагенту]]<1000000,0.5,0.7))","v":1},{"$f":"IF(Таблица_Металлопроцессинг_детализированный[[#This Row],[Инициатор+исполнитель]]=TRUE,0,IF(Таблица_Металлопроцессинг_детализированный[[#This Row],[Оборот за месяц по контрагенту]]<1000000,0.5,0.3))","v":0},{"$f":"Таблица_Металлопроцессинг_детализированный[[#This Row],[Сумма наценки]]*Таблица_Металлопроцессинг_детализированный[[#This Row],[Распределение выручки для Куратора договора]]","v":7920},{"$f":"IF(Таблица_Металлопроцессинг_детализированный[[#This Row],[Распределение выручки для Менеджера договора]]=1,\"\",Таблица_Металлопроцессинг_детализированный[[#This Row],[Сумма наценки]]*Таблица_Металлопроцессинг_детализированный[[#This Row],[Распределение выручки для Менеджера договора]])","v":0},"Из давальческого сырья","САНКТ-ПЕТЕРБУРГ","НЕВСКИЙ МЕТАЛЛ (СПб)","ООО \"НЕВСКИЙ МЕТАЛЛ\"",null,null,"Металлоторговля","Изделие","16г/к дробь, Эмлак",72,"м2",0,"Очистка и покраска проката (грунт ЭМЛАК 263)","ROSLER",7920,72,72,1,"САНКТ-ПЕТЕРБУРГ","Центр",4.47]
[1,"САНКТ-ПЕТЕРБУРГ","Центр","Молчанова Е.М.","Молчанова Е.М.","Молчанова Е.М.",{"$f":"IF(Таблица_Металлопроцессинг_детализированный[[#This Row],[Куратор договора]]=Таблица_Металлопроцессинг_детализированный[[#This Row],[Менеджер]],TRUE,FALSE)","v":true},{"$f":"SUMIFS(AA147:AA2708,O147:O2708,Таблица_Металлопроцессинг_детализированный[[#This Row],[Контрагент]],A147:A2708,Таблица_Металлопроцессинг_детализированный[[#This Row],[Месяц отгрузки]])","v":38720},{"$f":"IF(Таблица_Металлопроцессинг_детализированный[[#This Row],[Инициатор+исполнитель]],1,IF(Таблица_Металлопроцессинг_детализированный[[#This Row],[Оборот за месяц по контрагенту]]<1000000,0.5,0.7))","v":1},{"$f":"IF(Таблица_Металлопроцессинг_детализированный[[#This Row],[Инициатор+исполнитель]]=TRUE,0,IF(Таблица_Металлопроцессинг_детализированный[[#This Row],[Оборот за месяц по контрагенту]]<1000000,0.5,0.3))","v":0},{"$f":"Таблица_Металлопроцессинг_детализированный[[#This Row],[Сумма наценки]]*Таблица_Металлопроцессинг_детализированный[[#This Row],[Распределение выручки для Куратора договора]]","v":27720},{"$f":"IF(Таблица_Металлопроцессинг_детализированный[[#This Row],[Распределение выручки для Менеджера договора]]=1,\"\",Таблица_Металлопроцессинг_детализированный[[#This Row],[Сумма наценки]]*Таблица_Металлопроцессинг_детализированный[[#This Row],[Распределение выручки для Менеджера договора]])","v":0},"Из давальческого сырья","САНКТ-ПЕТЕРБУРГ","НЕВСКИЙ МЕТАЛЛ (СПб)","ООО \"НЕВСКИЙ МЕТАЛЛ\"",null,null,"Металлоторговля","Изделие","8г/к дробь, Эмлак",252,"м2",0,"Очистка и покраска проката (грунт ЭМЛАК 263)","ROSLER",27720,252,252,1,"САНКТ-ПЕТЕРБУРГ","Центр",7.72]
[1,"САНКТ-ПЕТЕРБУРГ","Центр","Молчанова Е.М.","Молчанова Е.М.","Молчанова Е.М.",{"$f":"IF(Таблица_Металлопроцессинг_детализированный[[#This Row],[Куратор договора]]=Таблица_Металлопроцессинг_детализированный[[#This Row],[Менеджер]],TRUE,FALSE)","v":true},{"$f":"SUMIFS(AA148:AA2709,O148:O2709,Таблица_Металлопроцессинг_детализированный[[#This Row],[Контрагент]],A148:A2709,Таблица_Металлопроцессинг_детализированный[[#This Row],[Месяц отгрузки]])","v":11000},{"$f":"IF(Таблица_Металлопроцессинг_детализированный[[#This Row],[Инициатор+исполнитель]],1,IF(Таблица_Металлопроцессинг_детализированный[[#This Row],[Оборот за месяц по контрагенту]]<1000000,0.5,0.7))","v":1},{"$f":"IF(Таблица_Металлопроцессинг_детализированный[[#This Row],[Инициатор+исполнитель]]=TRUE,0,IF(Таблица_Металлопроцессинг_детализированный[[#This Row],[Оборот за месяц по контрагенту]]<1000000,0.5,0.3))","v":0},{"$f":"Таблица_Металлопроцессинг_детализированный[[#This Row],[Сумма наценки]]*Таблица_Металлопроцессинг_детализированный[[#This Row],[Распределение выручки для Куратора договора]]","v":11000},{"$f":"IF(Таблица_Металлопроцессинг_детализированный[[#This Row],[Распределение выручки для Менеджера договора]]=1,\"\",Таблица_Металлопроцессинг_детализированный[[#This Row],[Сумма наценки]]*Таблица_Металлопроцессинг_детализированный[[#This Row],[Распределение выручки для Менеджера договора]])","v":0},"Из давальческого сырья","САНКТ-ПЕТЕРБУРГ","НЕВСКИЙ МЕТАЛЛ (СПб)","ООО \"НЕВСКИЙ МЕТАЛЛ\"",null,null,"Металлоторговля","Изделие","лист ПВЛ дробь, Эмлак",100,"м2",0,"Очистка и покраска проката (грунт ЭМЛАК 263)","ROSLER",11000,100,100,1,"САНКТ-ПЕТЕРБУРГ","Центр",1.1000000000000001]
[1,"САНКТ-ПЕТЕРБУРГ","Центр","Степура С.Н.","Степура С.Н.","Степура С.Н.",{"$f":"IF(Таблица_Металлопроцессинг_детализированный[[#This Row],[Куратор договора]]=Таблица_Металлопроцессинг_детализированный[[#This Row],[Менеджер]],TRUE,FALSE)","v":true},{"$f":"SUMIFS(AA149:AA2712,O149:O2712,Таблица_Металлопроцессинг_детализированный[[#This Row],[Контрагент]],A149:A2712,Таблица_Металлопроцессинг_детализированный[[#This Row],[Месяц отгрузки]])","v":23680},{"$f":"IF(Таблица_Металлопроцессинг_детализированный[[#This Row],[Инициатор+исполнитель]],1,IF(Таблица_Металлопроцессинг_детализированный[[#This Row],[Оборот за месяц по контрагенту]]<1000000,0.5,0.7))","v":1},{"$f":"IF(Таблица_Металлопроцессинг_детализированный[[#This Row],[Инициатор+исполнитель]]=TRUE,0,IF(Таблица_Металлопроцессинг_детализированный[[#This Row],[Оборот за месяц по контрагенту]]<1000000,0.5,0.3))","v":0},{"$f":"Таблица_Металлопроцессинг_детализированный[[#This Row],[Сумма наценки]]*Таблица_Металлопроцессинг_детализированный[[#This Row],[Распределение выручки для Куратора договора]]","v":3240},{"$f":"IF(Таблица_Металлопроцессинг_детализированный[[#This Row],[Распределение выручки для Менеджера договора]]=1,\"\",Таблица_Металлопроцессинг_детализированный[[#This Row],[Сумма наценки]]*Таблица_Металлопроцессинг_детализированный[[#This Row],[Распределение выручки для Менеджера договора]])","v":0},"Заказное","САНКТ-ПЕТЕРБУРГ","УралСибТрейд-СПБ","ООО\"УралСибТрейд-СПБ\"","г. Санкт-Петербург ",null,"ТЭК","Изделие","Пластины 10х320х200 - 144 шт, изделия согласно эскизов 342 шт, допуск +/-2мм",1.39,"т",51574.963100000001,"Очистка проката (дробь 1,0мм, 0,8мм)","ROSLER",3240,36,1.39,1,"САНКТ-ПЕТЕРБУРГ","Центр",1.3900000000000001]
[1,"САНКТ-ПЕТЕРБУРГ","Центр","Степура С.Н.","Степура С.Н.","Степура С.Н.",{"$f":"IF(Таблица_Металлопроцессинг_детализированный[[#This Row],[Куратор договора]]=Таблица_Металлопроцессинг_детализированный[[#This Row],[Менеджер]],TRUE,FALSE)","v":true},{"$f":"SUMIFS(AA150:AA2713,O150:O2713,Таблица_Металлопроцессинг_детализированный[[#This Row],[Контрагент]],A150:A2713,Таблица_Металлопроцессинг_детализированный[[#This Row],[Месяц отгрузки]])","v":20440},{"$f":"IF(Таблица_Металлопроцессинг_детализированный[[#This Row],[Инициатор+исполнитель]],1,IF(Таблица_Металлопроцессинг_детализированный[[#This Row],[Оборот за месяц по контрагенту]]<1000000,0.5,0.7))","v":1},{"$f":"IF(Таблица_Металлопроцессинг_детализированный[[#This Row],[Инициатор+исполнитель]]=TRUE,0,IF(Таблица_Металлопроцессинг_детализированный[[#This Row],[Оборот за месяц по контрагенту]]<1000000,0.5,0.3))","v":0},{"$f":"Таблица_Металлопроцессинг_детализированный[[#This Row],[Сумма наценки]]*Таблица_Металлопроцессинг_детализированный[[#This Row],[Распределение выручки для Куратора договора]]","v":20440},{"$f":"IF(Таблица_Металлопроцессинг_детализированный[[#This Row],[Распределение выручки для Менеджера договора]]=1,\"\",Таблица_Металлопроцессинг_детализированный[[#This Row],[Сумма наценки]]*Таблица_Металлопроцессинг_детализированный[[#This Row],[Распределение выручки для Менеджера договора]])","v":0},"Заказное","САНКТ-ПЕТЕРБУРГ","УралСибТрейд-СПБ","ООО\"УралСибТрейд-СПБ\"","г. Санкт-Петербург ",null,"ТЭК","Изделие","Пластины 10х320х200 - 144 шт, изделия согласно эскизов 342 шт, допуск +/-2мм",1.39,"т",51574.963100000001,"Порезка листового проката плазменная PLAZMA","LINEACORD PCL40",20440,292,1.39,1,"САНКТ-ПЕТЕРБУРГ","Центр",1.3900000000000001]
[1,"САНКТ-ПЕТЕРБУРГ","Центр","Молчанова Е.М.","Молчанова Е.М.","Молчанова Е.М.",{"$f":"IF(Таблица_Металлопроцессинг_детализированный[[#This Row],[Куратор договора]]=Таблица_Металлопроцессинг_детализированный[[#This Row],[Менеджер]],TRUE,FALSE)","v":true},{"$f":"SUMIFS(AA151:AA2715,O151:O2715,Таблица_Металлопроцессинг_детализированный[[#This Row],[Контрагент]],A151:A2715,Таблица_Металлопроцессинг_детализированный[[#This Row],[Месяц отгрузки]])","v":11425.7},{"$f":"IF(Таблица_Металлопроцессинг_детализированный[[#This Row],[Инициатор+исполнитель]],1,IF(Таблица_Металлопроцессинг_детализированный[[#This Row],[Оборот за месяц по контрагенту]]<1000000,0.5,0.7))","v":1},{"$f":"IF(Таблица_Металлопроцессинг_детализированный[[#This Row],[Инициатор+исполнитель]]=TRUE,0,IF(Таблица_Металлопроцессинг_детализированный[[#This Row],[Оборот за месяц по контрагенту]]<1000000,0.5,0.3))","v":0},{"$f":"Таблица_Металлопроцессинг_детализированный[[#This Row],[Сумма наценки]]*Таблица_Металлопроцессинг_детализированный[[#This Row],[Распределение выручки для Куратора договора]]","v":11425.7},{"$f":"IF(Таблица_Металлопроцессинг_детализированный[[#This Row],[Распределение выручки для Менеджера договора]]=1,\"\",Таблица_Металлопроцессинг_детализированный[[#This Row],[Сумма наценки]]*Таблица_Металлопроцессинг_детализированный[[#This Row],[Распределение выручки для Менеджера договора]])","v":0},"Процессинг","САНКТ-ПЕТЕРБУРГ","АБТ ГРУПП","ООО \"АБТ ГРУПП\"",null,null,"Металлоторговля","Сталь рулонная Г/к., 3, 1500, Ст.09Г2С (19903)",null,5.17,"т",143002.20000000001,"Порезка листового проката поперечная","CAMU RDC 1500/6",11425.7,1,4.24,1,"САНКТ-ПЕТЕРБУРГ","Центр",5.17]
[1,"САНКТ-ПЕТЕРБУРГ","Центр","Молчанова Е.М.","Молчанова Е.М.","Молчанова Е.М.",{"$f":"IF(Таблица_Металлопроцессинг_детализированный[[#This Row],[Куратор договора]]=Таблица_Металлопроцессинг_детализированный[[#This Row],[Менеджер]],TRUE,FALSE)","v":true},{"$f":"SUMIFS(AA152:AA2717,O152:O2717,Таблица_Металлопроцессинг_детализированный[[#This Row],[Контрагент]],A152:A2717,Таблица_Металлопроцессинг_детализированный[[#This Row],[Месяц отгрузки]])","v":23380},{"$f":"IF(Таблица_Металлопроцессинг_детализированный[[#This Row],[Инициатор+исполнитель]],1,IF(Таблица_Металлопроцессинг_детализированный[[#This Row],[Оборот за месяц по контрагенту]]<1000000,0.5,0.7))","v":1},{"$f":"IF(Таблица_Металлопроцессинг_детализированный[[#This Row],[Инициатор+исполнитель]]=TRUE,0,IF(Таблица_Металлопроцессинг_детализированный[[#This Row],[Оборот за месяц по контрагенту]]<1000000,0.5,0.3))","v":0},{"$f":"Таблица_Металлопроцессинг_детализированный[[#This Row],[Сумма наценки]]*Таблица_Металлопроцессинг_детализированный[[#This Row],[Распределение выручки для Куратора договора]]","v":23380},{"$f":"IF(Таблица_Металлопроцессинг_детализированный[[#This Row],[Распределение выручки для Менеджера договора]]=1,\"\",Таблица_Металлопроцессинг_детализированный[[#This Row],[Сумма наценки]]*Таблица_Металлопроцессинг_детализированный[[#This Row],[Распределение выручки для Менеджера договора]])","v":0},"Процессинг","САНКТ-ПЕТЕРБУРГ","ФРИРАЙДЕР СПБ","ООО \"Фрирайдер СПб\"","Санкт-Петербург ","Санкт-Петербург ","Металлоторговля","Уголок стальной г/к равнополочный, 100x10, Ст.сп/пс (ГОСТ 8509-93)",null,0.9,"т",25389,"Станок ленточнопильный","PEGASUS",23380,668,7.12,1,"САНКТ-ПЕТЕРБУРГ","Центр",0.9]
[1,"САНКТ-ПЕТЕРБУРГ","Центр","Петров А.Б. (уволен)","Петров(С.-П.) А.Б.","Петров А.Б. (уволен)",{"$f":"IF(Таблица_Металлопроцессинг_детализированный[[#This Row],[Куратор договора]]=Таблица_Металлопроцессинг_детализированный[[#This Row],[Менеджер]],TRUE,FALSE)","v":true},{"$f":"SUMIFS(AA153:AA2718,O153:O2718,Таблица_Металлопроцессинг_детализированный[[#This Row],[Контрагент]],A153:A2718,Таблица_Металлопроцессинг_детализированный[[#This Row],[Месяц отгрузки]])","v":17892.8},{"$f":"IF(Таблица_Металлопроцессинг_детализированный[[#This Row],[Инициатор+исполнитель]],1,IF(Таблица_Металлопроцессинг_детализированный[[#This Row],[Оборот за месяц по контрагенту]]<1000000,0.5,0.7))","v":1},{"$f":"IF(Таблица_Металлопроцессинг_детализированный[[#This Row],[Инициатор+исполнитель]]=TRUE,0,IF(Таблица_Металлопроцессинг_детализированный[[#This Row],[Оборот за месяц по контрагенту]]<1000000,0.5,0.3))","v":0},{"$f":"Таблица_Металлопроцессинг_детализированный[[#This Row],[Сумма наценки]]*Таблица_Металлопроцессинг_детализированный[[#This Row],[Распределение выручки для Куратора договора]]","v":11892.8},{"$f":"IF(Таблица_Металлопроцессинг_детализированный[[#This Row],[Распределение выручки для Менеджера договора]]=1,\"\",Таблица_Металлопроцессинг_детализированный[[#This Row],[Сумма наценки]]*Таблица_Металлопроцессинг_детализированный[[#This Row],[Распределение выручки для Менеджера договора]])","v":0},"Из давальческого сырья","САНКТ-ПЕТЕРБУРГ","АСТ СПБ","ЗАО \"АСТ\"",null,null,"Стройиндустрия","Изделие","Каркас поддерживающий  Вариант 1(с изм 1)",160,"шт",41003.199999999997,"Изготовление металлоконструкций из давальческого сырья","Дуга 318МА",11892.8,160,160,1,"САНКТ-ПЕТЕРБУРГ","Центр",1.1619999999999999]
[1,"САНКТ-ПЕТЕРБУРГ","Центр","Петров А.Б. (уволен)","Петров(С.-П.) А.Б.","Петров А.Б. (уволен)",{"$f":"IF(Таблица_Металлопроцессинг_детализированный[[#This Row],[Куратор договора]]=Таблица_Металлопроцессинг_детализированный[[#This Row],[Менеджер]],TRUE,FALSE)","v":true},{"$f":"SUMIFS(AA154:AA2719,O154:O2719,Таблица_Металлопроцессинг_детализированный[[#This Row],[Контрагент]],A154:A2719,Таблица_Металлопроцессинг_детализированный[[#This Row],[Месяц отгрузки]])","v":6000},{"$f":"IF(Таблица_Металлопроцессинг_детализированный[[#This Row],[Инициатор+исполнитель]],1,IF(Таблица_Металлопроцессинг_детализированный[[#This Row],[Оборот за месяц по контрагенту]]<1000000,0.5,0.7))","v":1},{"$f":"IF(Таблица_Металлопроцессинг_детализированный[[#This Row],[Инициатор+исполнитель]]=TRUE,0,IF(Таблица_Металлопроцессинг_детализированный[[#This Row],[Оборот за месяц по контрагенту]]<1000000,0.5,0.3))","v":0},{"$f":"Таблица_Металлопроцессинг_детализированный[[#This Row],[Сумма наценки]]*Таблица_Металлопроцессинг_детализированный[[#This Row],[Распределение выручки для Куратора договора]]","v":6000},{"$f":"IF(Таблица_Металлопроцессинг_детализированный[[#This Row],[Распределение выручки для Менеджера договора]]=1,\"\",Таблица_Металлопроцессинг_детализированный[[#This Row],[Сумма наценки]]*Таблица_Металлопроцессинг_детализированный[[#This Row],[Распределение выручки для Менеджера договора]])","v":0},"Из давальческого сырья","САНКТ-ПЕТЕРБУРГ","АСТ СПБ","ЗАО \"АСТ\"",null,null,"Стройиндустрия","Изделие","Каркас поддерживающий  Вариант 3 с изм.1",50,"шт",18729.5,"Изготовление металлоконструкций из давальческого сырья","Дуга 318МА",6000,50,50,1,"САНКТ-ПЕТЕРБУРГ","Центр",0.5]
[1,"САНКТ-ПЕТЕРБУРГ","Центр","Ипатова Е.Н.","Ипатова Е.Н.","Ипатова Е.Н.",{"$f":"IF(Таблица_Металлопроцессинг_детализированный[[#This Row],[Куратор договора]]=Таблица_Металлопроцессинг_детализированный[[#This Row],[Менеджер]],TRUE,FALSE)","v":true},{"$f":"SUMIFS(AA155:AA2724,O155:O2724,Таблица_Металлопроцессинг_детализированный[[#This Row],[Контрагент]],A155:A2724,Таблица_Металлопроцессинг_детализированный[[#This Row],[Месяц отгрузки]])","v":221356.04},{"$f":"IF(Таблица_Металлопроцессинг_детализированный[[#This Row],[Инициатор+исполнитель]],1,IF(Таблица_Металлопроцессинг_детализированный[[#This Row],[Оборот за месяц по контрагенту]]<1000000,0.5,0.7))","v":1},{"$f":"IF(Таблица_Металлопроцессинг_детализированный[[#This Row],[Инициатор+исполнитель]]=TRUE,0,IF(Таблица_Металлопроцессинг_детализированный[[#This Row],[Оборот за месяц по контрагенту]]<1000000,0.5,0.3))","v":0},{"$f":"Таблица_Металлопроцессинг_детализированный[[#This Row],[Сумма наценки]]*Таблица_Металлопроцессинг_детализированный[[#This Row],[Распределение выручки для Куратора договора]]","v":24210.82},{"$f":"IF(Таблица_Металлопроцессинг_детализированный[[#This Row],[Распределение выручки для Менеджера договора]]=1,\"\",Таблица_Металлопроцессинг_детализированный[[#This Row],[Сумма наценки]]*Таблица_Металлопроцессинг_детализированный[[#This Row],[Распределение выручки для Менеджера договора]])","v":0},"Из давальческого сырья","САНКТ-ПЕТЕРБУРГ","СНСЗ","ОАО \"СРЕДНЕ-НЕВСКИЙ СУДОСТРОИТЕЛЬНЫЙ ЗАВОД\"",null,null,"Машиностроение","Изделие","Лист 6*1600*6000 PCD ГОСТ19903 , ГОСТ5521-93",6.69,"т",0,"Очистка и покраска проката (грунт HEMPEL)","ROSLER",24210.82,268.8,268.8,1,"САНКТ-ПЕТЕРБУРГ","Центр",6.6899999999999995]
[1,"САНКТ-ПЕТЕРБУРГ","Центр","Ипатова Е.Н.","Ипатова Е.Н.","Ипатова Е.Н.",{"$f":"IF(Таблица_Металлопроцессинг_детализированный[[#This Row],[Куратор договора]]=Таблица_Металлопроцессинг_детализированный[[#This Row],[Менеджер]],TRUE,FALSE)","v":true},{"$f":"SUMIFS(AA156:AA2725,O156:O2725,Таблица_Металлопроцессинг_детализированный[[#This Row],[Контрагент]],A156:A2725,Таблица_Металлопроцессинг_детализированный[[#This Row],[Месяц отгрузки]])","v":197145.22},{"$f":"IF(Таблица_Металлопроцессинг_детализированный[[#This Row],[Инициатор+исполнитель]],1,IF(Таблица_Металлопроцессинг_детализированный[[#This Row],[Оборот за месяц по контрагенту]]<1000000,0.5,0.7))","v":1},{"$f":"IF(Таблица_Металлопроцессинг_детализированный[[#This Row],[Инициатор+исполнитель]]=TRUE,0,IF(Таблица_Металлопроцессинг_детализированный[[#This Row],[Оборот за месяц по контрагенту]]<1000000,0.5,0.3))","v":0},{"$f":"Таблица_Металлопроцессинг_детализированный[[#This Row],[Сумма наценки]]*Таблица_Металлопроцессинг_детализированный[[#This Row],[Распределение выручки для Куратора договора]]","v":48457.66},{"$f":"IF(Таблица_Металлопроцессинг_детализированный[[#This Row],[Распределение выручки для Менеджера договора]]=1,\"\",Таблица_Металлопроцессинг_детализированный[[#This Row],[Сумма наценки]]*Таблица_Металлопроцессинг_детализированный[[#This Row],[Распределение выручки для Менеджера договора]])","v":0},"Из давальческого сырья","САНКТ-ПЕТЕРБУРГ","СНСЗ","ОАО \"СРЕДНЕ-НЕВСКИЙ СУДОСТРОИТЕЛЬНЫЙ ЗАВОД\"",null,null,"Машиностроение","Изделие","Лист 7*1600*6000 PCD ГОСТ19903 , ГОСТ5521-93",15.4,"т",0,"Очистка и покраска проката (грунт HEMPEL)","ROSLER",48457.66,538,538,1,"САНКТ-ПЕТЕРБУРГ","Центр",15.4]
[1,"САНКТ-ПЕТЕРБУРГ","Центр","Молчанова Е.М.","Молчанова Е.М.","Молчанова Е.М.",{"$f":"IF(Таблица_Металлопроцессинг_детализированный[[#This Row],[Куратор договора]]=Таблица_Металлопроцессинг_детализированный[[#This Row],[Менеджер]],TRUE,FALSE)","v":true},{"$f":"SUMIFS(AA157:AA2726,O157:O2726,Таблица_Металлопроцессинг_детализированный[[#This Row],[Контрагент]],A157:A2726,Таблица_Металлопроцессинг_детализированный[[#This Row],[Месяц отгрузки]])","v":28500},{"$f":"IF(Таблица_Металлопроцессинг_детализированный[[#This Row],[Инициатор+исполнитель]],1,IF(Таблица_Металлопроцессинг_детализированный[[#This Row],[Оборот за месяц по контрагенту]]<1000000,0.5,0.7))","v":1},{"$f":"IF(Таблица_Металлопроцессинг_детализированный[[#This Row],[Инициатор+исполнитель]]=TRUE,0,IF(Таблица_Металлопроцессинг_детализированный[[#This Row],[Оборот за месяц по контрагенту]]<1000000,0.5,0.3))","v":0},{"$f":"Таблица_Металлопроцессинг_детализированный[[#This Row],[Сумма наценки]]*Таблица_Металлопроцессинг_детализированный[[#This Row],[Распределение выручки для Куратора договора]]","v":21600},{"$f":"IF(Таблица_Металлопроцессинг_детализированный[[#This Row],[Распределение выручки для Менеджера договора]]=1,\"\",Таблица_Металлопроцессинг_детализированный[[#This Row],[Сумма наценки]]*Таблица_Металлопроцессинг_детализированный[[#This Row],[Распределение выручки для Менеджера договора]])","v":0},"Процессинг","САНКТ-ПЕТЕРБУРГ","ГРАНИТ ТД","ООО \"Торговый Дом \"ГРАНИТ\"",null,null,"Металлоторговля","Сталь листовая Г/к., 10, 1500x6000, Ст.сп/пс (ГОСТ 14637)",null,2.4700000000000002,"т",55402.1,"Порезка листового проката (ножницы)","COLGAR CI-34-TR",21600,146,1.8,2,"САНКТ-ПЕТЕРБУРГ","Центр",2.4700000000000002]
[1,"САНКТ-ПЕТЕРБУРГ","Центр","Молчанова Е.М.","Молчанова Е.М.","Молчанова Е.М.",{"$f":"IF(Таблица_Металлопроцессинг_детализированный[[#This Row],[Куратор договора]]=Таблица_Металлопроцессинг_детализированный[[#This Row],[Менеджер]],TRUE,FALSE)","v":true},{"$f":"SUMIFS(AA158:AA2727,O158:O2727,Таблица_Металлопроцессинг_детализированный[[#This Row],[Контрагент]],A158:A2727,Таблица_Металлопроцессинг_детализированный[[#This Row],[Месяц отгрузки]])","v":6900},{"$f":"IF(Таблица_Металлопроцессинг_детализированный[[#This Row],[Инициатор+исполнитель]],1,IF(Таблица_Металлопроцессинг_детализированный[[#This Row],[Оборот за месяц по контрагенту]]<1000000,0.5,0.7))","v":1},{"$f":"IF(Таблица_Металлопроцессинг_детализированный[[#This Row],[Инициатор+исполнитель]]=TRUE,0,IF(Таблица_Металлопроцессинг_детализированный[[#This Row],[Оборот за месяц по контрагенту]]<1000000,0.5,0.3))","v":0},{"$f":"Таблица_Металлопроцессинг_детализированный[[#This Row],[Сумма наценки]]*Таблица_Металлопроцессинг_детализированный[[#This Row],[Распределение выручки для Куратора договора]]","v":2250},{"$f":"IF(Таблица_Металлопроцессинг_детализированный[[#This Row],[Распределение выручки для Менеджера договора]]=1,\"\",Таблица_Металлопроцессинг_детализированный[[#This Row],[Сумма наценки]]*Таблица_Металлопроцессинг_детализированный[[#This Row],[Распределение выручки для Менеджера договора]])","v":0},"Процессинг","САНКТ-ПЕТЕРБУРГ","ГРАНИТ ТД","ООО \"Торговый Дом \"ГРАНИТ\"",null,null,"Металлоторговля","Сталь листовая Г/к., 4, 1500x6000, Ст.сп/пс (ГОСТ 14637)",null,0.2,"т",4532,"Порезка листового проката (ножницы)","COLGAR CI-34-TR",2250,45,0.20300000000000001,1,"САНКТ-ПЕТЕРБУРГ","Центр",0.2]
[1,"САНКТ-ПЕТЕРБУРГ","Центр","Молчанова Е.М.","Молчанова Е.М.","Молчанова Е.М.",{"$f":"IF(Таблица_Металлопроцессинг_детализированный[[#This Row],[Куратор договора]]=Таблица_Металлопроцессинг_детализированный[[#This Row],[Менеджер]],TRUE,FALSE)","v":true},{"$f":"SUMIFS(AA159:AA2728,O159:O2728,Таблица_Металлопроцессинг_детализированный[[#This Row],[Контрагент]],A159:A2728,Таблица_Металлопроцессинг_детализированный[[#This Row],[Месяц отгрузки]])","v":4650},{"$f":"IF(Таблица_Металлопроцессинг_детализированный[[#This Row],[Инициатор+исполнитель]],1,IF(Таблица_Металлопроцессинг_детализированный[[#This Row],[Оборот за месяц по контрагенту]]<1000000,0.5,0.7))","v":1},{"$f":"IF(Таблица_Металлопроцессинг_детализированный[[#This Row],[Инициатор+исполнитель]]=TRUE,0,IF(Таблица_Металлопроцессинг_детализированный[[#This Row],[Оборот за месяц по контрагенту]]<1000000,0.5,0.3))","v":0},{"$f":"Таблица_Металлопроцессинг_детализированный[[#This Row],[Сумма наценки]]*Таблица_Металлопроцессинг_детализированный[[#This Row],[Распределение выручки для Куратора договора]]","v":4650},{"$f":"IF(Таблица_Металлопроцессинг_детализированный[[#This Row],[Распределение выручки для Менеджера договора]]=1,\"\",Таблица_Металлопроцессинг_детализированный[[#This Row],[Сумма наценки]]*Таблица_Металлопроцессинг_детализированный[[#This Row],[Распределение выручки для Менеджера договора]])","v":0},"Процессинг","САНКТ-ПЕТЕРБУРГ","ГРАНИТ ТД","ООО \"Торговый Дом \"ГРАНИТ\"",null,null,"Металлоторговля","Сталь листовая Г/к., 8, 1500x6000, Ст.сп/пс (ГОСТ 14637)",null,0.56000000000000005,"т",12560.8,"Порезка листового проката (ножницы)","COLGAR CI-34-TR",4650,31,0.56000000000000005,1,"САНКТ-ПЕТЕРБУРГ","Центр",0.56000000000000005]
[1,"САНКТ-ПЕТЕРБУРГ","Центр","Зиновьев С.Ю.","Зиновьев С.Ю.","Зиновьев С.Ю.",{"$f":"IF(Таблица_Металлопроцессинг_детализированный[[#This Row],[Куратор договора]]=Таблица_Металлопроцессинг_детализированный[[#This Row],[Менеджер]],TRUE,FALSE)","v":true},{"$f":"SUMIFS(AA160:AA2736,O160:O2736,Таблица_Металлопроцессинг_детализированный[[#This Row],[Контрагент]],A160:A2736,Таблица_Металлопроцессинг_детализированный[[#This Row],[Месяц отгрузки]])","v":2250},{"$f":"IF(Таблица_Металлопроцессинг_детализированный[[#This Row],[Инициатор+исполнитель]],1,IF(Таблица_Металлопроцессинг_детализированный[[#This Row],[Оборот за месяц по контрагенту]]<1000000,0.5,0.7))","v":1},{"$f":"IF(Таблица_Металлопроцессинг_детализированный[[#This Row],[Инициатор+исполнитель]]=TRUE,0,IF(Таблица_Металлопроцессинг_детализированный[[#This Row],[Оборот за месяц по контрагенту]]<1000000,0.5,0.3))","v":0},{"$f":"Таблица_Металлопроцессинг_детализированный[[#This Row],[Сумма наценки]]*Таблица_Металлопроцессинг_детализированный[[#This Row],[Распределение выручки для Куратора договора]]","v":2250},{"$f":"IF(Таблица_Металлопроцессинг_детализированный[[#This Row],[Распределение выручки для Менеджера договора]]=1,\"\",Таблица_Металлопроцессинг_детализированный[[#This Row],[Сумма наценки]]*Таблица_Металлопроцессинг_детализированный[[#This Row],[Распределение выручки для Менеджера договора]])","v":0},"Процессинг","САНКТ-ПЕТЕРБУРГ","Аспект Плюс СПб","ООО \"АСПЕКТ-ПЛЮС\"","г. Санкт-Петербург ","г. Санкт-Петербург ","Металлоторговля","Арматура класс АIII (А400), 8, Ст.35ГС, в бунтах (ГОСТ5781-82)",null,1.5,"т",38310,"Размотка/резка в типовой  размер арматурного проката","FORMAT-S",2250,1,4.5,1,"САНКТ-ПЕТЕРБУРГ","Центр",1.5]
[1,"САНКТ-ПЕТЕРБУРГ","Центр","Степура С.Н.","Степура С.Н.","Степура С.Н.",{"$f":"IF(Таблица_Металлопроцессинг_детализированный[[#This Row],[Куратор договора]]=Таблица_Металлопроцессинг_детализированный[[#This Row],[Менеджер]],TRUE,FALSE)","v":true},{"$f":"SUMIFS(AA161:AA2738,O161:O2738,Таблица_Металлопроцессинг_детализированный[[#This Row],[Контрагент]],A161:A2738,Таблица_Металлопроцессинг_детализированный[[#This Row],[Месяц отгрузки]])","v":1470},{"$f":"IF(Таблица_Металлопроцессинг_детализированный[[#This Row],[Инициатор+исполнитель]],1,IF(Таблица_Металлопроцессинг_детализированный[[#This Row],[Оборот за месяц по контрагенту]]<1000000,0.5,0.7))","v":1},{"$f":"IF(Таблица_Металлопроцессинг_детализированный[[#This Row],[Инициатор+исполнитель]]=TRUE,0,IF(Таблица_Металлопроцессинг_детализированный[[#This Row],[Оборот за месяц по контрагенту]]<1000000,0.5,0.3))","v":0},{"$f":"Таблица_Металлопроцессинг_детализированный[[#This Row],[Сумма наценки]]*Таблица_Металлопроцессинг_детализированный[[#This Row],[Распределение выручки для Куратора договора]]","v":1470},{"$f":"IF(Таблица_Металлопроцессинг_детализированный[[#This Row],[Распределение выручки для Менеджера договора]]=1,\"\",Таблица_Металлопроцессинг_детализированный[[#This Row],[Сумма наценки]]*Таблица_Металлопроцессинг_детализированный[[#This Row],[Распределение выручки для Менеджера договора]])","v":0},"Процессинг","САНКТ-ПЕТЕРБУРГ","ПРОМ-ЭНЕРГО СЕРВИС ООО","ООО \"Пром-Энерго Сервис\"","г. Санкт-Петербург ","г. Санкт-Петербург ","Металлоконструкции","Сталь рулонная Г/к., 5, 1500, Ст.сп/пс (19903)",null,1.4999999999999999E-2,"т",336.45,"Порезка листового проката (ножницы)","COLGAR CI-34-TR",1470,14,0.05,1,"САНКТ-ПЕТЕРБУРГ","Центр",1.4999999999999999E-2]
[1,"САНКТ-ПЕТЕРБУРГ","Центр","Ипатова Е.Н.","Ипатова Е.Н.","Ипатова Е.Н.",{"$f":"IF(Таблица_Металлопроцессинг_детализированный[[#This Row],[Куратор договора]]=Таблица_Металлопроцессинг_детализированный[[#This Row],[Менеджер]],TRUE,FALSE)","v":true},{"$f":"SUMIFS(AA162:AA2752,O162:O2752,Таблица_Металлопроцессинг_детализированный[[#This Row],[Контрагент]],A162:A2752,Таблица_Металлопроцессинг_детализированный[[#This Row],[Месяц отгрузки]])","v":148687.56},{"$f":"IF(Таблица_Металлопроцессинг_детализированный[[#This Row],[Инициатор+исполнитель]],1,IF(Таблица_Металлопроцессинг_детализированный[[#This Row],[Оборот за месяц по контрагенту]]<1000000,0.5,0.7))","v":1},{"$f":"IF(Таблица_Металлопроцессинг_детализированный[[#This Row],[Инициатор+исполнитель]]=TRUE,0,IF(Таблица_Металлопроцессинг_детализированный[[#This Row],[Оборот за месяц по контрагенту]]<1000000,0.5,0.3))","v":0},{"$f":"Таблица_Металлопроцессинг_детализированный[[#This Row],[Сумма наценки]]*Таблица_Металлопроцессинг_детализированный[[#This Row],[Распределение выручки для Куратора договора]]","v":72587.41},{"$f":"IF(Таблица_Металлопроцессинг_детализированный[[#This Row],[Распределение выручки для Менеджера договора]]=1,\"\",Таблица_Металлопроцессинг_детализированный[[#This Row],[Сумма наценки]]*Таблица_Металлопроцессинг_детализированный[[#This Row],[Распределение выручки для Менеджера договора]])","v":0},"Из давальческого сырья","САНКТ-ПЕТЕРБУРГ","СНСЗ","ОАО \"СРЕДНЕ-НЕВСКИЙ СУДОСТРОИТЕЛЬНЫЙ ЗАВОД\"",null,null,"Машиностроение","Изделие","Лист 7*1600*6000 PCD ГОСТ19903 , ГОСТ5521-93",23.07,"т",0,"Очистка и покраска проката (грунт HEMPEL)","ROSLER",72587.41,805.9,805.9,1,"САНКТ-ПЕТЕРБУРГ","Центр",23.07]
[1,"САНКТ-ПЕТЕРБУРГ","Центр","Дауэнгауэр Н.Э.","Погорелов И.В.","Дауэнгауэр Н.Э.",{"$f":"IF(Таблица_Металлопроцессинг_детализированный[[#This Row],[Куратор договора]]=Таблица_Металлопроцессинг_детализированный[[#This Row],[Менеджер]],TRUE,FALSE)","v":true},{"$f":"SUMIFS(AA163:AA2764,O163:O2764,Таблица_Металлопроцессинг_детализированный[[#This Row],[Контрагент]],A163:A2764,Таблица_Металлопроцессинг_детализированный[[#This Row],[Месяц отгрузки]])","v":119408},{"$f":"IF(Таблица_Металлопроцессинг_детализированный[[#This Row],[Инициатор+исполнитель]],1,IF(Таблица_Металлопроцессинг_детализированный[[#This Row],[Оборот за месяц по контрагенту]]<1000000,0.5,0.7))","v":1},{"$f":"IF(Таблица_Металлопроцессинг_детализированный[[#This Row],[Инициатор+исполнитель]]=TRUE,0,IF(Таблица_Металлопроцессинг_детализированный[[#This Row],[Оборот за месяц по контрагенту]]<1000000,0.5,0.3))","v":0},{"$f":"Таблица_Металлопроцессинг_детализированный[[#This Row],[Сумма наценки]]*Таблица_Металлопроцессинг_детализированный[[#This Row],[Распределение выручки для Куратора договора]]","v":8568},{"$f":"IF(Таблица_Металлопроцессинг_детализированный[[#This Row],[Распределение выручки для Менеджера договора]]=1,\"\",Таблица_Металлопроцессинг_детализированный[[#This Row],[Сумма наценки]]*Таблица_Металлопроцессинг_детализированный[[#This Row],[Распределение выручки для Менеджера договора]])","v":0},"Процессинг","САНКТ-ПЕТЕРБУРГ","АМИРА СК","ООО \"Амира-СтальКонструкция\"","Санкт-Петербург ","Санкт-Петербург ","Металлоконструкции","Сталь листовая Г/к., 20, 1500x6000, Ст.09Г2С (ГОСТ 19281)",null,4.2839999999999998,"т",109927.44,"Порезка листового проката (ножницы)",null,8568,1,4.22,null,"САНКТ-ПЕТЕРБУРГ","Центр",4.2839999999999998]
[1,"САНКТ-ПЕТЕРБУРГ","Центр","Дауэнгауэр Н.Э.","Дауэнгауэр Н.Э.","Дауэнгауэр Н.Э.",{"$f":"IF(Таблица_Металлопроцессинг_детализированный[[#This Row],[Куратор договора]]=Таблица_Металлопроцессинг_детализированный[[#This Row],[Менеджер]],TRUE,FALSE)","v":true},{"$f":"SUMIFS(AA164:AA2766,O164:O2766,Таблица_Металлопроцессинг_детализированный[[#This Row],[Контрагент]],A164:A2766,Таблица_Металлопроцессинг_детализированный[[#This Row],[Месяц отгрузки]])","v":23424},{"$f":"IF(Таблица_Металлопроцессинг_детализированный[[#This Row],[Инициатор+исполнитель]],1,IF(Таблица_Металлопроцессинг_детализированный[[#This Row],[Оборот за месяц по контрагенту]]<1000000,0.5,0.7))","v":1},{"$f":"IF(Таблица_Металлопроцессинг_детализированный[[#This Row],[Инициатор+исполнитель]]=TRUE,0,IF(Таблица_Металлопроцессинг_детализированный[[#This Row],[Оборот за месяц по контрагенту]]<1000000,0.5,0.3))","v":0},{"$f":"Таблица_Металлопроцессинг_детализированный[[#This Row],[Сумма наценки]]*Таблица_Металлопроцессинг_детализированный[[#This Row],[Распределение выручки для Куратора договора]]","v":23424},{"$f":"IF(Таблица_Металлопроцессинг_детализированный[[#This Row],[Распределение выручки для Менеджера договора]]=1,\"\",Таблица_Металлопроцессинг_детализированный[[#This Row],[Сумма наценки]]*Таблица_Металлопроцессинг_детализированный[[#This Row],[Распределение выручки для Менеджера договора]])","v":0},"Процессинг","САНКТ-ПЕТЕРБУРГ","СКМ Фирма","ООО \"Фирма СКМ\"","Ленинградская обл.","Ленинградская обл.","Машиностроение","Сталь рулонная Х/к., 1.5, 1250, Ст.кп/пс (19904)",null,3.84,"т",100646.39999999999,"Порезка листового проката поперечная","CAMU RDC 1500/6",23424,1,4,1,"САНКТ-ПЕТЕРБУРГ","Центр",3.84]
[1,"САНКТ-ПЕТЕРБУРГ","Центр","Ипатова Е.Н.","Ипатова Е.Н.","Райская Н.А.",{"$f":"IF(Таблица_Металлопроцессинг_детализированный[[#This Row],[Куратор договора]]=Таблица_Металлопроцессинг_детализированный[[#This Row],[Менеджер]],TRUE,FALSE)","v":false},{"$f":"SUMIFS(AA165:AA2767,O165:O2767,Таблица_Металлопроцессинг_детализированный[[#This Row],[Контрагент]],A165:A2767,Таблица_Металлопроцессинг_детализированный[[#This Row],[Месяц отгрузки]])","v":76100.149999999994},{"$f":"IF(Таблица_Металлопроцессинг_детализированный[[#This Row],[Инициатор+исполнитель]],1,IF(Таблица_Металлопроцессинг_детализированный[[#This Row],[Оборот за месяц по контрагенту]]<1000000,0.5,0.7))","v":0.5},{"$f":"IF(Таблица_Металлопроцессинг_детализированный[[#This Row],[Инициатор+исполнитель]]=TRUE,0,IF(Таблица_Металлопроцессинг_детализированный[[#This Row],[Оборот за месяц по контрагенту]]<1000000,0.5,0.3))","v":0.5},{"$f":"Таблица_Металлопроцессинг_детализированный[[#This Row],[Сумма наценки]]*Таблица_Металлопроцессинг_детализированный[[#This Row],[Распределение выручки для Куратора договора]]","v":15573.105},{"$f":"IF(Таблица_Металлопроцессинг_детализированный[[#This Row],[Распределение выручки для Менеджера договора]]=1,\"\",Таблица_Металлопроцессинг_детализированный[[#This Row],[Сумма наценки]]*Таблица_Металлопроцессинг_детализированный[[#This Row],[Распределение выручки для Менеджера договора]])","v":15573.105},"Из давальческого сырья","САНКТ-ПЕТЕРБУРГ","СНСЗ","ОАО \"СРЕДНЕ-НЕВСКИЙ СУДОСТРОИТЕЛЬНЫЙ ЗАВОД\"",null,null,"Машиностроение","Изделие","Лист 7*1600*6000 PCD ГОСТ19903 , ГОСТ5521-93",9.9,"т",0,"Очистка и покраска проката (грунт HEMPEL)","ROSLER",31146.21,345.8,345.8,1,"САНКТ-ПЕТЕРБУРГ","Центр",9.9]
[1,"САНКТ-ПЕТЕРБУРГ","Центр","Дауэнгауэр Н.Э.","Погорелов И.В.","Дауэнгауэр Н.Э.",{"$f":"IF(Таблица_Металлопроцессинг_детализированный[[#This Row],[Куратор договора]]=Таблица_Металлопроцессинг_детализированный[[#This Row],[Менеджер]],TRUE,FALSE)","v":true},{"$f":"SUMIFS(AA166:AA3638,O166:O3638,Таблица_Металлопроцессинг_детализированный[[#This Row],[Контрагент]],A166:A3638,Таблица_Металлопроцессинг_детализированный[[#This Row],[Месяц отгрузки]])","v":110840},{"$f":"IF(Таблица_Металлопроцессинг_детализированный[[#This Row],[Инициатор+исполнитель]],1,IF(Таблица_Металлопроцессинг_детализированный[[#This Row],[Оборот за месяц по контрагенту]]<1000000,0.5,0.7))","v":1},{"$f":"IF(Таблица_Металлопроцессинг_детализированный[[#This Row],[Инициатор+исполнитель]]=TRUE,0,IF(Таблица_Металлопроцессинг_детализированный[[#This Row],[Оборот за месяц по контрагенту]]<1000000,0.5,0.3))","v":0},{"$f":"Таблица_Металлопроцессинг_детализированный[[#This Row],[Сумма наценки]]*Таблица_Металлопроцессинг_детализированный[[#This Row],[Распределение выручки для Куратора договора]]","v":110840},{"$f":"IF(Таблица_Металлопроцессинг_детализированный[[#This Row],[Распределение выручки для Менеджера договора]]=1,\"\",Таблица_Металлопроцессинг_детализированный[[#This Row],[Сумма наценки]]*Таблица_Металлопроцессинг_детализированный[[#This Row],[Распределение выручки для Менеджера договора]])","v":0},"Процессинг","САНКТ-ПЕТЕРБУРГ","АМИРА СК","ООО \"Амира-СтальКонструкция\"","Санкт-Петербург ","Санкт-Петербург ","Металлоконструкции","Сталь рулонная Г/к., 3, 1500, Ст.сп/пс (19903)",null,13.04,"т",288184,"Порезка листового проката поперечная","CAMU RDC 1500/6",110840,1,9,1,"САНКТ-ПЕТЕРБУРГ","Центр",13.04]
[1,"САНКТ-ПЕТЕРБУРГ","Центр","Ипатова Е.Н.","Ипатова Е.Н.","Ипатова Е.Н.",{"$f":"IF(Таблица_Металлопроцессинг_детализированный[[#This Row],[Куратор договора]]=Таблица_Металлопроцессинг_детализированный[[#This Row],[Менеджер]],TRUE,FALSE)","v":true},{"$f":"SUMIFS(AA167:AA3643,O167:O3643,Таблица_Металлопроцессинг_детализированный[[#This Row],[Контрагент]],A167:A3643,Таблица_Металлопроцессинг_детализированный[[#This Row],[Месяц отгрузки]])","v":44953.94},{"$f":"IF(Таблица_Металлопроцессинг_детализированный[[#This Row],[Инициатор+исполнитель]],1,IF(Таблица_Металлопроцессинг_детализированный[[#This Row],[Оборот за месяц по контрагенту]]<1000000,0.5,0.7))","v":1},{"$f":"IF(Таблица_Металлопроцессинг_детализированный[[#This Row],[Инициатор+исполнитель]]=TRUE,0,IF(Таблица_Металлопроцессинг_детализированный[[#This Row],[Оборот за месяц по контрагенту]]<1000000,0.5,0.3))","v":0},{"$f":"Таблица_Металлопроцессинг_детализированный[[#This Row],[Сумма наценки]]*Таблица_Металлопроцессинг_детализированный[[#This Row],[Распределение выручки для Куратора договора]]","v":44953.94},{"$f":"IF(Таблица_Металлопроцессинг_детализированный[[#This Row],[Распределение выручки для Менеджера договора]]=1,\"\",Таблица_Металлопроцессинг_детализированный[[#This Row],[Сумма наценки]]*Таблица_Металлопроцессинг_детализированный[[#This Row],[Распределение выручки для Менеджера договора]])","v":0},"Из давальческого сырья","САНКТ-ПЕТЕРБУРГ","СНСЗ","ОАО \"СРЕДНЕ-НЕВСКИЙ СУДОСТРОИТЕЛЬНЫЙ ЗАВОД\"",null,null,"Машиностроение","Изделие","Лист 7*1600*6000 PCD ГОСТ19903 , ГОСТ5521-93",14.25,"т",0,"Очистка и покраска проката (грунт HEMPEL)","ROSLER",44953.94,499.1,2188.8000000000002,1,"САНКТ-ПЕТЕРБУРГ","Центр",14.25]
[1,"САНКТ-ПЕТЕРБУРГ","Центр","Степура С.Н.","Хабибуллов М.Р.","Хабибуллов М.Р.",{"$f":"IF(Таблица_Металлопроцессинг_детализированный[[#This Row],[Куратор договора]]=Таблица_Металлопроцессинг_детализированный[[#This Row],[Менеджер]],TRUE,FALSE)","v":false},{"$f":"SUMIFS(AA168:AA3644,O168:O3644,Таблица_Металлопроцессинг_детализированный[[#This Row],[Контрагент]],A168:A3644,Таблица_Металлопроцессинг_детализированный[[#This Row],[Месяц отгрузки]])","v":104970},{"$f":"IF(Таблица_Металлопроцессинг_детализированный[[#This Row],[Инициатор+исполнитель]],1,IF(Таблица_Металлопроцессинг_детализированный[[#This Row],[Оборот за месяц по контрагенту]]<1000000,0.5,0.7))","v":0.5},{"$f":"IF(Таблица_Металлопроцессинг_детализированный[[#This Row],[Инициатор+исполнитель]]=TRUE,0,IF(Таблица_Металлопроцессинг_детализированный[[#This Row],[Оборот за месяц по контрагенту]]<1000000,0.5,0.3))","v":0.5},{"$f":"Таблица_Металлопроцессинг_детализированный[[#This Row],[Сумма наценки]]*Таблица_Металлопроцессинг_детализированный[[#This Row],[Распределение выручки для Куратора договора]]","v":15002.25},{"$f":"IF(Таблица_Металлопроцессинг_детализированный[[#This Row],[Распределение выручки для Менеджера договора]]=1,\"\",Таблица_Металлопроцессинг_детализированный[[#This Row],[Сумма наценки]]*Таблица_Металлопроцессинг_детализированный[[#This Row],[Распределение выручки для Менеджера договора]])","v":15002.25},"Процессинг","САНКТ-ПЕТЕРБУРГ","АртЛэнд","ООО \"Строительная компания \"АртЛэнд\"",null,null,"Стройиндустрия","Шпунт Ларсена Л5-УМ, С255 (ТУ 14-102-8-2003)",null,20.003,"т",790118.5,"Очистка и покраска проката (грунт ЭМЛАК 263)","ROSLER",30004.5,20.003,20.003,1,"САНКТ-ПЕТЕРБУРГ","Центр",20.003]
[1,"САНКТ-ПЕТЕРБУРГ","Центр","Ипатова Е.Н.","Хабибуллов М.Р.","Хабибуллов М.Р.",{"$f":"IF(Таблица_Металлопроцессинг_детализированный[[#This Row],[Куратор договора]]=Таблица_Металлопроцессинг_детализированный[[#This Row],[Менеджер]],TRUE,FALSE)","v":false},{"$f":"SUMIFS(AA169:AA3645,O169:O3645,Таблица_Металлопроцессинг_детализированный[[#This Row],[Контрагент]],A169:A3645,Таблица_Металлопроцессинг_детализированный[[#This Row],[Месяц отгрузки]])","v":74965.5},{"$f":"IF(Таблица_Металлопроцессинг_детализированный[[#This Row],[Инициатор+исполнитель]],1,IF(Таблица_Металлопроцессинг_детализированный[[#This Row],[Оборот за месяц по контрагенту]]<1000000,0.5,0.7))","v":0.5},{"$f":"IF(Таблица_Металлопроцессинг_детализированный[[#This Row],[Инициатор+исполнитель]]=TRUE,0,IF(Таблица_Металлопроцессинг_детализированный[[#This Row],[Оборот за месяц по контрагенту]]<1000000,0.5,0.3))","v":0.5},{"$f":"Таблица_Металлопроцессинг_детализированный[[#This Row],[Сумма наценки]]*Таблица_Металлопроцессинг_детализированный[[#This Row],[Распределение выручки для Куратора договора]]","v":14997},{"$f":"IF(Таблица_Металлопроцессинг_детализированный[[#This Row],[Распределение выручки для Менеджера договора]]=1,\"\",Таблица_Металлопроцессинг_детализированный[[#This Row],[Сумма наценки]]*Таблица_Металлопроцессинг_детализированный[[#This Row],[Распределение выручки для Менеджера договора]])","v":14997},"Процессинг","САНКТ-ПЕТЕРБУРГ","АртЛэнд","ООО \"Строительная компания \"АртЛэнд\"",null,null,"Стройиндустрия","Шпунт Ларсена Л5-УМ, С255 (ТУ 14-102-8-2003)",null,19.995999999999999,"т",789842,"Очистка и покраска проката (грунт ЭМЛАК 263)","ROSLER",29994,19.995999999999999,0,1,"САНКТ-ПЕТЕРБУРГ","Центр",19.995999999999999]
[1,"САНКТ-ПЕТЕРБУРГ","Центр","Погорелов И.В.","Хабибуллов М.Р.","Хабибуллов М.Р.",{"$f":"IF(Таблица_Металлопроцессинг_детализированный[[#This Row],[Куратор договора]]=Таблица_Металлопроцессинг_детализированный[[#This Row],[Менеджер]],TRUE,FALSE)","v":false},{"$f":"SUMIFS(AA170:AA3646,O170:O3646,Таблица_Металлопроцессинг_детализированный[[#This Row],[Контрагент]],A170:A3646,Таблица_Металлопроцессинг_детализированный[[#This Row],[Месяц отгрузки]])","v":44971.5},{"$f":"IF(Таблица_Металлопроцессинг_детализированный[[#This Row],[Инициатор+исполнитель]],1,IF(Таблица_Металлопроцессинг_детализированный[[#This Row],[Оборот за месяц по контрагенту]]<1000000,0.5,0.7))","v":0.5},{"$f":"IF(Таблица_Металлопроцессинг_детализированный[[#This Row],[Инициатор+исполнитель]]=TRUE,0,IF(Таблица_Металлопроцессинг_детализированный[[#This Row],[Оборот за месяц по контрагенту]]<1000000,0.5,0.3))","v":0.5},{"$f":"Таблица_Металлопроцессинг_детализированный[[#This Row],[Сумма наценки]]*Таблица_Металлопроцессинг_детализированный[[#This Row],[Распределение выручки для Куратора договора]]","v":7491.75},{"$f":"IF(Таблица_Металлопроцессинг_детализированный[[#This Row],[Распределение выручки для Менеджера договора]]=1,\"\",Таблица_Металлопроцессинг_детализированный[[#This Row],[Сумма наценки]]*Таблица_Металлопроцессинг_детализированный[[#This Row],[Распределение выручки для Менеджера договора]])","v":7491.75},"Процессинг","САНКТ-ПЕТЕРБУРГ","АртЛэнд","ООО \"Строительная компания \"АртЛэнд\"",null,null,"Стройиндустрия","Шпунт Ларсена Л5-УМ, С255 (ТУ 14-102-8-2003)",null,19.981999999999999,"т",789289,"Очистка и покраска проката (грунт ЭМЛАК 263)","ROSLER",14983.5,9.9890000000000008,0,1,"САНКТ-ПЕТЕРБУРГ","Центр",19.981999999999999]
[1,"САНКТ-ПЕТЕРБУРГ","Центр","Дауэнгауэр Н.Э.","Хабибуллов М.Р.","Хабибуллов М.Р.",{"$f":"IF(Таблица_Металлопроцессинг_детализированный[[#This Row],[Куратор договора]]=Таблица_Металлопроцессинг_детализированный[[#This Row],[Менеджер]],TRUE,FALSE)","v":false},{"$f":"SUMIFS(AA171:AA3647,O171:O3647,Таблица_Металлопроцессинг_детализированный[[#This Row],[Контрагент]],A171:A3647,Таблица_Металлопроцессинг_детализированный[[#This Row],[Месяц отгрузки]])","v":29988},{"$f":"IF(Таблица_Металлопроцессинг_детализированный[[#This Row],[Инициатор+исполнитель]],1,IF(Таблица_Металлопроцессинг_детализированный[[#This Row],[Оборот за месяц по контрагенту]]<1000000,0.5,0.7))","v":0.5},{"$f":"IF(Таблица_Металлопроцессинг_детализированный[[#This Row],[Инициатор+исполнитель]]=TRUE,0,IF(Таблица_Металлопроцессинг_детализированный[[#This Row],[Оборот за месяц по контрагенту]]<1000000,0.5,0.3))","v":0.5},{"$f":"Таблица_Металлопроцессинг_детализированный[[#This Row],[Сумма наценки]]*Таблица_Металлопроцессинг_детализированный[[#This Row],[Распределение выручки для Куратора договора]]","v":14994},{"$f":"IF(Таблица_Металлопроцессинг_детализированный[[#This Row],[Распределение выручки для Менеджера договора]]=1,\"\",Таблица_Металлопроцессинг_детализированный[[#This Row],[Сумма наценки]]*Таблица_Металлопроцессинг_детализированный[[#This Row],[Распределение выручки для Менеджера договора]])","v":14994},"Процессинг","САНКТ-ПЕТЕРБУРГ","АртЛэнд","ООО \"Строительная компания \"АртЛэнд\"",null,null,"Стройиндустрия","Шпунт Ларсена Л5-УМ, С255 (ТУ 14-102-8-2003)",null,19.992000000000001,"т",789684,"Очистка и покраска проката (грунт ЭМЛАК 263)","ROSLER",29988,19.992000000000001,0,1,"САНКТ-ПЕТЕРБУРГ","Центр",19.992000000000001]
[1,"САНКТ-ПЕТЕРБУРГ","Центр","Хабибуллов М.Р.","Хабибуллов М.Р.","Хабибуллов М.Р.",{"$f":"IF(Таблица_Металлопроцессинг_детализированный[[#This Row],[Куратор договора]]=Таблица_Металлопроцессинг_детализированный[[#This Row],[Менеджер]],TRUE,FALSE)","v":true},{"$f":"SUMIFS(AA172:AA3652,O172:O3652,Таблица_Металлопроцессинг_детализированный[[#This Row],[Контрагент]],A172:A3652,Таблица_Металлопроцессинг_детализированный[[#This Row],[Месяц отгрузки]])","v":82640},{"$f":"IF(Таблица_Металлопроцессинг_детализированный[[#This Row],[Инициатор+исполнитель]],1,IF(Таблица_Металлопроцессинг_детализированный[[#This Row],[Оборот за месяц по контрагенту]]<1000000,0.5,0.7))","v":1},{"$f":"IF(Таблица_Металлопроцессинг_детализированный[[#This Row],[Инициатор+исполнитель]]=TRUE,0,IF(Таблица_Металлопроцессинг_детализированный[[#This Row],[Оборот за месяц по контрагенту]]<1000000,0.5,0.3))","v":0},{"$f":"Таблица_Металлопроцессинг_детализированный[[#This Row],[Сумма наценки]]*Таблица_Металлопроцессинг_детализированный[[#This Row],[Распределение выручки для Куратора договора]]","v":42032},{"$f":"IF(Таблица_Металлопроцессинг_детализированный[[#This Row],[Распределение выручки для Менеджера договора]]=1,\"\",Таблица_Металлопроцессинг_детализированный[[#This Row],[Сумма наценки]]*Таблица_Металлопроцессинг_детализированный[[#This Row],[Распределение выручки для Менеджера договора]])","v":0},"Процессинг","САНКТ-ПЕТЕРБУРГ","РОССИНКОМ","ООО \"Строительная инновационная компания \"РОССИНКОМ\"",null,null,"Стройиндустрия","Шпунт Ларсена Л5-УМ, С255 (ТУ 0925-008-00186269-2012)",null,21.015999999999998,"т",829921.84,"Очистка и покраска проката (грунт HEMPEL)","ROSLER",42032,21.015999999999998,21.015999999999998,1,"САНКТ-ПЕТЕРБУРГ","Центр",21.015999999999998]
[1,"САНКТ-ПЕТЕРБУРГ","Центр","Хабибуллов М.Р.","Хабибуллов М.Р.","Хабибуллов М.Р.",{"$f":"IF(Таблица_Металлопроцессинг_детализированный[[#This Row],[Куратор договора]]=Таблица_Металлопроцессинг_детализированный[[#This Row],[Менеджер]],TRUE,FALSE)","v":true},{"$f":"SUMIFS(AA173:AA3653,O173:O3653,Таблица_Металлопроцессинг_детализированный[[#This Row],[Контрагент]],A173:A3653,Таблица_Металлопроцессинг_детализированный[[#This Row],[Месяц отгрузки]])","v":40608},{"$f":"IF(Таблица_Металлопроцессинг_детализированный[[#This Row],[Инициатор+исполнитель]],1,IF(Таблица_Металлопроцессинг_детализированный[[#This Row],[Оборот за месяц по контрагенту]]<1000000,0.5,0.7))","v":1},{"$f":"IF(Таблица_Металлопроцессинг_детализированный[[#This Row],[Инициатор+исполнитель]]=TRUE,0,IF(Таблица_Металлопроцессинг_детализированный[[#This Row],[Оборот за месяц по контрагенту]]<1000000,0.5,0.3))","v":0},{"$f":"Таблица_Металлопроцессинг_детализированный[[#This Row],[Сумма наценки]]*Таблица_Металлопроцессинг_детализированный[[#This Row],[Распределение выручки для Куратора договора]]","v":40608},{"$f":"IF(Таблица_Металлопроцессинг_детализированный[[#This Row],[Распределение выручки для Менеджера договора]]=1,\"\",Таблица_Металлопроцессинг_детализированный[[#This Row],[Сумма наценки]]*Таблица_Металлопроцессинг_детализированный[[#This Row],[Распределение выручки для Менеджера договора]])","v":0},"Процессинг","САНКТ-ПЕТЕРБУРГ","РОССИНКОМ","ООО \"Строительная инновационная компания \"РОССИНКОМ\"",null,null,"Стройиндустрия","Шпунт Ларсена Л5-УМ, С255 (ТУ 0925-008-00186269-2012)",null,20.303999999999998,"т",801804.96,"Очистка и покраска проката (грунт HEMPEL)","ROSLER",40608,20.303999999999998,20.303999999999998,1,"САНКТ-ПЕТЕРБУРГ","Центр",20.303999999999998]
[1,"САНКТ-ПЕТЕРБУРГ","Центр","Зиновьев С.Ю.","Зиновьев С.Ю.","Зиновьев С.Ю.",{"$f":"IF(Таблица_Металлопроцессинг_детализированный[[#This Row],[Куратор договора]]=Таблица_Металлопроцессинг_детализированный[[#This Row],[Менеджер]],TRUE,FALSE)","v":true},{"$f":"SUMIFS(AA174:AA3655,O174:O3655,Таблица_Металлопроцессинг_детализированный[[#This Row],[Контрагент]],A174:A3655,Таблица_Металлопроцессинг_детализированный[[#This Row],[Месяц отгрузки]])","v":1425},{"$f":"IF(Таблица_Металлопроцессинг_детализированный[[#This Row],[Инициатор+исполнитель]],1,IF(Таблица_Металлопроцессинг_детализированный[[#This Row],[Оборот за месяц по контрагенту]]<1000000,0.5,0.7))","v":1},{"$f":"IF(Таблица_Металлопроцессинг_детализированный[[#This Row],[Инициатор+исполнитель]]=TRUE,0,IF(Таблица_Металлопроцессинг_детализированный[[#This Row],[Оборот за месяц по контрагенту]]<1000000,0.5,0.3))","v":0},{"$f":"Таблица_Металлопроцессинг_детализированный[[#This Row],[Сумма наценки]]*Таблица_Металлопроцессинг_детализированный[[#This Row],[Распределение выручки для Куратора договора]]","v":1425},{"$f":"IF(Таблица_Металлопроцессинг_детализированный[[#This Row],[Распределение выручки для Менеджера договора]]=1,\"\",Таблица_Металлопроцессинг_детализированный[[#This Row],[Сумма наценки]]*Таблица_Металлопроцессинг_детализированный[[#This Row],[Распределение выручки для Менеджера договора]])","v":0},"Процессинг","САНКТ-ПЕТЕРБУРГ","МЕТАЛЛОБАЗА №5","ООО \"Металлобаза №5\"",null,null,"Металлоторговля","Арматура класс АIII (А400), 8, Ст.35ГС, в бунтах (ГОСТ5781-82)",null,0.95,"т",24263,"Размотка/резка в типовой  размер арматурного проката","FORMAT-S",1425,1,0.95,1,"САНКТ-ПЕТЕРБУРГ","Центр",0.95]
[1,"САНКТ-ПЕТЕРБУРГ","Центр","Погорелов И.В.","Погорелов И.В.","Погорелов И.В.",{"$f":"IF(Таблица_Металлопроцессинг_детализированный[[#This Row],[Куратор договора]]=Таблица_Металлопроцессинг_детализированный[[#This Row],[Менеджер]],TRUE,FALSE)","v":true},{"$f":"SUMIFS(AA175:AA3657,O175:O3657,Таблица_Металлопроцессинг_детализированный[[#This Row],[Контрагент]],A175:A3657,Таблица_Металлопроцессинг_детализированный[[#This Row],[Месяц отгрузки]])","v":21056},{"$f":"IF(Таблица_Металлопроцессинг_детализированный[[#This Row],[Инициатор+исполнитель]],1,IF(Таблица_Металлопроцессинг_детализированный[[#This Row],[Оборот за месяц по контрагенту]]<1000000,0.5,0.7))","v":1},{"$f":"IF(Таблица_Металлопроцессинг_детализированный[[#This Row],[Инициатор+исполнитель]]=TRUE,0,IF(Таблица_Металлопроцессинг_детализированный[[#This Row],[Оборот за месяц по контрагенту]]<1000000,0.5,0.3))","v":0},{"$f":"Таблица_Металлопроцессинг_детализированный[[#This Row],[Сумма наценки]]*Таблица_Металлопроцессинг_детализированный[[#This Row],[Распределение выручки для Куратора договора]]","v":4160},{"$f":"IF(Таблица_Металлопроцессинг_детализированный[[#This Row],[Распределение выручки для Менеджера договора]]=1,\"\",Таблица_Металлопроцессинг_детализированный[[#This Row],[Сумма наценки]]*Таблица_Металлопроцессинг_детализированный[[#This Row],[Распределение выручки для Менеджера договора]])","v":0},"Процессинг","САНКТ-ПЕТЕРБУРГ","СТК-СЕРВИС","ООО \"СТК-сервис\"",null,null,"Металлоторговля","Сталь листовая Г/к., 12, 1500x6000, Ст.сп/пс (ГОСТ 14637)",null,0.85,"т",19065.5,"Порезка листового проката плазменная PLAZMA","LINEACORD PCL40",4160,52,0.85,1,"САНКТ-ПЕТЕРБУРГ","Центр",0.85]
[1,"САНКТ-ПЕТЕРБУРГ","Центр","Погорелов И.В.","Погорелов И.В.","Погорелов И.В.",{"$f":"IF(Таблица_Металлопроцессинг_детализированный[[#This Row],[Куратор договора]]=Таблица_Металлопроцессинг_детализированный[[#This Row],[Менеджер]],TRUE,FALSE)","v":true},{"$f":"SUMIFS(AA176:AA3658,O176:O3658,Таблица_Металлопроцессинг_детализированный[[#This Row],[Контрагент]],A176:A3658,Таблица_Металлопроцессинг_детализированный[[#This Row],[Месяц отгрузки]])","v":16896},{"$f":"IF(Таблица_Металлопроцессинг_детализированный[[#This Row],[Инициатор+исполнитель]],1,IF(Таблица_Металлопроцессинг_детализированный[[#This Row],[Оборот за месяц по контрагенту]]<1000000,0.5,0.7))","v":1},{"$f":"IF(Таблица_Металлопроцессинг_детализированный[[#This Row],[Инициатор+исполнитель]]=TRUE,0,IF(Таблица_Металлопроцессинг_детализированный[[#This Row],[Оборот за месяц по контрагенту]]<1000000,0.5,0.3))","v":0},{"$f":"Таблица_Металлопроцессинг_детализированный[[#This Row],[Сумма наценки]]*Таблица_Металлопроцессинг_детализированный[[#This Row],[Распределение выручки для Куратора договора]]","v":16896},{"$f":"IF(Таблица_Металлопроцессинг_детализированный[[#This Row],[Распределение выручки для Менеджера договора]]=1,\"\",Таблица_Металлопроцессинг_детализированный[[#This Row],[Сумма наценки]]*Таблица_Металлопроцессинг_детализированный[[#This Row],[Распределение выручки для Менеджера договора]])","v":0},"Из давальческого сырья","САНКТ-ПЕТЕРБУРГ","СТК-СЕРВИС","ООО \"СТК-сервис\"",null,null,"Металлоторговля","Изделие","из 16го листа",1,"шт",0,"Порезка листового проката плазменная PLAZMA","LINEACORD PCL40",16896,176,1,1,"САНКТ-ПЕТЕРБУРГ","Центр",1.5070000000000001]
[1,"САНКТ-ПЕТЕРБУРГ","Центр","Ипатова Е.Н.","Ипатова Е.Н.","Ипатова Е.Н.",{"$f":"IF(Таблица_Металлопроцессинг_детализированный[[#This Row],[Куратор договора]]=Таблица_Металлопроцессинг_детализированный[[#This Row],[Менеджер]],TRUE,FALSE)","v":true},{"$f":"SUMIFS(AA177:AA3659,O177:O3659,Таблица_Металлопроцессинг_детализированный[[#This Row],[Контрагент]],A177:A3659,Таблица_Металлопроцессинг_детализированный[[#This Row],[Месяц отгрузки]])","v":12110},{"$f":"IF(Таблица_Металлопроцессинг_детализированный[[#This Row],[Инициатор+исполнитель]],1,IF(Таблица_Металлопроцессинг_детализированный[[#This Row],[Оборот за месяц по контрагенту]]<1000000,0.5,0.7))","v":1},{"$f":"IF(Таблица_Металлопроцессинг_детализированный[[#This Row],[Инициатор+исполнитель]]=TRUE,0,IF(Таблица_Металлопроцессинг_детализированный[[#This Row],[Оборот за месяц по контрагенту]]<1000000,0.5,0.3))","v":0},{"$f":"Таблица_Металлопроцессинг_детализированный[[#This Row],[Сумма наценки]]*Таблица_Металлопроцессинг_детализированный[[#This Row],[Распределение выручки для Куратора договора]]","v":12110},{"$f":"IF(Таблица_Металлопроцессинг_детализированный[[#This Row],[Распределение выручки для Менеджера договора]]=1,\"\",Таблица_Металлопроцессинг_детализированный[[#This Row],[Сумма наценки]]*Таблица_Металлопроцессинг_детализированный[[#This Row],[Распределение выручки для Менеджера договора]])","v":0},"Процессинг","САНКТ-ПЕТЕРБУРГ","СЭС ЮГРА","ООО \"СЭС\"","Ханты-Мансийский Автономный округ-Югра","Ханты-Мансийский Автономный округ-Югра","ТЭК","Сталь рулонная Х/к., 1.5, 1250, Ст.кп/пс (19904)",null,8.65,"т",226716.5,"Порезка листового проката поперечная","CAMU RDC 1500/6",12110,1,9.32,1,"САНКТ-ПЕТЕРБУРГ","Центр",8.65]